Workbook

Sheet Table List
B2: Definitions
B3: In scope for NHCDC reporting includes all linked records with date of admission in the current or previous financial year (i.e. after July 1, 2021), and their associated costs apart from Exclude costs.
B4: Out of scope for NHCDC reporting includes all admitted records with admission date prior to the previous financial year (i.e. before July 1, 2021) and their associated costs, all unlinked records and their associated costs, and Exclude costs from linked records.
B5: Note that records and costs that are out of scope for NHCDC reporting are still in scope for NHCDC submission.
B7: Table List
B9: Stream | C9: Tab title | D9: Table title
C10: 1 Overview | D10: Appendix 1. NHCDC 2020-21 to 2022-23 summary, actual, by jurisdiction and stream
C11: 2 NHCDC Out Of Scope Reporting | D11: Appendix 2. NHCDC 2020-21 to 2022-23 out of scope WIP records and costs, unlinked records and costs, and linked Exclude costs, actual, by jurisdiction and stream
C12: 3 Direct Indirect | D12: Appendix 3. NHCDC 2020-21 to 2022-23 in scope direct and indirect expenditure, by stream
B13: Admitted Acute | C13: 4 Acute Cost Wghts V11 | D13: Appendix 4. NHCDC 2022-23 Admitted Acute Cost Weights for AR-DRG Version 11.0
C14: 5 Acute Overview | D14: Appendix 5.1. NHCDC 2020-21 to 2022-23 Admitted Acute summary, by jurisdiction
D15: Appendix 5.2. NHCDC 2020-21 to 2022-23 Admitted Acute cost bucket and line item average cost per separation, by jurisdiction
C16: 6 Acute Product | D16: Appendix 6. NHCDC 2020-21 to 2022-23 Admitted Acute summaries, by jurisdiction
B17: Subacute and Non-acute | C17: 7 Subacute ANSNAP Ep | D17: Appendix 7. NHCDC 2022-23 Subacute ANSNAP Version 5.0 episodes summary
C18: 8 Subacute ANSNAP Ph | D18: Appendix 8. NHCDC 2022-23 Subacute ANSNAP Version 5.0 phases summary
C19: 9 Subacute Overview | D19: Appendix 9.1. NHCDC 2020-21 to 2022-23 Subacute and Non-acute summary, by jurisdiction
D20: Appendix 9.2. NHCDC 2020-21 to 2022-23 Subacute cost bucket average cost per separation, by jurisdiction
D21: Appendix 9.3. NHCDC 2020-21 to 2022-23 Subacute line item average cost per separation, by jurisdiction
C22: 10 Subacute Product | D22: Appendix 10. NHCDC 2020-21 to 2022-23 Subacute care type summary, by jurisdiction
B23: Emergency Department | C23: 11 ED AECC Table | D23: Appendix 11: NHCDC 2022-23 Emergency Department AECC Version 1.0 summary
C24: 12 ED Overview | D24: Appendix 12.1. NHCDC 2020-21 to 2022-23 Emergency Department summary, by jurisdiction
D25: Appendix 12.2. NHCDC 2020-21 to 2022-23 Emergency Department cost bucket and line item average cost per presentation, by jurisdiction
C26: 13 ED by End Status | D26: Appendix 13. NHCDC 2020-21 to 2022-23 Emergency Department by end status
B27: Non-admitted | C27: 14 NAP Tier 2 Table | D27: Appendix 14. NHCDC 2022-23 Non-admitted Tier 2 Version 7.0 summary
C28: 15 NAP Overview | D28: Appendix 15.1. NHCDC 2020-21 to 2022-23 Non-admitted summary, by jurisdiction
D29: Appendix 15.2. NHCDC 2020-21 to 2022-23 Non-admitted cost bucket and line item per service event, by jurisdiction
B30: Mental Health | C30: 16 MH Admitted Table - Episode | D30: Appendix 16. NHCDC 2022-23 Admitted Mental Health AR-DRG Version 11.0 episodes summary
C31: 17 MH Admitted Table - Phase | D31: Appendix 17. NHCDC 2022-23 Admitted Mental Health AMHCC Version 1.0 phases summary
C32: 18 MH Community Table - Episode | D32: Appendix 18. NHCDC 2022-23 Community Mental Health AMHCC Version 1.0 episodes summary
C33: 19 MH Community Table - Phase | D33: Appendix 19. NHCDC 2022-23 Community Mental Health AMHCC Version 1.0 phases summary
C34: 20 MH Overview | D34: Appendix 20. NHCDC 2020-21 to 2022-23 Mental Health summaries, by jurisdiction
C35: 21 MH Cost Bucket | D35: Appendix 21. NHCDC 2020-21 to 2022-23 Admitted, Community and Ungroupable Mental Health cost bucket average cost per episode/phase, by jurisdiction
C36: 22 MH Line Item | D36: Appendix 22. NHCDC 2020-21 to 2022-23 Admitted, Community and Ungroupable Mental Health line item average cost per episode/phase, by jurisdiction
B37: Other | C37: 23 Other Stream Product | D37: Appendix 23.1. NHCDC 2020-21 to 2022-23 Organ Procurement summary, by jurisdiction
D38: Appendix 23.2. NHCDC 2020-21 to 2022-23 Organ Procurement cost bucket average per separation, by jurisdiction

Sheet 1 Overview
C3: Appendix 1. NHCDC 2020-21 to 2022-23 summary, actual, by jurisdiction and stream
A4: Jurisdiction | C4: Stream | AT4: 2021-22 to 2022-23 Change (%)
C5: Acute (APC) | F5: Subacute (APC) | I5: Subacute (PCC) | L5: Emergency Department (ED) | O5: Non-admitted (NAP) | R5: Admitted Mental Health (APC MHCE) | U5: Admitted Mental Health (MHCP) | X5: Community Mental Health (MHCE) | AA5: Community Mental Health (MHCP) | AD5: Ungroupable Mental Health (MHCE) | AG5: Ungroupable Mental Health (MHCP) | AJ5: Other (APC TT RS)* | AM5: Other (PCC)* | AP5: Total | AT5: Acute | AU5: Subacute | AW5: Emergency Department | AX5: Non-admitted | AY5: Mental Health | BE5: Other | BG5: Total
F6: Episodes | I6: Phases | R6: Episodes | U6: Phases | X6: Episodes | AA6: Phases | AD6: Episodes | AG6: Phases | AJ6: Episodes | AM6: Phases | AU6: Episodes | AV6: Phases | AY6: Admitted | BA6: Community | BC6: Ungroupable | BE6: Episodes | BF6: Phases
C7: 2020-21 | D7: 2021-22 | E7: 2022-23 | F7: 2020-21 | G7: 2021-22 | H7: 2022-23 | I7: 2020-21 | J7: 2021-22 | K7: 2022-23 | L7: 2020-21 | M7: 2021-22 | N7: 2022-23 | O7: 2020-21 | P7: 2021-22 | Q7: 2022-23 | R7: 2020-21 | S7: 2021-22 | T7: 2022-23 | U7: 2020-21 | V7: 2021-22 | W7: 2022-23 | X7: 2020-21 | Y7: 2021-22 | Z7: 2022-23 | AA7: 2020-21 | AB7: 2021-22 | AC7: 2022-23 | AD7: 2020-21 | AE7: 2021-22 | AF7: 2022-23 | AG7: 2020-21 | AH7: 2021-22 | AI7: 2022-23 | AJ7: 2020-21 | AK7: 2021-22 | AL7: 2022-23 | AM7: 2020-21 | AN7: 2021-22 | AO7: 2022-23 | AP7: 2020-21 | AQ7: 2021-22 | AR7: 2022-23 | AY7: Episodes | AZ7: Phases | BA7: Episodes | BB7: Phases | BC7: Episodes | BD7: Phases
A8: Total NHCDC submitted
A9: Number of establishments submitting to NHCDC | B9: NSW | C9: 86 | D9: 82 | E9: 88 | F9: 87 | G9: 88 | H9: 91 | I9: 81 | J9: 77 | K9: 87 | L9: 70 | M9: 70 | N9: 73 | O9: 91 | P9: 91 | Q9: 105 | R9: 20 | S9: 21 | T9: 3 | U9: 43 | V9: 40 | W9: 44 | X9: 0 | Y9: 0 | Z9: 0 | AA9: 48 | AB9: 47 | AC9: 47 | AD9: 0 | AE9: 0 | AF9: 0 | AG9: 2 | AH9: 28 | AI9: 0 | AJ9: 23 | AK9: 20 | AL9: 22 | AM9: 4 | AN9: 0 | AO9: 0 | AP9: 142 | AQ9: 139 | AR9: 153 | AT9: =IFERROR((E9/D9-1)*100,"") -> 7.317073171 | AU9: =IFERROR((H9/G9-1)*100,"") -> 3.409090909 | AV9: =IFERROR((K9/J9-1)*100,"") -> 12.98701299 | AW9: =IFERROR((N9/M9-1)*100,"") -> 4.285714286 | AX9: =IFERROR((Q9/P9-1)*100,"") -> 15.38461538 | AY9: =IFERROR((T9/S9-1)*100,"") -> -85.71428571 | AZ9: =IFERROR((W9/V9-1)*100,"") -> 10 | BA9: =IFERROR((Z9/Y9-1)*100,"") ->  | BB9: =IFERROR((AC9/AB9-1)*100,"") -> 0 | BC9: =IFERROR((AF9/AE9-1)*100,"") ->  | BD9: =IFERROR((AI9/AH9-1)*100,"") -> -100 | BE9: =IFERROR((AL9/AK9-1)*100,"") -> 10 | BF9: =IFERROR((AO9/AN9-1)*100,"") ->  | BG9: =IFERROR((AR9/AQ9-1)*100,"") -> 10.07194245
B10: Vic | C10: 69 | D10: 75 | E10: 79 | F10: 61 | G10: 59 | H10: 57 | I10: 34 | J10: 38 | K10: 38 | L10: 38 | M10: 39 | N10: 40 | O10: 58 | P10: 67 | Q10: 71 | R10: 29 | S10: 30 | T10: 34 | U10: 29 | V10: 29 | W10: 29 | X10: 16 | Y10: 24 | Z10: 20 | AA10: 29 | AB10: 30 | AC10: 30 | AD10: 0 | AE10: 0 | AF10: 0 | AG10: 0 | AH10: 0 | AI10: 0 | AJ10: 18 | AK10: 21 | AL10: 19 | AM10: 0 | AN10: 0 | AO10: 0 | AP10: 80 | AQ10: 89 | AR10: 91 | AT10: 5.333333333 | AU10: -3.389830508 | AV10: 0 | AW10: 2.564102564 | AX10: 5.970149254 | AY10: 13.33333333 | AZ10: 0 | BA10: -16.66666667 | BB10: 0 | BE10: -9.523809524 | BG10: =IFERROR((AR10/AQ10-1)*100,"") -> 2.247191011
B11: Qld | C11: 137 | D11: 138 | E11: 144 | F11: 106 | G11: 111 | H11: 120 | I11: 95 | J11: 92 | K11: 115 | L11: 108 | M11: 101 | N11: 113 | O11: 193 | P11: 200 | Q11: 202 | R11: 53 | S11: 52 | T11: 58 | U11: 35 | V11: 29 | W11: 36 | X11: 91 | Y11: 91 | Z11: 134 | AA11: 120 | AB11: 130 | AC11: 145 | AD11: 82 | AE11: 8 | AF11: 5 | AG11: 78 | AH11: 35 | AI11: 104 | AJ11: 79 | AK11: 71 | AL11: 86 | AM11: 20 | AN11: 0 | AO11: 21 | AP11: 367 | AQ11: 349 | AR11: 359 | AT11: 4.347826087 | AU11: 8.108108108 | AV11: 25 | AW11: 11.88118812 | AX11: 1 | AY11: 11.53846154 | AZ11: 24.13793103 | BA11: 47.25274725 | BB11: 11.53846154 | BC11: -37.5 | BD11: 197.1428571 | BE11: 21.12676056 | BG11: 2.865329513
B12: SA | C12: 18 | D12: 19 | E12: 21 | F12: 18 | G12: 19 | H12: 20 | I12: 0 | J12: 3 | K12: 4 | L12: 17 | M12: 18 | N12: 18 | O12: 19 | P12: 20 | Q12: 21 | R12: 13 | S12: 2 | T12: 17 | U12: 0 | V12: 8 | W12: 13 | X12: 0 | Y12: 0 | Z12: 0 | AA12: 0 | AB12: 0 | AC12: 0 | AD12: 2 | AE12: 0 | AF12: 0 | AG12: 0 | AH12: 2 | AI12: 0 | AJ12: 13 | AK12: 19 | AL12: 4 | AM12: 0 | AN12: 0 | AO12: 0 | AP12: 22 | AQ12: 21 | AR12: 25 | AT12: 10.52631579 | AU12: 5.263157895 | AV12: 33.33333333 | AW12: 0 | AX12: 5 | AY12: 750 | AZ12: 62.5 | BD12: -100 | BE12: -78.94736842 | BG12: 19.04761905
B13: WA | C13: 33 | D13: 33 | E13: 54 | F13: 31 | G13: 33 | H13: 35 | I13: 0 | J13: 0 | K13: 0 | L13: 28 | M13: 28 | N13: 28 | O13: 33 | P13: 33 | Q13: 33 | R13: 17 | S13: 18 | T13: 18 | U13: 0 | V13: 0 | W13: 0 | X13: 0 | Y13: 0 | Z13: 23 | AA13: 0 | AB13: 0 | AC13: 0 | AD13: 0 | AE13: 0 | AF13: 0 | AG13: 0 | AH13: 0 | AI13: 0 | AJ13: 15 | AK13: 15 | AL13: 30 | AM13: 0 | AN13: 0 | AO13: 0 | AP13: 36 | AQ13: 36 | AR13: 81 | AT13: 63.63636364 | AU13: 6.060606061 | AW13: 0 | AX13: 0 | AY13: 0 | BE13: 100 | BG13: 125
B14: Tas | C14: 23 | D14: 23 | E14: 22 | F14: 21 | G14: 21 | H14: 21 | I14: 1 | J14: 1 | K14: 1 | L14: 4 | M14: 4 | N14: 4 | O14: 12 | P14: 11 | Q14: 9 | R14: 3 | S14: 4 | T14: 4 | U14: 0 | V14: 0 | W14: 0 | X14: 1 | Y14: 1 | Z14: 1 | AA14: 1 | AB14: 1 | AC14: 1 | AD14: 1 | AE14: 1 | AF14: 1 | AG14: 1 | AH14: 1 | AI14: 1 | AJ14: 9 | AK14: 9 | AL14: 13 | AM14: 18 | AN14: 21 | AO14: 1 | AP14: 24 | AQ14: 24 | AR14: 24 | AT14: -4.347826087 | AU14: 0 | AV14: 0 | AW14: 0 | AX14: -18.18181818 | AY14: 0 | BA14: 0 | BB14: 0 | BC14: 0 | BD14: 0 | BE14: 44.44444444 | BF14: -95.23809524 | BG14: 0
B15: NT | C15: 6 | D15: 6 | E15: 6 | F15: 6 | G15: 6 | H15: 6 | I15: 3 | J15: 3 | K15: 3 | L15: 6 | M15: 6 | N15: 6 | O15: 6 | P15: 6 | Q15: 6 | R15: 2 | S15: 3 | T15: 2 | U15: 0 | V15: 0 | W15: 0 | X15: 0 | Y15: 0 | Z15: 0 | AA15: 0 | AB15: 0 | AC15: 0 | AD15: 0 | AE15: 0 | AF15: 0 | AG15: 0 | AH15: 0 | AI15: 0 | AJ15: 6 | AK15: 6 | AL15: 6 | AM15: 3 | AN15: 4 | AO15: 2 | AP15: 6 | AQ15: 6 | AR15: 6 | AT15: 0 | AU15: 0 | AV15: 0 | AW15: 0 | AX15: 0 | AY15: -33.33333333 | BE15: 0 | BF15: -50 | BG15: 0
B16: ACT | C16: 3 | D16: 3 | E16: 0 | F16: 3 | G16: 3 | H16: 0 | I16: 0 | J16: 0 | K16: 0 | L16: 2 | M16: 2 | N16: 0 | O16: 3 | P16: 3 | Q16: 0 | R16: 3 | S16: 3 | T16: 0 | U16: 0 | V16: 0 | W16: 0 | X16: 1 | Y16: 0 | Z16: 0 | AA16: 0 | AB16: 0 | AC16: 0 | AD16: 0 | AE16: 0 | AF16: 0 | AG16: 0 | AH16: 0 | AI16: 0 | AJ16: 3 | AK16: 1 | AL16: 0 | AM16: 0 | AN16: 0 | AO16: 0 | AP16: 3 | AQ16: 3 | AR16: 0 | AT16: -100 | AU16: -100 | AW16: -100 | AX16: -100 | AY16: -100 | BE16: -100 | BG16: -100
B17: National | C17: 375 | D17: 379 | E17: 414 | F17: 333 | G17: 340 | H17: 350 | I17: 214 | J17: 214 | K17: 248 | L17: 273 | M17: 268 | N17: 282 | O17: 415 | P17: 431 | Q17: 447 | R17: 140 | S17: 133 | T17: 136 | U17: 107 | V17: 106 | W17: 122 | X17: 109 | Y17: 116 | Z17: 178 | AA17: 198 | AB17: 208 | AC17: 223 | AD17: 85 | AE17: 9 | AF17: 6 | AG17: 81 | AH17: 66 | AI17: 105 | AJ17: 166 | AK17: 162 | AL17: 180 | AM17: 45 | AN17: 25 | AO17: 24 | AP17: 680 | AQ17: 667 | AR17: 739 | AT17: 9.234828496 | AU17: 2.941176471 | AV17: 15.88785047 | AW17: 5.223880597 | AX17: 3.712296984 | AY17: 2.255639098 | AZ17: 15.09433962 | BA17: 53.44827586 | BB17: 7.211538462 | BC17: -33.33333333 | BD17: 59.09090909 | BE17: 11.11111111 | BF17: -4 | BG17: 10.7946027
A18: Total NHCDC records submitted | B18: NSW | C18: 1627516 | D18: 1489603 | E18: 1665296 | F18: 45022 | G18: 35627 | H18: 45886 | I18: 30691 | J18: 28082 | K18: 35010 | L18: 2520197 | M18: 2463075 | N18: 2725997 | O18: 10363280 | P18: 9923216 | Q18: 10329842 | R18: 527 | S18: 94 | T18: 5 | U18: 36396 | V18: 32197 | W18: 35460 | X18: 0 | Y18: 0 | Z18: 0 | AA18: 200186 | AB18: 192668 | AC18: 184699 | AD18: 0 | AE18: 0 | AF18: 0 | AG18: 6 | AH18: 298 | AI18: 0 | AJ18: 103 | AK18: 69 | AL18: 95 | AM18: 10 | AN18: 0 | AO18: 0 | AP18: 14823934 | AQ18: 14164929 | AR18: 15022290 | AT18: 11.7946191 | AU18: 28.79557639 | AV18: 24.67060751 | AW18: 10.674543 | AX18: 4.097723964 | AY18: -94.68085106 | AZ18: 10.13448458 | BB18: -4.136130546 | BD18: -100 | BE18: 37.68115942 | BG18: 6.052702417
B19: Vic | C19: 1659309 | D19: 1682454 | E19: 1790034 | F19: 30788 | G19: 30347 | H19: 32482 | I19: 14969 | J19: 15741 | K19: 15824 | L19: 1704061 | M19: 1817818 | N19: 1870367 | O19: 5038904 | P19: 5423425 | Q19: 5669221 | R19: 449 | S19: 476 | T19: 643 | U19: 26473 | V19: 25512 | W19: 24308 | X19: 205750 | Y19: 205348 | Z19: 740 | AA19: 119841 | AB19: 223996 | AC19: 478974 | AD19: 0 | AE19: 0 | AF19: 0 | AG19: 0 | AH19: 0 | AI19: 0 | AJ19: 120 | AK19: 111 | AL19: 14372 | AM19: 0 | AN19: 0 | AO19: 0 | AP19: 8800664 | AQ19: 9425228 | AR19: 9896965 | AT19: 6.394231284 | AU19: 7.035291792 | AV19: 0.5272854329 | AW19: 2.890773444 | AX19: 4.532117619 | AY19: 35.08403361 | AZ19: -4.719347758 | BA19: -99.63963613 | BB19: 113.831497 | BE19: 12847.74775 | BG19: 5.005046032
B20: Qld | C20: 1626382 | D20: 1622558 | E20: 1672229 | F20: 39865 | G20: 52248 | H20: 53237 | I20: 9902 | J20: 15871 | K20: 16823 | L20: 2301101 | M20: 2163308 | N20: 2249422 | O20: 6774890 | P20: 8558608 | Q20: 6998983 | R20: 17686 | S20: 8002 | T20: 6179 | U20: 6587 | V20: 15776 | W20: 24106 | X20: 9266 | Y20: 6681 | Z20: 138210 | AA20: 82904 | AB20: 135181 | AC20: 62185 | AD20: 1844 | AE20: 14 | AF20: 143 | AG20: 7321 | AH20: 1207 | AI20: 3717 | AJ20: 10981 | AK20: 11480 | AL20: 13794 | AM20: 139 | AN20: 0 | AO20: 90 | AP20: 10888868 | AQ20: 12590934 | AR20: 11239118 | AT20: 3.061277316 | AU20: 1.892895422 | AV20: 5.998361792 | AW20: 3.980662948 | AX20: -18.22288157 | AY20: -22.78180455 | AZ20: 52.80172414 | BA20: 1968.70229 | BB20: -53.99871284 | BC20: 921.4285714 | BD20: 207.953604 | BE20: 20.15679443 | BG20: -10.73642353
B21: SA | C21: 404837 | D21: 409865 | E21: 421048 | F21: 11841 | G21: 13363 | H21: 16261 | I21: 0 | J21: 2918 | K21: 3397 | L21: 597695 | M21: 597497 | N21: 597643 | O21: 2086861 | P21: 3608829 | Q21: 1878609 | R21: 6344 | S21: 5 | T21: 5437 | U21: 0 | V21: 6518 | W21: 9139 | X21: 0 | Y21: 0 | Z21: 0 | AA21: 0 | AB21: 0 | AC21: 0 | AD21: 301567 | AE21: 0 | AF21: 0 | AG21: 0 | AH21: 549 | AI21: 0 | AJ21: 14004 | AK21: 2182 | AL21: 40 | AM21: 0 | AN21: 0 | AO21: 0 | AP21: 3423149 | AQ21: 4641726 | AR21: 2931574 | AT21: 2.728459371 | AU21: 21.68674699 | AV21: 16.41535298 | AW21: 0.02443526913 | AX21: -47.9440838 | AY21: 108640 | AZ21: 40.21172139 | BD21: -100 | BE21: -98.16681943 | BG21: -36.84301917
B22: WA | C22: 609839 | D22: 588311 | E22: 619909 | F22: 12396 | G22: 11918 | H22: 12384 | I22: 0 | J22: 0 | K22: 0 | L22: 804175 | M22: 808784 | N22: 820169 | O22: 2734270 | P22: 3267124 | Q22: 3130937 | R22: 12854 | S22: 12486 | T22: 12450 | U22: 0 | V22: 0 | W22: 0 | X22: 0 | Y22: 0 | Z22: 70428 | AA22: 0 | AB22: 0 | AC22: 0 | AD22: 0 | AE22: 0 | AF22: 0 | AG22: 0 | AH22: 0 | AI22: 0 | AJ22: 96 | AK22: 1574 | AL22: 2069 | AM22: 0 | AN22: 0 | AO22: 0 | AP22: 4173630 | AQ22: 4690197 | AR22: 4668346 | AT22: 5.370968756 | AU22: 3.910052022 | AW22: 1.407668797 | AX22: -4.168406219 | AY22: -0.2883229217 | BE22: 31.44853875 | BG22: -0.4658866141
B23: Tas | C23: 132792 | D23: 150054 | E23: 157799 | F23: 2587 | G23: 2594 | H23: 3395 | I23: 626 | J23: 713 | K23: 716 | L23: 170848 | M23: 173894 | N23: 174112 | O23: 705105 | P23: 866647 | Q23: 680439 | R23: 3298 | S23: 3133 | T23: 3645 | U23: 0 | V23: 0 | W23: 0 | X23: 6483 | Y23: 7003 | Z23: 6801 | AA23: 2884 | AB23: 3983 | AC23: 3584 | AD23: 505 | AE23: 455 | AF23: 2 | AG23: 42 | AH23: 22 | AI23: 16 | AJ23: 1740 | AK23: 1891 | AL23: 1854 | AM23: 607 | AN23: 668 | AO23: 9 | AP23: 1027517 | AQ23: 1211057 | AR23: 1032372 | AT23: 5.161475202 | AU23: 30.87895143 | AV23: 0.4207573633 | AW23: 0.1253637273 | AX23: -21.48602603 | AY23: 16.34216406 | BA23: -2.884478081 | BB23: -10.01757469 | BC23: -99.56043956 | BD23: -27.27272727 | BE23: -1.9566367 | BF23: -98.65269461 | BG23: -14.75446655
B24: NT | C24: 179773 | D24: 169315 | E24: 179925 | F24: 765 | G24: 904 | H24: 814 | I24: 1257 | J24: 1152 | K24: 1120 | L24: 177681 | M24: 171415 | N24: 182086 | O24: 357919 | P24: 306681 | Q24: 311957 | R24: 1377 | S24: 1332 | T24: 1513 | U24: 0 | V24: 0 | W24: 0 | X24: 0 | Y24: 0 | Z24: 0 | AA24: 0 | AB24: 0 | AC24: 0 | AD24: 0 | AE24: 0 | AF24: 0 | AG24: 0 | AH24: 0 | AI24: 0 | AJ24: 831 | AK24: 12 | AL24: 56 | AM24: 12 | AN24: 36 | AO24: 22 | AP24: 719615 | AQ24: 650847 | AR24: 677493 | AT24: 6.266426483 | AU24: -9.955752212 | AV24: -2.777777778 | AW24: 6.225242832 | AX24: 1.720354375 | AY24: 13.58858859 | BE24: 366.6666667 | BF24: -38.88888889 | BG24: 4.094049754
B25: ACT | C25: 119817 | D25: 112495 | E25: 0 | F25: 5247 | G25: 4733 | H25: 0 | I25: 0 | J25: 0 | K25: 0 | L25: 153456 | M25: 143351 | N25: 0 | O25: 972593 | P25: 1687208 | Q25: 0 | R25: 2625 | S25: 2461 | T25: 0 | U25: 0 | V25: 0 | W25: 0 | X25: 6857 | Y25: 0 | Z25: 0 | AA25: 0 | AB25: 0 | AC25: 0 | AD25: 0 | AE25: 0 | AF25: 0 | AG25: 0 | AH25: 0 | AI25: 0 | AJ25: 259 | AK25: 8 | AL25: 0 | AM25: 0 | AN25: 0 | AO25: 0 | AP25: 1260854 | AQ25: 1950256 | AR25: 0 | AT25: -100 | AU25: -100 | AW25: -100 | AX25: -100 | AY25: -100 | BE25: -100 | BG25: -100
B26: National | C26: 6360265 | D26: 6224655 | E26: 6506240 | F26: 148511 | G26: 151734 | H26: 164459 | I26: 57445 | J26: 64477 | K26: 72890 | L26: 8429214 | M26: 8339142 | N26: 8619796 | O26: 29033822 | P26: 33641738 | Q26: 28999988 | R26: 45160 | S26: 27989 | T26: 29872 | U26: 69456 | V26: 80003 | W26: 93013 | X26: 228356 | Y26: 219032 | Z26: 216179 | AA26: 405815 | AB26: 555828 | AC26: 729442 | AD26: 303916 | AE26: 469 | AF26: 145 | AG26: 7369 | AH26: 2076 | AI26: 3733 | AJ26: 28134 | AK26: 17327 | AL26: 32280 | AM26: 768 | AN26: 704 | AO26: 121 | AP26: 45118231 | AQ26: 49325174 | AR26: 45468158 | AT26: 4.523704527 | AU26: 8.386386703 | AV26: 13.04806365 | AW26: 3.36550211 | AX26: -13.79759274 | AY26: 6.727643003 | AZ26: 16.26189018 | BA26: -1.302549399 | BB26: 31.23520226 | BC26: -69.08315565 | BD26: 79.81695568 | BE26: 86.29883996 | BF26: -82.8125 | BG26: -7.819568969
A27: Total NHCDC costs submitted ($) | B27: NSW | C27: 9308798254 | D27: 9893006895 | E27: 11350075161 | F27: 740755068.3 | G27: 746130176.1 | H27: 942821267.7 | I27: 175635093 | J27: 178545623.3 | K27: 210145909.6 | L27: 1996595002 | M27: 2233851770 | N27: 2597408568 | O27: 3020486622 | P27: 3241867281 | Q27: 3577134386 | R27: 1368223.965 | S27: 1181471.822 | T27: 70480.37312 | U27: 703667853.4 | V27: 748593947.6 | W27: 850355543.2 | X27: 0 | Y27: 0 | Z27: 0 | AA27: 605253402.4 | AB27: 705928979.5 | AC27: 666100994.4 | AD27: 0 | AE27: 0 | AF27: 0 | AG27: 36439.70586 | AH27: 766370.8085 | AI27: 0 | AJ27: 1106020.225 | AK27: 859585.5139 | AL27: 1411492.316 | AM27: 41104.90428 | AN27: 0 | AO27: 0 | AP27: 16553743083 | AQ27: 17750732100 | AR27: 20195523802 | AT27: 14.72826494 | AU27: 26.36149803 | AV27: 17.69871794 | AW27: 16.27488465 | AX27: 10.34178993 | AY27: -94.0345278 | AZ27: 13.59369734 | BB27: -5.641925217 | BD27: -100 | BE27: 64.20615438 | BG27: 13.77290631
B28: Vic | C28: 8651638307 | D28: 9377982680 | E28: 10817369007 | F28: 718971199.2 | G28: 798255327.4 | H28: 968159772.4 | I28: 109487343.3 | J28: 120004220 | K28: 140104000.6 | L28: 1441071115 | M28: 1671395531 | N28: 1912109699 | O28: 1845232431 | P28: 2052194931 | Q28: 2291917282 | R28: 63888948.4 | S28: 64799858.79 | T28: 44975121.9 | U28: 576215161.6 | V28: 600145269.1 | W28: 726618779.1 | X28: 44542587.27 | Y28: 48962900.82 | Z28: 283461.6699 | AA28: 269560443.9 | AB28: 532995089.5 | AC28: 667639146.7 | AD28: 0 | AE28: 0 | AF28: 0 | AG28: 0 | AH28: 0 | AI28: 0 | AJ28: 1864995.489 | AK28: 1873966.142 | AL28: 23028773.95 | AM28: 0 | AN28: 0 | AO28: 0 | AP28: 13722472533 | AQ28: 15268609774 | AR28: 17592205044 | AT28: 15.34857097 | AU28: 21.28447367 | AV28: 16.74922811 | AW28: 14.40198704 | AX28: 11.68126611 | AY28: -30.59379644 | AZ28: 21.07381603 | BA28: -99.42106847 | BB28: 25.26178192 | BE28: 1128.87887 | BG28: 15.21811943
B29: Qld | C29: 7566243704 | D29: 7873607411 | E29: 8999887491 | F29: 691255323.2 | G29: 818231217.3 | H29: 1079255693 | I29: 126130645.8 | J29: 132311800.8 | K29: 152504409.8 | L29: 1531549065 | M29: 1627091885 | N29: 1932841001 | O29: 2474124461 | P29: 2723188048 | Q29: 3071727969 | R29: 282433457.1 | S29: 129246810.8 | T29: 32417952.3 | U29: 166006321.9 | V29: 408155434.1 | W29: 620467621.3 | X29: 23096355.21 | Y29: 26140669.36 | Z29: 239839942.4 | AA29: 284191771.8 | AB29: 272597295.9 | AC29: 310524365.5 | AD29: 36563591.69 | AE29: 9586.6605 | AF29: 1967752.043 | AG29: 104143311.3 | AH29: 8458220.448 | AI29: 29946456.09 | AJ29: 9086767.582 | AK29: 8942796.781 | AL29: 11372281.01 | AM29: 46320.4498 | AN29: 0 | AO29: 34288.90205 | AP29: 13294871096 | AQ29: 14027981177 | AR29: 16482787223 | AT29: 14.30449883 | AU29: 31.90106534 | AV29: 15.26138171 | AW29: 18.79114009 | AX29: 12.79896631 | AY29: -74.91779326 | AZ29: 52.01748391 | BA29: 817.4973259 | BB29: 13.91322296 | BC29: 20425.93855 | BD29: 254.0514967 | BE29: 27.16693992 | BG29: 17.49935372
B30: SA | C30: 2426729656 | D30: 2685792635 | E30: 3123286275 | F30: 244631799 | G30: 293821088.2 | H30: 349440776.1 | I30: 0 | J30: 21728767.66 | K30: 25461222.6 | L30: 499036379.1 | M30: 533842407.1 | N30: 602003595.6 | O30: 932748846.2 | P30: 1035338334 | Q30: 1018436690 | R30: 57129828.5 | S30: 673425.7023 | T30: 62871454.58 | U30: 0 | V30: 189654162.8 | W30: 247915123.7 | X30: 0 | Y30: 0 | Z30: 0 | AA30: 0 | AB30: 0 | AC30: 0 | AD30: 85932212.45 | AE30: 0 | AF30: 0 | AG30: 0 | AH30: 30484020.92 | AI30: 0 | AJ30: 401163689.6 | AK30: 31848582.22 | AL30: 440695.736 | AM30: 0 | AN30: 0 | AO30: 0 | AP30: 4647372411 | AQ30: 4823183424 | AR30: 5429855833 | AT30: 16.28918159 | AU30: 18.92978077 | AV30: 17.177481 | AW30: 12.7680356 | AX30: -1.632475399 | AY30: 9236.064002 | AZ30: 30.71957932 | BD30: -100 | BE30: -98.61627832 | BG30: 12.57825706
B31: WA | C31: 3482194556 | D31: 3740220654 | E31: 4263666352 | F31: 314567693.9 | G31: 369603652.1 | H31: 391472234.5 | I31: 0 | J31: 0 | K31: 0 | L31: 719204354.8 | M31: 842501202.5 | N31: 980274654.4 | O31: 917216870.3 | P31: 1092738192 | Q31: 1170304337 | R31: 341928334.6 | S31: 384510820 | T31: 415221579.5 | U31: 0 | V31: 0 | W31: 0 | X31: 0 | Y31: 0 | Z31: 354745215.6 | AA31: 0 | AB31: 0 | AC31: 0 | AD31: 0 | AE31: 0 | AF31: 0 | AG31: 0 | AH31: 0 | AI31: 0 | AJ31: 1734536.339 | AK31: 11067304.96 | AL31: 11949559.23 | AM31: 0 | AN31: 0 | AO31: 0 | AP31: 5776846346 | AQ31: 6440641826 | AR31: 7587633932 | AT31: 13.99504857 | AU31: 5.916765777 | AW31: 16.35290863 | AX31: 7.09832834 | AY31: 7.986968877 | BE31: 7.971717306 | BG31: 17.80866157
B32: Tas | C32: 889717732.5 | D32: 1055657372 | E32: 1255333829 | F32: 57315458.06 | G32: 63957468.07 | H32: 89737083.26 | I32: 4888998.645 | J32: 4313589.725 | K32: 5397076.377 | L32: 169135022.9 | M32: 198562468.8 | N32: 239030313.2 | O32: 271160192.6 | P32: 241282831.6 | Q32: 270527481.1 | R32: 47986181.33 | S32: 51426700.13 | T32: 102290357.7 | U32: 0 | V32: 0 | W32: 0 | X32: 5764276.945 | Y32: 9011433.706 | Z32: 18431462.77 | AA32: 5720616.624 | AB32: 153154.5684 | AC32: 14371857.16 | AD32: 14563942.94 | AE32: 21292904.32 | AF32: 16619.99999 | AG32: 37313.57184 | AH32: 371.598433 | AI32: 94908.65926 | AJ32: 9153271.787 | AK32: 9411929.853 | AL32: 9944100.336 | AM32: 8479745.899 | AN32: 13107703.28 | AO32: 105553.2003 | AP32: 1483922754 | AQ32: 1668177928 | AR32: 2005280643 | AT32: 18.91489249 | AU32: 40.3074355 | AV32: 25.1179811 | AW32: 20.38040957 | AX32: 12.12048501 | AY32: 98.9051551 | BA32: 104.5341882 | BB32: 9283.890609 | BC32: -99.92194583 | BD32: 25440.6511 | BE32: 5.654212165 | BF32: -99.19472391 | BG32: 20.2078393
B33: NT | C33: 746628100.6 | D33: 758501102.7 | E33: 812728605.1 | F33: 45925331.47 | G33: 59608422.34 | H33: 49221824.19 | I33: 9476218.778 | J33: 11363604.52 | K33: 10859889.59 | L33: 202895647.5 | M33: 209795920.2 | N33: 240058628.1 | O33: 178045421.4 | P33: 166615423.9 | Q33: 169553450.5 | R33: 40569715.64 | S33: 40180094.03 | T33: 42710785.32 | U33: 0 | V33: 0 | W33: 0 | X33: 0 | Y33: 0 | Z33: 0 | AA33: 0 | AB33: 0 | AC33: 0 | AD33: 0 | AE33: 0 | AF33: 0 | AG33: 0 | AH33: 0 | AI33: 0 | AJ33: 39231127.81 | AK33: 43412373.63 | AL33: 46718553.08 | AM33: 765392.1844 | AN33: 806192.4745 | AO33: 280997.5878 | AP33: 1263536955 | AQ33: 1290283134 | AR33: 1372132734 | AT33: 7.149297774 | AU33: -17.42471574 | AV33: -4.432703799 | AW33: 14.4248315 | AX33: 1.763358153 | AY33: 6.298370738 | BE33: 7.615753697 | BF33: -65.14509913 | BG33: 6.343537923
B34: ACT | C34: 707417351.5 | D34: 801848018.1 | E34: 0 | F34: 95343576.77 | G34: 113919492 | H34: 0 | I34: 0 | J34: 0 | K34: 0 | L34: 117719134.9 | M34: 144143237.2 | N34: 0 | O34: 278336906.6 | P34: 341685959.6 | Q34: 0 | R34: 62948394.84 | S34: 79845054.58 | T34: 0 | U34: 0 | V34: 0 | W34: 0 | X34: 33812155.3 | Y34: 0 | Z34: 0 | AA34: 0 | AB34: 0 | AC34: 0 | AD34: 0 | AE34: 0 | AF34: 0 | AG34: 0 | AH34: 0 | AI34: 0 | AJ34: 719906.2985 | AK34: 135437.1753 | AL34: 0 | AM34: 0 | AN34: 0 | AO34: 0 | AP34: 1296297426 | AQ34: 1481577199 | AR34: 0 | AT34: -100 | AU34: -100 | AW34: -100 | AX34: -100 | AY34: -100 | BE34: -100 | BG34: =IFERROR((AR34/AQ34-1)*100,"") -> -100
B35: National | C35: 33779367662 | D35: 36186616769 | E35: 40622346719 | F35: 2908765450 | G35: 3263526844 | H35: 3870108651 | I35: 425618299.5 | J35: 468267606.1 | K35: 544472508.5 | L35: 6677205720 | M35: 7461184422 | N35: 8503726460 | O35: 9917351751 | P35: 10894911001 | Q35: 11569601595 | R35: 898253084.4 | S35: 751864235.9 | T35: 700557731.6 | U35: 1445889337 | V35: 1946548814 | W35: 2445357067 | X35: 107215374.7 | Y35: 84115003.89 | Z35: 613300082.5 | AA35: 1164726235 | AB35: 1511674520 | AC35: 1658636364 | AD35: 137059747.1 | AE35: 21302490.98 | AF35: 1984372.043 | AG35: 104217064.6 | AH35: 39708983.78 | AI35: 30041364.75 | AJ35: 464060315.1 | AK35: 107551976.3 | AL35: 104865455.7 | AM35: 9332563.438 | AN35: 13913895.76 | AO35: 420839.6902 | AP35: 58039062604 | AQ35: =SUM(AQ27:AQ34) -> 6.275118656e+10 | AR35: 70665419211 | AT35: 12.25792944 | AU35: 18.58669581 | AV35: 16.27379333 | AW35: 13.97287587 | AX35: 6.192713221 | AY35: -6.823905408 | AZ35: 25.62526304 | BA35: 629.1209108 | BB35: 9.721791451 | BC35: -90.68478872 | BD35: -24.34617588 | BE35: -2.497881223 | BF35: -96.97540001 | BG35: 12.61208446
A37: In scope for NHCDC reporting
A38: Number of establishments with in scope records | B38: NSW | C38: 86 | D38: 82 | E38: 88 | F38: 87 | G38: 88 | H38: 91 | I38: 81 | J38: 77 | K38: 87 | L38: 70 | M38: 70 | N38: 73 | O38: 91 | P38: 91 | Q38: 105 | R38: 20 | S38: 21 | T38: 3 | U38: 43 | V38: 40 | W38: 44 | X38: 0 | Y38: 0 | Z38: 0 | AA38: 48 | AB38: 47 | AC38: 47 | AD38: 0 | AE38: 0 | AF38: 0 | AG38: 0 | AH38: 0 | AI38: 0 | AJ38: 22 | AK38: 20 | AL38: 22 | AM38: 0 | AN38: 0 | AO38: 0 | AP38: 142 | AQ38: 139 | AR38: 153 | AT38: 7.317073171 | AU38: 3.409090909 | AV38: 12.98701299 | AW38: 4.285714286 | AX38: 15.38461538 | AY38: -85.71428571 | AZ38: 10 | BB38: 0 | BE38: 10 | BG38: 10.07194245
B39: Vic | C39: 69 | D39: 75 | E39: 79 | F39: 61 | G39: 59 | H39: 57 | I39: 34 | J39: 38 | K39: 38 | L39: 38 | M39: 39 | N39: 40 | O39: 57 | P39: 63 | Q39: 68 | R39: 29 | S39: 30 | T39: 34 | U39: 29 | V39: 29 | W39: 29 | X39: 16 | Y39: 24 | Z39: 20 | AA39: 29 | AB39: 30 | AC39: 30 | AD39: 0 | AE39: 0 | AF39: 0 | AG39: 0 | AH39: 0 | AI39: 0 | AJ39: 18 | AK39: 21 | AL39: 18 | AM39: 0 | AN39: 0 | AO39: 0 | AP39: 80 | AQ39: 89 | AR39: 91 | AT39: 5.333333333 | AU39: -3.389830508 | AV39: 0 | AW39: 2.564102564 | AX39: 7.936507937 | AY39: 13.33333333 | AZ39: 0 | BA39: -16.66666667 | BB39: 0 | BE39: -14.28571429 | BG39: 2.247191011
B40: Qld | C40: 137 | D40: 138 | E40: 144 | F40: 106 | G40: 111 | H40: 120 | I40: 95 | J40: 92 | K40: 115 | L40: 105 | M40: 101 | N40: 113 | O40: 193 | P40: 200 | Q40: 202 | R40: 53 | S40: 52 | T40: 58 | U40: 35 | V40: 29 | W40: 36 | X40: 91 | Y40: 91 | Z40: 134 | AA40: 120 | AB40: 130 | AC40: 145 | AD40: 18 | AE40: 0 | AF40: 3 | AG40: 8 | AH40: 0 | AI40: 1 | AJ40: 79 | AK40: 71 | AL40: 86 | AM40: 0 | AN40: 0 | AO40: 0 | AP40: 338 | AQ40: 349 | AR40: 359 | AT40: 4.347826087 | AU40: 8.108108108 | AV40: 25 | AW40: 11.88118812 | AX40: 1 | AY40: 11.53846154 | AZ40: 24.13793103 | BA40: 47.25274725 | BB40: 11.53846154 | BE40: 21.12676056 | BG40: 2.865329513
B41: SA | C41: 18 | D41: 19 | E41: 21 | F41: 18 | G41: 19 | H41: 20 | I41: 0 | J41: 3 | K41: 4 | L41: 17 | M41: 18 | N41: 18 | O41: 19 | P41: 20 | Q41: 20 | R41: 13 | S41: 2 | T41: 17 | U41: 0 | V41: 8 | W41: 13 | X41: 0 | Y41: 0 | Z41: 0 | AA41: 0 | AB41: 0 | AC41: 0 | AD41: 0 | AE41: 0 | AF41: 0 | AG41: 0 | AH41: 0 | AI41: 0 | AJ41: 5 | AK41: 4 | AL41: 4 | AM41: 0 | AN41: 0 | AO41: 0 | AP41: 20 | AQ41: 21 | AR41: 24 | AT41: 10.52631579 | AU41: 5.263157895 | AV41: 33.33333333 | AW41: 0 | AX41: 0 | AY41: 750 | AZ41: 62.5 | BE41: 0 | BG41: 14.28571429
B42: WA | C42: 33 | D42: 33 | E42: 54 | F42: 31 | G42: 33 | H42: 35 | I42: 0 | J42: 0 | K42: 0 | L42: 21 | M42: 21 | N42: 21 | O42: 33 | P42: 33 | Q42: 33 | R42: 17 | S42: 18 | T42: 18 | U42: 0 | V42: 0 | W42: 0 | X42: 0 | Y42: 0 | Z42: 23 | AA42: 0 | AB42: 0 | AC42: 0 | AD42: 0 | AE42: 0 | AF42: 0 | AG42: 0 | AH42: 0 | AI42: 0 | AJ42: 3 | AK42: 6 | AL42: 5 | AM42: 0 | AN42: 0 | AO42: 0 | AP42: 36 | AQ42: 36 | AR42: 81 | AT42: 63.63636364 | AU42: 6.060606061 | AW42: 0 | AX42: 0 | AY42: 0 | BE42: -16.66666667 | BG42: 125
B43: Tas | C43: 23 | D43: 23 | E43: 22 | F43: 21 | G43: 21 | H43: 21 | I43: 1 | J43: 1 | K43: 1 | L43: 4 | M43: 4 | N43: 4 | O43: 5 | P43: 5 | Q43: 5 | R43: 3 | S43: 4 | T43: 4 | U43: 0 | V43: 0 | W43: 0 | X43: 1 | Y43: 1 | Z43: 1 | AA43: 1 | AB43: 1 | AC43: 1 | AD43: 0 | AE43: 0 | AF43: 0 | AG43: 1 | AH43: 1 | AI43: 1 | AJ43: 9 | AK43: 9 | AL43: 12 | AM43: 0 | AN43: 0 | AO43: 0 | AP43: 24 | AQ43: 24 | AR43: 24 | AT43: =IFERROR((E43/D43-1)*100,"") -> -4.347826087 | AU43: =IFERROR((H43/G43-1)*100,"") -> 0 | AV43: =IFERROR((K43/J43-1)*100,"") -> 0 | AW43: =IFERROR((N43/M43-1)*100,"") -> 0 | AX43: =IFERROR((Q43/P43-1)*100,"") -> 0 | AY43: =IFERROR((T43/S43-1)*100,"") -> 0 | AZ43: =IFERROR((W43/V43-1)*100,"") ->  | BA43: =IFERROR((Z43/Y43-1)*100,"") -> 0 | BB43: =IFERROR((AC43/AB43-1)*100,"") -> 0 | BC43: =IFERROR((AF43/AE43-1)*100,"") ->  | BD43: =IFERROR((AI43/AH43-1)*100,"") -> 0 | BE43: =IFERROR((AL43/AK43-1)*100,"") -> 33.33333333 | BF43: =IFERROR((AO43/AN43-1)*100,"") ->  | BG43: 0
B44: NT | C44: 6 | D44: 6 | E44: 6 | F44: 6 | G44: 6 | H44: 6 | I44: 3 | J44: 3 | K44: 3 | L44: 6 | M44: 6 | N44: 6 | O44: 6 | P44: 6 | Q44: 6 | R44: 2 | S44: 3 | T44: 2 | U44: 0 | V44: 0 | W44: 0 | X44: 0 | Y44: 0 | Z44: 0 | AA44: 0 | AB44: 0 | AC44: 0 | AD44: 0 | AE44: 0 | AF44: 0 | AG44: 0 | AH44: 0 | AI44: 0 | AJ44: 1 | AK44: 1 | AL44: 1 | AM44: 0 | AN44: 0 | AO44: 0 | AP44: 6 | AQ44: 6 | AR44: 6 | AT44: 0 | AU44: 0 | AV44: 0 | AW44: 0 | AX44: 0 | AY44: -33.33333333 | BE44: 0 | BG44: 0
B45: ACT | C45: 3 | D45: 3 | E45: 0 | F45: 3 | G45: 3 | H45: 0 | I45: 0 | J45: 0 | K45: 0 | L45: 2 | M45: 2 | N45: 0 | O45: 3 | P45: 3 | Q45: 0 | R45: 3 | S45: 3 | T45: 0 | U45: 0 | V45: 0 | W45: 0 | X45: 1 | Y45: 0 | Z45: 0 | AA45: 0 | AB45: 0 | AC45: 0 | AD45: 0 | AE45: 0 | AF45: 0 | AG45: 0 | AH45: 0 | AI45: 0 | AJ45: 2 | AK45: 1 | AL45: 0 | AM45: 0 | AN45: 0 | AO45: 0 | AP45: 3 | AQ45: 3 | AR45: 0 | AT45: -100 | AU45: -100 | AW45: -100 | AX45: -100 | AY45: -100 | BE45: -100 | BG45: -100
B46: National | C46: 375 | D46: 379 | E46: 414 | F46: 333 | G46: 340 | H46: 350 | I46: 214 | J46: 214 | K46: 248 | L46: 263 | M46: 261 | N46: 275 | O46: 407 | P46: 421 | Q46: 439 | R46: 140 | S46: 133 | T46: 136 | U46: 107 | V46: 106 | W46: 122 | X46: 109 | Y46: 116 | Z46: 178 | AA46: 198 | AB46: 208 | AC46: 223 | AD46: 18 | AE46: 0 | AF46: 3 | AG46: 9 | AH46: 1 | AI46: 2 | AJ46: 139 | AK46: 133 | AL46: 148 | AM46: 0 | AN46: 0 | AO46: 0 | AP46: 649 | AQ46: 667 | AR46: 738 | AT46: 9.234828496 | AU46: 2.941176471 | AV46: 15.88785047 | AW46: 5.363984674 | AX46: 4.275534442 | AY46: 2.255639098 | AZ46: 15.09433962 | BA46: 53.44827586 | BB46: 7.211538462 | BD46: 100 | BE46: 11.27819549 | BG46: 10.64467766
A47: Total in scope records | B47: NSW | C47: 1627515 | D47: 1489598 | E47: 1665294 | F47: 45016 | G47: 35623 | H47: 45876 | I47: 30691 | J47: 28082 | K47: 35010 | L47: 2520197 | M47: 2463075 | N47: 2725997 | O47: 10363280 | P47: 9923216 | Q47: 10329842 | R47: 527 | S47: 94 | T47: 5 | U47: 36387 | V47: 32181 | W47: 35432 | X47: 0 | Y47: 0 | Z47: 0 | AA47: 200186 | AB47: 192668 | AC47: 184699 | AD47: 0 | AE47: 0 | AF47: 0 | AG47: 0 | AH47: 0 | AI47: 0 | AJ47: 94 | AK47: 69 | AL47: 95 | AM47: 0 | AN47: 0 | AO47: 0 | AP47: 14823893 | AQ47: 14164606 | AR47: 15022250 | AT47: 11.79486009 | AU47: 28.78196671 | AV47: 24.67060751 | AW47: 10.674543 | AX47: 4.097723964 | AY47: -94.68085106 | AZ47: 10.10223424 | BB47: -4.136130546 | BE47: 37.68115942 | BG47: 6.054838377
B48: Vic | C48: 1659307 | D48: 1682451 | E48: 1790031 | F48: 30786 | G48: 30342 | H48: 32473 | I48: 14969 | J48: 15741 | K48: 15824 | L48: 1704061 | M48: 1817818 | N48: 1870367 | O48: 4393960 | P48: 4726182 | Q48: 4962830 | R48: 423 | S48: 448 | T48: 631 | U48: 26470 | V48: 25507 | W48: 24295 | X48: 205750 | Y48: 205348 | Z48: 740 | AA48: 119841 | AB48: 223996 | AC48: 478974 | AD48: 0 | AE48: 0 | AF48: 0 | AG48: 0 | AH48: 0 | AI48: 0 | AJ48: 120 | AK48: 111 | AL48: 123 | AM48: 0 | AN48: 0 | AO48: 0 | AP48: 8155687 | AQ48: 8727944 | AR48: 9176288 | AT48: 6.394242685 | AU48: 7.023268077 | AV48: 0.5272854329 | AW48: 2.890773444 | AX48: 5.007170693 | AY48: 40.84821429 | AZ48: -4.751636806 | BA48: -99.63963613 | BB48: 113.831497 | BE48: 10.81081081 | BG48: 5.136879888
B49: Qld | C49: 1626382 | D49: 1622556 | E49: 1672228 | F49: 39850 | G49: 52240 | H49: 53214 | I49: 9902 | J49: 15871 | K49: 16822 | L49: 2297035 | M49: 2163308 | N49: 2249422 | O49: 6774890 | P49: 8554330 | Q49: 6998983 | R49: 17667 | S49: 7991 | T49: 6172 | U49: 6562 | V49: 15763 | W49: 24036 | X49: 9266 | Y49: 6681 | Z49: 138210 | AA49: 82904 | AB49: 135181 | AC49: 62185 | AD49: 1294 | AE49: 0 | AF49: 141 | AG49: 553 | AH49: 0 | AI49: 135 | AJ49: 10981 | AK49: 11480 | AL49: 13794 | AM49: 0 | AN49: 0 | AO49: 0 | AP49: 10877286 | AQ49: 12585401 | AR49: 11235342 | AT49: 3.061342721 | AU49: 1.864471669 | AV49: 5.992060992 | AW49: 3.980662948 | AX49: -18.18198503 | AY49: -22.7631085 | AZ49: 52.48366428 | BA49: 1968.70229 | BB49: -53.99871284 | BE49: 20.15679443 | BG49: -10.72718303
B50: SA | C50: 404836 | D50: 409865 | E50: 421048 | F50: 11840 | G50: 13363 | H50: 16261 | I50: 0 | J50: 2918 | K50: 3397 | L50: 576703 | M50: 572455 | N50: 597643 | O50: 1960074 | P50: 3534331 | Q50: 1862756 | R50: 6344 | S50: 5 | T50: 5423 | U50: 0 | V50: 6484 | W50: 9135 | X50: 0 | Y50: 0 | Z50: 0 | AA50: 0 | AB50: 0 | AC50: 0 | AD50: 0 | AE50: 0 | AF50: 0 | AG50: 0 | AH50: 0 | AI50: 0 | AJ50: 47 | AK50: 32 | AL50: 40 | AM50: 0 | AN50: 0 | AO50: 0 | AP50: 2959844 | AQ50: 4539453 | AR50: 2915703 | AT50: 2.728459371 | AU50: 21.68674699 | AV50: 16.41535298 | AW50: 4.399996506 | AX50: -47.29537217 | AY50: 108360 | AZ50: 40.88525601 | BE50: 25 | BG50: -35.7697282
B51: WA | C51: 609839 | D51: 588309 | E51: 619908 | F51: 12396 | G51: 11914 | H51: 12383 | I51: 0 | J51: 0 | K51: 0 | L51: 763051 | M51: 765477 | N51: 775837 | O51: 2683334 | P51: 2829078 | Q51: 2673077 | R51: 12839 | S51: 12458 | T51: 12436 | U51: 0 | V51: 0 | W51: 0 | X51: 0 | Y51: 0 | Z51: 70428 | AA51: 0 | AB51: 0 | AC51: 0 | AD51: 0 | AE51: 0 | AF51: 0 | AG51: 0 | AH51: 0 | AI51: 0 | AJ51: 41 | AK51: 46 | AL51: 39 | AM51: 0 | AN51: 0 | AO51: 0 | AP51: 4081500 | AQ51: 4207282 | AR51: 4164108 | AT51: 5.371156994 | AU51: 3.936545241 | AW51: 1.353404479 | AX51: -5.514199326 | AY51: -0.1765933537 | BE51: -15.2173913 | BG51: -1.026173192
B52: Tas | C52: 132792 | D52: 150054 | E52: 157799 | F52: 2587 | G52: 2593 | H52: 3394 | I52: 626 | J52: 713 | K52: 716 | L52: 170287 | M52: 173276 | N52: 173888 | O52: 699461 | P52: 835257 | Q52: 660413 | R52: 3297 | S52: 3133 | T52: 3632 | U52: 0 | V52: 0 | W52: 0 | X52: 6483 | Y52: 7003 | Z52: 6801 | AA52: 2884 | AB52: 3983 | AC52: 3584 | AD52: 0 | AE52: 0 | AF52: 0 | AG52: 42 | AH52: 16 | AI52: 6 | AJ52: 1432 | AK52: 1600 | AL52: 1571 | AM52: 0 | AN52: 0 | AO52: 0 | AP52: 1019891 | AQ52: 1177628 | AR52: 1011804 | AT52: 5.161475202 | AU52: 30.89086001 | AV52: 0.4207573633 | AW52: 0.3531937487 | AX52: -20.93295836 | AY52: 15.9272263 | BA52: -2.884478081 | BB52: -10.01757469 | BD52: -62.5 | BE52: -1.8125 | BG52: -14.08118693
B53: NT | C53: 179773 | D53: 169314 | E53: 179925 | F53: 765 | G53: 900 | H53: 814 | I53: 1257 | J53: 1152 | K53: 1120 | L53: 177652 | M53: 171415 | N53: 181786 | O53: 357560 | P53: 306629 | Q53: 311956 | R53: 1377 | S53: 1332 | T53: 1513 | U53: 0 | V53: 0 | W53: 0 | X53: 0 | Y53: 0 | Z53: 0 | AA53: 0 | AB53: 0 | AC53: 0 | AD53: 0 | AE53: 0 | AF53: 0 | AG53: 0 | AH53: 0 | AI53: 0 | AJ53: 3 | AK53: 4 | AL53: 2 | AM53: 0 | AN53: 0 | AO53: 0 | AP53: 718387 | AQ53: 650746 | AR53: 677116 | AT53: 6.267054112 | AU53: -9.555555556 | AV53: -2.777777778 | AW53: 6.050228976 | AX53: 1.737278601 | AY53: 13.58858859 | BE53: -50 | BG53: 4.052272315
B54: ACT | C54: 119815 | D54: 112495 | E54: 0 | F54: 5247 | G54: 4731 | H54: 0 | I54: 0 | J54: 0 | K54: 0 | L54: 153456 | M54: 143351 | N54: 0 | O54: 966537 | P54: 1685768 | Q54: 0 | R54: 2622 | S54: 2457 | T54: 0 | U54: 0 | V54: 0 | W54: 0 | X54: 6857 | Y54: 0 | Z54: 0 | AA54: 0 | AB54: 0 | AC54: 0 | AD54: 0 | AE54: 0 | AF54: 0 | AG54: 0 | AH54: 0 | AI54: 0 | AJ54: 11 | AK54: 8 | AL54: 0 | AM54: 0 | AN54: 0 | AO54: 0 | AP54: 1254545 | AQ54: 1948810 | AR54: 0 | AT54: -100 | AU54: -100 | AW54: -100 | AX54: -100 | AY54: -100 | BE54: -100 | BG54: -100
B55: National | C55: 6360259 | D55: 6224642 | E55: 6506233 | F55: 148487 | G55: 151706 | H55: 164415 | I55: 57445 | J55: 64477 | K55: 72889 | L55: 8362442 | M55: 8270175 | N55: 8574940 | O55: 28199096 | P55: 32394791 | Q55: 27799857 | R55: 45096 | S55: 27918 | T55: 29812 | U55: 69419 | V55: 79935 | W55: 92898 | X55: 228356 | Y55: 219032 | Z55: 216179 | AA55: 405815 | AB55: 555828 | AC55: 729442 | AD55: 1294 | AE55: 0 | AF55: 141 | AG55: 595 | AH55: 16 | AI55: 141 | AJ55: 12729 | AK55: 13350 | AL55: 15664 | AM55: 0 | AN55: 0 | AO55: 0 | AP55: 43891033 | AQ55: 48001870 | AR55: 44202611 | AT55: 4.523810365 | AU55: 8.377387842 | AV55: 13.04651271 | AW55: 3.685109444 | AX55: -14.18417547 | AY55: 6.784153593 | AZ55: 16.21692625 | BA55: -1.302549399 | BB55: 31.23520226 | BD55: 781.25 | BE55: 17.33333333 | BG55: -7.914814569
A56: Total in scope costs ($) | B56: NSW | C56: 9370588140 | D56: 9888104470 | E56: 11348611790 | F56: 742936644 | G56: 745076890 | H56: 939939783.1 | I56: 176724378.8 | J56: 178545623.3 | K56: 210145909.6 | L56: 2011736814 | M56: 2233851770 | N56: 2597408568 | O56: 3036247769 | P56: 3241930206 | Q56: 3577134386 | R56: 1379795.886 | S56: 1181471.822 | T56: 70480.37312 | U56: 706781028.3 | V56: 744111273 | W56: 840186589.6 | X56: 0 | Y56: 0 | Z56: 0 | AA56: 610642135.9 | AB56: 705928979.5 | AC56: 666100994.4 | AD56: 0 | AE56: 0 | AF56: 0 | AG56: 0 | AH56: 0 | AI56: 0 | AJ56: 1011579.47 | AK56: 859585.5139 | AL56: 1411492.316 | AM56: 0 | AN56: 0 | AO56: 0 | AP56: =SUM(C56,F56,I56,L56,O56,R56,U56,X56,AA56,AD56,AG56,AJ56,AM56) -> 1.665804829e+10 | AQ56: =SUM(D56,G56,J56,M56,P56,S56,V56,Y56,AB56,AE56,AH56,AK56,AN56) -> 1.773959027e+10 | AR56: 2.018100999e+10 | AT56: 14.77034678 | AU56: 26.1533938 | AV56: 17.69871794 | AW56: 16.27488465 | AX56: 10.33964825 | AY56: -94.0345278 | AZ56: 12.91141797 | BB56: -5.641925217 | BE56: 64.20615438 | BG56: 13.76254856
B57: Vic | C57: 8650831419 | D57: 9376141505 | E57: 10814472943 | F57: 718320924 | G57: 796536993.9 | H57: 963683623.2 | I57: 109487279.5 | J57: 120004220 | K57: 140104000.6 | L57: 1441069171 | M57: 1671395531 | N57: 1912109699 | O57: 1609890719 | P57: 1786737332 | Q57: 2012765951 | R57: 37375413.13 | S57: 32466085.9 | T57: 28583685.11 | U57: 574617630.8 | V57: 593505759.1 | W57: 712970811.5 | X57: 44542587.27 | Y57: 48962900.82 | Z57: 283461.6699 | AA57: 269560443.9 | AB57: 532995089.5 | AC57: 667639146.7 | AD57: 0 | AE57: 0 | AF57: 0 | AG57: 0 | AH57: 0 | AI57: 0 | AJ57: 1864995.489 | AK57: 1873966.142 | AL57: 3067600.903 | AM57: 0 | AN57: 0 | AO57: 0 | AP57: =SUM(C57,F57,I57,L57,O57,R57,U57,X57,AA57,AD57,AG57,AJ57,AM57) -> 1.345756058e+10 | AQ57: 1.496061938e+10 | AR57: 1.725568092e+10 | AT57: 15.34033415 | AU57: 20.98416403 | AV57: 16.74922811 | AW57: 14.40198704 | AX57: 12.65035521 | AY57: -11.95832723 | AZ57: 20.12870987 | BA57: -99.42106847 | BB57: 25.26178192 | BE57: 63.69564179 | BG57: 15.3406853
B58: Qld | C58: 7540225206 | D58: 7856246720 | E58: 8982624022 | F58: 677686932.9 | G58: 811021834.7 | H58: 1058163830 | I58: 125620419.4 | J58: 132002870.8 | K58: 151489392.3 | L58: 1523998530 | M58: 1624630469 | N58: 1929268048 | O58: 2462950125 | P58: 2714148638 | Q58: 3066303977 | R58: 271562556.5 | S58: 114423662.4 | T58: 28320644.79 | U58: 155510002.9 | V58: 395341962 | W58: 589887625.1 | X58: 23047079.17 | Y58: 26117009.76 | Z58: 239484116 | AA58: 283460052.1 | AB58: 271778486.3 | AC58: 309857983.2 | AD58: 34533125.59 | AE58: 0 | AF58: 1962862.449 | AG58: 7540403.546 | AH58: 0 | AI58: 1189039.953 | AJ58: 9031246.487 | AK58: 8904062.203 | AL58: 11336208.34 | AM58: 0 | AN58: 0 | AO58: 0 | AP58: 1.311516568e+10 | AQ58: 1.395461571e+10 | AR58: 1.636988775e+10 | AT58: 14.33734634 | AU58: 30.47291518 | AV58: 14.76219524 | AW58: 18.75119204 | AX58: 12.97479932 | AY58: -75.24931103 | AZ58: 49.20946466 | BA58: 816.9660623 | BB58: 14.01122564 | BE58: 27.3150174 | BG58: 17.30805121
B59: SA | C59: 2424589708 | D59: 2685792635 | E59: 3123286275 | F59: 240994175 | G59: 293821088.2 | H59: 349440776.1 | I59: 0 | J59: 21728767.66 | K59: 25461222.6 | L59: 488029396.8 | M59: 518022418.5 | N59: 602003595.6 | O59: 897476689.6 | P59: 1008836721 | Q59: 1011438393 | R59: 57129828.5 | S59: 673425.7023 | T59: 45892134.28 | U59: 0 | V59: 176547082.6 | W59: 246332969.1 | X59: 0 | Y59: 0 | Z59: 0 | AA59: 0 | AB59: 0 | AC59: 0 | AD59: 0 | AE59: 0 | AF59: 0 | AG59: 0 | AH59: 0 | AI59: 0 | AJ59: 395887.4365 | AK59: 291661.6301 | AL59: 440695.736 | AM59: 0 | AN59: 0 | AO59: 0 | AP59: 4108615685 | AQ59: 4705713801 | AR59: 5404296061 | AT59: 16.28918159 | AU59: 18.92978077 | AV59: 17.177481 | AW59: 16.21188082 | AX59: 0.2578883129 | AY59: 6714.728651 | AZ59: 39.5282015 | BE59: 51.09829012 | BG59: 14.84540476
B60: WA | C60: 3482194556 | D60: 3737797750 | E60: 4262967977 | F60: 314567693.9 | G60: 366389153.3 | H60: 390247282.9 | I60: 0 | J60: 0 | K60: 0 | L60: 689980922.5 | M60: 805938186.1 | N60: 928319573 | O60: 902053218.8 | P60: 1014542223 | Q60: 1096411456 | R60: 325858675 | S60: 348933341.2 | T60: 392277495.6 | U60: 0 | V60: 0 | W60: 0 | X60: 0 | Y60: 0 | Z60: 354745215.6 | AA60: 0 | AB60: 0 | AC60: 0 | AD60: 0 | AE60: 0 | AF60: 0 | AG60: 0 | AH60: 0 | AI60: 0 | AJ60: 883267.0021 | AK60: 1277688.799 | AL60: 1075198.357 | AM60: 0 | AN60: 0 | AO60: 0 | AP60: 5715538333 | AQ60: 6274878342 | AR60: 7426044199 | AT60: 14.05025797 | AU60: 6.511691044 | AW60: 15.18495947 | AX60: 8.069573851 | AY60: 12.42190105 | BE60: -15.84818166 | BG60: 18.34562829
B61: Tas | C61: 889717732.5 | D61: 1055657372 | E61: 1255333829 | F61: 57315458.06 | G61: 63472247.82 | H61: 89314225.35 | I61: 4888998.645 | J61: 4313589.725 | K61: 5397076.377 | L61: 168483015.3 | M61: 197702499.1 | N61: 238686315.3 | O61: 268900294.2 | P61: 235187799.2 | Q61: 268008316.8 | R61: 47407482.54 | S61: 51426700.13 | T61: 87457786.26 | U61: 0 | V61: 0 | W61: 0 | X61: 5764276.945 | Y61: 9011433.706 | Z61: 18431462.77 | AA61: 5720616.624 | AB61: 153154.5684 | AC61: 14371857.16 | AD61: 0 | AE61: 0 | AF61: 0 | AG61: 37313.57184 | AH61: 296.130271 | AI61: 46066.55827 | AJ61: 552818.9505 | AK61: 1084211.117 | AL61: 1670319.501 | AM61: 0 | AN61: 0 | AO61: 0 | AP61: 1448788007 | AQ61: 1618009304 | AR61: 1978717255 | AT61: 18.91489249 | AU61: 40.71382126 | AV61: 25.1179811 | AW61: 20.73004456 | AX61: 13.95502561 | AY61: 70.0629946 | BA61: 104.5341882 | BB61: 9283.890609 | BD61: 15456.18009 | BE61: 54.05851086 | BG61: 22.29331752
B62: NT | C62: 739062016.2 | D62: 754287432.4 | E62: 807568489.2 | F62: 45896440.18 | G62: 56941563.22 | H62: 49213412.42 | I62: 9473090.128 | J62: 11352404.25 | K62: 10857699.06 | L62: 166881433.8 | M62: 171114992.4 | N62: 193155993.6 | O62: 172807677.9 | P62: 161657197.9 | Q62: 162380000.8 | R62: 40500484.76 | S62: 40177787.01 | T62: 42693655.13 | U62: 0 | V62: 0 | W62: 0 | X62: 0 | Y62: 0 | Z62: 0 | AA62: 0 | AB62: 0 | AC62: 0 | AD62: 0 | AE62: 0 | AF62: 0 | AG62: 0 | AH62: 0 | AI62: 0 | AJ62: 31072.52135 | AK62: 81389.78506 | AL62: 33088.88776 | AM62: 0 | AN62: 0 | AO62: 0 | AP62: 1174652216 | AQ62: 1195612767 | AR62: 1265902339 | AT62: 7.063760379 | AU62: -13.57207347 | AV62: -4.357713001 | AW62: 12.88081246 | AX62: 0.4471207092 | AY62: 6.261838462 | BE62: -59.34515894 | BG62: 5.878957972
B63: ACT | C63: 707190360.6 | D63: 801848018.1 | E63: 0 | F63: 95343576.77 | G63: 113573116.5 | H63: 0 | I63: 0 | J63: 0 | K63: 0 | L63: 117719134.9 | M63: 144143237.2 | N63: 0 | O63: 277164963.1 | P63: 341247911.8 | Q63: 0 | R63: 60879245.42 | S63: 78238515.99 | T63: 0 | U63: 0 | V63: 0 | W63: 0 | X63: 33812155.3 | Y63: 0 | Z63: 0 | AA63: 0 | AB63: 0 | AC63: 0 | AD63: 0 | AE63: 0 | AF63: 0 | AG63: 0 | AH63: 0 | AI63: 0 | AJ63: 355159.5614 | AK63: 135437.1753 | AL63: 0 | AM63: 0 | AN63: 0 | AO63: 0 | AP63: 1292464596 | AQ63: 1479186237 | AR63: 0 | AT63: -100 | AU63: -100 | AW63: -100 | AX63: -100 | AY63: -100 | BE63: -100 | BG63: -100
B64: National | C64: 33804399137 | D64: 36155875903 | E64: 40594865324 | F64: 2893061845 | G64: 3246832888 | H64: 3840002934 | I64: 426194166.5 | J64: 467947475.8 | K64: 543455300.5 | L64: 6607898418 | M64: 7366799103 | N64: 8400951793 | O64: 9627491457 | P64: 10504288028 | Q64: 11194442480 | R64: 842093481.8 | S64: 667520990.1 | T64: 625295881.5 | U64: 1436908662 | V64: 1909506077 | W64: 2389377995 | X64: 107166098.7 | Y64: 84091344.29 | Z64: 612944256.1 | AA64: 1169383249 | AB64: 1510855710 | AC64: 1657969982 | AD64: 34533125.59 | AE64: 0 | AF64: 1962862.449 | AG64: 7577717.118 | AH64: 296.130271 | AI64: 1235106.511 | AJ64: 14126026.92 | AK64: 14508002.37 | AL64: 19034604.04 | AM64: 0 | AN64: 0 | AO64: 0 | AP64: 5.697083338e+10 | AQ64: 6.192822582e+10 | AR64: 6.988153852e+10 | AT64: 12.27736657 | AU64: 18.26918929 | AV64: 16.13596154 | AW64: 14.03801944 | AX64: 6.570216374 | AY64: -6.325660059 | AZ64: 25.13068298 | BA64: 628.9029106 | BB64: 9.737149004 | BD64: 416982.1534 | BE64: 31.20072333 | BG64: 12.84279115
A65: In scope average cost ($) (unweighted) | B65: NSW | C65: 5757.604778 | D65: 6638.102676 | E65: 6814.779727 | F65: 16503.83517 | G65: 20915.61323 | H65: 20488.70397 | I65: 5758.182492 | J65: 6358.009519 | K65: 6002.453858 | L65: 798.245857 | M65: 906.9361548 | N65: 952.8288432 | O65: 292.9813504 | P65: 326.7015659 | Q65: 346.2912971 | R65: 2618.208512 | S65: 12568.84917 | T65: 14096.07462 | U65: 19423.99836 | V65: 23122.68957 | W65: 23712.64929 | X65: 0 | Y65: 0 | Z65: 0 | AA65: 3050.373832 | AB65: 3663.965887 | AC65: 3606.413648 | AD65: 0 | AE65: 0 | AF65: 0 | AG65: 0 | AH65: 0 | AI65: 0 | AJ65: 10761.48372 | AK65: 12457.76107 | AL65: 14857.81385 | AM65: 0 | AN65: 0 | AO65: 0 | AT65: =IFERROR((E65/D65-1)*100,"") -> 2.661559476 | AU65: =IFERROR((H65/G65-1)*100,"") -> -2.041103248 | AV65: =IFERROR((K65/J65-1)*100,"") -> -5.592248005 | AW65: =IFERROR((N65/M65-1)*100,"") -> 5.060189541 | AX65: =IFERROR((Q65/P65-1)*100,"") -> 5.996215916 | AY65: =IFERROR((T65/S65-1)*100,"") -> 12.15087742 | AZ65: =IFERROR((W65/V65-1)*100,"") -> 2.551432087 | BA65: =IFERROR((Z65/Y65-1)*100,"") ->  | BB65: =IFERROR((AC65/AB65-1)*100,"") -> -1.5707635 | BC65: =IFERROR((AF65/AE65-1)*100,"") ->  | BD65: =IFERROR((AI65/AH65-1)*100,"") ->  | BE65: =IFERROR((AL65/AK65-1)*100,"") -> 19.26552266 | BF65: =IFERROR((AO65/AN65-1)*100,"") ->  | BG65: =IFERROR((AR65/AQ65-1)*100,"") -> 
B66: Vic | C66: 5213.520716 | D66: 5572.906138 | E66: 6041.500367 | F66: 23332.7137 | G66: 26251.96078 | H66: 29676.45808 | I66: 7314.268117 | J66: 7623.67194 | K66: 8853.892856 | L66: 845.6675968 | M66: 919.4515245 | N66: 1022.317919 | O66: 366.387204 | P66: 378.0508944 | Q66: 405.5681841 | R66: 88357.95066 | S66: 72468.94174 | T66: 45299.02553 | U66: 21708.25957 | V66: 23268.34826 | W66: 29346.40097 | X66: 216.488881 | Y66: 238.4386545 | Z66: 383.0563107 | AA66: 2249.317378 | AB66: 2379.484855 | AC66: 1393.894338 | AD66: 0 | AE66: 0 | AF66: 0 | AG66: 0 | AH66: 0 | AI66: 0 | AJ66: 15541.62908 | AK66: 16882.57786 | AL66: 24939.84474 | AM66: 0 | AN66: 0 | AO66: 0 | AT66: 8.408435681 | AU66: 13.04472962 | AV66: 16.13685539 | AW66: 11.18779966 | AX66: 7.27872627 | AY66: -37.49180761 | AZ66: 26.12154776 | BA66: 60.65193437 | BB66: -41.42033157 | BE66: 47.72533527
B67: Qld | C67: 4636.195682 | D67: 4841.895577 | E67: 5371.65029 | F67: 17005.94562 | G67: 15524.92027 | H67: 19885.06465 | I67: 12686.36835 | J67: 8317.237152 | K67: 9005.432906 | L67: 663.4633475 | M67: 750.9936027 | N67: 857.6727923 | O67: 363.5409763 | P67: 317.2836023 | Q67: 438.1070759 | R67: 15371.17544 | S67: 14319.06675 | T67: 4588.568501 | U67: 23698.56796 | V67: 25080.37569 | W67: 24541.83829 | X67: 2487.273815 | Y67: 3909.146799 | Z67: 1732.755343 | AA67: 3419.136014 | AB67: 2010.478442 | AC67: 4982.841251 | AD67: 26687.11405 | AE67: 0 | AF67: 13921.01027 | AG67: 13635.44945 | AH67: 0 | AI67: 8807.703355 | AJ67: 822.4429913 | AK67: 775.6151745 | AL67: 821.8216865 | AM67: 0 | AN67: 0 | AO67: 0 | AT67: 10.94106027 | AU67: 28.08481018 | AV67: 8.274331271 | AW67: 14.20507302 | AX67: 38.08059186 | AY67: -67.95483546 | AZ67: -2.147246152 | BA67: -55.67433426 | BB67: 147.8435554 | BE67: 5.957401752
B68: SA | C68: 5989.066456 | D68: 6552.871397 | E68: 7417.886499 | F68: 20354.23775 | G68: 21987.65908 | H68: 21489.50102 | I68: 0 | J68: 7446.459102 | K68: 7495.2083 | L68: 846.2404336 | M68: 904.913781 | N68: 1007.296322 | O68: 457.878983 | P68: 285.4392305 | Q68: 542.9795384 | R68: 9005.332362 | S68: 134685.1405 | T68: 8462.499405 | U68: 0 | V68: 27228.11268 | W68: 26965.84227 | X68: 0 | Y68: 0 | Z68: 0 | AA68: 0 | AB68: 0 | AC68: 0 | AD68: 0 | AE68: 0 | AF68: 0 | AG68: 0 | AH68: 0 | AI68: 0 | AJ68: 8423.136948 | AK68: 9114.425941 | AL68: 11017.3934 | AM68: 0 | AN68: 0 | AO68: 0 | AT68: 13.20055055 | AU68: -2.26562571 | AV68: 0.654662814 | AW68: 11.31406582 | AX68: 90.22596768 | AY68: -93.71682772 | AZ68: -0.9632338794 | BE68: 20.8786321
B69: WA | C69: 5710.022737 | D69: 6353.460087 | E69: 6876.775226 | F69: 25376.5484 | G69: 30752.82468 | H69: 31514.7608 | I69: 0 | J69: 0 | K69: 0 | L69: 904.2395888 | M69: 1052.857481 | N69: 1196.539444 | O69: 336.1688179 | P69: 358.6123191 | Q69: 410.1683028 | R69: 25380.37814 | S69: 28008.77678 | T69: 31543.70341 | U69: 0 | V69: 0 | W69: 0 | X69: 0 | Y69: 0 | Z69: 5036.991191 | AA69: 0 | AB69: 0 | AC69: 0 | AD69: 0 | AE69: 0 | AF69: 0 | AG69: 0 | AH69: 0 | AI69: 0 | AJ69: 21543.09761 | AK69: 27775.84346 | AL69: 27569.18865 | AM69: 0 | AN69: 0 | AO69: 0 | AT69: 8.236695147 | AU69: 2.477613429 | AW69: 13.64685781 | AX69: 14.37652333 | AY69: 12.62078186 | BE69: -0.7440091325
B70: Tas | C70: 6700.08534 | D70: 7035.18315 | E70: 7955.271132 | F70: 22155.18286 | G70: 24478.30614 | H70: 26315.32862 | I70: 7809.901988 | J70: 6049.915463 | K70: 7537.816168 | L70: 989.4062098 | M70: 1140.968738 | N70: 1372.643974 | O70: 384.4392956 | P70: 281.5753704 | Q70: 405.8192628 | R70: 14378.97559 | S70: 16414.52286 | T70: 24079.78696 | U70: 0 | V70: 0 | W70: 0 | X70: 889.1372736 | Y70: 1286.796188 | Z70: 2710.110686 | AA70: 1983.570258 | AB70: 38.45206336 | AC70: 4010.004787 | AD70: 0 | AE70: 0 | AF70: 0 | AG70: 888.4183772 | AH70: 18.50814194 | AI70: 7677.759711 | AJ70: 386.0467531 | AK70: 677.6319478 | AL70: 1063.220561 | AM70: 0 | AN70: 0 | AO70: 0 | AT70: 13.07837994 | AU70: 7.504696095 | AV70: 24.59374375 | AW70: 20.30513435 | AX70: 44.12455967 | AY70: 46.69806224 | BA70: 110.6091633 | BB70: 10328.58156 | BD70: 41383.14692 | BE70: 56.90236625
B71: NT | C71: 4111.084625 | D71: 4454.961978 | E71: 4488.361757 | F71: 59995.34664 | G71: 63268.40357 | H71: 60458.73762 | I71: 7536.268996 | J71: 9854.51758 | K71: 9694.374157 | L71: 939.3726714 | M71: 998.2498169 | N71: 1062.546036 | O71: 483.2970071 | P71: 527.2077916 | Q71: 520.5221274 | R71: 29412.11675 | S71: 30163.50376 | T71: 28217.88178 | U71: 0 | V71: 0 | W71: 0 | X71: 0 | Y71: 0 | Z71: 0 | AA71: 0 | AB71: 0 | AC71: 0 | AD71: 0 | AE71: 0 | AF71: 0 | AG71: 0 | AH71: 0 | AI71: 0 | AJ71: 10357.50712 | AK71: 20347.44626 | AL71: 16544.44388 | AM71: 0 | AN71: 0 | AO71: 0 | AT71: 0.7497208542 | AU71: -4.44086747 | AV71: -1.625076229 | AW71: 6.44089461 | AX71: -1.26812699 | AY71: -6.450251932 | BE71: -18.69031788
B72: ACT | C72: 5902.352465 | D72: 7127.854732 | E72: 0 | F72: 18171.06475 | G72: 24006.1544 | H72: 0 | I72: 0 | J72: 0 | K72: 0 | L72: 767.1197926 | M72: 1005.526555 | N72: 0 | O72: 286.7608412 | P72: 202.4287517 | Q72: 0 | R72: 23218.62907 | S72: 31843.10785 | T72: 0 | U72: 0 | V72: 0 | W72: 0 | X72: 4931.042045 | Y72: 0 | Z72: 0 | AA72: 0 | AB72: 0 | AC72: 0 | AD72: 0 | AE72: 0 | AF72: 0 | AG72: 0 | AH72: 0 | AI72: 0 | AJ72: 32287.23286 | AK72: 16929.64691 | AL72: 0 | AM72: 0 | AN72: 0 | AO72: 0 | AT72: -100 | AU72: -100 | AW72: -100 | AX72: -100 | AY72: -100 | BE72: -100
B73: National | C73: 5314.940655 | D73: 5808.506883 | E73: 6239.38081 | F73: 19483.60358 | G73: 21402.13892 | H73: 23355.5511 | I73: 7419.169057 | J73: 7257.587602 | K73: 7455.930257 | L73: 790.1876531 | M73: 890.7670155 | N73: 979.7096881 | O73: 341.4113508 | P73: 324.2585522 | Q73: 402.6798584 | R73: 18673.352 | S73: 23910.05767 | T73: 20974.63711 | U73: 20699.06887 | V73: 23888.23515 | W73: 25720.44603 | X73: 469.2939913 | Y73: 383.9226428 | Z73: 2835.35522 | AA73: 2881.567336 | AB73: 2718.207269 | AC73: 2272.929145 | AD73: 26687.11405 | AE73: 0 | AF73: 13921.01027 | AG73: 12735.65902 | AH73: 18.50814194 | AI73: 8759.620646 | AJ73: 1109.751506 | AK73: 1086.74175 | AL73: 1215.181566 | AM73: 0 | AN73: 0 | AO73: 0 | AT73: 7.417980819 | AU73: 9.127182007 | AV73: 2.732900608 | AW73: 9.98495353 | AX73: 24.18480737 | AY73: -12.276928 | AZ73: 7.669929861 | BA73: 638.5225314 | BB73: -16.38131606 | BD73: 47228.47131 | BE73: 11.8187983
A74: * Note:
A75: Other (APC TT RS) Episodes include:
A76: - Linked APC episodes that do not fall under Acute, Subacute Episodes or Admitted mental health Episodes
A77: - Unlinked APC episodes
A78: - Teaching and Training records
A79: - Research Records
A81: Other (PCC) Phases include:
A82: - Unlinked PCC phases

Sheet 2 NHCDC Out of Scope Reporting
C2: Appendix 2. NHCDC 2020-21 to 2022-23 out of scope WIP records and costs, unlinked records and costs, and linked Exclude costs, actual, by jurisdiction and stream
A3: Jurisdiction | Q3: Stream | AT3: 2021-22 to 2022-23 Change (%)
C4: Acute | F4: Subacute | L4: Emergency Department | O4: Non-admitted | R4: Admitted Mental Health | X4: Community Mental Health | AD4: Ungroupable Mental Health | AJ4: Other | AP4: Total | AT4: Acute | AU4: Subacute | AW4: Emergency Department | AX4: Non-admitted | AY4: Mental Health | BE4: Other | BG4: Total
G5: Episodes | J5: Phases | R5: Episodes | U5: Phases | X5: Episodes | AA5: Phases | AD5: Episodes | AG5: Phases | AJ5: Episodes | AM5: Phases | AU5: Episodes | AV5: Phases | AY5: Admitted | BA5: Community | BC5: Ungroupable | BE5: Episodes | BF5: Phases
C6: 2020-21 | D6: 2021-22 | E6: 2022-23 | F6: 2020-21 | G6: 2021-22 | H6: 2022-23 | I6: 2020-21 | J6: 2021-22 | K6: 2022-23 | L6: 2020-21 | M6: 2021-22 | N6: 2022-23 | O6: 2020-21 | P6: 2021-22 | Q6: 2022-23 | R6: 2020-21 | S6: 2021-22 | T6: 2022-23 | U6: 2020-21 | V6: 2021-22 | W6: 2022-23 | X6: 2020-21 | Y6: 2021-22 | Z6: 2022-23 | AA6: 2020-21 | AB6: 2021-22 | AC6: 2022-23 | AD6: 2020-21 | AE6: 2021-22 | AF6: 2022-23 | AG6: 2020-21 | AH6: 2021-22 | AI6: 2022-23 | AJ6: 2020-21 | AK6: 2021-22 | AL6: 2022-23 | AM6: 2020-21 | AN6: 2021-22 | AO6: 2022-23 | AP6: 2020-21 | AQ6: 2021-22 | AR6: 2022-23 | AY6: Episodes | AZ6: Phases | BA6: Episodes | BB6: Phases | BC6: Episodes | BD6: Phases
A7: Out of scope WIP records | B7: NSW | C7: 1 | D7: 5 | E7: 2 | F7: 6 | G7: 4 | H7: 10 | I7: 0 | J7: 0 | K7: 0 | L7: 0 | M7: 0 | N7: 0 | O7: 0 | P7: 0 | Q7: 0 | R7: 0 | S7: 0 | T7: 0 | U7: 9 | V7: 16 | W7: 28 | X7: 0 | Y7: 0 | Z7: 0 | AA7: 0 | AB7: 0 | AC7: 0 | AD7: 0 | AE7: 0 | AF7: 0 | AG7: 0 | AH7: 0 | AI7: 0 | AJ7: 0 | AK7: 0 | AL7: 0 | AM7: 0 | AN7: 0 | AO7: 0 | AP7: 16 | AQ7: 25 | AR7: 40 | AT7: =IFERROR((E7/D7-1)*100,"") -> -60 | AU7: =IFERROR((H7/G7-1)*100,"") -> 150 | AV7: =IFERROR((K7/J7-1)*100,"") ->  | AW7: =IFERROR((N7/M7-1)*100,"") ->  | AX7: =IFERROR((Q7/P7-1)*100,"") ->  | AY7: =IFERROR((T7/S7-1)*100,"") ->  | AZ7: =IFERROR((W7/V7-1)*100,"") -> 75 | BA7: =IFERROR((Z7/Y7-1)*100,"") ->  | BB7: =IFERROR((AC7/AB7-1)*100,"") ->  | BC7: =IFERROR((AF7/AE7-1)*100,"") ->  | BD7: =IFERROR((AI7/AH7-1)*100,"") ->  | BE7: =IFERROR((AL7/AK7-1)*100,"") ->  | BF7: =IFERROR((AO7/AN7-1)*100,"") ->  | BG7: =IFERROR((AR7/AQ7-1)*100,"") -> 60
B8: Vic | C8: 2 | D8: 3 | E8: 3 | F8: 2 | G8: 5 | H8: 9 | I8: 0 | J8: 0 | K8: 0 | L8: 0 | M8: 0 | N8: 0 | O8: 0 | P8: 0 | Q8: 0 | R8: 26 | S8: 28 | T8: 12 | U8: 3 | V8: 5 | W8: 13 | X8: 0 | Y8: 0 | Z8: 0 | AA8: 0 | AB8: 0 | AC8: 0 | AD8: 0 | AE8: 0 | AF8: 0 | AG8: 0 | AH8: 0 | AI8: 0 | AJ8: 0 | AK8: 0 | AL8: 0 | AM8: 0 | AN8: 0 | AO8: 0 | AP8: 33 | AQ8: 41 | AR8: 37 | AT8: 0 | AU8: 80 | AY8: -57.14285714 | AZ8: 160 | BG8: =IFERROR((AR8/AQ8-1)*100,"") -> -9.756097561
B9: Qld | C9: 0 | D9: 2 | E9: 1 | F9: 15 | G9: 8 | H9: 23 | I9: 0 | J9: 0 | K9: 1 | L9: 0 | M9: 0 | N9: 0 | O9: 0 | P9: 0 | Q9: 0 | R9: 19 | S9: 11 | T9: 7 | U9: 25 | V9: 13 | W9: 70 | X9: 0 | Y9: 0 | Z9: 0 | AA9: 0 | AB9: 0 | AC9: 0 | AD9: 0 | AE9: 0 | AF9: 0 | AG9: 0 | AH9: 0 | AI9: 0 | AJ9: 0 | AK9: 0 | AL9: 0 | AM9: 0 | AN9: 0 | AO9: 0 | AP9: 59 | AQ9: 34 | AR9: 102 | AT9: -50 | AU9: 187.5 | AY9: -36.36363636 | AZ9: 438.4615385 | BG9: 200
B10: SA | C10: 1 | D10: 0 | E10: 0 | F10: 1 | G10: 0 | H10: 0 | I10: 0 | J10: 0 | K10: 0 | L10: 0 | M10: 0 | N10: 0 | O10: 0 | P10: 0 | Q10: 0 | R10: 0 | S10: 0 | T10: 14 | U10: 0 | V10: 34 | W10: 4 | X10: 0 | Y10: 0 | Z10: 0 | AA10: 0 | AB10: 0 | AC10: 0 | AD10: 0 | AE10: 0 | AF10: 0 | AG10: 0 | AH10: 0 | AI10: 0 | AJ10: 0 | AK10: 0 | AL10: 0 | AM10: 0 | AN10: 0 | AO10: 0 | AP10: 2 | AQ10: 34 | AR10: 18 | AZ10: -88.23529412 | BG10: -47.05882353
B11: WA | C11: 0 | D11: 2 | E11: 1 | F11: 0 | G11: 4 | H11: 1 | I11: 0 | J11: 0 | K11: 0 | L11: 0 | M11: 0 | N11: 0 | O11: 0 | P11: 0 | Q11: 0 | R11: 15 | S11: 28 | T11: 14 | U11: 0 | V11: 0 | W11: 0 | X11: 0 | Y11: 0 | Z11: 0 | AA11: 0 | AB11: 0 | AC11: 0 | AD11: 0 | AE11: 0 | AF11: 0 | AG11: 0 | AH11: 0 | AI11: 0 | AJ11: 0 | AK11: 0 | AL11: 0 | AM11: 0 | AN11: 0 | AO11: 0 | AP11: 15 | AQ11: 34 | AR11: 16 | AT11: -50 | AU11: -75 | AY11: -50 | BG11: -52.94117647
B12: Tas | C12: 0 | D12: 0 | E12: 0 | F12: 0 | G12: 1 | H12: 1 | I12: 0 | J12: 0 | K12: 0 | L12: 0 | M12: 0 | N12: 0 | O12: 0 | P12: 0 | Q12: 0 | R12: 1 | S12: 0 | T12: 13 | U12: 0 | V12: 0 | W12: 0 | X12: 0 | Y12: 0 | Z12: 0 | AA12: 0 | AB12: 0 | AC12: 0 | AD12: 0 | AE12: 0 | AF12: 0 | AG12: 0 | AH12: 0 | AI12: 0 | AJ12: 0 | AK12: 0 | AL12: 0 | AM12: 0 | AN12: 0 | AO12: 0 | AP12: 1 | AQ12: 1 | AR12: 14 | AU12: 0 | BG12: 1300
B13: NT | C13: 0 | D13: 1 | E13: 0 | F13: 0 | G13: 4 | H13: 0 | I13: 0 | J13: 0 | K13: 0 | L13: 0 | M13: 0 | N13: 0 | O13: 0 | P13: 0 | Q13: 0 | R13: 0 | S13: 0 | T13: 0 | U13: 0 | V13: 0 | W13: 0 | X13: 0 | Y13: 0 | Z13: 0 | AA13: 0 | AB13: 0 | AC13: 0 | AD13: 0 | AE13: 0 | AF13: 0 | AG13: 0 | AH13: 0 | AI13: 0 | AJ13: 0 | AK13: 0 | AL13: 0 | AM13: 0 | AN13: 0 | AO13: 0 | AP13: 0 | AQ13: 5 | AR13: 0 | AT13: -100 | AU13: -100 | BG13: -100
B14: ACT | C14: 2 | D14: 0 | E14: 0 | F14: 0 | G14: 2 | H14: 0 | I14: 0 | J14: 0 | K14: 0 | L14: 0 | M14: 0 | N14: 0 | O14: 0 | P14: 0 | Q14: 0 | R14: 3 | S14: 4 | T14: 0 | U14: 0 | V14: 0 | W14: 0 | X14: 0 | Y14: 0 | Z14: 0 | AA14: 0 | AB14: 0 | AC14: 0 | AD14: 0 | AE14: 0 | AF14: 0 | AG14: 0 | AH14: 0 | AI14: 0 | AJ14: 0 | AK14: 0 | AL14: 0 | AM14: 0 | AN14: 0 | AO14: 0 | AP14: 5 | AQ14: 6 | AR14: 0 | AU14: -100 | AY14: -100 | BG14: -100
B15: National | C15: 6 | D15: 13 | E15: 7 | F15: 24 | G15: 28 | H15: 44 | I15: 0 | J15: 0 | K15: 1 | L15: 0 | M15: 0 | N15: 0 | O15: 0 | P15: 0 | Q15: 0 | R15: 64 | S15: 71 | T15: 60 | U15: 37 | V15: 68 | W15: 115 | X15: 0 | Y15: 0 | Z15: 0 | AA15: 0 | AB15: 0 | AC15: 0 | AD15: 0 | AE15: 0 | AF15: 0 | AG15: 0 | AH15: 0 | AI15: 0 | AJ15: 0 | AK15: 0 | AL15: 0 | AM15: 0 | AN15: 0 | AO15: 0 | AP15: 131 | AQ15: 180 | AR15: 227 | AT15: -46.15384615 | AU15: 57.14285714 | AY15: -15.49295775 | AZ15: 69.11764706 | BG15: 26.11111111
A16: Out of scope WIP costs ($) | B16: NSW | C16: 243324.7934 | D16: 4902425.127 | E16: 1463370.394 | F16: 2125119.315 | G16: 1053286.093 | H16: 2881484.587 | I16: 0 | J16: 0 | K16: 0 | L16: 0 | M16: 0 | N16: 0 | O16: 0 | P16: 0 | Q16: 0 | R16: 0 | S16: 0 | T16: 0 | U16: 1805229.809 | V16: 4482674.673 | W16: 10168953.6 | X16: 0 | Y16: 0 | Z16: 0 | AA16: 0 | AB16: 0 | AC16: 0 | AD16: 0 | AE16: 0 | AF16: 0 | AG16: 0 | AH16: 0 | AI16: 0 | AJ16: 0 | AK16: 0 | AL16: 0 | AM16: 0 | AN16: 0 | AO16: 0 | AP16: 4173673.917 | AQ16: 10438385.89 | AR16: 14513808.58 | AT16: -70.15007154 | AU16: 173.5709326 | AZ16: 126.8501362 | BG16: 39.0426521
B17: Vic | C17: 806881.1568 | D17: 1841174.862 | E17: 2896064.185 | F17: 649597.8067 | G17: 1718333.546 | H17: 4476149.183 | I17: 0 | J17: 0 | K17: 0 | L17: 0 | M17: 0 | N17: 0 | O17: 0 | P17: 0 | Q17: 0 | R17: 26513520.45 | S17: 32333772.89 | T17: 16391436.79 | U17: 1597476.891 | V17: 6639510.019 | W17: 13647967.6 | X17: 0 | Y17: 0 | Z17: 0 | AA17: 0 | AB17: 0 | AC17: 0 | AD17: 0 | AE17: 0 | AF17: 0 | AG17: 0 | AH17: 0 | AI17: 0 | AJ17: 0 | AK17: 0 | AL17: 0 | AM17: 0 | AN17: 0 | AO17: 0 | AP17: 29567476.3 | AQ17: 42532791.32 | AR17: 37411617.76 | AT17: 57.2943584 | AU17: 160.4936157 | AY17: -49.30552384 | AZ17: 105.5568492 | BG17: -12.04053015
B18: Qld | C18: 0 | D18: 2497245.081 | E18: 495245.7537 | F18: 11694025.49 | G18: 5327186.859 | H18: 18787369.7 | I18: 0 | J18: 0 | K18: 606433.2738 | L18: 0 | M18: 0 | N18: 0 | O18: 0 | P18: 0 | Q18: 0 | R18: 9976216.867 | S18: 14554087.6 | T18: 4055787.929 | U18: 9615677.492 | V18: 11925245.81 | W18: 29273731.2 | X18: 0 | Y18: 0 | Z18: 0 | AA18: 0 | AB18: 0 | AC18: 0 | AD18: 0 | AE18: 0 | AF18: 0 | AG18: 0 | AH18: 0 | AI18: 0 | AJ18: 0 | AK18: 0 | AL18: 0 | AM18: 0 | AN18: 0 | AO18: 0 | AP18: 31285919.84 | AQ18: 34303765.35 | AR18: 53218567.86 | AT18: -80.16831598 | AU18: 252.669621 | AY18: -72.13299768 | AZ18: 145.4769625 | BG18: 55.13914382
B19: SA | C19: 2139948.602 | D19: 0 | E19: 0 | F19: 3637623.96 | G19: 0 | H19: 0 | I19: 0 | J19: 0 | K19: 0 | L19: 0 | M19: 0 | N19: 0 | O19: 0 | P19: 0 | Q19: 0 | R19: 0 | S19: 0 | T19: 16979320.3 | U19: 0 | V19: 13107080.2 | W19: 1582154.605 | X19: 0 | Y19: 0 | Z19: 0 | AA19: 0 | AB19: 0 | AC19: 0 | AD19: 0 | AE19: 0 | AF19: 0 | AG19: 0 | AH19: 0 | AI19: 0 | AJ19: 0 | AK19: 0 | AL19: 0 | AM19: 0 | AN19: 0 | AO19: 0 | AP19: 5777572.562 | AQ19: 13107080.2 | AR19: 18561474.91 | AZ19: -87.92900798 | BG19: 41.61410953
B20: WA | C20: 0 | D20: 2422903.832 | E20: 698374.7944 | F20: 0 | G20: 3214498.841 | H20: 1224951.557 | I20: 0 | J20: 0 | K20: 0 | L20: 0 | M20: 0 | N20: 0 | O20: 0 | P20: 0 | Q20: 0 | R20: 16069659.55 | S20: 35577478.78 | T20: 22944083.93 | U20: 0 | V20: 0 | W20: 0 | X20: 0 | Y20: 0 | Z20: 0 | AA20: 0 | AB20: 0 | AC20: 0 | AD20: 0 | AE20: 0 | AF20: 0 | AG20: 0 | AH20: 0 | AI20: 0 | AJ20: 0 | AK20: 0 | AL20: 0 | AM20: 0 | AN20: 0 | AO20: 0 | AP20: 16069659.55 | AQ20: 41214881.46 | AR20: 24867410.28 | AT20: -71.17612407 | AU20: -61.89292274 | AY20: -35.50952819 | BG20: -39.66400145
B21: Tas | C21: 0 | D21: 0 | E21: 0 | F21: 0 | G21: 485220.2503 | H21: 422857.9082 | I21: 0 | J21: 0 | K21: 0 | L21: 0 | M21: 0 | N21: 0 | O21: 0 | P21: 0 | Q21: 0 | R21: 578698.7918 | S21: 0 | T21: 14832571.4 | U21: 0 | V21: 0 | W21: 0 | X21: 0 | Y21: 0 | Z21: 0 | AA21: 0 | AB21: 0 | AC21: 0 | AD21: 0 | AE21: 0 | AF21: 0 | AG21: 0 | AH21: 0 | AI21: 0 | AJ21: 0 | AK21: 0 | AL21: 0 | AM21: 0 | AN21: 0 | AO21: 0 | AP21: 578698.7918 | AQ21: 485220.2503 | AR21: 15255429.3 | AU21: -12.8523783 | BG21: 3044.021564
B22: NT | C22: 0 | D22: 665890.7114 | E22: 0 | F22: 0 | G22: 2662027.771 | H22: 0 | I22: 0 | J22: 0 | K22: 0 | L22: 0 | M22: 0 | N22: 0 | O22: 0 | P22: 0 | Q22: 0 | R22: 0 | S22: 0 | T22: 0 | U22: 0 | V22: 0 | W22: 0 | X22: 0 | Y22: 0 | Z22: 0 | AA22: 0 | AB22: 0 | AC22: 0 | AD22: 0 | AE22: 0 | AF22: 0 | AG22: 0 | AH22: 0 | AI22: 0 | AJ22: 0 | AK22: 0 | AL22: 0 | AM22: 0 | AN22: 0 | AO22: 0 | AP22: 0 | AQ22: 3327918.483 | AR22: 0 | AT22: -100 | AU22: -100 | BG22: -100
B23: ACT | C23: 226990.887 | D23: 0 | E23: 0 | F23: 0 | G23: 346375.5662 | H23: 0 | I23: 0 | J23: 0 | K23: 0 | L23: 0 | M23: 0 | N23: 0 | O23: 0 | P23: 0 | Q23: 0 | R23: 2069149.415 | S23: 1606538.592 | T23: 0 | U23: 0 | V23: 0 | W23: 0 | X23: 0 | Y23: 0 | Z23: 0 | AA23: 0 | AB23: 0 | AC23: 0 | AD23: 0 | AE23: 0 | AF23: 0 | AG23: 0 | AH23: 0 | AI23: 0 | AJ23: 0 | AK23: 0 | AL23: 0 | AM23: 0 | AN23: 0 | AO23: 0 | AP23: 2296140.303 | AQ23: 1952914.158 | AR23: 0 | AU23: -100 | AY23: -100 | BG23: -100
B24: National | C24: 3417145.44 | D24: 12329639.61 | E24: 5553055.127 | F24: 18106366.57 | G24: 14806928.93 | H24: 27792812.94 | I24: 0 | J24: 0 | K24: 606433.2738 | L24: 0 | M24: 0 | N24: 0 | O24: 0 | P24: 0 | Q24: 0 | R24: 55207245.08 | S24: 84071877.87 | T24: 75203200.34 | U24: 13018384.19 | V24: 36154510.7 | W24: 54672807.01 | X24: 0 | Y24: 0 | Z24: 0 | AA24: 0 | AB24: 0 | AC24: 0 | AD24: 0 | AE24: 0 | AF24: 0 | AG24: 0 | AH24: 0 | AI24: 0 | AJ24: 0 | AK24: 0 | AL24: 0 | AM24: 0 | AN24: 0 | AO24: 0 | AP24: 89749141.28 | AQ24: 147362957.1 | AR24: 163828308.7 | AT24: -54.96174015 | AU24: 87.70140032 | AY24: -10.54892284 | AZ24: 51.21987809 | BG24: 11.17333141
A25: Unlinked records | B25: NSW | C25: 0 | D25: 0 | E25: 0 | F25: 0 | G25: 0 | H25: 0 | I25: 0 | J25: 0 | K25: 0 | L25: 0 | M25: 0 | N25: 0 | O25: 0 | P25: 0 | Q25: 0 | R25: 0 | S25: 0 | T25: 0 | U25: 0 | V25: 0 | W25: 0 | X25: 0 | Y25: 0 | Z25: 0 | AA25: 0 | AB25: 0 | AC25: 0 | AD25: 0 | AE25: 0 | AF25: 0 | AG25: 6 | AH25: 298 | AI25: 0 | AJ25: 9 | AK25: 0 | AL25: 0 | AM25: 10 | AN25: 0 | AO25: 0 | AP25: 25 | AQ25: 298 | AR25: 0
B26: Vic | C26: 0 | D26: 0 | E26: 0 | F26: 0 | G26: 0 | H26: 0 | I26: 0 | J26: 0 | K26: 0 | L26: 0 | M26: 0 | N26: 0 | O26: 644944 | P26: 697243 | Q26: 706391 | R26: 0 | S26: 0 | T26: 0 | U26: 0 | V26: 0 | W26: 0 | X26: 0 | Y26: 0 | Z26: 0 | AA26: 0 | AB26: 0 | AC26: 0 | AD26: 0 | AE26: 0 | AF26: 0 | AG26: 0 | AH26: 0 | AI26: 0 | AJ26: 0 | AK26: 0 | AL26: 14249 | AM26: 0 | AN26: 0 | AO26: 0 | AP26: 644944 | AQ26: 697243 | AR26: 720640
B27: Qld | C27: 0 | D27: 0 | E27: 0 | F27: 0 | G27: 0 | H27: 0 | I27: 0 | J27: 0 | K27: 0 | L27: 4066 | M27: 0 | N27: 0 | O27: 0 | P27: 4278 | Q27: 0 | R27: 0 | S27: 0 | T27: 0 | U27: 0 | V27: 0 | W27: 0 | X27: 0 | Y27: 0 | Z27: 0 | AA27: 0 | AB27: 0 | AC27: 0 | AD27: 550 | AE27: 14 | AF27: 2 | AG27: 6768 | AH27: 1207 | AI27: 3582 | AJ27: 0 | AK27: 0 | AL27: 0 | AM27: 139 | AN27: 0 | AO27: 90 | AP27: 11523 | AQ27: 5499 | AR27: 3674
B28: SA | C28: 0 | D28: 0 | E28: 0 | F28: 0 | G28: 0 | H28: 0 | I28: 0 | J28: 0 | K28: 0 | L28: 20992 | M28: 25042 | N28: 0 | O28: 126787 | P28: 74498 | Q28: 15853 | R28: 0 | S28: 0 | T28: 0 | U28: 0 | V28: 0 | W28: 0 | X28: 0 | Y28: 0 | Z28: 0 | AA28: 0 | AB28: 0 | AC28: 0 | AD28: 301567 | AE28: 0 | AF28: 0 | AG28: 0 | AH28: 549 | AI28: 0 | AJ28: 13957 | AK28: 2150 | AL28: 0 | AM28: 0 | AN28: 0 | AO28: 0 | AP28: 463303 | AQ28: 102239 | AR28: 15853
B29: WA | C29: 0 | D29: 0 | E29: 0 | F29: 0 | G29: 0 | H29: 0 | I29: 0 | J29: 0 | K29: 0 | L29: 41124 | M29: 43307 | N29: 44332 | O29: 50936 | P29: 438046 | Q29: 457860 | R29: 0 | S29: 0 | T29: 0 | U29: 0 | V29: 0 | W29: 0 | X29: 0 | Y29: 0 | Z29: 0 | AA29: 0 | AB29: 0 | AC29: 0 | AD29: 0 | AE29: 0 | AF29: 0 | AG29: 0 | AH29: 0 | AI29: 0 | AJ29: 55 | AK29: 1528 | AL29: 2030 | AM29: 0 | AN29: 0 | AO29: 0 | AP29: 92115 | AQ29: 482881 | AR29: 504222
B30: Tas | C30: 0 | D30: 0 | E30: 0 | F30: 0 | G30: 0 | H30: 0 | I30: 0 | J30: 0 | K30: 0 | L30: 561 | M30: 618 | N30: 224 | O30: 5644 | P30: 31390 | Q30: 20026 | R30: 0 | S30: 0 | T30: 0 | U30: 0 | V30: 0 | W30: 0 | X30: 0 | Y30: 0 | Z30: 0 | AA30: 0 | AB30: 0 | AC30: 0 | AD30: 505 | AE30: 455 | AF30: 2 | AG30: 0 | AH30: 6 | AI30: 10 | AJ30: 308 | AK30: 291 | AL30: 283 | AM30: 607 | AN30: 668 | AO30: 9 | AP30: 7625 | AQ30: 33428 | AR30: 20554
B31: NT | C31: 0 | D31: 0 | E31: 0 | F31: 0 | G31: 0 | H31: 0 | I31: 0 | J31: 0 | K31: 0 | L31: 29 | M31: 0 | N31: 300 | O31: 359 | P31: 52 | Q31: 1 | R31: 0 | S31: 0 | T31: 0 | U31: 0 | V31: 0 | W31: 0 | X31: 0 | Y31: 0 | Z31: 0 | AA31: 0 | AB31: 0 | AC31: 0 | AD31: 0 | AE31: 0 | AF31: 0 | AG31: 0 | AH31: 0 | AI31: 0 | AJ31: 828 | AK31: 8 | AL31: 54 | AM31: 12 | AN31: 36 | AO31: 22 | AP31: 1228 | AQ31: 96 | AR31: 377
B32: ACT | C32: 0 | D32: 0 | E32: 0 | F32: 0 | G32: 0 | H32: 0 | I32: 0 | J32: 0 | K32: 0 | L32: 0 | M32: 0 | N32: 0 | O32: 6056 | P32: 1440 | Q32: 0 | R32: 0 | S32: 0 | T32: 0 | U32: 0 | V32: 0 | W32: 0 | X32: 0 | Y32: 0 | Z32: 0 | AA32: 0 | AB32: 0 | AC32: 0 | AD32: 0 | AE32: 0 | AF32: 0 | AG32: 0 | AH32: 0 | AI32: 0 | AJ32: 248 | AK32: 0 | AL32: 0 | AM32: 0 | AN32: 0 | AO32: 0 | AP32: 6304 | AQ32: 1440 | AR32: 0
B33: National | C33: 0 | D33: 0 | E33: 0 | F33: 0 | G33: 0 | H33: 0 | I33: 0 | J33: 0 | K33: 0 | L33: 66772 | M33: 68967 | N33: 44856 | O33: 834726 | P33: 1246947 | Q33: 1200131 | R33: 0 | S33: 0 | T33: 0 | U33: 0 | V33: 0 | W33: 0 | X33: 0 | Y33: 0 | Z33: 0 | AA33: 0 | AB33: 0 | AC33: 0 | AD33: 302622 | AE33: 469 | AF33: 4 | AG33: 6774 | AH33: 2060 | AI33: 3592 | AJ33: 15405 | AK33: 3977 | AL33: 16616 | AM33: 768 | AN33: 704 | AO33: 121 | AP33: 1227067 | AQ33: 1323124 | AR33: 1265320
A34: Unlinked costs ($) | B34: NSW | C34: 0 | D34: 0 | E34: 0 | F34: 0 | G34: 0 | H34: 0 | I34: 0 | J34: 0 | K34: 0 | L34: 0 | M34: 0 | N34: 0 | O34: 0 | P34: 0 | Q34: 0 | R34: 0 | S34: 0 | T34: 0 | U34: 0 | V34: 0 | W34: 0 | X34: 0 | Y34: 0 | Z34: 0 | AA34: 0 | AB34: 0 | AC34: 0 | AD34: 0 | AE34: 0 | AF34: 0 | AG34: 36439.70586 | AH34: 766370.8085 | AI34: 0 | AJ34: 102521.5803 | AK34: 0 | AL34: 0 | AM34: 41104.90428 | AN34: 0 | AO34: 0 | AP34: 180066.1905 | AQ34: 766370.8085 | AR34: 0
B35: Vic | C35: 0 | D35: 0 | E35: 0 | F35: 0 | G35: 0 | H35: 0 | I35: 0 | J35: 0 | K35: 0 | L35: 0 | M35: 0 | N35: 0 | O35: 235341692.2 | P35: 265457598.6 | Q35: 279151330.4 | R35: 0 | S35: 0 | T35: 0 | U35: 0 | V35: 0 | W35: 0 | X35: 0 | Y35: 0 | Z35: 0 | AA35: 0 | AB35: 0 | AC35: 0 | AD35: 0 | AE35: 0 | AF35: 0 | AG35: 0 | AH35: 0 | AI35: 0 | AJ35: 0 | AK35: 0 | AL35: 19961173.05 | AM35: 0 | AN35: 0 | AO35: 0 | AP35: 235341692.2 | AQ35: 265457598.6 | AR35: 299112503.5
B36: Qld | C36: 0 | D36: 0 | E36: 0 | F36: 0 | G36: 0 | H36: 0 | I36: 0 | J36: 0 | K36: 0 | L36: 1600388.953 | M36: 0 | N36: 0 | O36: 0 | P36: 923614.7677 | Q36: 0 | R36: 0 | S36: 0 | T36: 0 | U36: 0 | V36: 0 | W36: 0 | X36: 0 | Y36: 0 | Z36: 0 | AA36: 0 | AB36: 0 | AC36: 0 | AD36: 1798149.197 | AE36: 9586.6605 | AF36: 4889.5907 | AG36: 96516341.61 | AH36: 8458220.448 | AI36: 28757416.13 | AJ36: 0 | AK36: 0 | AL36: 0 | AM36: 46320.4498 | AN36: 0 | AO36: 34288.90205 | AP36: 99961200.2 | AQ36: 9391421.876 | AR36: 28796594.63
B37: SA | C37: 0 | D37: 0 | E37: 0 | F37: 0 | G37: 0 | H37: 0 | I37: 0 | J37: 0 | K37: 0 | L37: 11006982.29 | M37: 15819988.55 | N37: 0 | O37: 35272156.53 | P37: 26501612.94 | Q37: 6998297.393 | R37: 0 | S37: 0 | T37: 0 | U37: 0 | V37: 0 | W37: 0 | X37: 0 | Y37: 0 | Z37: 0 | AA37: 0 | AB37: 0 | AC37: 0 | AD37: 85932212.45 | AE37: 0 | AF37: 0 | AG37: 0 | AH37: 30484020.92 | AI37: 0 | AJ37: 400767802.1 | AK37: 31556920.59 | AL37: 0 | AM37: 0 | AN37: 0 | AO37: 0 | AP37: 532979153.4 | AQ37: 104362543 | AR37: 6998297.393
B38: WA | C38: 0 | D38: 0 | E38: 0 | F38: 0 | G38: 0 | H38: 0 | I38: 0 | J38: 0 | K38: 0 | L38: 29223432.33 | M38: 36563016.4 | N38: 51955081.34 | O38: 15163651.5 | P38: 78195969.91 | Q38: 73892880.81 | R38: 0 | S38: 0 | T38: 0 | U38: 0 | V38: 0 | W38: 0 | X38: 0 | Y38: 0 | Z38: 0 | AA38: 0 | AB38: 0 | AC38: 0 | AD38: 0 | AE38: 0 | AF38: 0 | AG38: 0 | AH38: 0 | AI38: 0 | AJ38: 851269.3368 | AK38: 9789616.163 | AL38: 10874360.87 | AM38: 0 | AN38: 0 | AO38: 0 | AP38: 45238353.17 | AQ38: 124548602.5 | AR38: 136722323
B39: Tas | C39: 0 | D39: 0 | E39: 0 | F39: 0 | G39: 0 | H39: 0 | I39: 0 | J39: 0 | K39: 0 | L39: 652007.6665 | M39: 859969.6818 | N39: 343997.912 | O39: 2259898.49 | P39: 6095032.456 | Q39: 2519164.3 | R39: 0 | S39: 0 | T39: 0 | U39: 0 | V39: 0 | W39: 0 | X39: 0 | Y39: 0 | Z39: 0 | AA39: 0 | AB39: 0 | AC39: 0 | AD39: 14563942.94 | AE39: 21292904.32 | AF39: 16619.99999 | AG39: 0 | AH39: 75.468162 | AI39: 48842.10099 | AJ39: 8600452.837 | AK39: 8327718.736 | AL39: 8273780.835 | AM39: 8479745.899 | AN39: 13107703.28 | AO39: 105553.2003 | AP39: 34556047.83 | AQ39: 49683403.94 | AR39: 11307958.35
B40: NT | C40: 0 | D40: 0 | E40: 0 | F40: 0 | G40: 0 | H40: 0 | I40: 0 | J40: 0 | K40: 0 | L40: 31719.91739 | M40: 0 | N40: 110790.5143 | O40: 310665.3635 | P40: 39036.9366 | Q40: 466.534537 | R40: 0 | S40: 0 | T40: 0 | U40: 0 | V40: 0 | W40: 0 | X40: 0 | Y40: 0 | Z40: 0 | AA40: 0 | AB40: 0 | AC40: 0 | AD40: 0 | AE40: 0 | AF40: 0 | AG40: 0 | AH40: 0 | AI40: 0 | AJ40: 39200055.29 | AK40: 43330983.85 | AL40: 46685464.2 | AM40: 765392.1844 | AN40: 806192.4745 | AO40: 280997.5878 | AP40: 40307832.75 | AQ40: 44176213.26 | AR40: 47077718.83
B41: ACT | C41: 0 | D41: 0 | E41: 0 | F41: 0 | G41: 0 | H41: 0 | I41: 0 | J41: 0 | K41: 0 | L41: 0 | M41: 0 | N41: 0 | O41: 1171943.503 | P41: 438047.7795 | Q41: 0 | R41: 0 | S41: 0 | T41: 0 | U41: 0 | V41: 0 | W41: 0 | X41: 0 | Y41: 0 | Z41: 0 | AA41: 0 | AB41: 0 | AC41: 0 | AD41: 0 | AE41: 0 | AF41: 0 | AG41: 0 | AH41: 0 | AI41: 0 | AJ41: 364746.7371 | AK41: 0 | AL41: 0 | AM41: 0 | AN41: 0 | AO41: 0 | AP41: 1536690.24 | AQ41: 438047.7795 | AR41: 0
B42: National | C42: 0 | D42: 0 | E42: 0 | F42: 0 | G42: 0 | H42: 0 | I42: 0 | J42: 0 | K42: 0 | L42: 42514531.17 | M42: 53242974.63 | N42: 52409869.76 | O42: 289520007.6 | P42: 377650913.4 | Q42: 362562139.4 | R42: 0 | S42: 0 | T42: 0 | U42: 0 | V42: 0 | W42: 0 | X42: 0 | Y42: 0 | Z42: 0 | AA42: 0 | AB42: 0 | AC42: 0 | AD42: 102294304.6 | AE42: 21302490.98 | AF42: 21509.59069 | AG42: 96552781.31 | AH42: 39708687.65 | AI42: 28806258.23 | AJ42: 449886847.9 | AK42: 93005239.34 | AL42: 85794778.95 | AM42: 9332563.438 | AN42: 13913895.76 | AO42: 420839.6902 | AP42: 990101036 | AQ42: 598824201.7 | AR42: 530015395.7
A43: Linked Exclude costs ($) | B43: NSW | C43: -62033210.86 | D43: 0 | E43: 0 | F43: -4306694.972 | G43: 0 | H43: 0 | I43: -1089285.868 | J43: 0 | K43: 0 | L43: -15141812.3 | M43: 0 | N43: 0 | O43: -15761147.45 | P43: -62924.18584 | Q43: 0 | R43: -11571.92088 | S43: 0 | T43: 0 | U43: -4918404.769 | V43: 0 | W43: 0 | X43: 0 | Y43: 0 | Z43: 0 | AA43: -5388733.51 | AB43: 0 | AC43: 0 | AD43: 0 | AE43: 0 | AF43: 0 | AG43: 0 | AH43: 0 | AI43: 0 | AJ43: -8080.825572 | AK43: 0 | AL43: 0 | AM43: 0 | AN43: 0 | AO43: 0 | AP43: -108658942.5 | AQ43: -62924.18584 | AR43: 0 | AT43: =IFERROR((E43/D43-1)*100,"") ->  | AU43: =IFERROR((H43/G43-1)*100,"") ->  | AV43: =IFERROR((K43/J43-1)*100,"") ->  | AW43: =IFERROR((N43/M43-1)*100,"") ->  | AX43: =IFERROR((Q43/P43-1)*100,"") -> -100 | AY43: =IFERROR((T43/S43-1)*100,"") ->  | AZ43: =IFERROR((W43/V43-1)*100,"") ->  | BA43: =IFERROR((Z43/Y43-1)*100,"") ->  | BB43: =IFERROR((AC43/AB43-1)*100,"") ->  | BC43: =IFERROR((AF43/AE43-1)*100,"") ->  | BD43: =IFERROR((AI43/AH43-1)*100,"") ->  | BE43: =IFERROR((AL43/AK43-1)*100,"") ->  | BF43: =IFERROR((AO43/AN43-1)*100,"") ->  | BG43: -100
B44: Vic | C44: 7.3915 | D44: 0 | E44: 0 | F44: 677.4298 | G44: 0 | H44: 0 | I44: 63.8519 | J44: 0 | K44: 0 | L44: 1944.2422 | M44: 0 | N44: 0 | O44: 20.1182 | P44: 0 | Q44: 0 | R44: 14.8232 | S44: 0 | T44: 0 | U44: 53.9988 | V44: 0 | W44: 0 | X44: 0 | Y44: 0 | Z44: 0 | AA44: 0 | AB44: 0 | AC44: 0 | AD44: 0 | AE44: 0 | AF44: 0 | AG44: 0 | AH44: 0 | AI44: 0 | AJ44: 0 | AK44: 0 | AL44: 0 | AM44: 0 | AN44: 0 | AO44: 0 | AP44: 2781.8556 | AQ44: 0 | AR44: 0
B45: Qld | C45: 26018498.85 | D45: 14863446.13 | E45: 16768223.97 | F45: 1874364.782 | G45: 1882195.74 | H45: 2304492.397 | I45: 510226.4161 | J45: 308930.0049 | K45: 408584.1925 | L45: 5950145.273 | M45: 2461416.432 | N45: 3572952.794 | O45: 11174335.79 | P45: 8115795.709 | Q45: 5423992.311 | R45: 894683.7242 | S45: 269060.8154 | T45: 41519.58155 | U45: 880641.4956 | V45: 888226.234 | W45: 1306264.992 | X45: 49276.0399 | Y45: 23659.60041 | Z45: 355826.3661 | AA45: 731719.6824 | AB45: 818809.6403 | AC45: 666382.25 | AD45: 232316.9018 | AE45: 0 | AF45: 0.003868 | AG45: 86566.1856 | AH45: 0 | AI45: 0 | AJ45: 55521.0947 | AK45: 38734.57819 | AL45: 36072.66714 | AM45: 0 | AN45: 0 | AO45: 0 | AP45: 48458296.24 | AQ45: 29670274.88 | AR45: 30884311.53 | AT45: 12.81518317 | AU45: 22.43638363 | AV45: 32.25785325 | AW45: 45.15840341 | AX45: -33.16746126 | AY45: -84.56870002 | AZ45: 47.06444614 | BA45: 1403.940726 | BB45: -18.61572982 | BE45: -6.872182885 | BG45: 4.0917607
B46: SA | C46: 0 | D46: 0 | E46: 0 | F46: 0 | G46: 0 | H46: 0 | I46: 0 | J46: 0 | K46: 0 | L46: 0 | M46: 0 | N46: 0 | O46: 0 | P46: 0 | Q46: 0 | R46: 0 | S46: 0 | T46: 0 | U46: 0 | V46: 0 | W46: 0 | X46: 0 | Y46: 0 | Z46: 0 | AA46: 0 | AB46: 0 | AC46: 0 | AD46: 0 | AE46: 0 | AF46: 0 | AG46: 0 | AH46: 0 | AI46: 0 | AJ46: 0 | AK46: 0 | AL46: 0 | AM46: 0 | AN46: 0 | AO46: 0 | AP46: 0 | AQ46: 0 | AR46: 0
B47: WA | C47: 0 | D47: 0 | E47: 0 | F47: 0 | G47: 0 | H47: 0 | I47: 0 | J47: 0 | K47: 0 | L47: 0 | M47: 0 | N47: 0 | O47: 0 | P47: 0 | Q47: 0 | R47: 0 | S47: 0 | T47: 0 | U47: 0 | V47: 0 | W47: 0 | X47: 0 | Y47: 0 | Z47: 0 | AA47: 0 | AB47: 0 | AC47: 0 | AD47: 0 | AE47: 0 | AF47: 0 | AG47: 0 | AH47: 0 | AI47: 0 | AJ47: 0 | AK47: 0 | AL47: 0 | AM47: 0 | AN47: 0 | AO47: 0 | AP47: 0 | AQ47: 0 | AR47: 0
B48: Tas | C48: 0 | D48: 0 | E48: 0 | F48: 0 | G48: 0 | H48: 0 | I48: 0 | J48: 0 | K48: 0 | L48: 0 | M48: 0 | N48: 0 | O48: 0 | P48: 0 | Q48: 0 | R48: 0 | S48: 0 | T48: 0 | U48: 0 | V48: 0 | W48: 0 | X48: 0 | Y48: 0 | Z48: 0 | AA48: 0 | AB48: 0 | AC48: 0 | AD48: 0 | AE48: 0 | AF48: 0 | AG48: 0 | AH48: 0 | AI48: 0 | AJ48: 0 | AK48: 0 | AL48: 0 | AM48: 0 | AN48: 0 | AO48: 0 | AP48: 0 | AQ48: 0 | AR48: 0
B49: NT | C49: 7566084.332 | D49: 3547779.576 | E49: 5160115.942 | F49: 28891.28444 | G49: 4831.358268 | H49: 8411.771008 | I49: 3128.649992 | J49: 11200.26298 | K49: 2190.529385 | L49: 35982493.71 | M49: 38680927.81 | N49: 46791844 | O49: 4927078.173 | P49: 4919188.976 | Q49: 7172983.225 | R49: 69230.88195 | S49: 2307.023324 | T49: 17130.18739 | U49: 0 | V49: 0 | W49: 0 | X49: 0 | Y49: 0 | Z49: 0 | AA49: 0 | AB49: 0 | AC49: 0 | AD49: 0 | AE49: 0 | AF49: 0 | AG49: 0 | AH49: 0 | AI49: 0 | AJ49: 0 | AK49: 0 | AL49: 0 | AM49: 0 | AN49: 0 | AO49: 0 | AP49: 48576907.03 | AQ49: 47166235.01 | AR49: 59152675.66 | AT49: 45.4463512 | AU49: 74.10778794 | AV49: -80.44216115 | AW49: 20.96877364 | AX49: 45.81637865 | AY49: 642.5233725 | BG49: 25.41318096
B50: ACT | C50: 0 | D50: 0 | E50: 0 | F50: 0 | G50: 0 | H50: 0 | I50: 0 | J50: 0 | K50: 0 | L50: 0 | M50: 0 | N50: 0 | O50: 0 | P50: 0 | Q50: 0 | R50: 0 | S50: 0 | T50: 0 | U50: 0 | V50: 0 | W50: 0 | X50: 0 | Y50: 0 | Z50: 0 | AA50: 0 | AB50: 0 | AC50: 0 | AD50: 0 | AE50: 0 | AF50: 0 | AG50: 0 | AH50: 0 | AI50: 0 | AJ50: 0 | AK50: 0 | AL50: 0 | AM50: 0 | AN50: 0 | AO50: 0 | AP50: 0 | AQ50: 0 | AR50: 0
B51: National | C51: -28448620.29 | D51: 18411225.7 | E51: 21928339.92 | F51: -2402761.476 | G51: 1887027.098 | H51: 2312904.168 | I51: -575866.95 | J51: 320130.2679 | K51: 410774.7219 | L51: 26792770.93 | M51: 41142344.24 | N51: 50364796.8 | O51: 340286.6349 | P51: 12972060.5 | Q51: 12596975.54 | R51: 952357.5085 | S51: 271367.8388 | T51: 58649.76894 | U51: -4037709.274 | V51: 888226.234 | W51: 1306264.992 | X51: 49276.0399 | Y51: 23659.60041 | Z51: 355826.3661 | AA51: -4657013.828 | AB51: 818809.6403 | AC51: 666382.25 | AD51: 232316.9018 | AE51: 0 | AF51: 0.003868 | AG51: 86566.1856 | AH51: 0 | AI51: 0 | AJ51: 47440.26913 | AK51: 38734.57819 | AL51: 36072.66714 | AM51: 0 | AN51: 0 | AO51: 0 | AP51: -11620957.35 | AQ51: 76773585.7 | AR51: 90036987.19 | AT51: 19.1030965 | AU51: 22.568678 | AV51: 28.31486527 | AW51: 22.41596274 | AX51: -2.8914833 | AY51: -78.38735452 | AZ51: 47.06444614 | BA51: 1403.940726 | BB51: -18.61572982 | BE51: -6.872182885 | BG51: 17.27599586

Sheet 3 Direct Indirect
C3: Appendix 3. NHCDC 2020-21 to 2022-23 in scope direct and indirect expenditure, by stream
C5: Expenditure | M5: Change
A6: Stream | D6: 2020-21 | G6: 2021-22 | J6: 2022-23 | M6: 2021-22 and 2022-23
C7: Direct | D7: Indirect | E7: Total | F7: Direct | G7: Indirect | H7: Total | I7: Direct | J7: Indirect | K7: Total | M7: Direct | N7: Indirect | O7: Total
C8: ($) | D8: ($) | E8: ($) | F8: ($) | G8: ($) | H8: ($) | I8: ($) | J8: ($) | K8: ($) | M8: (%) | N8: (%) | O8: (%)
A9: Acute | B9: Episodes | C9: 26373201359 | D9: 7431197778 | E9: 33804399137 | F9: 27821506402 | G9: 8334369501 | H9: 36155875903 | I9: 31193021259 | J9: 9401844066 | K9: 40594865324 | M9: =IFERROR((I9/F9-1)*100,"") -> 12.11837637 | N9: =IFERROR((J9/G9-1)*100,"") -> 12.80810221 | O9: 12.27736657
A10: Subacute | B10: Episodes | C10: 2159175018 | D10: 733886827.1 | E10: 2893061845 | F10: 2406594006 | G10: 840238881.4 | H10: 3246832888 | I10: 2831103941 | J10: 1008898993 | K10: 3840002934 | M10: =IFERROR((I10/F10-1)*100,"") -> 17.6394495 | N10: 20.07287634 | O10: 18.26918929
B11: Phases | C11: 327347740.8 | D11: 98846425.72 | E11: 426194166.5 | F11: 354260731 | G11: 113686744.8 | H11: 467947475.8 | I11: 405118341.3 | J11: 138336959.2 | K11: 543455300.5 | M11: 14.35598299 | N11: 21.68257563 | O11: 16.13596154
A12: Emergency Department | B12: Episodes | C12: 5209929216 | D12: 1397969202 | E12: 6607898418 | F12: 5741337763 | G12: 1625461340 | H12: 7366799103 | I12: 6563313961 | J12: 1837637832 | K12: 8400951793 | M12: 14.31680615 | N12: 13.05330904 | O12: 14.03801944
A13: Non-admitted | B13: Episodes | C13: 7578383042 | D13: 2049108415 | E13: 9627491457 | F13: 8294682313 | G13: 2209605714 | H13: 10504288028 | I13: 8767305971 | J13: 2427136509 | K13: 11194442480 | M13: 5.697911508 | N13: 9.84477879 | O13: 6.570216374
A14: Admitted Mental Health | B14: Episodes | C14: 637078962.7 | D14: 205014519 | E14: 842093481.8 | F14: 502048213.9 | G14: 165472776.3 | H14: 667520990.1 | I14: 473144728.1 | J14: 152151153.4 | K14: 625295881.5 | M14: -5.757113552 | N14: -8.050643247 | O14: -6.325660059
B15: Phases | C15: 1089276538 | D15: 347632123.9 | E15: 1436908662 | F15: 1428845859 | G15: 480660217.6 | H15: 1909506077 | I15: 1771514119 | J15: 617863876 | K15: 2389377995 | M15: 23.98217121 | N15: 28.54483341 | O15: 25.13068298
A16: Community Mental Health | B16: Episodes | C16: 87172607.82 | D16: 19993490.87 | E16: 107166098.7 | F16: 69784081.51 | G16: 14307262.78 | H16: 84091344.29 | I16: 478535554.6 | J16: 134408701.5 | K16: 612944256.1 | M16: 585.7374121 | N16: 839.4438587 | O16: 628.9029106
B17: Phases | C17: 924418458.5 | D17: 244964790.1 | E17: 1169383249 | F17: 1183877262 | G17: 326978448.4 | H17: 1510855710 | I17: 1296045966 | J17: 361924015.9 | K17: 1657969982 | M17: 9.474690303 | N17: 10.68742226 | O17: 9.737149004
A18: Ungroupable Mental Health | B18: Episodes | C18: 31395491.69 | D18: 3137633.898 | E18: 34533125.59 | F18: 0 | G18: 0 | H18: 0 | I18: 1642945.634 | J18: 319916.8141 | K18: 1962862.449
B19: Phases | C19: 6242657.324 | D19: 1335059.794 | E19: 7577717.118 | F19: 263.146957 | G19: 32.983314 | H19: 296.130271 | I19: 1091234.184 | J19: 143872.3266 | K19: 1235106.511 | M19: 414586.2259 | N19: 436097.3046 | O19: 416982.1534
A20: Other | B20: Episodes | C20: 10387215.28 | D20: 3738811.641 | E20: 14126026.92 | F20: 11823574.75 | G20: 2684427.612 | H20: 14508002.37 | I20: 15394169.21 | J20: 3640434.837 | K20: 19034604.04 | M20: 30.19894177 | N20: 35.61307519 | O20: 31.20072333
B21: Phases | C21: 0 | D21: 0 | E21: 0 | F21: 0 | G21: 0 | H21: 0 | I21: . | J21: . | K21: .
A22: Total | C22: 4.443400831e+10 | D22: 1.253682508e+10 | E22: 5.697083338e+10 | F22: 4.781476047e+10 | G22: 1.411346535e+10 | H22: 6.192822582e+10 | I22: 53797232191 | J22: 16084306329 | K22: 69881538519 | M22: 12.51176763 | N22: 13.9642599 | O22: 12.84279115

Sheet 4 Acute Cost Wghts V11
A1: NATIONAL HOSPITAL COST DATA COLLECTION | D1: (National)
A2: Appendix 4. NHCDC 2022-23 Admitted Acute Cost Weights for AR-DRG Version 11.0
A3: Public Sector - Sample
F4: Average Cost per AR-DRG
A5: AR-DRG v11.0 | B5: Description | C5: Cost | D5: Number of | E5: ALOS | F5: Total | G5: Direct | H5: Indirect | I5: Medical | K5: Nursing | M5: Non-Clinical | O5: Pathology | Q5: Imaging | S5: Allied | U5: Pharmacy | W5: Critical | Y5: Oper Room | AA5: Clinical Supplies | AC5: SPS | AE5: Prosthesis | AG5: Oncosts | AI5: Hotel | AK5: Deprec | AM5: Patient Transport | AO5: Estab
C6: weight | D6: Seps | E6: (Days) | F6: Cost | G6: Cost | H6: Cost | I6: Direct | J6: Indirect | K6: Direct | L6: Indirect | M6: Direct | N6: Indirect | O6: Direct | P6: Indirect | Q6: Direct | R6: Indirect | S6: Direct | T6: Indirect | U6: Direct | V6: Indirect | W6: Direct | X6: Indirect | Y6: Direct | Z6: Indirect | AA6: Direct | AB6: Indirect | AC6: Direct | AD6: Indirect | AE6: Direct | AF6: Indirect | AG6: Direct | AH6: Indirect | AI6: Direct | AJ6: Indirect | AK6: Direct | AL6: Indirect | AM6: Direct | AN6: Indirect | AO6: Count
A8: 801A | B8: GIs Unrelated to Principal Diagnosis, Major Complexity | C8: 10.63998049 | D8: 1170 | E8: 25.57606838 | F8: 66386.89012 | G8: 51197.86874 | H8: 15189.02138 | I8: 6929.979096 | J8: 333.8461403 | K8: 13397.66009 | L8: 876.9599052 | M8: 1322.662724 | N8: 2719.503656 | O8: 2564.491673 | P8: 224.0463947 | Q8: 2103.292827 | R8: 349.617844 | S8: 2356.890408 | T8: 692.4047192 | U8: 2368.204285 | V8: 179.9229191 | W8: 5079.789357 | X8: 1173.668515 | Y8: 4032.397978 | Z8: 930.1071359 | AA8: 2350.004777 | AB8: 2641.006559 | AC8: 510.4639227 | AD8: 94.31300998 | AE8: 1354.85961 | AF8: 1.517751712 | AG8: 4223.119741 | AH8: 1376.827794 | AI8: 2008.842926 | AJ8: 1226.108136 | AK8: 371.3099896 | AL8: 2309.851701 | AM8: 223.8993383 | AN8: 59.31919637 | AO8: 113
A9: 801B | B9: GIs Unrelated to Principal Diagnosis, Intermediate Complexity | C9: 3.940772219 | D9: 1542 | E9: 8.362516213 | F9: 24587.97856 | G9: 18960.78614 | H9: 5627.192413 | I9: 2780.433366 | J9: 115.2206861 | K9: 4252.339631 | L9: 298.86932 | M9: 449.0943041 | N9: 930.0437451 | O9: 667.7301542 | P9: 85.09250349 | Q9: 804.7520546 | R9: 134.1202986 | S9: 559.2345461 | T9: 184.9299176 | U9: 653.6695427 | V9: 58.72899091 | W9: 1207.054202 | X9: 280.3948056 | Y9: 3161.480537 | Z9: 745.1178334 | AA9: 716.5404625 | AB9: 952.8525136 | AC9: 361.0279567 | AD9: 56.69647514 | AE9: 813.1365521 | AF9: 0.776992561 | AG9: 1662.672079 | AH9: 548.5021832 | AI9: 630.5362253 | AJ9: 450.649077 | AK9: 175.6830459 | AL9: 763.5177409 | AM9: 65.40148461 | AN9: 21.67932952 | AO9: 145
A10: 801C | B10: GIs Unrelated to Principal Diagnosis, Minor Complexity | C10: 1.566523215 | D10: 1907 | E10: 2.746722601 | F10: 9774.134884 | G10: 7534.007512 | H10: 2240.127373 | I10: 1076.137235 | J10: 46.03107124 | K10: 1213.940887 | L10: 99.1649852 | M10: 159.1723173 | N10: 314.9180235 | O10: 225.2422036 | P10: 35.4366529 | Q10: 284.5610975 | R10: 53.39645215 | S10: 152.8501134 | T10: 54.35138595 | U10: 154.1674252 | V10: 16.91230283 | W10: 184.2261802 | X10: 44.73475874 | Y10: 2301.385462 | Z10: 563.9105727 | AA10: 308.0358393 | AB10: 324.8724669 | AC10: 113.8291049 | AD10: 19.13400341 | AE10: 399.4939215 | AF10: 0.4366856535 | AG10: 636.1251637 | AH10: 222.46775 | AI10: 212.7890025 | AJ10: 143.6742291 | AK10: 87.98171749 | AL10: 292.5944485 | AM10: 24.06984051 | AN10: 8.091583841 | AO10: 190
A11: 960Z | B11: Ungroupable | C11: 1.222912084 | D11: 632 | E11: 3.329113924 | F11: 7630.214189 | G11: 5751.928262 | H11: 1878.285927 | I11: 890.5138063 | J11: 51.33735565 | K11: 1217.887611 | L11: 83.70893869 | M11: 104.8442558 | N11: 417.4020736 | O11: 214.6973383 | P11: 8.462756907 | Q11: 113.2893808 | R11: 21.62191182 | S11: 170.7019299 | T11: 52.89026183 | U11: 227.5197024 | V11: 8.93268571 | W11: 567.4212514 | X11: 149.6207203 | Y11: 960.2822306 | Z11: 209.6045122 | AA11: 391.7091364 | AB11: 290.5376596 | AC11: 40.11157327 | AD11: 8.249532459 | AE11: 195.7592751 | AF11: 0.3086884241 | AG11: 348.2876844 | AH11: 206.7192547 | AI11: 183.7479651 | AJ11: 53.6376908 | AK11: 30.20540089 | AL11: 296.5686929 | AM11: 94.94972068 | AN11: 18.68319102 | AO11: 37
A12: 961Z | B12: Unacceptable Principal Diagnosis | C12: 1.036530892 | D12: 14 | E12: 1.785714286 | F12: 6467.310956 | G12: 4111.770895 | H12: 2355.540061 | I12: 1120.905141 | J12: 62.11824771 | K12: 916.7944131 | L12: 149.7357399 | M12: 31.79306257 | N12: 470.1462229 | O12: 96.00781029 | P12: 8.927026929 | Q12: 155.8663325 | R12: 27.25045621 | S12: 47.24325593 | T12: 15.98717629 | U12: 63.75940579 | V12: 3.963265286 | W12: 705.6811796 | X12: 210.8087063 | Y12: 195.4519996 | Z12: 161.3054494 | AA12: 129.0440241 | AB12: 621.6665405 | AC12: 7.9032865 | AD12: 1.497646857 | AE12: 0.0058170714 | AF12: 0.0157015 | AG12: 280.8553282 | AH12: 152.9591729 | AI12: 26.10819986 | AJ12: 297.5319534 | AK12: 89.7051955 | AL12: 165.7152496 | AM12: 244.6464431 | AN12: 5.911505357 | AO12: 4
A13: 963Z | B13: Neonatal Diagnosis Not Consistent with Age/Weight | C13: 0.3776481308 | D13: 1 | E13: 1 | F13: 2356.2905 | G13: 1819.9528 | H13: 536.3377 | I13: 713.3869 | J13: 38.0927 | K13: 756.524 | L13: 73.3992 | M13: 65.053 | N13: 271.0433 | O13: 0 | P13: 7.293 | Q13: 0.0001 | R13: 0.0058 | S13: 8.142 | T13: 10.36 | U13: 33.5526 | V13: 2.5369 | W13: 0 | X13: 0 | Y13: 0 | Z13: 0 | AA13: 77.2139 | AB13: 92.2464 | AC13: 0 | AD13: 0 | AE13: 0.003 | AF13: 0.0153 | AG13: 135.1441 | AH13: 9.3989 | AI13: 30.9328 | AJ13: 6.9994 | AK13: 0 | AL13: 21.566 | AM13: 0.0004 | AN13: 3.3808 | AO13: 1
A14: A13A | B14: Ventilation >= 336 Hours, Major Complexity | C14: 69.98656082 | D14: 476 | E14: 73.67647059 | F14: 436672.8045 | G14: 345780.7086 | H14: 90892.09593 | I14: 23328.04371 | J14: 772.170027 | K14: 21136.68789 | L14: 1537.024424 | M14: 3236.732572 | N14: 5843.249572 | O14: 15383.81179 | P14: 1363.054261 | Q14: 8727.164035 | R14: 1609.178113 | S14: 13671.29832 | T14: 3669.835824 | U14: 9722.700722 | V14: 747.1291528 | W14: 180010.7605 | X14: 38088.49652 | Y14: 17462.24916 | Z14: 3748.587604 | AA14: 4125.333014 | AB14: 6080.953466 | AC14: 882.1743905 | AD14: 141.1135499 | AE14: 3878.15373 | AF14: 6.554931065 | AG14: 33827.39031 | AH14: 8248.536724 | AI14: 6719.246157 | AJ14: 5348.311554 | AK14: 3351.842215 | AL14: 13369.71896 | AM14: 317.1200963 | AN14: 318.1812522 | AO14: 77
A15: A13B | B15: Ventilation >= 336 Hours, Minor Complexity | C15: 43.70806038 | D15: 1173 | E15: 44.13043478 | F15: 272711.2332 | G15: 215260.9064 | H15: 57450.32675 | I15: 12429.65836 | J15: 368.3082973 | K15: 9268.848293 | L15: 706.9394674 | M15: 1677.906325 | N15: 2727.069058 | O15: 9962.601312 | P15: 837.2169134 | Q15: 5182.367809 | R15: 903.07414 | S15: 7838.917027 | T15: 1933.553401 | U15: 4934.862537 | V15: 385.6306485 | W15: 124174.6468 | X15: 27482.52121 | Y15: 7062.98737 | Z15: 1497.813237 | AA15: 1896.13448 | AB15: 2942.412834 | AC15: 412.2692238 | AD15: 76.01109696 | AE15: 1921.342547 | AF15: 4.920436178 | AG15: 21746.62647 | AH15: 5665.808595 | AI15: 4180.242602 | AJ15: 3613.11228 | AK15: 2009.256782 | AL15: 8075.755662 | AM15: 562.2384842 | AN15: 230.1794682 | AO15: 85
A16: A14A | B16: Ventilation >= 96 Hours and < 336 Hours, Major Complexity | C16: 31.41832731 | D16: 1832 | E16: 36.93231441 | F16: 196030.9085 | G16: 154010.4692 | H16: 42020.43928 | I16: 12184.60105 | J16: 440.9122825 | K16: 13626.32872 | L16: 978.6181362 | M16: 1748.39773 | N16: 3482.18975 | O16: 8597.872627 | P16: 680.3762969 | Q16: 4693.689482 | R16: 837.3933661 | S16: 6442.759581 | T16: 1759.865418 | U16: 5086.487555 | V16: 361.268124 | W16: 62039.33292 | X16: 13782.01518 | Y16: 13811.15074 | Z16: 3052.57825 | AA16: 2827.616348 | AB16: 3532.214455 | AC16: 496.4753898 | AD16: 95.40386429 | AE16: 3855.323889 | AF16: 4.308797758 | AG16: 13478.57556 | AH16: 3537.321772 | AI16: 3447.910677 | AJ16: 2545.016586 | AK16: 1382.537664 | AL16: 6760.600403 | AM16: 291.4092781 | AN16: 170.3566042 | AO16: 96
A17: A14B | B17: Ventilation >= 96 Hours and < 336 Hours, Intermediate Complexity | C17: 19.67347745 | D17: 2990 | E17: 22.27090301 | F17: 122750.3177 | G17: 96701.22524 | H17: 26049.09244 | I17: 6585.474114 | J17: 220.3145257 | K17: 6062.447712 | L17: 452.2582022 | M17: 980.2874128 | N17: 1706.047034 | O17: 4880.96886 | P17: 442.3997142 | Q17: 2454.594042 | R17: 393.7923562 | S17: 3434.286038 | T17: 904.1371384 | U17: 2087.34108 | V17: 167.3449749 | W17: 48339.76658 | X17: 10796.25533 | Y17: 5808.720709 | Z17: 1259.385957 | AA17: 1401.943059 | AB17: 1694.2236 | AC17: 374.7253827 | AD17: 82.28024589 | AE17: 1608.792361 | AF17: 3.037202426 | AG17: 9390.936419 | AH17: 2434.780287 | AI17: 2133.58045 | AJ17: 1596.914983 | AK17: 909.2702513 | AL17: 3792.463579 | AM17: 248.0907628 | AN17: 103.4573061 | AO17: 99
A18: A14C | B18: Ventilation >= 96 Hours and < 336 Hours, Minor Complexity | C18: 13.85166795 | D18: 2267 | E18: 14.41949713 | F18: 86425.83117 | G18: 68221.16786 | H18: 18204.66331 | I18: 4265.58919 | J18: 132.5469465 | K18: 3043.537907 | L18: 248.8145195 | M18: 530.459711 | N18: 945.5858003 | O18: 3517.448262 | P18: 325.5306136 | Q18: 1582.668111 | R18: 247.2579708 | S18: 2199.56755 | T18: 560.0949103 | U18: 1131.496582 | V18: 94.4369014 | W18: 38274.29938 | X18: 8498.90755 | Y18: 2440.83013 | Z18: 524.4132019 | AA18: 875.8001135 | AB18: 923.4229265 | AC18: 391.0996454 | AD18: 75.41403251 | AE18: 697.1209044 | AF18: 2.424399701 | AG18: 7028.887272 | AH18: 1823.025876 | AI18: 1387.012352 | AJ18: 1143.221999 | AK18: 656.7147157 | AL18: 2582.384809 | AM18: 198.6360377 | AN18: 77.18085182 | AO18: 101
A19: A15A | B19: Tracheostomy, Major Complexity | C19: 22.98951865 | D19: 213 | E19: 30.56338028 | F19: 143440.3615 | G19: 110749.5016 | H19: 32690.85989 | I19: 10660.83053 | J19: 409.3593204 | K19: 13379.89142 | L19: 1002.078101 | M19: 1565.782099 | N19: 3095.342476 | O19: 3461.142647 | P19: 358.933059 | Q19: 2382.695746 | R19: 395.1121222 | S19: 5261.445601 | T19: 1453.79543 | U19: 2765.832006 | V19: 240.7031206 | W19: 17872.90936 | X19: 3966.283055 | Y19: 30573.20397 | Z19: 7009.188166 | AA19: 3478.243102 | AB19: 3971.696116 | AC19: 213.6716805 | AD19: 107.682685 | AE19: 4740.191695 | AF19: 2.144354347 | AG19: 10145.84212 | AH19: 2845.349723 | AI19: 2931.844176 | AJ19: 2375.503758 | AK19: 1096.889794 | AL19: 5365.661829 | AM19: 219.0856592 | AN19: 92.02657185 | AO19: 37
A20: A15B | B20: Tracheostomy, Intermediate Complexity | C20: 14.90985411 | D20: 369 | E20: 20.30352304 | F20: 93028.25759 | G20: 70692.53943 | H20: 22335.71816 | I20: 8603.721955 | J20: 312.1778805 | K20: 9311.191567 | L20: 731.2512104 | M20: 1132.710439 | N20: 2349.032003 | O20: 1902.411988 | P20: 236.5216583 | Q20: 1106.286812 | R20: 173.548605 | S20: 3724.824111 | T20: 1019.139688 | U20: 1139.916443 | V20: 101.4177769 | W20: 10268.29302 | X20: 2316.61491 | Y20: 19513.75253 | Z20: 4820.29849 | AA20: 2145.259368 | AB20: 2826.431894 | AC20: 145.757393 | AD20: 41.11365883 | AE20: 2372.992115 | AF20: 1.894889274 | AG20: 6443.688148 | AH20: 1875.414565 | AI20: 2035.483806 | AJ20: 1515.425945 | AK20: 704.0612614 | AL20: 3950.250889 | AM20: 142.1884841 | AN20: 65.18409509 | AO20: 48
A21: A15C | B21: Tracheostomy, Minor Complexity | C21: 8.385422302 | D21: 227 | E21: 12.34361233 | F21: 52319.84299 | G21: 39948.24916 | H21: 12371.59383 | I21: 5259.541903 | J21: 190.8965946 | K21: 5271.719581 | L21: 418.2410432 | M21: 629.7715518 | N21: 1369.181399 | O21: 931.9466325 | P21: 101.9156781 | Q21: 675.9387324 | R21: 110.7232387 | S21: 1947.711526 | T21: 600.7705758 | U21: 599.4315991 | V21: 58.47513716 | W21: 6894.497355 | X21: 1535.049125 | Y21: 10534.29158 | Z21: 2497.761164 | AA21: 1042.063038 | AB21: 1500.693945 | AC21: 72.16617308 | AD21: 17.81036591 | AE21: 1131.323285 | AF21: 0.4196086722 | AG21: 3425.480196 | AH21: 1061.226629 | AI21: 1026.710906 | AJ21: 823.88367 | AK21: 328.2874123 | AL21: 2047.477889 | AM21: 177.3676927 | AN21: 37.06777165 | AO21: 57
A22: A40Z | B22: ECMO | C22: 35.8834673 | D22: 503 | E22: 27.41351889 | F22: 223890.6173 | G22: 178347.0788 | H22: 45543.53842 | I22: 10357.6765 | J22: 263.4666897 | K22: 6611.237393 | L22: 481.0822315 | M22: 1697.988409 | N22: 2334.996842 | O22: 13252.10145 | P22: 1493.940493 | Q22: 3972.433123 | R22: 820.8504671 | S22: 5235.553201 | T22: 1501.776687 | U22: 4009.637133 | V22: 344.0770314 | W22: 86244.56995 | X22: 18981.41489 | Y22: 16473.60335 | Z22: 3472.012021 | AA22: 2018.077558 | AB22: 2686.427865 | AC22: 1700.900808 | AD22: 291.8274216 | AE22: 3422.379285 | AF22: 2.408546455 | AG22: 18179.70893 | AH22: 4205.972727 | AI22: 2989.370179 | AJ22: 2286.733055 | AK22: 1913.406828 | AL22: 6235.278972 | AM22: 268.4347286 | AN22: 141.2724751 | AO22: 41
A23: B01Z | B23: Ventricular Shunt Revision | C23: 3.550987068 | D23: 384 | E23: 4.916666667 | F23: 22155.96057 | G23: 17402.7911 | H23: 4753.169469 | I23: 2319.192632 | J23: 80.17222046 | K23: 3114.804544 | L23: 212.8607404 | M23: 291.8643846 | N23: 725.7169279 | O23: 283.9837232 | P23: 53.35086212 | Q23: 637.5210779 | R23: 108.0574386 | S23: 413.1810143 | T23: 145.9401866 | U23: 299.858076 | V23: 22.68020851 | W23: 654.7910748 | X23: 140.147717 | Y23: 4766.316098 | Z23: 1005.496873 | AA23: 507.9954731 | AB23: 778.7992527 | AC23: 2.744341146 | AD23: 0.6111255208 | AE23: 1854.471987 | AF23: 0.5037443698 | AG23: 1420.832711 | AH23: 402.7260451 | AI23: 514.7983335 | AJ23: 249.1196934 | AK23: 204.8078914 | AL23: 813.2149977 | AM23: 115.6277358 | AN23: 13.7714362 | AO23: 31
A24: B02A | B24: Cranial Interventions, Major Complexity | C24: 14.45378841 | D24: 2091 | E24: 21.59397417 | F24: 90182.69004 | G24: 69740.42967 | H24: 20442.26036 | I24: 7532.095173 | J24: 277.7004159 | K24: 11683.45628 | L24: 695.8512854 | M24: 1009.332186 | N24: 2494.595459 | O24: 2222.612898 | P24: 298.3886894 | Q24: 4168.635558 | R24: 711.3184741 | S24: 3206.275651 | T24: 965.4362012 | U24: 1815.421941 | V24: 129.6624666 | W24: 13855.4117 | X24: 3091.994373 | Y24: 9236.461514 | Z24: 2065.871146 | AA24: 2220.354517 | AB24: 2776.960208 | AC24: 217.839772 | AD24: 27.95280825 | AE24: 3859.532635 | AF24: 2.316883389 | AG24: 5709.956649 | AH24: 1605.270503 | AI24: 2028.690472 | AJ24: 1228.071337 | AK24: 633.2971061 | AL24: 4002.170859 | AM24: 341.0556225 | AN24: 68.69925549 | AO24: 39
A25: B02B | B25: Cranial Interventions, Intermediate Complexity | C25: 7.2629837 | D25: 3196 | E25: 9.78942428 | F25: 45316.52112 | G25: 35311.06015 | H25: 10005.46097 | I25: 3972.769338 | J25: 137.4680703 | K25: 5606.352071 | L25: 349.3047823 | M25: 563.1767007 | N25: 1242.234397 | O25: 942.903518 | P25: 152.6731643 | Q25: 1950.843161 | R25: 341.0964093 | S25: 1225.508214 | T25: 382.6239229 | U25: 585.5654656 | V25: 45.85100991 | W25: 3519.70081 | X25: 798.3470976 | Y25: 8095.313568 | Z25: 1891.286368 | AA25: 1223.572466 | AB25: 1392.792779 | AC25: 112.2350101 | AD25: 11.60203509 | AE25: 3077.900883 | AF25: 0.9715173451 | AG25: 2808.113408 | AH25: 792.5268186 | AI25: 940.9661492 | AJ25: 578.5699994 | AK25: 311.0824692 | AL25: 1854.895867 | AM25: 375.0569216 | AN25: 33.21672941 | AO25: 43
A26: B02C | B26: Cranial Interventions, Minor Complexity | C26: 4.5355366 | D26: 4777 | E26: 5.554741469 | F26: 28298.94002 | G26: 22278.90805 | H26: 6020.031971 | I26: 2438.362734 | J26: 79.93918692 | K26: 3215.00473 | L26: 214.6234315 | M26: 321.1456875 | N26: 746.2156206 | O26: 536.917325 | P26: 84.21017131 | Q26: 1239.620537 | R26: 213.8207904 | S26: 656.3928686 | T26: 209.2693772 | U26: 328.1298021 | V26: 23.96939119 | W26: 1340.39986 | X26: 308.3802053 | Y26: 6231.158639 | Z26: 1400.177512 | AA26: 807.9253917 | AB26: 839.6996037 | AC26: 99.93025755 | AD26: 8.760566629 | AE26: 2459.831713 | AF26: 0.5957958204 | AG26: 1741.479934 | AH26: 503.7371112 | AI26: 536.3635979 | AJ26: 343.6548211 | AK26: 198.9338501 | AL26: 1023.752161 | AM26: 127.3111272 | AN26: 19.2262246 | AO26: 51
A27: B03A | B27: Spinal Interventions, Major Complexity | C27: 13.52503487 | D27: 454 | E27: 21.89867841 | F27: 84387.84305 | G27: 64111.87746 | H27: 20275.96559 | I27: 6685.38079 | J27: 295.8789475 | K27: 11835.91537 | L27: 741.2612993 | M27: 1159.62746 | N27: 2389.223012 | O27: 2026.705246 | P27: 257.6683204 | Q27: 2020.365691 | R27: 383.5609683 | S27: 3383.799703 | T27: 1006.266238 | U27: 1910.491918 | V27: 126.4451181 | W27: 8973.309808 | X27: 2280.51045 | Y27: 10746.09854 | Z27: 2566.093327 | AA27: 1516.602658 | AB27: 2528.352013 | AC27: 95.63304799 | AD27: 22.2364932 | AE27: 6041.052007 | AF27: 2.657467791 | AG27: 4896.447929 | AH27: 1539.36126 | AI27: 1934.61983 | AJ27: 1562.248802 | AK27: 568.9286237 | AL27: 4501.397479 | AM27: 316.8988483 | AN27: 72.8043936 | AO27: 34
A28: B03B | B28: Spinal Interventions, Intermediate Complexity | C28: 6.018653652 | D28: 767 | E28: 8.576271186 | F28: 37552.6721 | G28: 29525.55722 | H28: 8027.114878 | I28: 3576.078782 | J28: 115.2142574 | K28: 4919.679856 | L28: 309.4281914 | M28: 442.5255703 | N28: 1053.058319 | O28: 719.661223 | P28: 97.1112659 | Q28: 713.1254673 | R28: 124.0596253 | S28: 912.6526992 | T28: 285.6916698 | U28: 611.0644465 | V28: 46.70612995 | W28: 1299.414273 | X28: 287.1591933 | Y28: 8186.101658 | Z28: 1890.481686 | AA28: 957.7509219 | AB28: 1173.974284 | AC28: 28.98932902 | AD28: 5.387342021 | AE28: 3369.832011 | AF28: 0.9750542947 | AG28: 2365.979199 | AH28: 710.571747 | AI28: 749.0030666 | AJ28: 531.6900499 | AK28: 244.4388518 | AL28: 1370.215058 | AM28: 429.2598659 | AN28: 25.39100358 | AO28: 42
A29: B03C | B29: Spinal Interventions, Minor Complexity | C29: 3.044555958 | D29: 1573 | E29: 3.289256198 | F29: 18996.14402 | G29: 15044.29332 | H29: 3951.850697 | I29: 1660.6772 | J29: 49.12372468 | K29: 1869.088158 | L29: 131.5139247 | M29: 212.7357394 | N29: 456.9268154 | O29: 192.8286609 | P29: 26.26344797 | Q29: 327.2296903 | R29: 56.07275529 | S29: 342.910442 | T29: 134.3512266 | U29: 144.6023041 | V29: 13.1891856 | W29: 206.379249 | X29: 48.71417555 | Y29: 5942.87351 | Z29: 1286.058184 | AA29: 583.242905 | AB29: 484.6800124 | AC29: 11.4250419 | AD29: 2.116952593 | AE29: 1725.424088 | AF29: 0.5095705283 | AG29: 1081.286105 | AH29: 353.8113108 | AI29: 316.4157652 | AJ29: 224.9595494 | AK29: 141.65631 | AL29: 667.7126006 | AM29: 285.518151 | AN29: 15.84726107 | AO29: 61
A30: B04A | B30: Extracranial Vascular Interventions, Major Complexity | C30: 7.831871772 | D30: 343 | E30: 12.57725947 | F30: 48866.03044 | G30: 37719.05485 | H30: 11146.97559 | I30: 4286.429793 | J30: 179.7768005 | K30: 6157.90604 | L30: 390.5024776 | M30: 700.4511168 | N30: 1415.740538 | O30: 1010.46724 | P30: 140.9250201 | Q30: 3181.033327 | R30: 516.5362385 | S30: 1720.047014 | T30: 474.6556882 | U30: 663.4825605 | V30: 48.70345379 | W30: 5986.739958 | X30: 1436.868094 | Y30: 5534.165385 | Z30: 1187.141008 | AA30: 1349.731668 | AB30: 1413.023506 | AC30: 255.2234369 | AD30: 38.25645339 | AE30: 2150.917302 | AF30: 1.495848717 | AG30: 3072.776483 | AH30: 998.9160694 | AI30: 1124.030442 | AJ30: 788.0781879 | AK30: 354.0947973 | AL30: 2072.634612 | AM30: 171.5582896 | AN30: 43.72159009 | AO30: 45
A31: B04B | B31: Extracranial Vascular Interventions, Intermediate Complexity | C31: 4.447405563 | D31: 613 | E31: 5.685154975 | F31: 27749.05692 | G31: 21751.1372 | H31: 5997.919715 | I31: 2428.768429 | J31: 86.87665699 | K31: 2719.096976 | L31: 193.4011986 | M31: 395.1959203 | N31: 670.7442813 | O31: 411.03969 | P31: 65.89051247 | Q31: 1370.99093 | R31: 243.4596678 | S31: 622.6029673 | T31: 183.8158825 | U31: 293.3945463 | V31: 24.15295842 | W31: 3146.838121 | X31: 744.1068952 | Y31: 5144.055464 | Z31: 1082.825286 | AA31: 839.2268856 | AB31: 698.3880207 | AC31: 140.1391498 | AD31: 15.16665784 | AE31: 1659.497803 | AF31: 0.5771413181 | AG31: 1721.734987 | AH31: 535.7664703 | AI31: 548.9813595 | AJ31: 351.0050596 | AK31: 230.1901748 | AL31: 1082.251432 | AM31: 79.38380297 | AN31: 19.49159362 | AO31: 48
A32: B04C | B32: Extracranial Vascular Interventions, Minor Complexity | C32: 3.038498781 | D32: 688 | E32: 2.895348837 | F32: 18958.35098 | G32: 14711.53298 | H32: 4246.818006 | I32: 1440.032116 | J32: 49.20700138 | K32: 1219.094395 | L32: 98.92189339 | M32: 192.7419525 | N32: 348.1621854 | O32: 235.0222607 | P32: 32.31033322 | Q32: 655.4590432 | R32: 117.3285876 | S32: 177.8826295 | T32: 67.64063368 | U32: 132.0904498 | V32: 13.25191213 | W32: 1991.510106 | X32: 492.5355814 | Y32: 5448.004262 | Z32: 1195.090018 | AA32: 651.7292947 | AB32: 353.4035988 | AC32: 52.87328284 | AD32: 8.815903763 | AE32: 920.9644771 | AF32: 0.5458548067 | AG32: 1118.261942 | AH32: 379.5432874 | AI32: 278.1664359 | AJ32: 236.7993015 | AK32: 174.1577658 | AL32: 835.8121832 | AM32: 23.54256275 | AN32: 17.44973032 | AO32: 60
A33: B05Z | B33: Carpal Tunnel Release | C33: 0.5056264987 | D33: 10132 | E33: 1.020923806 | F33: 3154.796273 | G33: 2386.23049 | H33: 768.5657823 | I33: 380.6678862 | J33: 13.553006 | K33: 134.6247298 | L33: 17.1630079 | M33: 42.52545818 | N33: 68.07361308 | O33: 6.85300452 | P33: 1.469090448 | Q33: 30.26237639 | R33: 1.181396203 | S33: 18.86124054 | T33: 6.929560171 | U33: 16.58017609 | V33: 3.275795512 | W33: 1.075794707 | X33: 0.3076778275 | Y33: 1357.86719 | Z33: 365.1436255 | AA33: 115.5978469 | AB33: 72.17303774 | AC33: 7.634640928 | AD33: 0.5466099887 | AE33: 21.14670313 | AF33: 0.0920620301 | AG33: 171.1272287 | AH33: 70.26335823 | AI33: 44.68853749 | AJ33: 41.33814946 | AK33: 32.31077303 | AL33: 102.4606871 | AM33: 4.406904027 | AN33: 4.595105127 | AO33: 206
A34: B06A | B34: Interventions for Cerebral Palsy, Muscular Dystrophy and Neuropathy, Major Complexity | C34: 8.681783359 | D34: 358 | E34: 19.90502793 | F34: 54168.95249 | G34: 41093.70219 | H34: 13075.2503 | I34: 6052.346168 | J34: 253.0867781 | K34: 11025.62729 | L34: 720.2798445 | M34: 1149.781147 | N34: 2323.775163 | O34: 1852.994193 | P34: 177.3183026 | Q34: 1273.502104 | R34: 200.111654 | S34: 2826.935475 | T34: 760.3586597 | U34: 1120.980702 | V34: 112.0319189 | W34: 2721.874973 | X34: 613.2776327 | Y34: 4154.300423 | Z34: 1018.723702 | AA34: 1359.673817 | AB34: 2333.733599 | AC34: 277.1401362 | AD34: 66.47153132 | AE34: 1686.802961 | AF34: 1.51791076 | AG34: 3767.117679 | AH34: 1171.969324 | AI34: 1324.968848 | AJ34: 1123.909136 | AK34: 286.4097053 | AL34: 2159.813305 | AM34: 213.2465632 | AN34: 38.87183615 | AO34: 77
A35: B06B | B35: Interventions for Cerebral Palsy, Muscular Dystrophy and Neuropathy, Intermediate Complexity | C35: 3.094477243 | D35: 485 | E35: 5.340206186 | F35: 19307.62193 | G35: 15078.15542 | H35: 4229.466511 | I35: 1857.734691 | J35: 80.3093883 | K35: 3068.086997 | L35: 209.4706946 | M35: 364.4431181 | N35: 651.8325066 | O35: 543.3194722 | P35: 48.15981104 | Q35: 667.0992861 | R35: 75.6967838 | S35: 737.2110246 | T35: 202.6165893 | U35: 346.005863 | V35: 26.95848907 | W35: 558.4018973 | X35: 126.9338375 | Y35: 3473.78608 | Z35: 821.0323823 | AA35: 431.4044437 | AB35: 606.7728635 | AC35: 131.7537594 | AD35: 27.20182824 | AE35: 999.9632133 | AF35: 0.4861074289 | AG35: 1291.747827 | AH35: 379.6104825 | AI35: 397.1154163 | AJ35: 301.2647568 | AK35: 135.7969858 | AL35: 657.6976756 | AM35: 74.2853442 | AN35: 13.42231446 | AO35: 96
A36: B06C | B36: Interventions for Cerebral Palsy, Muscular Dystrophy and Neuropathy, Minor Complexity | C36: 1.059711711 | D36: 1926 | E36: 1.256490135 | F36: 6611.944912 | G36: 5003.79754 | H36: 1608.147373 | I36: 623.240718 | J36: 21.93605891 | K36: 442.0755704 | L36: 53.94286357 | M36: 83.61889121 | N36: 145.9649146 | O36: 100.6861795 | P36: 10.09219686 | Q36: 52.41717453 | R36: 7.037815217 | S36: 69.7821593 | T36: 27.92568219 | U36: 41.13838183 | V36: 6.806348453 | W36: 4.8456091 | X36: 1.261404383 | Y36: 2583.491553 | Z36: 691.9489922 | AA36: 252.3531902 | AB36: 149.5562409 | AC36: 5.393997456 | AD36: 1.769728403 | AE36: 201.3604167 | AF36: 0.2173590602 | AG36: 377.2125266 | AH36: 137.604978 | AI36: 107.5704569 | AJ36: 80.33995245 | AK36: 54.51855819 | AL36: 266.0247826 | AM36: 4.092156688 | AN36: 5.718055008 | AO36: 167
A37: B07A | B37: Cranial or Peripheral Nerve and Other Nervous System Interventions, Major Complexity | C37: 5.533680472 | D37: 827 | E37: 13.79322854 | F37: 34526.73974 | G37: 25974.88842 | H37: 8551.851322 | I37: 3949.724646 | J37: 184.6641984 | K37: 7296.321569 | L37: 509.1401518 | M37: 774.8670942 | N37: 1594.418259 | O37: 872.4649004 | P37: 99.24611455 | Q37: 781.3564539 | R37: 134.9507444 | S37: 1466.769537 | T37: 408.5622241 | U37: 1045.54363 | V37: 83.07174365 | W37: 946.1170705 | X37: 283.2899398 | Y37: 3555.055583 | Z37: 818.7955317 | AA37: 856.8061699 | AB37: 1512.318907 | AC37: 188.377192 | AD37: 47.85428468 | AE37: 556.253047 | AF37: 1.855884564 | AG37: 2573.13689 | AH37: 828.9014981 | AI37: 847.8364469 | AJ37: 734.4964822 | AK37: 167.3986894 | AL37: 1283.761404 | AM37: 96.85950299 | AN37: 26.52395392 | AO37: 110
A38: B07B | B38: Cranial or Peripheral Nerve and Other Nervous System Interventions, Minor Complexity | C38: 1.193127989 | D38: 3545 | E38: 1.562764457 | F38: 7444.379879 | G38: 5616.354837 | H38: 1828.025042 | I38: 762.9882714 | J38: 27.77234218 | K38: 693.0348598 | L38: 67.62091455 | M38: 105.9248129 | N38: 200.4046191 | O38: 59.05536354 | P38: 9.140747036 | Q38: 50.25006707 | R38: 8.40737943 | S38: 86.4973079 | T38: 30.64683965 | U38: 46.29617502 | V38: 5.904256931 | W38: 16.31092617 | X38: 4.783416565 | Y38: 2885.109496 | Z38: 707.2653033 | AA38: 127.4267181 | AB38: 191.0071137 | AC38: 5.176812603 | AD38: 1.077609603 | AE38: 104.0009519 | AF38: 0.1968225755 | AG38: 464.1615749 | AH38: 164.6931734 | AI38: 134.5841695 | AJ38: 112.3444012 | AK38: 63.49393747 | AL38: 290.2357665 | AM38: 12.04339268 | AN38: 6.524336041 | AO38: 150
A39: B08A | B39: Endovascular Clot Retrieval, Major Complexity | C39: 8.564232522 | D39: 670 | E39: 11.40895522 | F39: 53435.50805 | G39: 42761.58389 | H39: 10673.92416 | I39: 4092.664674 | J39: 150.0149653 | K39: 6811.292006 | L39: 357.0852997 | M39: 830.7345066 | N39: 1287.791737 | O39: 879.4864221 | P39: 135.8096817 | Q39: 7293.357737 | R39: 769.2249807 | S39: 2868.831182 | T39: 727.7379868 | U39: 769.5279399 | V39: 55.73376133 | W39: 4902.494658 | X39: 1120.246486 | Y39: 2175.421754 | Z39: 419.2511873 | AA39: 1754.816782 | AB39: 1642.308134 | AC39: 882.2691528 | AD39: 130.3569869 | AE39: 4576.713604 | AF39: 0.9454955209 | AG39: 3257.648279 | AH39: 849.3917643 | AI39: 1112.92804 | AJ39: 709.7330137 | AK39: 300.5739771 | AL39: 2284.702748 | AM39: 252.8231785 | AN39: 33.58992666 | AO39: 22
A40: B08B | B40: Endovascular Clot Retrieval, Minor Complexity | C40: 5.149792741 | D40: 1438 | E40: 4.582753825 | F40: 32131.518 | G40: 26285.82626 | H40: 5845.691738 | I40: 2062.88741 | J40: 68.30587856 | K40: 2734.068115 | L40: 150.5921396 | M40: 388.9834303 | N40: 607.6115869 | O40: 401.7279812 | P40: 71.54463305 | Q40: 5731.253894 | R40: 574.4733833 | S40: 1376.158961 | T40: 388.0947356 | U40: 317.274643 | V40: 27.49615231 | W40: 2776.977236 | X40: 654.9527104 | Y40: 1593.060209 | Z40: 316.3443196 | AA40: 1263.486779 | AB40: 766.8547071 | AC40: 653.247213 | AD40: 62.72057887 | AE40: 4353.26864 | AF40: 0.7078552962 | AG40: 1659.40037 | AH40: 474.9059218 | AI40: 458.2955111 | AJ40: 370.8872443 | AK40: 207.7782232 | AL40: 1288.147205 | AM40: 307.9576481 | AN40: 22.05268625 | AO40: 25
A41: B40Z | B41: Plasmapheresis with Neurological Disease, Sameday | C41: 0.2959177692 | D41: 1354 | E41: 1 | F41: 1846.343651 | G41: 1449.930416 | H41: 396.4132343 | I41: 103.7044215 | J41: 7.315320366 | K41: 274.9185878 | L41: 19.91866444 | M41: 59.99398679 | N41: 93.189069 | O41: 522.2395228 | P41: 31.4171409 | Q41: 9.942000101 | R41: 1.74274058 | S41: 86.83216727 | T41: 8.682908624 | U41: 100.9532466 | V41: 11.47981471 | W41: 0.6259895022 | X41: 0.0893864993 | Y41: 11.96445022 | Z41: 2.705989882 | AA41: 145.5470465 | AB41: 115.4221778 | AC41: 0.3608196455 | AD41: 0.0649944609 | AE41: 0.8935516736 | AF41: 0.0119709542 | AG41: 99.08458585 | AH41: 32.82227479 | AI41: 23.6091675 | AJ41: 26.33486092 | AK41: 7.142658471 | AL41: 44.42619948 | AM41: 2.118214282 | AN41: 0.7897208597 | AO41: 25
A42: B41A | B42: Telemetric EEG Monitoring, Major Complexity | C42: 3.475611936 | D42: 241 | E42: 7.041493776 | F42: 21685.66641 | G42: 17107.07977 | H42: 4578.586643 | I42: 4037.404452 | J42: 125.7561018 | K42: 4625.347394 | L42: 231.1612554 | M42: 1616.335336 | N42: 1310.446317 | O42: 388.7509991 | P42: 87.78614301 | Q42: 626.9914759 | R42: 116.6917268 | S42: 1075.689726 | T42: 187.7339473 | U42: 500.8347045 | V42: 61.72697996 | W42: 683.7692695 | X42: 136.4779261 | Y42: 128.5255268 | Z42: 31.96317042 | AA42: 462.7665848 | AB42: 986.7556387 | AC42: 10.62879317 | AD42: 2.236942739 | AE42: 11.24520986 | AF42: 0.1833935187 | AG42: 2120.953351 | AH42: 435.2442991 | AI42: 676.3283481 | AJ42: 246.4394987 | AK42: 88.55993451 | AL42: 606.2590872 | AM42: 52.94866564 | AN42: 11.72421527 | AO42: 20
A43: B41B | B43: Telemetric EEG Monitoring, Minor Complexity | C43: 1.754299485 | D43: 1035 | E43: 3.524637681 | F43: 10945.74254 | G43: 8580.388595 | H43: 2365.353944 | I43: 2373.353006 | J43: 69.42713738 | K43: 2366.310578 | L43: 132.170808 | M43: 877.776737 | N43: 744.1204025 | O43: 124.6437988 | P43: 25.42465885 | Q43: 408.2988405 | R43: 76.53728901 | S43: 473.9296594 | T43: 68.43345707 | U43: 213.5915759 | V43: 25.7055875 | W43: 4.814901629 | X43: 1.180004788 | Y43: 41.15725065 | Z43: 9.870136051 | AA43: 284.0286747 | AB43: 538.2640716 | AC43: 15.59678092 | AD43: 3.21737285 | AE43: 1.730144865 | AF43: 0.1280173498 | AG43: 994.8096123 | AH43: 208.8656395 | AI43: 298.2893313 | AJ43: 123.7719459 | AK43: 90.74899079 | AL43: 330.1650382 | AM43: 11.30871197 | AN43: 8.072377087 | AO43: 25
A44: B42A | B44: Nervous System Disorders with Ventilator Support, Major Complexity | C44: 12.30475924 | D44: 319 | E44: 18.78056426 | F44: 76774.07869 | G44: 59438.0649 | H44: 17336.01378 | I44: 5555.286 | J44: 232.7181019 | K44: 9224.504725 | L44: 662.8734995 | M44: 945.4166289 | N44: 1855.778805 | O44: 2589.777991 | P44: 234.2159517 | Q44: 1715.63468 | R44: 250.4618468 | S44: 3226.133869 | T44: 834.3820847 | U44: 1565.794369 | V44: 127.322227 | W44: 24891.03778 | X44: 5538.683742 | Y44: 778.197424 | Z44: 186.4980033 | AA44: 984.293363 | AB44: 1890.378565 | AC44: 52.64858289 | AD44: 12.98840217 | AE44: 113.5472477 | AF44: -1.290588313 | AG44: 5453.433128 | AH44: 1568.369618 | AI44: 1658.041393 | AJ44: 1019.443335 | AK44: 466.2283146 | AL44: 2861.328227 | AM44: 218.0894139 | AN44: 61.86196491 | AO44: 83
A45: B42B | B45: Nervous System Disorders with Ventilator Support, Intermediate Complexity | C45: 7.561843119 | D45: 404 | E45: 10.07920792 | F45: 47181.21884 | G45: 36972.60062 | H45: 10208.61822 | I45: 2874.098667 | J45: 105.9610308 | K45: 3973.465871 | L45: 256.7798616 | M45: 447.8634821 | N45: 816.7709247 | O45: 1429.949589 | P45: 170.9591772 | Q45: 1029.898983 | R45: 162.0836955 | S45: 1719.74282 | T45: 410.0509293 | U45: 643.9002732 | V45: 54.240128 | W45: 18822.41242 | X45: 4152.520556 | Y45: 300.8857486 | Z45: 59.57346676 | AA45: 470.4627589 | AB45: 836.8697398 | AC45: 28.27377117 | AD45: 4.448888146 | AE45: 80.47677938 | AF45: 1.751181733 | AG45: 3736.85543 | AH45: 954.3678415 | AI45: 795.5899281 | AJ45: 677.5166447 | AK45: 334.8829445 | AL45: 1488.21314 | AM45: 283.8411517 | AN45: 56.51101793 | AO45: 88
A46: B42C | B46: Nervous System Disorders with Ventilator Support, Minor Complexity | C46: 4.546493656 | D46: 763 | E46: 4.878112713 | F46: 28367.30527 | G46: 22317.96515 | H46: 6049.340121 | I46: 1511.739999 | J46: 48.77448949 | K46: 1530.913819 | L46: 102.5277265 | M46: 270.4549354 | N46: 346.8898261 | O46: 959.6982652 | P46: 119.7191321 | Q46: 701.800179 | R46: 105.4440644 | S46: 898.9971261 | T46: 208.1064338 | U46: 286.026626 | V46: 24.85378189 | W46: 12381.69991 | X46: 2779.444572 | Y46: 395.2610667 | Z46: 77.55479799 | AA46: 204.4081613 | AB46: 349.6900558 | AC46: 29.15543331 | AD46: 6.553022617 | AE46: 78.81952817 | AF46: 0.6583188427 | AG46: 2229.021102 | AH46: 586.1780218 | AI46: 449.7916498 | AJ46: 367.3838158 | AK46: 217.6341213 | AL46: 898.8647028 | AM46: 172.5432235 | AN46: 26.69735826 | AO46: 94
A47: B62Z | B47: Apheresis | C47: 0.4994764801 | D47: 404 | E47: 1.027227723 | F47: 3116.423965 | G47: 2098.467679 | H47: 1017.956286 | I47: 151.7349491 | J47: 13.48526887 | K47: 478.8370359 | L47: 40.68865948 | M47: 60.17842139 | N47: 134.0686542 | O47: 635.4882102 | P47: 336.5925577 | Q47: 62.08290303 | R47: 13.51359041 | S47: 63.06782115 | T47: 25.06546984 | U47: 127.1297217 | V47: 9.308602545 | W47: 1.649218069 | X47: 0.4138378713 | Y47: 49.24726569 | Z47: 19.01670021 | AA47: 251.9085275 | AB47: 198.4771063 | AC47: 0 | AD47: 0 | AE47: 1.636098503 | AF47: 0.021901297 | AG47: 167.6312944 | AH47: 66.45380097 | AI47: 39.88786057 | AJ47: 62.87128943 | AK47: 7.488037797 | AL47: 95.67686353 | AM47: 0.5003140693 | AN47: 2.301982772 | AO47: 20
A48: B63A | B48: Dementia and Other Chronic Disturbances of Cerebral Function, Major Complexity | C48: 3.821001382 | D48: 7411 | E48: 14.35177439 | F48: 23840.6827 | G48: 17532.4596 | H48: 6308.223099 | I48: 3153.437553 | J48: 180.1665753 | K48: 7598.349682 | L48: 511.6831876 | M48: 706.8298071 | N48: 1513.172421 | O48: 362.4571313 | P48: 50.89474892 | Q48: 281.7413984 | R48: 43.16993214 | S48: 1136.108972 | T48: 349.1164223 | U48: 484.7615741 | V48: 46.87263569 | W48: 105.6373784 | X48: 38.37073315 | Y48: 16.60234283 | Z48: 3.423683191 | AA48: 1030.85953 | AB48: 1453.101527 | AC48: 6.682828131 | AD48: 1.338034307 | AE48: 2.182217188 | AF48: 0.5582191185 | AG48: 1629.175546 | AH48: 599.6413162 | AI48: 872.4048076 | AJ48: 671.5097842 | AK48: 62.74477905 | AL48: 819.2704701 | AM48: 82.4840503 | AN48: 25.9334092 | AO48: 248
A49: B63B | B49: Dementia and Other Chronic Disturbances of Cerebral Function, Minor Complexity | C49: 1.746424688 | D49: 7653 | E49: 6.627205018 | F49: 10896.60868 | G49: 8032.565218 | H49: 2864.043462 | I49: 1506.122956 | J49: 81.38047705 | K49: 3451.399854 | L49: 251.3222244 | M49: 348.8707466 | N49: 707.010716 | O49: 138.4659521 | P49: 22.15309165 | Q49: 105.1119669 | R49: 17.27541556 | S49: 514.7583594 | T49: 158.0180497 | U49: 213.9039739 | V49: 23.46057508 | W49: 25.09033765 | X49: 8.601540936 | Y49: 3.95346739 | Z49: 0.8715775288 | AA49: 481.5356512 | AB49: 660.817982 | AC49: 0.6111450061 | AD49: 0.2159966143 | AE49: 2.310522561 | AF49: 0.2490048231 | AG49: 747.4832714 | AH49: 282.1728278 | AI49: 393.1643762 | AJ49: 296.1919118 | AK49: 38.55198939 | AL49: 340.5844504 | AM49: 61.2306484 | AN49: 13.71762112 | AO49: 292
A50: B64A | B50: Delirium, Major Complexity | C50: 2.89189713 | D50: 8806 | E50: 10.19305019 | F50: 18043.64746 | G50: 13397.68286 | H50: 4645.964596 | I50: 2380.602663 | J50: 135.9545195 | K50: 5153.606202 | L50: 360.5099102 | M50: 520.5610597 | N50: 1147.939999 | O50: 469.214193 | P50: 57.00758215 | Q50: 356.1114993 | R50: 51.70515804 | S50: 949.3306971 | T50: 289.3691744 | U50: 511.2030265 | V50: 44.52093843 | W50: 283.0584027 | X50: 72.76962214 | Y50: 25.71111584 | Z50: 5.340087499 | AA50: 625.2484658 | AB50: 1003.925439 | AC50: 14.47415504 | AD50: 1.648994503 | AE50: 3.337657791 | AF50: 0.4534094388 | AG50: 1256.692508 | AH50: 453.1163764 | AI50: 713.2489902 | AJ50: 434.316804 | AK50: 50.12899883 | AL50: 565.4647946 | AM50: 85.15322729 | AN50: 21.92178725 | AO50: 245
A51: B64B | B51: Delirium, Minor Complexity | C51: 1.126951166 | D51: 8233 | E51: 4.04639864 | F51: 7031.477476 | G51: 5236.637263 | H51: 1794.840213 | I51: 988.8795805 | J51: 48.61514774 | K51: 1996.979872 | L51: 148.8821639 | M51: 231.757578 | N51: 445.3307223 | O51: 160.3505991 | P51: 23.03758696 | Q51: 160.6944219 | R51: 24.17299545 | S51: 364.5471922 | T51: 110.2093682 | U51: 202.2814592 | V51: 19.82866794 | W51: 42.35196613 | X51: 11.83509926 | Y51: 6.71821947 | Z51: 1.624297482 | AA51: 240.4550996 | AB51: 400.5906999 | AC51: 5.869309664 | AD51: 0.8239533017 | AE51: 1.379520529 | AF51: 0.1664105406 | AG51: 503.2224892 | AH51: 184.1860696 | AI51: 252.2144691 | AJ51: 166.4709076 | AK51: 26.29729384 | AL51: 200.7054758 | AM51: 52.63819335 | AN51: 8.360646959 | AO51: 298
A52: B65Z | B52: Cerebral Palsy | C52: 0.6123471604 | D52: 1367 | E52: 1.287490856 | F52: 3820.667122 | G52: 2785.291358 | H52: 1035.375764 | I52: 490.9946102 | J52: 28.04801747 | K52: 518.7235741 | L52: 48.34211174 | M52: 116.1347184 | N52: 169.3104621 | O52: 30.14533577 | P52: 6.015568528 | Q52: 129.8820149 | R52: 25.3124917 | S52: 193.4670385 | T52: 48.95481182 | U52: 351.0372467 | V52: 39.97720431 | W52: 22.62455819 | X52: 2.868581527 | Y52: 471.0632433 | Z52: 157.1433421 | AA52: 77.49572071 | AB52: 178.00546 | AC52: 1.442577615 | AD52: 0.5309223848 | AE52: 4.397629748 | AF52: 0.2534776591 | AG52: 240.9714006 | AH52: 93.95839575 | AI52: 88.37864221 | AJ52: 58.29554096 | AK52: 45.53355642 | AL52: 176.8695485 | AM52: 2.99949059 | AN52: 1.489827018 | AO52: 60
A53: B66A | B53: Nervous System Neoplastic Disorders, Major Complexity | C53: 3.285702388 | D53: 2332 | E53: 9.574185249 | F53: 20500.74843 | G53: 15329.78371 | H53: 5170.96471 | I53: 2439.091212 | J53: 140.2702816 | K53: 5256.397582 | L53: 348.4904272 | M53: 538.7595263 | N53: 1195.09028 | O53: 508.2083416 | P53: 75.36008343 | Q53: 606.0607153 | R53: 103.1959355 | S53: 1242.977829 | T53: 338.47879 | U53: 1147.459756 | V53: 72.26819342 | W53: 297.8031805 | X53: 76.33499808 | Y53: 94.77521265 | Z53: 23.28237672 | AA53: 723.885389 | AB53: 1174.175244 | AC53: 177.7464762 | AD53: 35.35103228 | AE53: 13.1385758 | AF53: 0.3900857963 | AG53: 1364.384164 | AH53: 463.6312315 | AI53: 674.0854108 | AJ53: 390.8879049 | AK53: 120.628716 | AL53: 714.2174353 | AM53: 124.3816276 | AN53: 19.54041076 | AO53: 180
A54: B66B | B54: Nervous System Neoplastic Disorders, Minor Complexity | C54: 1.253813099 | D54: 4550 | E54: 3.45032967 | F54: 7823.017389 | G54: 5884.394732 | H54: 1938.622657 | I54: 924.2805207 | J54: 44.45938269 | K54: 1730.474324 | L54: 123.3235522 | M54: 232.8043933 | N54: 409.0242585 | O54: 148.9718774 | P54: 26.3905752 | Q54: 540.1458353 | R54: 94.15662849 | S54: 338.1865459 | T54: 100.1438921 | U54: 390.6698761 | V54: 33.56226989 | W54: 47.90094886 | X54: 12.01863771 | Y54: 237.0564015 | Z54: 64.61043136 | AA54: 253.1494482 | AB54: 422.8675113 | AC54: 62.15975956 | AD54: 22.27738851 | AE54: 11.54270416 | AF54: 0.1784422134 | AG54: 525.5740309 | AH54: 177.9303427 | AI54: 200.4005402 | AJ54: 142.707997 | AK54: 55.91112622 | AL54: 256.4176529 | AM54: 185.1663996 | AN54: 8.553694534 | AO54: 232
A55: B67A | B55: Degenerative Nervous System Disorders, Major Complexity | C55: 4.184252674 | D55: 2234 | E55: 13.06087735 | F55: 26107.14584 | G55: 19575.74884 | H55: 6531.396995 | I55: 3358.62361 | J55: 166.6935377 | K55: 6866.944132 | L55: 484.1272583 | M55: 700.1277928 | N55: 1485.327514 | O55: 695.9551258 | P55: 69.88004301 | Q55: 535.5883531 | R55: 80.13620951 | S55: 1585.230012 | T55: 437.8163238 | U55: 1196.585949 | V55: 95.67848211 | W55: 748.1104127 | X55: 177.2323687 | Y55: 113.4010239 | Z55: 24.63215499 | AA55: 917.4870119 | AB55: 1360.835068 | AC55: 54.4564397 | AD55: 13.73023468 | AE55: 16.89483853 | AF55: 0.3229216549 | AG55: 1730.348934 | AH55: 603.3114111 | AI55: 855.880847 | AJ55: 593.733037 | AK55: 87.9188227 | AL55: 913.4772155 | AM55: 112.1955373 | AN55: 24.46321464 | AO55: 194
A56: B67B | B56: Degenerative Nervous System Disorders, Intermediate Complexity | C56: 3.412675382 | D56: 4637 | E56: 4.503558335 | F56: 21292.98129 | G56: 18037.68324 | H56: 3255.298048 | I56: 1212.04874 | J56: 54.76058945 | K56: 2215.920409 | L56: 161.3943224 | M56: 279.4477899 | N56: 493.64541 | O56: 353.7971081 | P56: 29.14860004 | Q56: 263.8770949 | R56: 43.410886 | S56: 511.2340324 | T56: 141.6130525 | U56: 11590.9589 | V56: 873.3971162 | W56: 102.3596536 | X56: 24.08146551 | Y56: 100.631895 | Z56: 24.61265659 | AA56: 321.3716873 | AB56: 468.2920296 | AC56: 31.26129063 | AD56: 7.041202959 | AE56: 23.06867241 | AF56: 0.4453294119 | AG56: 654.7142366 | AH56: 262.2453461 | AI56: 250.3161999 | AJ56: 239.9340246 | AK56: 40.29408312 | AL56: 421.9430447 | AM56: 86.38144594 | AN56: 9.332971836 | AO56: 253
A57: B67C | B57: Degenerative Nervous System Disorders, Minor Complexity | C57: 0.4371356433 | D57: 13714 | E57: 1.270745224 | F57: 2727.455744 | G57: 2272.219946 | H57: 455.235798 | I57: 289.726066 | J57: 13.65532386 | K57: 348.4489807 | L57: 32.61306117 | M57: 74.03501173 | N57: 105.165813 | O57: 1012.53431 | P57: 20.90410222 | Q57: 37.06527134 | R57: 5.945490837 | S57: 68.19007691 | T57: 20.70151142 | U57: 72.55174482 | V57: 6.195820302 | W57: 9.810199975 | X57: 2.767928461 | Y57: 88.42941949 | Z57: 25.10826085 | AA57: 86.51552538 | AB57: 87.81650771 | AC57: 9.139466834 | AD57: 5.631053124 | AE57: 1.798859132 | AF57: 0.0408025416 | AG57: 122.5103736 | AH57: 42.02508084 | AI57: 35.02692372 | AJ57: 29.55014828 | AK57: 10.43428978 | AL57: 55.26559443 | AM57: 6.003427009 | AN57: 1.849298931 | AO57: 233
A58: B68A | B58: Multiple Sclerosis and Cerebellar Ataxia, Major Complexity | C58: 1.397457524 | D58: 2618 | E58: 3.711229947 | F58: 8719.269656 | G58: 6878.412528 | H58: 1840.857128 | I58: 1039.018046 | J58: 48.53762823 | K58: 1882.780987 | L58: 124.8237638 | M58: 248.366656 | N58: 405.2494845 | O58: 662.548897 | P58: 40.19176646 | Q58: 314.0196831 | R58: 47.37490121 | S58: 372.0856958 | T58: 90.7746183 | U58: 1064.518717 | V58: 49.00882535 | W58: 83.66444452 | X58: 18.51978942 | Y58: 86.5153057 | Z58: 22.82850591 | AA58: 270.8971115 | AB58: 378.5122452 | AC58: 8.764982193 | AD58: 4.487662529 | AE58: 7.945231089 | AF58: 0.1975658254 | AG58: 559.0521874 | AH58: 176.4494274 | AI58: 212.7276669 | AJ58: 170.5370573 | AK58: 35.8613958 | AL58: 257.7537535 | AM58: 29.64552089 | AN58: 5.610133129 | AO58: 158
A59: B68B | B59: Multiple Sclerosis and Cerebellar Ataxia, Minor Complexity | C59: 0.6101114252 | D59: 26903 | E59: 1.048990819 | F59: 3806.717518 | G59: 3462.444584 | H59: 344.2729338 | I59: 201.1585316 | J59: 7.218976874 | K59: 179.3544959 | L59: 15.18649706 | M59: 56.89310273 | N59: 63.46716697 | O59: 39.85003931 | P59: 2.797427825 | Q59: 28.13014229 | R59: 5.136487943 | S59: 27.39805427 | T59: 9.227398741 | U59: 2697.27166 | V59: 79.59863624 | W59: 0.364563007 | X59: 0.0644558189 | Y59: 37.07980096 | Z59: 10.99158315 | AA59: 42.31769058 | AB59: 52.77602675 | AC59: 5.19246912 | AD59: 4.145014618 | AE59: 0.9444850721 | AF59: 0.0292024546 | AG59: 117.7354664 | AH59: 38.47293917 | AI59: 20.77343902 | AJ59: 25.23059995 | AK59: 6.377810016 | AL59: 29.16248215 | AM59: 1.602833898 | AN59: 0.7680380778 | AO59: 187
A60: B69A | B60: TIA and Precerebral Occlusion, Major Complexity | C60: 1.544637124 | D60: 1847 | E60: 4.917704386 | F60: 9637.57923 | G60: 7257.486023 | H60: 2380.093207 | I60: 1307.724094 | J60: 62.51685383 | K60: 2476.029488 | L60: 170.9307002 | M60: 290.7916434 | N60: 582.9101182 | O60: 232.2614974 | P60: 31.59405282 | Q60: 488.4622845 | R60: 71.25444835 | S60: 650.907538 | T60: 187.6598876 | U60: 260.8033791 | V60: 25.40401223 | W60: 209.4097378 | X60: 62.23444232 | Y60: 26.77605788 | Z60: 6.041310709 | AA60: 285.4240925 | AB60: 477.4029814 | AC60: 13.04757649 | AD60: 2.481237808 | AE60: 8.366605966 | AF60: 0.286357987 | AG60: 624.5939031 | AH60: 227.9974163 | AI60: 257.3941446 | AJ60: 150.6524037 | AK60: 44.28335377 | AL60: 308.3712668 | AM60: 81.21062647 | AN60: 12.35571654 | AO60: 174
A61: B69B | B61: TIA and Precerebral Occlusion, Minor Complexity | C61: 0.5237275422 | D61: 9378 | E61: 1.77831094 | F61: 3267.735576 | G61: 2490.089392 | H61: 777.646184 | I61: 497.1934313 | J61: 21.55255802 | K61: 717.8038217 | L61: 51.70951903 | M61: 109.7208641 | N61: 184.8162777 | O61: 70.74546307 | P61: 11.62376587 | Q61: 280.0347018 | R61: 39.630873 | S61: 219.7777886 | T61: 64.79317758 | U61: 75.35193718 | V61: 9.480023192 | W61: 42.93097167 | X61: 12.53116954 | Y61: 10.81980188 | Z61: 2.538480626 | AA61: 107.2545408 | AB61: 155.4036165 | AC61: 8.612939554 | AD61: 1.743718823 | AE61: 8.922926954 | AF61: 0.0903652443 | AG61: 208.0282261 | AH61: 76.99778924 | AI61: 77.39199511 | AJ61: 43.93513163 | AK61: 23.50108609 | AL61: 96.48896845 | AM61: 31.99889614 | AN61: 4.310749683 | AO61: 258
A62: B70A | B62: Stroke and Other Cerebrovascular Disorders, Major Complexity | C62: 4.934106662 | D62: 5882 | E62: 14.81230874 | F62: 30785.77042 | G62: 23121.44986 | H62: 7664.320561 | I62: 3589.866481 | J62: 185.7481899 | K62: 8115.068763 | L62: 520.959967 | M62: 769.0550928 | N62: 1682.675145 | O62: 702.3111044 | P62: 70.71623698 | Q62: 1013.240198 | R62: 143.6095444 | S62: 2493.249003 | T62: 676.8555284 | U62: 735.7083362 | V62: 62.99303541 | W62: 1224.029056 | X62: 291.670507 | Y62: 95.24714482 | Z62: 20.81907401 | AA62: 953.1643004 | AB62: 1506.259015 | AC62: 55.90438602 | AD62: 11.32211005 | AE62: 47.05509104 | AF62: 1.022010791 | AG62: 2073.697732 | AH62: 722.0188932 | AI62: 1005.30471 | AJ62: 659.7022854 | AK62: 105.5859908 | AL62: 1073.584827 | AM62: 142.9624673 | AN62: 34.36419262 | AO62: 185
A63: B70B | B63: Stroke and Other Cerebrovascular Disorders, Intermediate Complexity | C63: 2.38785619 | D63: 9077 | E63: 7.14894789 | F63: 14898.74409 | G63: 11208.82676 | H63: 3689.917332 | I63: 1851.871128 | J63: 91.39544378 | K63: 3790.271892 | L63: 257.321394 | M63: 410.1536252 | N63: 801.1477091 | O63: 294.142227 | P63: 36.30271606 | Q63: 584.678464 | R63: 83.81933547 | S63: 1255.367005 | T63: 340.3480203 | U63: 352.1833151 | V63: 33.69754788 | W63: 515.5257465 | X63: 124.774862 | Y63: 36.52231537 | Z63: 7.468015012 | AA63: 423.6287205 | AB63: 726.1026189 | AC63: 25.50820541 | AD63: 4.62886629 | AE63: 27.54937044 | AF63: 0.3931229408 | AG63: 1052.865259 | AH63: 358.6832372 | AI63: 443.984292 | AJ63: 306.6272393 | AK63: 57.74926775 | AL63: 500.0941389 | AM63: 86.82592612 | AN63: 17.11306458 | AO63: 226
A64: B70C | B64: Stroke and Other Cerebrovascular Disorders, Minor Complexity | C64: 1.25430144 | D64: 14821 | E64: 3.696174347 | F64: 7826.064337 | G64: 5946.43775 | H64: 1879.626587 | I64: 1030.836862 | J64: 45.80628117 | K64: 1822.995253 | L64: 127.0144488 | M64: 225.8719387 | N64: 404.7285132 | O64: 148.7978928 | P64: 21.63502289 | Q64: 423.3551122 | R64: 59.05500413 | S64: 618.5028929 | T64: 165.5002206 | U64: 198.3065959 | V64: 19.57733795 | W64: 237.7626911 | X64: 57.2509284 | Y64: 34.88392149 | Z64: 8.549713305 | AA64: 235.1712253 | AB64: 374.8389547 | AC64: 33.32180067 | AD64: 6.105397399 | AE64: 49.21710567 | AF64: 0.2197397811 | AG64: 574.8432756 | AH64: 190.8499346 | AI64: 227.575324 | AJ64: 146.3403924 | AK64: 35.69723567 | AL64: 243.8296869 | AM64: 49.2986237 | AN64: 8.325010718 | AO64: 267
A65: B70D | B65: Stroke and Other Cerebrovascular Disorders, Transferred < 5 Days | C65: 0.8587050352 | D65: 3177 | E65: 1.926660371 | F65: 5357.787718 | G65: 4206.589724 | H65: 1151.197993 | I65: 664.5000904 | J65: 28.99632315 | K65: 912.1584988 | L65: 63.6811093 | M65: 205.0215331 | N65: 235.0062885 | O65: 108.5868781 | P65: 22.9848718 | Q65: 374.1005001 | R65: 50.10131501 | S65: 391.9658464 | T65: 99.52991294 | U65: 99.54735294 | V65: 9.920777688 | W65: 193.7106996 | X65: 48.37514261 | Y65: 27.70899314 | Z65: 6.054282064 | AA65: 153.8384138 | AB65: 222.0377818 | AC65: 10.60575995 | AD65: 2.310536244 | AE65: 46.70184745 | AF65: 0.0791403069 | AG65: 329.6849769 | AH65: 105.1212893 | AI65: 120.4479348 | AJ65: 76.87538428 | AK65: 41.47267441 | AL65: 174.2230097 | AM65: 526.5377246 | AN65: 5.900828557 | AO65: 249
A66: B71A | B66: Cranial and Peripheral Nerve Disorders, Major Complexity | C66: 2.325323966 | D66: 3904 | E66: 6.936731557 | F66: 14508.58173 | G66: 11054.90991 | H66: 3453.67182 | I66: 1955.354101 | J66: 93.3750231 | K66: 3534.227211 | L66: 255.8198388 | M66: 408.6103396 | N66: 809.2983646 | O66: 1063.372092 | P66: 63.02790993 | Q66: 455.2111323 | R66: 67.14105904 | S66: 740.03617 | T66: 202.856491 | U66: 424.7475849 | V66: 34.08510056 | W66: 381.7825683 | X66: 89.41503894 | Y66: 70.09931292 | Z66: 15.69755298 | AA66: 480.2523021 | AB66: 725.2661511 | AC66: 16.62989288 | AD66: 2.53851038 | AE66: 12.24099818 | AF66: 0.2884545038 | AG66: 943.7721089 | AH66: 323.9958035 | AI66: 422.7892378 | AJ66: 277.4783537 | AK66: 53.64012492 | AL66: 479.9580436 | AM66: 92.14473584 | AN66: 13.43012429 | AO66: 232
A67: B71B | B67: Cranial and Peripheral Nerve Disorders, Minor Complexity | C67: 0.4592112654 | D67: 25222 | E67: 1.29617001 | F67: 2865.193957 | G67: 2408.191783 | H67: 457.0021736 | I67: 315.165783 | J67: 14.3128985 | K67: 351.6074518 | L67: 29.90704545 | M67: 75.05454468 | N67: 106.2098816 | O67: 1120.968423 | P67: 24.81412983 | Q67: 59.13185366 | R67: 8.988785521 | S67: 58.69880714 | T67: 17.43649617 | U67: 60.5415819 | V67: 4.829886605 | W67: 7.531441891 | X67: 1.976352321 | Y67: 85.18572769 | Z67: 22.10137939 | AA67: 70.79835765 | AB67: 87.17317363 | AC67: 13.16600965 | AD67: 7.405608418 | AE67: 1.924032882 | AF67: 0.0465239716 | AG67: 129.6319305 | AH67: 44.04593473 | AI67: 37.47833102 | AJ67: 29.50927818 | AK67: 11.41772974 | AL67: 56.12881518 | AM67: 9.889777176 | AN67: 2.115984078 | AO67: 283
A68: B72A | B68: Nervous System Infection Excluding Viral Meningitis, Major Complexity | C68: 4.092090842 | D68: 2090 | E68: 11.15263158 | F68: 25532.11307 | G68: 19542.18761 | H68: 5989.925458 | I68: 3371.948896 | J68: 154.7696047 | K68: 5840.229037 | L68: 402.0679472 | M68: 591.7927638 | N68: 1284.443209 | O68: 1143.862339 | P68: 108.0875103 | Q68: 799.7856387 | R68: 121.4845361 | S68: 878.3778593 | T68: 249.1051168 | U68: 1838.071749 | V68: 156.4749964 | W68: 1345.660002 | X68: 307.21683 | Y68: 270.3318695 | Z68: 59.57778618 | AA68: 763.9790109 | AB68: 1219.864147 | AC68: 27.54545431 | AD68: 5.696182911 | AE68: 28.04119412 | AF68: 0.5799517091 | AG68: 1649.291952 | AH68: 541.7253996 | AI68: 692.7149988 | AJ68: 492.6666907 | AK68: 113.3149513 | AL68: 860.6912968 | AM68: 187.239893 | AN68: 25.47425371 | AO68: 199
A69: B72B | B69: Nervous System Infection Excluding Viral Meningitis, Minor Complexity | C69: 0.8851250195 | D69: 2618 | E69: 2.66539343 | F69: 5522.632061 | G69: 4393.076478 | H69: 1129.555584 | I69: 771.1363859 | J69: 30.83397783 | K69: 1101.53559 | L69: 77.68713065 | M69: 156.181031 | N69: 272.0083214 | O69: 990.2519854 | P69: 38.4195036 | Q69: 138.2943225 | R69: 20.67019221 | S69: 131.7798913 | T69: 37.14005845 | U69: 269.2988668 | V69: 26.09768601 | W69: 63.33920043 | X69: 14.9105262 | Y69: 75.63408223 | Z69: 21.22100001 | AA69: 157.2364274 | AB69: 233.3046307 | AC69: 12.7175862 | AD69: 9.762633682 | AE69: 2.187313907 | AF69: 0.1438194034 | AG69: 325.1243349 | AH69: 110.2586749 | AI69: 104.9184828 | AJ69: 83.01307289 | AK69: 22.66692953 | AL69: 148.680838 | AM69: 70.77404756 | AN69: 5.403517712 | AO69: 204
A70: B73A | B70: Viral Meningitis, Major Complexity | C70: 2.06029447 | D70: 198 | E70: 5.868686869 | F70: 12854.96178 | G70: 9746.845244 | H70: 3108.116532 | I70: 2046.544896 | J70: 92.9960611 | K70: 3412.82802 | L70: 238.0908898 | M70: 281.9668292 | N70: 756.5079812 | O70: 471.54749 | P70: 66.04108044 | Q70: 452.1724223 | R70: 72.3050798 | S70: 176.3380677 | T70: 77.94905034 | U70: 699.703916 | V70: 67.31070769 | W70: 434.844721 | X70: 101.5537809 | Y70: 84.52495646 | Z70: 20.07929581 | AA70: 350.5519678 | AB70: 672.7871262 | AC70: 4.722636869 | AD70: 0.9541092323 | AE70: 4.573458561 | AF70: 0.4382714899 | AG70: 910.3784464 | AH70: 283.7455629 | AI70: 326.615055 | AJ70: 225.4524588 | AK70: 62.44229051 | AL70: 416.8845596 | AM70: 27.09007116 | AN70: 15.02051699 | AO70: 84
A71: B73B | B71: Viral Meningitis, Minor Complexity | C71: 0.8977531093 | D71: 1053 | E71: 2.678062678 | F71: 5601.423522 | G71: 4212.63995 | H71: 1388.783573 | I71: 1023.599462 | J71: 42.05570692 | K71: 1544.2437 | L71: 115.8987334 | M71: 145.8212565 | N71: 362.5649196 | O71: 221.174185 | P71: 31.06680966 | Q71: 156.4277652 | R71: 22.98278207 | S71: 81.34332987 | T71: 34.10448053 | U71: 202.6636355 | V71: 17.6030812 | W71: 73.33233098 | X71: 18.50761461 | Y71: 47.9388389 | Z71: 9.603821798 | AA71: 150.4558512 | AB71: 315.2243056 | AC71: 1.453418234 | AD71: 0.2265688509 | AE71: 1.643603267 | AF71: 0.1685525859 | AG71: 388.3357509 | AH71: 134.2438991 | AI71: 129.5224394 | AJ71: 96.27286087 | AK71: 28.01850686 | AL71: 181.2137395 | AM71: 16.66587511 | AN71: 7.045696351 | AO71: 141
A72: B74A | B72: Nontraumatic Stupor and Coma, Major Complexity | C72: 2.147593985 | D72: 746 | E72: 6.167560322 | F72: 13399.6567 | G72: 10108.71444 | H72: 3290.942258 | I72: 1612.223922 | J72: 75.82933881 | K72: 3097.857468 | L72: 217.1276405 | M72: 326.2109426 | N72: 667.3321291 | O72: 367.3685087 | P72: 37.22745609 | Q72: 309.4907604 | R72: 47.14354751 | S72: 631.4735524 | T72: 188.3464455 | U72: 448.3017253 | V72: 32.14122304 | W72: 1415.926352 | X72: 326.0842779 | Y72: 48.22906061 | Z72: 10.86530151 | AA72: 334.0057443 | AB72: 600.1962145 | AC72: 26.9573101 | AD72: 3.250288844 | AE72: 4.758386027 | AF72: 0.0802293311 | AG72: 1018.614326 | AH72: 332.0145344 | AI72: 337.2197349 | AJ72: 258.2421997 | AK72: 53.98607886 | AL72: 483.4933648 | AM72: 76.0905693 | AN72: 11.56806607 | AO72: 159
A73: B74B | B73: Nontraumatic Stupor and Coma, Minor Complexity | C73: 0.4870339517 | D73: 2135 | E73: 1.626697892 | F73: 3038.790292 | G73: 2325.891808 | H73: 712.8984836 | I73: 458.9858662 | J73: 19.53077743 | K73: 631.8683652 | L73: 49.31532059 | M73: 122.6990944 | N73: 159.5419442 | O73: 85.07494123 | P73: 9.125987036 | Q73: 89.50797804 | R73: 13.83439862 | S73: 102.5971063 | T73: 30.97997554 | U73: 76.08515433 | V73: 7.955337396 | W73: 260.395405 | X73: 58.6876732 | Y73: 4.924172859 | Z73: 1.327430832 | AA73: 80.11194254 | AB73: 138.7278672 | AC73: 52.8064219 | AD73: 17.26204437 | AE73: 6.895064138 | AF73: 0.0839220375 | AG73: 222.4036457 | AH73: 73.22402595 | AI73: 65.07561801 | AJ73: 44.84346808 | AK73: 16.48411523 | AL73: 85.32813222 | AM73: 49.97691732 | AN73: 3.130178879 | AO73: 206
A74: B75Z | B74: Febrile Convulsions | C74: 0.4072210163 | D74: 2049 | E74: 1.280136652 | F74: 2540.806994 | G74: 1902.169196 | H74: 638.6377985 | I74: 572.2073237 | J74: 21.30815688 | K74: 660.1284561 | L74: 49.31179629 | M74: 63.96410496 | N74: 164.2516747 | O74: 76.75228139 | P74: 16.29365267 | Q74: 45.33126909 | R74: 8.741534143 | S74: 36.34411727 | T74: 15.913061 | U74: 33.49147777 | V74: 4.13367618 | W74: 54.77333621 | X74: 9.511945926 | Y74: 33.83460324 | Z74: 8.43769459 | AA74: 67.34001529 | AB74: 153.4111708 | AC74: 0 | AD74: 0 | AE74: 0.1845221181 | AF74: 0.0898637779 | AG74: 185.1546177 | AH74: 60.2823947 | AI74: 49.63168503 | AJ74: 40.96643982 | AK74: 15.27758255 | AL74: 82.83164314 | AM74: 7.753803269 | AN74: 3.153093997 | AO74: 149
A75: B76A | B75: Seizures, Major Complexity | C75: 1.727421814 | D75: 10788 | E75: 4.54579162 | F75: 10778.04252 | G75: 8162.402936 | H75: 2615.639582 | I75: 1514.039632 | J75: 68.77408252 | K75: 2514.039296 | L75: 167.8368907 | M75: 294.9505871 | N75: 550.0777035 | O75: 284.7290638 | P75: 38.19266047 | Q75: 289.7850717 | R75: 44.515884 | S75: 492.4223747 | T75: 126.4228928 | U75: 340.7022462 | V75: 32.06418037 | W75: 917.8473406 | X75: 210.5796958 | Y75: 62.29443485 | Z75: 15.09423775 | AA75: 283.2412298 | AB75: 526.9954911 | AC75: 17.98530679 | AD75: 3.024443391 | AE75: 7.410583362 | AF75: 0.27632279 | AG75: 762.6947823 | AH75: 240.630983 | AI75: 263.782592 | AJ75: 196.1412463 | AK75: 54.47961158 | AL75: 385.1428577 | AM75: 61.99878274 | AN75: 9.87001014 | AO75: 254
A76: B76B | B76: Seizures, Minor Complexity | C76: 0.4514989408 | D76: 21430 | E76: 1.481287914 | F76: 2817.073827 | G76: 2135.415473 | H76: 681.658354 | I76: 505.2747611 | J76: 20.75222542 | K76: 633.2889566 | L76: 47.45088698 | M76: 94.41897793 | N76: 161.2487624 | O76: 89.391991 | P76: 13.49799138 | Q76: 148.5848831 | R76: 24.52971059 | S76: 88.65423751 | T76: 24.22155522 | U76: 71.85394504 | V76: 7.904937468 | W76: 64.68983662 | X76: 15.32781152 | Y76: 46.25745665 | Z76: 12.02967228 | AA76: 78.99886802 | AB76: 150.4244369 | AC76: 7.880390984 | AD76: 2.27121166 | AE76: 3.41821759 | AF76: 0.072579969 | AG76: 195.5924528 | AH76: 63.66224017 | AI76: 62.34856909 | AJ76: 45.46586071 | AK76: 21.54555275 | AL76: 89.89928618 | AM76: 23.21637602 | AN76: 2.899185131 | AO76: 285
A77: B77A | B77: Headaches, Major Complexity | C77: 0.7515929851 | D77: 6265 | E77: 2.565203512 | F77: 4689.474848 | G77: 3544.038788 | H77: 1145.43606 | I77: 752.180139 | J77: 32.40480324 | K77: 1158.561101 | L77: 83.88823118 | M77: 161.2087636 | N77: 293.7236212 | O77: 127.0329567 | P77: 15.45647265 | Q77: 263.9211044 | R77: 36.60637955 | S77: 157.9537015 | T77: 47.34398033 | U77: 181.9503181 | V77: 13.89208453 | W77: 31.74970102 | X77: 9.582073654 | Y77: 78.01715722 | Z77: 21.01165651 | AA77: 134.515241 | AB77: 255.0875628 | AC77: 4.084072428 | AD77: 0.9525902313 | AE77: 3.989301188 | AF77: 0.1049787694 | AG77: 331.562769 | AH77: 110.7527688 | AI77: 118.801287 | AJ77: 76.67752741 | AK77: 22.94511841 | AL77: 143.0703674 | AM77: 15.56605706 | AN77: 4.880961249 | AO77: 241
A78: B77B | B78: Headaches, Minor Complexity | C78: 0.2456893143 | D78: 27049 | E78: 1.213057784 | F78: 1532.949193 | G78: 1171.225961 | H78: 361.7232312 | I78: 280.4882838 | J78: 10.70140273 | K78: 328.6888027 | L78: 25.18501451 | M78: 56.47778509 | N78: 90.5503171 | O78: 36.46625741 | P78: 6.194143402 | Q78: 134.7617494 | R78: 20.10025791 | S78: 39.53704547 | T78: 12.4585797 | U78: 37.63627777 | V78: 3.521559507 | W78: 4.734744377 | X78: 1.574477012 | Y78: 36.84198793 | Z78: 8.501826264 | AA78: 50.75832191 | AB78: 78.74135211 | AC78: 1.958465739 | AD78: 0.3528175708 | AE78: 2.013529701 | AF78: 0.0370680549 | AG78: 107.934137 | AH78: 36.06260682 | AI78: 34.35752293 | AJ78: 22.18828337 | AK78: 12.40479992 | AL78: 43.99371547 | AM78: 6.166250271 | AN78: 1.559809635 | AO78: 279
A79: B78A | B79: Intracranial Injuries, Major Complexity | C79: 3.553888574 | D79: 3147 | E79: 10.87416587 | F79: 22174.06416 | G79: 16526.21393 | H79: 5647.850238 | I79: 2645.941863 | J79: 137.4453034 | K79: 6076.18213 | L79: 420.7203112 | M79: 528.7120203 | N79: 1233.880437 | O79: 520.0944136 | P79: 56.7406458 | Q79: 625.7457301 | R79: 95.76614325 | S79: 1377.880859 | T79: 380.9655224 | U79: 513.2508585 | V79: 46.06630033 | W79: 1045.4999 | X79: 245.2810986 | Y79: 58.84556837 | Z79: 13.05520828 | AA79: 687.4206891 | AB79: 1130.567022 | AC79: 16.85360173 | AD79: 3.220764653 | AE79: 18.2626896 | AF79: 0.3775336924 | AG79: 1538.292185 | AH79: 524.1882159 | AI79: 686.5311254 | AJ79: 492.4148572 | AK79: 82.11045257 | AL79: 840.1736843 | AM79: 104.5898402 | AN79: 26.98719019 | AO79: 189
A80: B78B | B80: Intracranial Injuries, Minor Complexity | C80: 1.017319707 | D80: 5819 | E80: 3.144526551 | F80: 6347.445057 | G80: 4771.958841 | H80: 1575.486215 | I80: 888.3443358 | J80: 40.63416763 | K80: 1670.398143 | L80: 119.6994281 | M80: 183.50523 | N80: 362.6759126 | O80: 112.8602116 | P80: 16.12532024 | Q80: 271.4304795 | R80: 41.86267027 | S80: 372.7621885 | T80: 109.9271639 | U80: 126.3841909 | V80: 13.63149374 | W80: 181.1808867 | X80: 42.29679432 | Y80: 34.05579617 | Z80: 7.157248971 | AA80: 202.6112994 | AB80: 327.4139126 | AC80: 3.434465943 | AD80: 0.638691717 | AE80: 10.88264497 | AF80: 0.1237126001 | AG80: 445.4688295 | AH80: 148.1638008 | AI80: 174.6546318 | AJ80: 126.9328357 | AK80: 29.88047232 | AL80: 210.6094759 | AM80: 64.10503592 | AN80: 7.59358605 | AO80: 224
A81: B78C | B81: Intracranial Injuries, Transferred < 5 Days | C81: 0.626811604 | D81: 774 | E81: 1.591731266 | F81: 3910.916294 | G81: 3075.413845 | H81: 835.5024482 | I81: 496.5091072 | J81: 22.54254326 | K81: 784.7588289 | L81: 58.38126674 | M81: 169.1960784 | N81: 186.1149933 | O81: 103.377882 | P81: 14.76714085 | Q81: 223.9318112 | R81: 32.16112585 | S81: 176.2642499 | T81: 47.71654772 | U81: 60.15119584 | V81: 6.161436115 | W81: 183.0064849 | X81: 44.55081653 | Y81: 18.28655323 | Z81: 4.953989212 | AA81: 103.8530458 | AB81: 168.8030052 | AC81: 2.535938576 | AD81: 0.5784784096 | AE81: 3.08411812 | AF81: 0.0025130711 | AG81: 215.7223398 | AH81: 74.43728004 | AI81: 79.65221723 | AJ81: 61.20638194 | AK81: 22.60813398 | AL81: 107.538133 | AM81: 432.4758603 | AN81: 5.586796954 | AO81: 174
A82: B79A | B82: Skull Fractures, Major Complexity | C82: 1.561692761 | D82: 660 | E82: 4.374242424 | F82: 9743.995844 | G82: 7370.546944 | H82: 2373.4489 | I82: 1352.893311 | J82: 51.37087557 | K82: 2295.224469 | L82: 162.7132337 | M82: 261.1572105 | N82: 508.6728955 | O82: 190.2962131 | P82: 18.90273257 | Q82: 370.9138486 | R82: 61.7264081 | S82: 526.6211799 | T82: 150.6666176 | U82: 206.3126936 | V82: 22.54597637 | W82: 635.4732309 | X82: 150.1430308 | Y82: 91.79924979 | Z82: 19.44997548 | AA82: 286.5753478 | AB82: 492.9484389 | AC82: 7.246756911 | AD82: 1.506204749 | AE82: 11.03304043 | AF82: 0.2820953227 | AG82: 721.4932138 | AH82: 237.6214187 | AI82: 233.9997371 | AJ82: 183.6430655 | AK82: 47.06142868 | AL82: 302.1189302 | AM82: 132.4460131 | AN82: 9.137000958 | AO82: 137
A83: B79B | B83: Skull Fractures, Minor Complexity | C83: 0.5038912018 | D83: 1183 | E83: 1.477599324 | F83: 3143.969095 | G83: 2379.280358 | H83: 764.6887362 | I83: 555.3260514 | J83: 20.27638383 | K83: 699.7400697 | L83: 52.8331306 | M83: 94.13100775 | N83: 177.8481282 | O83: 44.69515395 | P83: 7.105734705 | Q83: 141.5719454 | R83: 21.52089418 | S83: 155.3145415 | T83: 44.86050644 | U83: 46.43848353 | V83: 5.807906134 | W83: 65.3862052 | X83: 13.45359456 | Y83: 106.8838428 | Z83: 27.32681041 | AA83: 87.583095 | AB83: 162.2991869 | AC83: 0.0935300178 | AD83: 0.0177236314 | AE83: 1.977182648 | AF83: 0.0676899865 | AG83: 223.4705251 | AH83: 69.79739143 | AI83: 66.24589791 | AJ83: 56.05238324 | AK83: 23.74954473 | AL83: 101.4906488 | AM83: 66.67328165 | AN83: 3.930623146 | AO83: 172
A84: B80A | B84: Other Head Injuries, Major Complexity | C84: 1.181293039 | D84: 3149 | E84: 4.29215624 | F84: 7370.53712 | G84: 5396.912515 | H84: 1973.624606 | I84: 1065.049775 | J84: 51.34351591 | K84: 1875.054678 | L84: 134.3902826 | M84: 243.6042545 | N84: 513.9019268 | O84: 184.0113514 | P84: 22.45141124 | Q84: 211.3585338 | R84: 29.98163512 | S84: 429.8211413 | T84: 123.9615046 | U84: 152.0604519 | V84: 16.19973351 | W84: 205.1051258 | X84: 57.02904474 | Y84: 27.57337165 | Z84: 3.682383295 | AA84: 254.9461383 | AB84: 414.3301857 | AC84: 5.75055434 | AD84: 1.526514372 | AE84: 4.12967657 | AF84: 0.1857094141 | AG84: 475.2377746 | AH84: 186.9717434 | AI84: 178.806475 | AJ84: 129.4001651 | AK84: 34.91566178 | AL84: 278.7505155 | AM84: 49.48755085 | AN84: 9.518334331 | AO84: 227
A85: B80B | B85: Other Head Injuries, Minor Complexity | C85: 0.2164997494 | D85: 19422 | E85: 1.127278344 | F85: 1350.824382 | G85: 1026.218344 | H85: 324.6060379 | I85: 264.281154 | J85: 10.45736207 | K85: 297.0501224 | L85: 22.0351908 | M85: 56.73969247 | N85: 83.31852367 | O85: 17.94551183 | P85: 3.382447779 | Q85: 95.16007108 | R85: 14.3081682 | S85: 71.38012956 | T85: 21.11095305 | U85: 18.87556264 | V85: 2.320471351 | W85: 13.57550082 | X85: 3.507514726 | Y85: 3.666026247 | Z85: 1.167108914 | AA85: 47.04483658 | AB85: 72.27036648 | AC85: 0.3985099426 | AD85: 0.1085557093 | AE85: 0.3742570481 | AF85: 0.0277026045 | AG85: 83.2058572 | AH85: 28.63971353 | AI85: 24.70024983 | AJ85: 18.48443128 | AK85: 15.56402723 | AL85: 41.89919857 | AM85: 16.25683527 | AN85: 1.56832917 | AO85: 286
A86: B81A | B86: Other Disorders of the Nervous System, Major Complexity | C86: 2.223432567 | D86: 10527 | E86: 7.138975967 | F86: 13872.84249 | G86: 10439.10165 | H86: 3433.740837 | I86: 1761.531887 | J86: 85.34887699 | K86: 3431.527652 | L86: 239.9320669 | M86: 388.1088063 | N86: 776.8607443 | O86: 411.3362216 | P86: 43.67613375 | Q86: 740.8342678 | R86: 122.6280958 | S86: 700.4243167 | T86: 202.0741878 | U86: 377.8044575 | V86: 32.97576015 | W86: 265.0786374 | X86: 61.31025502 | Y86: 171.8789001 | Z86: 41.78622461 | AA86: 554.7227636 | AB86: 713.8219849 | AC86: 32.48684354 | AD86: 4.609433725 | AE86: 84.72956317 | AF86: 0.3714761546 | AG86: 955.7069836 | AH86: 323.9616109 | AI86: 408.7547706 | AJ86: 313.9911619 | AK86: 64.74381589 | AL86: 454.8285668 | AM86: 89.4317672 | AN86: 15.5642576 | AO86: 257
A87: B81B | B87: Other Disorders of the Nervous System, Minor Complexity | C87: 0.7549690996 | D87: 16887 | E87: 2.71332978 | F87: 4710.539712 | G87: 3555.13673 | H87: 1155.402982 | I87: 668.494133 | J87: 28.35741112 | K87: 1122.129587 | L87: 87.31138856 | M87: 161.5806374 | N87: 273.7236026 | O87: 157.598383 | P87: 14.13513277 | Q87: 245.4366741 | R87: 39.80486464 | S87: 245.448176 | T87: 72.5750045 | U87: 115.3859866 | V87: 10.91505337 | W87: 25.45866328 | X87: 6.984019526 | Y87: 65.14486143 | Z87: 15.20385312 | AA87: 188.7250301 | AB87: 244.5126562 | AC87: 10.20233312 | AD87: 1.954572035 | AE87: 4.277372173 | AF87: 0.1450895378 | AG87: 334.2450582 | AH87: 116.2789111 | AI87: 127.4896429 | AJ87: 96.27107701 | AK87: 26.72019637 | AL87: 141.7740867 | AM87: 56.79999464 | AN87: 5.456259371 | AO87: 305
A88: B82A | B88: Chronic and Unspecified Paraplegia/Quadriplegia, Major Complexity | C88: 5.703365988 | D88: 499 | E88: 16.03807615 | F88: 35585.47229 | G88: 26476.11948 | H88: 9109.35281 | I88: 3686.007064 | J88: 191.9841983 | K88: 9422.749353 | L88: 618.0122721 | M88: 922.2237513 | N88: 1750.011564 | O88: 874.4703986 | P88: 120.3105939 | Q88: 682.5433827 | R88: 108.2810953 | S88: 1727.655777 | T88: 510.6087122 | U88: 1017.034635 | V88: 104.5251488 | W88: 3270.855197 | X88: 763.9469371 | Y88: 213.6739868 | Z88: 47.72580961 | AA88: 1078.137692 | AB88: 1691.615519 | AC88: 78.84214824 | AD88: 14.82967248 | AE88: 29.20414427 | AF88: -1.422580287 | AG88: 2169.715615 | AH88: 671.9432506 | AI88: 1002.779493 | AJ88: 793.2157958 | AK88: 150.272217 | AL88: 1681.205422 | AM88: 149.9546311 | AN88: 42.55939953 | AO88: 115
A89: B82B | B89: Chronic and Unspecified Paraplegia/Quadriplegia, Intermediate Complexity | C89: 2.399249663 | D89: 333 | E89: 7.54954955 | F89: 14969.8323 | G89: 11179.64334 | H89: 3790.188963 | I89: 1713.792399 | J89: 103.4835901 | K89: 4310.797073 | L89: 341.5453588 | M89: 552.3729741 | N89: 863.0871927 | O89: 285.3342535 | P89: 55.80036058 | Q89: 256.3255643 | R89: 40.55516024 | S89: 677.3396519 | T89: 184.0286282 | U89: 399.5817175 | V89: 39.68723521 | W89: 696.7462235 | X89: 163.151403 | Y89: 241.2104416 | Z89: 48.65656822 | AA89: 560.2431423 | AB89: 773.4376751 | AC89: 9.816287697 | AD89: 2.555893393 | AE89: 13.11989519 | AF89: 0.3815841081 | AG89: 871.2911007 | AH89: 292.4342025 | AI89: 437.9249438 | AJ89: 323.1020393 | AK89: 84.77733341 | AL89: 545.552015 | AM89: 68.97033918 | AN89: 12.73005647 | AO89: 110
A90: B82C | B90: Chronic and Unspecified Paraplegia/Quadriplegia, Minor Complexity | C90: 1.160492302 | D90: 423 | E90: 3.11820331 | F90: 7240.7534 | G90: 5596.195604 | H90: 1644.557796 | I90: 835.7439514 | J90: 43.59777421 | K90: 2040.434838 | L90: 110.0899582 | M90: 266.0694739 | N90: 335.0601972 | O90: 99.53267543 | P90: 28.75324013 | Q90: 124.7098604 | R90: 21.05741408 | S90: 260.7045887 | T90: 85.61147852 | U90: 298.6238141 | V90: 31.64230039 | W90: 128.0750729 | X90: 28.86128597 | Y90: 422.9757383 | Z90: 102.2960539 | AA90: 290.1840738 | AB90: 319.5487311 | AC90: 36.8811941 | AD90: 8.449856742 | AE90: 26.35879348 | AF90: -0.994875837 | AG90: 405.8744117 | AH90: 129.3246403 | AI90: 179.8613014 | AJ90: 105.7356653 | AK90: 114.6656627 | AL90: 290.15139 | AM90: 65.50015392 | AN90: 5.372685352 | AO90: 109
A91: B83A | B91: Acute Paraplegia and Quadriplegia and Spinal Cord Conditions, Major Complexity | C91: 5.655723424 | D91: 538 | E91: 15.55762082 | F91: 35288.2122 | G91: 26567.88133 | H91: 8720.330866 | I91: 3626.952811 | J91: 193.1464696 | K91: 9503.053053 | L91: 588.0245402 | M91: 963.6199125 | N91: 1753.593488 | O91: 914.71419 | P91: 121.5075053 | Q91: 983.9588874 | R91: 170.4039977 | S91: 2509.276679 | T91: 690.1427629 | U91: 1057.758565 | V91: 76.37285349 | W91: 1587.256655 | X91: 399.9835297 | Y91: 113.4609049 | Z91: 23.92561647 | AA91: 1132.073848 | AB91: 1745.668193 | AC91: 239.5548572 | AD91: 36.67021963 | AE91: 36.32800306 | AF91: -4.148448065 | AG91: 2390.985307 | AH91: 729.3000139 | AI91: 1148.477496 | AJ91: 748.6224907 | AK91: 176.9208331 | AL91: 1418.65189 | AM91: 183.4893292 | AN91: 28.46574262 | AO91: 100
A92: B83B | B92: Acute Paraplegia and Quadriplegia and Spinal Cord Conditions, Intermediate Complexity | C92: 2.502070394 | D92: 395 | E92: 6.762025316 | F92: 15611.37 | G92: 11665.99353 | H92: 3945.37647 | I92: 1696.152683 | J92: 93.85582788 | K92: 3995.059457 | L92: 271.4134362 | M92: 375.2787881 | N92: 795.6660963 | O92: 258.8580253 | P92: 41.78227703 | Q92: 556.4086723 | R92: 84.9793752 | S92: 930.2509664 | T92: 274.2154113 | U92: 474.0529036 | V92: 35.65710278 | W92: 384.4419118 | X92: 84.43951693 | Y92: 127.3059882 | Z92: 30.93513638 | AA92: 498.2692061 | AB92: 938.8258475 | AC92: 319.2311517 | AD92: 69.97108499 | AE92: 32.35277915 | AF92: 0.489303362 | AG92: 1172.379337 | AH92: 351.3414145 | AI92: 527.0038478 | AJ92: 322.6474706 | AK92: 87.49501441 | AL92: 538.8324968 | AM92: 231.4528002 | AN92: 10.32467219 | AO92: 113
A93: B83C | B93: Acute Paraplegia and Quadriplegia and Spinal Cord Conditions, Minor Complexity | C93: 1.212793404 | D93: 488 | E93: 3.379098361 | F93: 7567.079888 | G93: 5829.596257 | H93: 1737.483631 | I93: 978.5061619 | J93: 41.58802581 | K93: 1943.001771 | L93: 130.4840056 | M93: 273.3777027 | N93: 396.2770608 | O93: 118.1483898 | P93: 23.65099927 | Q93: 401.2464342 | R93: 72.41349313 | S93: 393.2595463 | T93: 94.37879173 | U93: 192.1019282 | V93: 15.57917918 | W93: 91.1670704 | X93: 21.67477379 | Y93: 97.07700657 | Z93: 24.18614907 | AA93: 223.3577455 | AB93: 389.2216084 | AC93: 188.9402701 | AD93: 27.05798792 | AE93: 15.30621874 | AF93: 0.3281518791 | AG93: 497.06194 | AH93: 163.8854069 | AI93: 225.6547022 | AJ93: 102.3091784 | AK93: 55.20851299 | AL93: 226.7117893 | AM93: 136.1808565 | AN93: 7.737029668 | AO93: 122
A94: C01Z | B94: Interventions for Penetrating Eye Injury | C94: 1.818868945 | D94: 414 | E94: 2.485507246 | F94: 11348.61599 | G94: 8306.987179 | H94: 3041.628814 | I94: 1477.669191 | J94: 51.60922645 | K94: 1307.115903 | L94: 150.5778441 | M94: 180.9333796 | N94: 440.737353 | O94: 55.38606 | P94: 8.849835621 | Q94: 73.80671646 | R94: 8.892325744 | S94: 133.4017631 | T94: 49.13824337 | U94: 222.8017147 | V94: 37.76186758 | W94: 90.03166808 | X94: 34.34724086 | Y94: 3275.354489 | Z94: 911.213384 | AA94: 311.425717 | AB94: 399.1175024 | AC94: 0.0524065217 | AD94: 0.0024975845 | AE94: 113.1697834 | AF94: 0.864337401 | AG94: 676.9501564 | AH94: 250.0048768 | AI94: 226.1016801 | AJ94: 161.3006822 | AK94: 102.1216879 | AL94: 527.2456886 | AM94: 60.66486273 | AN94: 9.965907899 | AO94: 68
A95: C02A | B95: Enucleations and Orbital Interventions, Major Complexity | C95: 3.671629457 | D95: 361 | E95: 5.855955679 | F95: 22908.69437 | G95: 16612.17372 | H95: 6296.520658 | I95: 3223.520932 | J95: 117.798833 | K95: 3413.290119 | L95: 323.6342183 | M95: 366.0045462 | N95: 983.8184907 | O95: 433.2362781 | P95: 53.53262568 | Q95: 274.624754 | R95: 47.2746331 | S95: 323.5843729 | T95: 129.4570349 | U95: 457.8009976 | V95: 70.23794666 | W95: 166.7876526 | X95: 42.40299727 | Y95: 5047.785198 | Z95: 1526.51837 | AA95: 538.8462835 | AB95: 943.5769419 | AC95: 2.156343183 | AD95: 0.3418108144 | AE95: 216.3292351 | AF95: 0.8183200776 | AG95: 1399.754797 | AH95: 520.5410801 | AI95: 467.8943443 | AJ95: 321.5717822 | AK95: 191.7580088 | AL95: 1197.528558 | AM95: 88.79985361 | AN95: 17.46701568 | AO95: 50
A96: C02B | B96: Enucleations and Orbital Interventions, Minor Complexity | C96: 1.573353033 | D96: 414 | E96: 1.690821256 | F96: 9816.74872 | G96: 7072.320717 | H96: 2744.428003 | I96: 1288.086199 | J96: 40.01198557 | K96: 838.4558468 | L96: 95.75300877 | M96: 119.8925311 | N96: 310.4532678 | O96: 227.6751359 | P96: 31.58137864 | Q96: 71.33643944 | R96: 12.84371456 | S96: 77.11335545 | T96: 40.50972163 | U96: 136.3293693 | V96: 26.19810154 | W96: 0 | X96: 0 | Y96: 3033.516578 | Z96: 947.5524553 | AA96: 261.6920706 | AB96: 314.7950823 | AC96: 0.0025115942 | AD96: 0.0001198068 | AE96: 229.7936229 | AF96: 0.4811407609 | AG96: 540.7766505 | AH96: 225.167825 | AI96: 154.0136926 | AJ96: 130.4873286 | AK96: 69.35195362 | AL96: 561.2584525 | AM96: 24.28476008 | AN96: 7.334419717 | AO96: 71
A97: C03A | B97: Retinal Interventions, Major Complexity | C97: 1.100849951 | D97: 7186 | E97: 1.40147509 | F97: 6868.622061 | G97: 4931.960167 | H97: 1936.661894 | I97: 818.657253 | J97: 32.71531238 | K97: 576.2221327 | L97: 81.21001941 | M97: 77.93720965 | N97: 234.8716912 | O97: 32.6350099 | P97: 5.478743366 | Q97: 16.47289933 | R97: 3.604960806 | S97: 61.34329011 | T97: 31.08009038 | U97: 140.196892 | V97: 25.96215852 | W97: 11.05147183 | X97: 3.255011512 | Y97: 2223.453526 | Z97: 728.7697365 | AA97: 260.3593681 | AB97: 222.1329341 | AC97: 1.669407914 | AD97: 0.6258867428 | AE97: 157.0507897 | AF97: 0.5409841696 | AG97: 399.3033526 | AH97: 172.6631732 | AI97: 104.9362249 | AJ97: 67.53497512 | AK97: 43.41121896 | AL97: 321.9282136 | AM97: 7.260120392 | AN97: 4.288002513 | AO97: 97
A98: C03B | B98: Retinal Interventions, Minor Complexity | C98: 0.3897839325 | D98: 17170 | E98: 1.01199767 | F98: 2432.010389 | G98: 1898.750325 | H98: 533.2600636 | I98: 266.1747199 | J98: 12.76797866 | K98: 309.7176731 | L98: 27.81315256 | M98: 56.00836415 | N98: 120.0817224 | O98: 2.462308993 | P98: 0.6291079409 | Q98: 7.210362023 | R98: 1.32389097 | S98: 34.40530838 | T98: 16.1660088 | U98: 278.8707788 | V98: 7.945457399 | W98: 3.064202461 | X98: 1.040937797 | Y98: 351.7916053 | Z98: 108.6971266 | AA98: 405.3550958 | AB98: 87.2377767 | AC98: 0.1119949653 | AD98: 0.0557309086 | AE98: 50.10153078 | AF98: 0.2464508379 | AG98: 103.8686955 | AH98: 47.64574296 | AI98: 15.8098184 | AJ98: 18.00481071 | AK98: 11.14405851 | AL98: 74.83524039 | AM98: 2.653807771 | AN98: 8.768927949 | AO98: 111
A99: C04A | B99: Major Corneal, Scleral and Conjunctival Interventions, Major Complexity | C99: 2.848374329 | D99: 251 | E99: 4.693227092 | F99: 17772.09213 | G99: 12683.47957 | H99: 5088.612556 | I99: 2389.030191 | J99: 87.53829662 | K99: 2610.18801 | L99: 323.7588589 | M99: 201.8129831 | N99: 945.6450577 | O99: 177.9920167 | P99: 27.97876037 | Q99: 49.46988797 | R99: 8.711358442 | S99: 210.8485946 | T99: 149.626148 | U99: 490.148423 | V99: 82.13001088 | W99: 106.2890312 | X99: 23.88100379 | Y99: 3477.599194 | Z99: 1152.420601 | AA99: 433.4976685 | AB99: 753.9202686 | AC99: 0.5538039841 | AD99: 0.1113035857 | AE99: 1043.031984 | AF99: 0.6000846534 | AG99: 900.8848298 | AH99: 396.4982807 | AI99: 460.0217107 | AJ99: 224.0520591 | AK99: 89.80991896 | AL99: 895.8082127 | AM99: 42.30132562 | AN99: 15.93225112 | AO99: 36
A100: C04B | B100: Major Corneal, Scleral and Conjunctival Interventions, Minor Complexity | C100: 1.383970571 | D100: 860 | E100: 1.258139535 | F100: 8635.119422 | G100: 6382.155142 | H100: 2252.964279 | I100: 783.9044956 | J100: 23.79164623 | K100: 568.0116546 | L100: 79.71537441 | M100: 67.21884761 | N100: 222.3280229 | O100: 46.03666877 | P100: 4.512339101 | Q100: 6.57222982 | R100: 1.087502685 | S100: 45.57558982 | T100: 52.0084188 | U100: 134.8305659 | V100: 31.46924589 | W100: 0 | X100: 0 | Y100: 2608.838509 | Z100: 915.0201922 | AA100: 329.0044349 | AB100: 230.2180707 | AC100: 0.9256977907 | AD100: 0.7535909302 | AE100: 1192.534547 | AF100: 0.3939105767 | AG100: 426.382793 | AH100: 211.7226317 | AI100: 116.6907196 | AJ100: 91.38445434 | AK100: 51.11720701 | AL100: 383.7865746 | AM100: 4.511181874 | AN100: 4.772304252 | AO100: 56
A101: C05Z | B101: Dacryocystorhinostomy | C101: 1.030520528 | D101: 679 | E101: 1.086892489 | F101: 6429.810009 | G101: 4679.737519 | H101: 1750.07249 | I101: 729.2293575 | J101: 23.41919341 | K101: 330.4592023 | L101: 43.68574684 | M101: 71.93314905 | N101: 145.6770324 | O101: 15.6491474 | P101: 2.502512398 | Q101: 8.718568847 | R101: 1.782903047 | S101: 43.77947476 | T101: 18.9410774 | U101: 61.82654922 | V101: 12.61035954 | W101: 0 | X101: 0 | Y101: 2421.344989 | Z101: 760.6803491 | AA101: 328.3670914 | AB101: 161.3678585 | AC101: 0.802781296 | AD101: 0.2028318115 | AE101: 170.8352168 | AF101: 0.4023676907 | AG101: 365.0366181 | AH101: 154.4390469 | AI101: 72.87283286 | AJ101: 74.71107113 | AK101: 56.16906755 | AL101: 345.4328989 | AM101: 2.713473155 | AN101: 4.217240651 | AO101: 69
A102: C10Z | B102: Strabismus Interventions | C102: 1.008985257 | D102: 1656 | E102: 1.012077295 | F102: 6295.44325 | G102: 4567.078913 | H102: 1728.364337 | I102: 668.7892307 | J102: 23.93281692 | K102: 270.719118 | L102: 42.08836264 | M102: 83.90715548 | N102: 132.7493222 | O102: 7.135980983 | P102: 1.820918237 | Q102: 6.23879472 | R102: 1.806161917 | S102: 53.04335571 | T102: 18.77806807 | U102: 59.95430613 | V102: 12.56275112 | W102: 0.008257183 | X102: 0.0030829825 | Y102: 2506.899454 | Z102: 830.615143 | AA102: 336.127542 | AB102: 155.0415679 | AC102: 0.2813705918 | AD102: 0.2234745773 | AE102: 15.9135014 | AF102: 0.2164271045 | AG102: 369.9289069 | AH102: 154.4210166 | AI102: 99.64318086 | AJ102: 64.73052626 | AK102: 86.71037904 | AL102: 286.5037771 | AM102: 1.778379632 | AN102: 2.870920724 | AO102: 66
A103: C11Z | B103: Eyelid Interventions | C103: 0.7898614394 | D103: 4164 | E103: 1.146013449 | F103: 4928.246307 | G103: 3650.050899 | H103: 1278.195409 | I103: 592.8744917 | J103: 16.1758868 | K103: 294.5826363 | L103: 34.98357137 | M103: 58.94968151 | N103: 120.7607351 | O103: 25.03596789 | P103: 3.3332535 | Q103: 14.5723564 | R103: 2.13469095 | S103: 37.40238561 | T103: 16.39934243 | U103: 37.55260842 | V103: 6.747552701 | W103: 4.775926907 | X103: 1.345026943 | Y103: 1876.236706 | Z103: 546.0330518 | AA103: 262.4759135 | AB103: 125.4139767 | AC103: 2.602821704 | AD103: 0.4151440132 | AE103: 32.82943103 | AF103: 0.3989641583 | AG103: 286.6779311 | AH103: 113.4724226 | AI103: 71.45511367 | AJ103: 66.99860704 | AK103: 48.87997594 | AL103: 218.498948 | AM103: 3.146951 | AN103: 5.084234496 | AO103: 178
A104: C12A | B104: Other Corneal, Scleral and Conjunctival Interventions, Major Complexity | C104: 1.67649732 | D104: 457 | E104: 3.468271335 | F104: 10460.30521 | G104: 7406.856902 | H104: 3053.448306 | I104: 1409.539319 | J104: 41.75311903 | K104: 1959.515479 | L104: 186.7676666 | M104: 177.9225403 | N104: 604.3752961 | O104: 98.43882677 | P104: 14.82467113 | Q104: 63.22349302 | R104: 23.93848134 | S104: 105.2461354 | T104: 54.02166429 | U104: 323.01743 | V104: 58.20457044 | W104: 1.465433295 | X104: 0.5543650985 | Y104: 1896.795992 | Z104: 641.8128573 | AA104: 308.2197002 | AB104: 534.9347441 | AC104: 3.558666053 | AD104: 1.091959346 | AE104: 258.1411675 | AF104: 0.453493105 | AG104: 561.1429304 | AH104: 254.4978655 | AI104: 174.0171096 | AJ104: 140.7455099 | AK104: 46.99153943 | AL104: 488.0891437 | AM104: 19.6211404 | AN104: 7.382899188 | AO104: 67
A105: C12B | B105: Other Corneal, Scleral and Conjunctival Interventions, Minor Complexity | C105: 0.6314397683 | D105: 2861 | E105: 1.010485844 | F105: 3939.793173 | G105: 2868.468218 | H105: 1071.324955 | I105: 502.7336019 | J105: 13.4624876 | K105: 169.5323662 | L105: 25.64890075 | M105: 33.80122094 | N105: 95.18939207 | O105: 45.61584097 | P105: 5.787637191 | Q105: 1.070789172 | R105: 0.3106615931 | S105: 28.05431519 | T105: 19.04654453 | U105: 52.27204438 | V105: 13.11512964 | W105: 0 | X105: 0 | Y105: 1313.138545 | Z105: 471.8721283 | AA105: 379.8258331 | AB105: 103.8108716 | AC105: 0.4549908773 | AD105: 0.3690817546 | AE105: 89.38151597 | AF105: 0.3279698116 | AG105: 165.0039316 | AH105: 81.56378865 | AI105: 44.956731 | AJ105: 44.74104854 | AK105: 40.95441597 | AL105: 190.9922212 | AM105: 1.672075675 | AN105: 5.087091559 | AO105: 130
A106: C13Z | B106: Lacrimal Interventions | C106: 0.6429282072 | D106: 396 | E106: 1.224747475 | F106: 4011.473918 | G106: 2955.370299 | H106: 1056.103619 | I106: 508.8294682 | J106: 21.90112836 | K106: 331.8813995 | L106: 41.63218205 | M106: 85.85542747 | N106: 127.8636408 | O106: 51.3156809 | P106: 5.839392747 | Q106: 14.41822496 | R106: 2.72727697 | S106: 46.39425577 | T106: 11.64167982 | U106: 41.19889906 | V106: 5.62667027 | W106: 37.12354317 | X106: 7.366342109 | Y106: 1194.54413 | Z106: 356.5812242 | AA106: 262.3515178 | AB106: 143.3215555 | AC106: 0.0005575758 | AD106: 2.62626e-05 | AE106: 23.24229872 | AF106: 0.1759670253 | AG106: 250.2762887 | AH106: 99.63863371 | AI106: 64.86578716 | AJ106: 55.21227036 | AK106: 41.49210071 | AL106: 173.2670321 | AM106: 1.580719035 | AN106: 3.308596866 | AO106: 65
A107: C14A | B107: Other Eye Interventions, Major Complexity | C107: 2.05909437 | D107: 230 | E107: 6.217391304 | F107: 12847.4739 | G107: 9115.34004 | H107: 3732.133859 | I107: 1866.584184 | J107: 92.9458608 | K107: 3223.799875 | L107: 325.4885658 | M107: 387.8693973 | N107: 1071.897677 | O107: 256.6202405 | P107: 27.997954 | Q107: 95.87047698 | R107: 15.00801867 | S107: 177.4893768 | T107: 93.26479495 | U107: 579.3131558 | V107: 59.40905082 | W107: 340.1183211 | X107: 71.51988755 | Y107: 651.2959024 | Z107: 183.3898435 | AA107: 407.3639042 | AB107: 692.8620444 | AC107: 2.221727391 | AD107: 0.3459391304 | AE107: 32.06368667 | AF107: 0.4581158 | AG107: 693.4195033 | AH107: 249.9279637 | AI107: 251.6093906 | AJ107: 150.93623 | AK107: 48.93952323 | AL107: 683.6705703 | AM107: 100.7613748 | AN107: 13.01134272 | AO107: 53
A108: C14B | B108: Other Eye Interventions, Minor Complexity | C108: 0.5682321524 | D108: 1307 | E108: 1.149196633 | F108: 3545.416787 | G108: 2640.320415 | H108: 905.0963724 | I108: 453.6247523 | J108: 15.52331645 | K108: 288.4408995 | L108: 37.84549596 | M108: 57.64205736 | N108: 133.3013976 | O108: 86.17806109 | P108: 11.24527851 | Q108: 9.550242226 | R108: 0.929780873 | S108: 41.70675358 | T108: 19.10055024 | U108: 44.91823546 | V108: 7.394965057 | W108: 5.496601599 | X108: 1.178106116 | Y108: 1067.45497 | Z108: 310.5348809 | AA108: 292.7669492 | AB108: 110.3681673 | AC108: 1.09613646 | AD108: 0.5266275111 | AE108: 15.47495849 | AF108: 0.1891224644 | AG108: 189.9040727 | AH108: 75.36154347 | AI108: 51.42012665 | AJ108: 36.4459199 | AK108: 32.87023446 | AL108: 139.8728668 | AM108: 1.775363974 | AN108: 5.278353094 | AO108: 149
A109: C15A | B109: Glaucoma and Complex Cataract Interventions, Major Complexity | C109: 1.976413971 | D109: 465 | E109: 4.088172043 | F109: 12331.5994 | G109: 8720.577588 | H109: 3611.021812 | I109: 1463.851531 | J109: 57.2131429 | K109: 1902.138569 | L109: 249.3676241 | M109: 209.6396707 | N109: 794.5245926 | O109: 171.2026405 | P109: 31.86065579 | Q109: 82.16986037 | R109: 16.04169651 | S109: 168.5465426 | T109: 76.95354231 | U109: 371.5742973 | V109: 49.74658239 | W109: 62.0971277 | X109: 12.8889668 | Y109: 2551.928713 | Z109: 756.3835828 | AA109: 377.2899629 | AB109: 524.0861171 | AC109: 1.415206946 | AD109: 0.0599490323 | AE109: 256.772663 | AF109: 0.4405127785 | AG109: 648.9478735 | AH109: 283.8993456 | AI109: 259.5920235 | AJ109: 108.8633493 | AK109: 76.29488888 | AL109: 635.8044035 | AM109: 117.1160173 | AN109: 12.8877483 | AO109: 51
A110: C15B | B110: Glaucoma and Complex Cataract Interventions, Minor Complexity | C110: 0.8346737218 | D110: 4901 | E110: 1.081615997 | F110: 5207.847202 | G110: 3902.115606 | H110: 1305.731596 | I110: 642.384408 | J110: 16.16461442 | K110: 254.0297111 | L110: 36.26337776 | M110: 51.57920469 | N110: 127.915172 | O110: 6.703549374 | P110: 1.099775042 | Q110: 6.568223461 | R110: 0.423458091 | S110: 26.66905097 | T110: 22.48770638 | U110: 88.1933364 | V110: 18.34813919 | W110: 0.9942722277 | X110: 0.1872005391 | Y110: 1735.693401 | Z110: 569.5869212 | AA110: 255.3031497 | AB110: 134.8558842 | AC110: 0.1587438698 | AD110: 0.0662516376 | AE110: 460.0416609 | AF110: 0.5480015895 | AG110: 267.5881994 | AH110: 124.2620634 | AI110: 59.83421724 | AJ110: 49.42180207 | AK110: 40.11430404 | AL110: 200.8942105 | AM110: 6.260173257 | AN110: 3.207017753 | AO110: 124
A111: C16Z | B111: Lens Interventions | C111: 0.5641342797 | D111: 72927 | E111: 1.008995297 | F111: 3519.848599 | G111: 2738.977806 | H111: 780.8707927 | I111: 558.4296331 | J111: 21.96252208 | K111: 133.4169978 | L111: 20.76284925 | M111: 27.48285362 | N111: 78.24861676 | O111: 1.628283774 | P111: 0.3929817302 | Q111: 33.71383992 | R111: 0.3864035502 | S111: 20.25665697 | T111: 18.82387156 | U111: 37.66232214 | V111: 8.525223946 | W111: 0.3048273783 | X111: 0.0785973544 | Y111: 1083.565547 | Z111: 318.9208123 | AA111: 354.2361387 | AB111: 92.33248193 | AC111: 0.1875097073 | AD111: 0.1233498525 | AE111: 291.0228112 | AF111: 2.588859162 | AG111: 132.411065 | AH111: 70.28489807 | AI111: 34.14373647 | AJ111: 33.63099368 | AK111: 27.58585115 | AL111: 109.1414508 | AM111: 2.929732313 | AN111: 4.66688063 | AO111: 153
A112: C60A | B112: Acute and Major Eye Infections, Major Complexity | C112: 2.406039492 | D112: 539 | E112: 7.348794063 | F112: 15012.19663 | G112: 11116.1559 | H112: 3896.040729 | I112: 2388.149932 | J112: 107.6852181 | K112: 4197.964556 | L112: 336.4414665 | M112: 515.7504248 | N112: 947.4715716 | O112: 270.6181813 | P112: 40.05916688 | Q112: 179.5652469 | R112: 28.01221544 | S112: 389.4235512 | T112: 126.9670549 | U112: 913.0339825 | V112: 108.5307734 | W112: 33.17032676 | X112: 9.036476078 | Y112: 90.59489128 | Z112: 19.91776302 | AA112: 597.6483512 | AB112: 978.3438125 | AC112: 0.6871789221 | AD112: 0.1045183748 | AE112: 16.01432703 | AF112: 0.3753346605 | AG112: 917.1153527 | AH112: 331.6256803 | AI112: 451.4714331 | AJ112: 297.065028 | AK112: 55.73180418 | AL112: 552.9309737 | AM112: 99.21636424 | AN112: 11.47367531 | AO112: 106
A113: C60B | B113: Acute and Major Eye Infections, Minor Complexity | C113: 0.8546525259 | D113: 1030 | E113: 2.82815534 | F113: 5332.502569 | G113: 3930.635598 | H113: 1401.866972 | I113: 983.9926609 | J113: 40.18128962 | K113: 1421.74676 | L113: 124.9872553 | M113: 178.6393326 | N113: 348.6154785 | O113: 138.4848381 | P113: 18.49964061 | Q113: 59.41006102 | R113: 9.143457566 | S113: 83.34356872 | T113: 37.977798 | U113: 236.6246959 | V113: 27.48053363 | W113: 13.62979752 | X113: 4.532755102 | Y113: 38.53112878 | Z113: 13.58461642 | AA113: 216.8510371 | AB113: 341.2664984 | AC113: 0.9969432583 | AD113: 0.1936682505 | AE113: 4.360231928 | AF113: 0.1297208126 | AG113: 325.6703072 | AH113: 119.3153853 | AI113: 165.5215759 | AJ113: 101.4481689 | AK113: 24.26785581 | AL113: 210.2809408 | AM113: 38.56480327 | AN113: 4.22976437 | AO113: 172
A114: C61A | B114: Neurological and Vascular Disorders of the Eye, Major Complexity | C114: 1.312371219 | D114: 1189 | E114: 3.745164003 | F114: 8188.383799 | G114: 6159.362889 | H114: 2029.020911 | I114: 1157.136297 | J114: 52.54192818 | K114: 1776.284557 | L114: 130.9250313 | M114: 241.9785423 | N114: 483.6615938 | O114: 416.7941612 | P114: 38.39912712 | Q114: 574.9429478 | R114: 95.68756409 | S114: 301.3454897 | T114: 84.01363968 | U114: 251.0128177 | V114: 20.7667128 | W114: 123.7561525 | X114: 37.0884059 | Y114: 219.0262069 | Z114: 55.07838318 | AA114: 210.004987 | AB114: 393.4539442 | AC114: 20.69937336 | AD114: 3.862809335 | AE114: 6.726969902 | AF114: 0.2186301657 | AG114: 531.3867607 | AH114: 173.0953757 | AI114: 226.1243905 | AJ114: 134.1814094 | AK114: 52.32038165 | AL114: 318.8222688 | AM114: 49.82285364 | AN114: 7.224086823 | AO114: 128
A115: C61B | B115: Neurological and Vascular Disorders of the Eye, Minor Complexity | C115: 0.544724449 | D115: 2437 | E115: 1.794009028 | F115: 3398.743274 | G115: 2568.795055 | H115: 829.9482191 | I115: 493.6356144 | J115: 20.35188588 | K115: 666.3366261 | L115: 53.25363188 | M115: 107.5169985 | N115: 195.2919598 | O115: 183.3461469 | P115: 17.02367461 | Q115: 291.9690951 | R115: 46.93088355 | S115: 92.02082082 | T115: 27.108185 | U115: 124.9829852 | V115: 13.9437889 | W115: 2.98736708 | X115: 0.761469089 | Y115: 89.53741214 | Z115: 25.92951575 | AA115: 91.43233347 | AB115: 171.8215735 | AC115: 28.17720879 | AD115: 6.59139012 | AE115: 5.119491574 | AF115: 0.0884890078 | AG115: 233.0821248 | AH115: 77.00308281 | AI115: 82.39654813 | AJ115: 50.83898312 | AK115: 21.65660601 | AL115: 120.0613229 | AM115: 54.59767571 | AN115: 2.94838318 | AO115: 177
A116: C62A | B116: Hyphaema and Medically Managed Trauma to the Eye, Major Complexity | C116: 1.298207737 | D116: 913 | E116: 4.594742607 | F116: 8100.012443 | G116: 6015.732209 | H116: 2084.280234 | I116: 1191.29792 | J116: 54.87713117 | K116: 2130.967847 | L116: 152.8245013 | M116: 243.1492241 | N116: 526.4098918 | O116: 221.9490608 | P116: 25.91551546 | Q116: 180.188351 | R116: 28.33643046 | S116: 398.8851816 | T116: 115.7365901 | U116: 182.5025788 | V116: 20.18295725 | W116: 210.3049449 | X116: 54.4472962 | Y116: 104.6466744 | Z116: 28.60816235 | AA116: 252.2421399 | AB116: 435.571746 | AC116: 6.505194011 | AD116: 2.340578146 | AE116: 6.209133891 | AF116: 0.1873935016 | AG116: 552.7171656 | AH116: 209.3332076 | AI116: 225.0762493 | AJ116: 145.8136365 | AK116: 36.07398904 | AL116: 274.1678927 | AM116: 73.0165547 | AN116: 9.527303219 | AO116: 172
A117: C62B | B117: Hyphaema and Medically Managed Trauma to the Eye, Minor Complexity | C117: 0.2450793337 | D117: 4986 | E117: 1.161853189 | F117: 1529.143291 | G117: 1160.526062 | H117: 368.6172293 | I117: 282.0543597 | J117: 11.81474147 | K117: 328.1543273 | L117: 26.74556889 | M117: 61.7486577 | N117: 86.83197518 | O117: 20.18863789 | P117: 3.393505341 | Q117: 79.98251853 | R117: 12.33071476 | S117: 75.18306468 | T117: 22.32249679 | U117: 24.01463995 | V117: 3.10250978 | W117: 3.937157625 | X117: 1.087305029 | Y117: 60.12459054 | Z117: 17.08780095 | AA117: 50.90370502 | AB117: 76.92789788 | AC117: 0.5909276113 | AD117: 0.1225364769 | AE117: 0.9845760409 | AF117: 0.0377929683 | AG117: 96.84296493 | AH117: 33.88713845 | AI117: 32.72312553 | AJ117: 22.17055642 | AK117: 14.11744353 | AL117: 49.24779758 | AM117: 28.9753655 | AN117: 1.506891318 | AO117: 238
A118: C63A | B118: Other Disorders of the Eye, Major Complexity | C118: 1.129760518 | D118: 1753 | E118: 3.063890473 | F118: 7049.006093 | G118: 5203.242387 | H118: 1845.763706 | I118: 1023.171631 | J118: 42.02402172 | K118: 1398.421595 | L118: 113.3815512 | M118: 213.6372452 | N118: 414.6556544 | O118: 270.5859953 | P118: 29.58327017 | Q118: 313.6054333 | R118: 66.34612955 | S118: 169.3569299 | T118: 57.39517189 | U118: 343.0028812 | V118: 32.40699492 | W118: 73.50019075 | X118: 20.15874454 | Y118: 465.7498082 | Z118: 133.7529243 | AA118: 223.4923743 | AB118: 375.4820752 | AC118: 5.165595182 | AD118: 2.047334488 | AE118: 11.33370296 | AF118: 0.1601247616 | AG118: 448.4987088 | AH118: 155.4692981 | AI118: 160.027289 | AJ118: 112.7798402 | AK118: 58.93104714 | AL118: 283.5961655 | AM118: 24.76195974 | AN118: 6.524405193 | AO118: 162
A119: C63B | B119: Other Disorders of the Eye, Minor Complexity | C119: 0.3459923172 | D119: 5412 | E119: 1.342756837 | F119: 2158.777825 | G119: 1613.91845 | H119: 544.8593744 | I119: 425.013712 | J119: 16.60004408 | K119: 378.5839404 | L119: 34.6932971 | M119: 75.07218964 | N119: 123.2238474 | O119: 44.76860506 | P119: 7.396020749 | Q119: 85.79323113 | R119: 13.84510798 | S119: 45.82196241 | T119: 16.96710761 | U119: 87.34517434 | V119: 9.621078015 | W119: 9.818794959 | X119: 2.51603454 | Y119: 142.2228698 | Z119: 39.64627083 | AA119: 104.9720873 | AB119: 117.5678706 | AC119: 3.263639128 | AD119: 0.7292885874 | AE119: 5.265032578 | AF119: 0.065544512 | AG119: 127.6823155 | AH119: 47.98810071 | AI119: 41.90163192 | AJ119: 33.19470792 | AK119: 16.76539172 | AL119: 77.8981237 | AM119: 19.62787237 | AN119: 2.906930097 | AO119: 234
A120: D01Z | B120: Cochlear Implant | C120: 6.333797654 | D120: 625 | E120: 1.1072 | F120: 39518.97554 | G120: 34229.15951 | H120: 5289.816028 | I120: 1551.821419 | J120: 34.42582205 | K120: 803.0261465 | L120: 96.44194235 | M120: 101.5642254 | N120: 314.9428646 | O120: 31.67919131 | P120: 12.72257295 | Q120: 118.9439483 | R120: 21.53418705 | S120: 254.5189801 | T120: 222.8349328 | U120: 121.1301269 | V120: 32.7212369 | W120: 10.89613264 | X120: 2.6232192 | Y120: 5577.452026 | Z120: 2724.54468 | AA120: 2064.416172 | AB120: 327.8300928 | AC120: 30.25245264 | AD120: 3.674872123 | AE120: 22267.3432 | AF120: 6.589401568 | AG120: 801.7033576 | AH120: 580.7288411 | AI120: 355.0503749 | AJ120: 192.9830518 | AK120: 133.7099918 | AL120: 702.9927882 | AM120: 5.651769278 | AN120: 12.22552277 | AO120: 30
A121: D02A | B121: Head and Neck Interventions, Major Complexity | C121: 9.160595983 | D121: 435 | E121: 11.61609195 | F121: 57156.44678 | G121: 43513.60833 | H121: 13642.83845 | I121: 5969.284569 | J121: 242.5786936 | K121: 5935.011918 | L121: 479.6481524 | M121: 671.2113579 | N121: 1473.643597 | O121: 1289.123351 | P121: 203.4469371 | Q121: 591.2190599 | R121: 102.2691818 | S121: 1331.301249 | T121: 427.9407214 | U121: 696.9154068 | V121: 82.23662393 | W121: 4034.925891 | X121: 916.1493556 | Y121: 15246.93507 | Z121: 3671.617327 | AA121: 1686.976696 | AB121: 1706.48432 | AC121: 147.0701433 | AD121: 33.18973895 | AE121: 775.8009393 | AF121: 1.067021294 | AG121: 3528.961172 | AH121: 1054.553597 | AI121: 1035.862913 | AJ121: 822.8627749 | AK121: 450.1990481 | AL121: 2389.809772 | AM121: 122.809543 | AN121: 35.34063773 | AO121: 56
A122: D02B | B122: Head and Neck Interventions, Intermediate Complexity | C122: 4.509780882 | D122: 519 | E122: 5.285163777 | F122: 28138.24029 | G122: 21299.01049 | H122: 6839.229798 | I122: 2882.412862 | J122: 107.4957317 | K122: 3015.150202 | L122: 262.2117086 | M122: 372.2260406 | N122: 746.4325697 | O122: 521.3643436 | P122: 72.26878958 | Q122: 257.1164356 | R122: 48.50257988 | S122: 490.7607618 | T122: 171.0230879 | U122: 244.3533752 | V122: 31.80546758 | W122: 1691.658672 | X122: 370.8275521 | Y122: 8175.21661 | Z122: 2037.760906 | AA122: 670.7824659 | AB122: 869.9273753 | AC122: 19.87653842 | AD122: 4.515938555 | AE122: 399.7034435 | AF122: 0.3738959846 | AG122: 1832.285383 | AH122: 531.9071522 | AI122: 476.8761281 | AJ122: 417.6653965 | AK122: 215.4542929 | AL122: 1150.927597 | AM122: 33.77293859 | AN122: 15.58404939 | AO122: 68
A123: D02C | B123: Head and Neck Interventions, Minor Complexity | C123: 2.295066798 | D123: 1053 | E123: 2.631528965 | F123: 14319.79573 | G123: 11014.735 | H123: 3305.06073 | I123: 1618.971732 | J123: 53.89880373 | K123: 1460.863522 | L123: 131.0567439 | M123: 202.0816392 | N123: 392.5537703 | O123: 222.9251839 | P123: 31.58140298 | Q123: 115.9581743 | R123: 21.49340935 | S123: 156.7829364 | T123: 60.54199741 | U123: 119.5966011 | V123: 17.60421433 | W123: 653.365381 | X123: 138.584874 | Y123: 4475.738781 | Z123: 1050.592279 | AA123: 495.8947705 | AB123: 381.8064644 | AC123: 22.7351113 | AD123: 6.453011254 | AE123: 175.3649598 | AF123: 0.3649727474 | AG123: 912.4747826 | AH123: 280.7555264 | AI123: 254.3925241 | AJ123: 183.8333687 | AK123: 107.7098048 | AL123: 543.7925534 | AM123: 19.87909993 | AN123: 10.14733863 | AO123: 111
A124: D03A | B124: Surgical Repair for Cleft Lip and Palate Disorders, Major Complexity | C124: 2.916013752 | D124: 232 | E124: 2.318965517 | F124: 18194.12025 | G124: 13647.90517 | H124: 4546.215078 | I124: 1169.1538 | J124: 46.81658002 | K124: 2360.562044 | L124: 155.8106458 | M124: 308.2059228 | N124: 462.7227358 | O124: 49.19421404 | P124: 11.05886005 | Q124: 10.13346642 | R124: 2.745309138 | S124: 249.7769313 | T124: 76.53446032 | U124: 131.7040249 | V124: 34.36135445 | W124: 277.7033914 | X124: 57.0847617 | Y124: 6668.673693 | Z124: 1815.823004 | AA124: 251.9919036 | AB124: 516.637365 | AC124: 0 | AD124: 0 | AE124: 386.1109807 | AF124: 0.6235403664 | AG124: 1241.658593 | AH124: 385.5958406 | AI124: 363.4209303 | AJ124: 238.4797933 | AK124: 175.83734 | AL124: 736.0429242 | AM124: 3.777934142 | AN124: 5.877903866 | AO124: 11
A125: D03B | B125: Surgical Repair for Cleft Lip and Palate Disorders, Minor Complexity | C125: 1.98071367 | D125: 372 | E125: 1.661290323 | F125: 12358.42686 | G125: 9341.993854 | H125: 3016.433009 | I125: 879.6940128 | J125: 34.79688826 | K125: 1620.479726 | L125: 121.3674822 | M125: 182.1362897 | N125: 332.0608302 | O125: 18.28450427 | P125: 4.088645879 | Q125: 24.34669464 | R125: 1.872383054 | S125: 146.5625223 | T125: 44.38755237 | U125: 102.2714492 | V125: 19.90660389 | W125: 86.20578781 | X125: 17.28008411 | Y125: 4607.506774 | Z125: 1153.240293 | AA125: 290.1767067 | AB125: 328.5659476 | AC125: 0 | AD125: 0 | AE125: 151.2699126 | AF125: 0.5756857957 | AG125: 797.119767 | AH125: 250.9759538 | AI125: 279.9672521 | AJ125: 166.3091357 | AK125: 152.9122109 | AL125: 535.8907357 | AM125: 3.060243683 | AN125: 5.114787814 | AO125: 18
A126: D04A | B126: Maxillo Surgery, Major Complexity | C126: 3.622582833 | D126: 598 | E126: 3.535117057 | F126: 22602.67381 | G126: 17658.65892 | H126: 4944.014891 | I126: 2350.199223 | J126: 81.20996458 | K126: 2027.678724 | L126: 184.8960338 | M126: 288.6514026 | N126: 595.5306946 | O126: 184.2526661 | P126: 28.39576902 | Q126: 270.8609126 | R126: 52.54758263 | S126: 388.2555222 | T126: 127.4509299 | U126: 202.5115245 | V126: 27.27898242 | W126: 779.1366851 | X126: 177.2888479 | Y126: 6521.129584 | Z126: 1579.333793 | AA126: 402.418347 | AB126: 547.3397563 | AC126: 31.39395054 | AD126: 7.705933868 | AE126: 2213.669602 | AF126: 0.3894340602 | AG126: 1407.177816 | AH126: 412.7807699 | AI126: 391.5015335 | AJ126: 280.2934718 | AK126: 165.7685541 | AL126: 829.7158762 | AM126: 34.05286814 | AN126: 11.85705078 | AO126: 54
A127: D04B | B127: Maxillo Surgery, Minor Complexity | C127: 2.211671098 | D127: 2911 | E127: 1.791480591 | F127: 13799.45821 | G127: 10748.68186 | H127: 3050.776345 | I127: 1562.71678 | J127: 55.18295304 | K127: 1051.245964 | L127: 116.6523402 | M127: 169.3906272 | N127: 352.0576898 | O127: 41.20788053 | P127: 8.794815164 | Q127: 154.7434314 | R127: 30.67447543 | S127: 149.0449499 | T127: 62.65940562 | U127: 89.3744295 | V127: 12.00599246 | W127: 75.1342404 | X127: 17.09518501 | Y127: 4618.921114 | Z127: 1129.993503 | AA127: 244.6315162 | AB127: 318.6964607 | AC127: 15.08560744 | AD127: 3.824134635 | AE127: 1420.11441 | AF127: 0.2645257211 | AG127: 823.7576925 | AH127: 243.7691633 | AI127: 226.8563164 | AJ127: 167.221132 | AK127: 100.7929138 | AL127: 524.1384442 | AM127: 5.663989363 | AN127: 7.746125115 | AO127: 79
A128: D05Z | B128: Parotid Gland Interventions | C128: 2.624648228 | D128: 824 | E128: 2.105582524 | F128: 16376.17979 | G128: 12523.52082 | H128: 3852.658971 | I128: 1625.819487 | J128: 63.07437031 | K128: 1257.939225 | L128: 129.963191 | M128: 194.4865383 | N128: 369.9343836 | O128: 324.3837963 | P128: 44.87865417 | Q128: 32.74503201 | R128: 5.750096279 | S128: 80.46370058 | T128: 40.05025665 | U128: 92.43980485 | V128: 13.54631577 | W128: 120.104946 | X128: 25.55066181 | Y128: 6652.157093 | Z128: 1606.769382 | AA128: 436.507623 | AB128: 365.4272305 | AC128: 23.93865875 | AD128: 8.431887426 | AE128: 163.6481528 | AF128: 0.3013684502 | AG128: 1122.339293 | AH128: 353.7788891 | AI128: 271.476817 | AJ128: 195.5698714 | AK128: 121.2847623 | AL128: 618.0976539 | AM128: 3.785886114 | AN128: 11.53475907 | AO128: 85
A129: D06Z | B129: Sinus and Complex Middle Ear Interventions | C129: 1.549371742 | D129: 7787 | E129: 1.285861051 | F129: 9667.120313 | G129: 7415.705316 | H129: 2251.414997 | I129: 992.4007168 | J129: 38.60691473 | K129: 589.3519301 | L129: 67.318615 | M129: 92.82496986 | N129: 216.969944 | O129: 92.22024887 | P129: 11.89937919 | Q129: 32.56055144 | R129: 6.084824423 | S129: 71.71686961 | T129: 30.33216936 | U129: 161.1469838 | V129: 18.87450731 | W129: 76.44638792 | X129: 18.03352755 | Y129: 3740.31789 | Z129: 970.2665256 | AA129: 604.1731347 | AB129: 212.4275526 | AC129: 20.67743982 | AD129: 4.220656057 | AE129: 120.0600047 | AF129: 0.2743598564 | AG129: 559.3452596 | AH129: 203.1650435 | AI129: 137.8874187 | AJ129: 108.5175999 | AK129: 87.29110704 | AL129: 336.8258983 | AM129: 37.2844035 | AN129: 7.597479875 | AO129: 157
A130: D10Z | B130: Nasal Interventions | C130: 1.111397864 | D130: 8411 | E130: 1.054214719 | F130: 6934.434506 | G130: 5274.030314 | H130: 1660.404191 | I130: 668.41676 | J130: 27.49063978 | K130: 485.5345682 | L130: 54.97252703 | M130: 79.50808721 | N130: 171.0542139 | O130: 30.01999904 | P130: 4.067950913 | Q130: 6.348594519 | R130: 1.325126011 | S130: 47.77888105 | T130: 22.7542451 | U130: 70.29535874 | V130: 11.44261076 | W130: 57.29410328 | X130: 14.22033085 | Y130: 2715.59862 | Z130: 706.3752594 | AA130: 414.7377555 | AB130: 158.3221876 | AC130: 7.943412657 | AD130: 1.832460684 | AE130: 79.95735876 | AF130: 0.2082897318 | AG130: 412.9687329 | AH130: 150.0204236 | AI130: 105.5314533 | AJ130: 78.19292515 | AK130: 65.1411173 | AL130: 251.7387082 | AM130: 26.95551188 | AN130: 6.386292383 | AO130: 148
A131: D11Z | B131: Tonsillectomy and Adenoidectomy | C131: 0.8411592874 | D131: 14036 | E131: 1.144984326 | F131: 5248.313116 | G131: 3951.168219 | H131: 1297.144897 | I131: 582.3223157 | J131: 26.01899386 | K131: 666.144411 | L131: 63.75113918 | M131: 88.44786321 | N131: 180.7065037 | O131: 56.17248315 | P131: 7.629333046 | Q131: 13.28316864 | R131: 2.507263921 | S131: 40.43915755 | T131: 20.73905427 | U131: 60.54315162 | V131: 10.66942018 | W131: 63.27333287 | X131: 14.37118875 | Y131: 1609.49819 | Z131: 415.6879315 | AA131: 243.9187496 | AB131: 169.688006 | AC131: 4.960802727 | AD131: 1.121626723 | AE131: 44.76238621 | AF131: 0.1817028267 | AG131: 307.2501812 | AH131: 118.5815794 | AI131: 102.9768936 | AJ131: 70.33632969 | AK131: 50.48819057 | AL131: 189.2229 | AM131: 16.68694062 | AN131: 5.931924314 | AO131: 168
A132: D12A | B132: Other Ear, Nose, Mouth and Throat Interventions, Major Complexity | C132: 3.149120522 | D132: 1011 | E132: 5.371909001 | F132: 19648.56215 | G132: 15026.54728 | H132: 4622.014878 | I132: 2072.410799 | J132: 87.84429794 | K132: 2719.81055 | L132: 203.8180587 | M132: 338.7401118 | N132: 685.3764052 | O132: 549.8290805 | P132: 59.65756385 | Q132: 445.0674707 | R132: 76.00806623 | S132: 509.8815276 | T132: 152.4811547 | U132: 501.6135348 | V132: 45.04506171 | W132: 1969.431678 | X132: 480.7459273 | Y132: 3106.441097 | Z132: 782.8477402 | AA132: 568.9634851 | AB132: 646.1294668 | AC132: 32.45325764 | AD132: 5.002833129 | AE132: 309.603838 | AF132: 0.4161321899 | AG132: 1337.610548 | AH132: 377.2978521 | AI132: 360.6827849 | AJ132: 289.8444128 | AK132: 139.401903 | AL132: 712.5673694 | AM132: 64.60561008 | AN132: 16.93253589 | AO132: 101
A133: D12B | B133: Other Ear, Nose, Mouth and Throat Interventions, Minor Complexity | C133: 0.9588559127 | D133: 7069 | E133: 1.268496251 | F133: 5982.667181 | G133: 4561.734693 | H133: 1420.932488 | I133: 623.8677133 | J133: 22.9202116 | K133: 503.79237 | L133: 56.04964842 | M133: 90.6403568 | N133: 163.8771172 | O133: 70.72703156 | P133: 10.20374247 | Q133: 49.72875745 | R133: 8.204040576 | S133: 51.91902817 | T133: 21.53785638 | U133: 67.84488326 | V133: 7.360440172 | W133: 66.95307793 | X133: 15.41895977 | Y133: 2182.959866 | Z133: 526.3374838 | AA133: 184.2750223 | AB133: 154.7800512 | AC133: 15.34050877 | AD133: 2.942681098 | AE133: 83.0216654 | AF133: 0.1778405702 | AG133: 406.9557868 | AH133: 136.1638866 | AI133: 107.3056459 | AJ133: 82.28376064 | AK133: 52.84074111 | AL133: 208.8278015 | AM133: 3.562237953 | AN133: 3.846966018 | AO133: 175
A134: D13Z | B134: Myringotomy with Tube Insertion | C134: 0.6612996073 | D134: 4385 | E134: 1.272519954 | F134: 4126.100079 | G134: 3133.980825 | H134: 992.1192543 | I134: 453.7801547 | J134: 19.94847491 | K134: 425.7932132 | L134: 41.4248016 | M134: 77.7778264 | N134: 127.9543182 | O134: 27.1411692 | P134: 4.586687091 | Q134: 30.91498895 | R134: 6.702645476 | S134: 46.27962956 | T134: 17.59960412 | U134: 50.18887997 | V134: 7.018661117 | W134: 14.58664954 | X134: 3.053465242 | Y134: 1379.373167 | Z134: 354.0427982 | AA134: 118.3750014 | AB134: 120.1885089 | AC134: 10.00270656 | AD134: 0.6500141286 | AE134: 113.0541488 | AF134: 0.1407405428 | AG134: 262.4480881 | AH134: 92.22479627 | AI134: 79.13146542 | AJ134: 52.04392412 | AK134: 42.48172889 | AL134: 141.3510972 | AM134: 2.652007536 | AN134: 3.188717255 | AO134: 146
A135: D14A | B135: Mouth and Salivary Gland Interventions, Major Complexity | C135: 1.80888086 | D135: 2001 | E135: 2.612693653 | F135: 11286.29652 | G135: 8541.969284 | H135: 2744.327238 | I135: 1332.741955 | J135: 54.00304155 | K135: 1202.46787 | L135: 109.9032802 | M135: 195.597057 | N135: 353.5031965 | O135: 256.344736 | P135: 36.06451979 | Q135: 139.2004102 | R135: 24.84948604 | S135: 155.3805239 | T135: 52.24943965 | U135: 156.8453234 | V135: 19.24642434 | W135: 810.0679197 | X135: 203.5690393 | Y135: 2881.366791 | Z135: 717.3317794 | AA135: 264.3162468 | AB135: 337.6556114 | AC135: 12.4950848 | AD135: 3.165028711 | AE135: 50.24857975 | AF135: 0.3140639225 | AG135: 767.4254122 | AH135: 237.8164559 | AI135: 217.5148724 | AJ135: 161.7871432 | AK135: 80.9817739 | AL135: 425.2694859 | AM135: 18.97472779 | AN135: 7.599242647 | AO135: 124
A136: D14B | B136: Mouth and Salivary Gland Interventions, Minor Complexity | C136: 0.7550648993 | D136: 3407 | E136: 1.149691811 | F136: 4711.137443 | G136: 3575.938143 | H136: 1135.1993 | I136: 564.5721747 | J136: 20.73048451 | K136: 335.5537743 | L136: 40.45143142 | M136: 75.21667588 | N136: 131.8274184 | O136: 152.6923095 | P136: 18.19176275 | Q136: 30.66498761 | R136: 4.512450116 | S136: 51.67690176 | T136: 19.15920967 | U136: 33.19018096 | V136: 4.957082994 | W136: 20.96896318 | X136: 5.412480237 | Y136: 1739.36268 | Z136: 449.6923044 | AA136: 115.6600275 | AB136: 115.6073101 | AC136: 8.424498509 | AD136: 2.293258291 | AE136: 32.72891359 | AF136: 0.1534895045 | AG136: 294.757503 | AH136: 99.5371305 | AI136: 73.57566878 | AJ136: 58.63548011 | AK136: 44.34987196 | AL136: 160.0723155 | AM136: 2.543011798 | AN136: 3.965691784 | AO136: 196
A137: D15Z | B137: Mastoid Interventions | C137: 2.938041625 | D137: 945 | E137: 2.499470899 | F137: 18331.56054 | G137: 14121.34862 | H137: 4210.211911 | I137: 1949.931008 | J137: 66.05072585 | K137: 1481.300659 | L137: 142.4121577 | M137: 205.078763 | N137: 449.2213585 | O137: 154.2442061 | P137: 23.25369917 | Q137: 139.6802936 | R137: 27.19774788 | S137: 124.588526 | T137: 51.18337968 | U137: 257.4304685 | V137: 36.10744453 | W137: 161.8586661 | X137: 33.26606851 | Y137: 6980.115219 | Z137: 1778.619099 | AA137: 587.1318316 | AB137: 436.4254927 | AC137: 4.468570159 | AD137: 2.99560709 | AE137: 292.3224121 | AF137: 0.6434296222 | AG137: 1330.989371 | AH137: 419.5442249 | AI137: 279.4668812 | AJ137: 204.9786999 | AK137: 159.5773036 | AL137: 528.7633278 | AM137: 13.16444458 | AN137: 9.549447809 | AO137: 84
A138: D40Z | B138: Dental Extractions and Restorations | C138: 0.9466345821 | D138: 16558 | E138: 1.110158232 | F138: 5906.413645 | G138: 4334.50073 | H138: 1571.912915 | I138: 521.2782616 | J138: 25.47264207 | K138: 297.5124184 | L138: 37.49299335 | M138: 168.871496 | N138: 154.269808 | O138: 28.69867786 | P138: 3.973505629 | Q138: 12.95825637 | R138: 2.687527396 | S138: 146.8303581 | T138: 14.41343659 | U138: 39.27380242 | V138: 6.302775064 | W138: 27.12368135 | X138: 6.174747494 | Y138: 2303.4056 | Z138: 699.7500903 | AA138: 229.8604733 | AB138: 161.7572913 | AC138: 2.312571311 | AD138: 0.7804713586 | AE138: 13.01145473 | AF138: 0.1818327207 | AG138: 341.4598724 | AH138: 135.396843 | AI138: 96.04202985 | AJ138: 74.79040495 | AK138: 102.9921322 | AL138: 241.411533 | AM138: 2.869644417 | AN138: 7.057013103 | AO138: 174
A139: D60A | B139: Ear, Nose, Mouth and Throat Malignancy, Major Complexity | C139: 3.604650684 | D139: 922 | E139: 8.949023861 | F139: 22490.7883 | G139: 16897.9192 | H139: 5592.869107 | I139: 2418.737145 | J139: 175.6860408 | K139: 5143.843216 | L139: 383.3167777 | M139: 568.4778686 | N139: 1243.267168 | O139: 505.8147443 | P139: 76.12911975 | Q139: 559.8485609 | R139: 102.0999144 | S139: 1989.448051 | T139: 356.5852527 | U139: 876.497902 | V139: 78.80000148 | W139: 308.8101827 | X139: 69.22324603 | Y139: 510.9018736 | Z139: 150.0024039 | AA139: 1116.23283 | AB139: 1243.031698 | AC139: 317.6087868 | AD139: 74.73925728 | AE139: 60.26299361 | AF139: 0.4555225813 | AG139: 1483.477377 | AH139: 449.1934721 | AI139: 653.8410321 | AJ139: 406.2531168 | AK139: 277.7450825 | AL139: 763.1579069 | AM139: 106.3715508 | AN139: 20.92820927 | AO139: 134
A140: D60B | B140: Ear, Nose, Mouth and Throat Malignancy, Minor Complexity | C140: 0.7479351609 | D140: 2715 | E140: 1.540699816 | F140: 4666.65229 | G140: 3500.229974 | H140: 1166.422316 | I140: 504.4741934 | J140: 22.99051167 | K140: 697.7457282 | L140: 65.82387949 | M140: 99.04989604 | N140: 209.8984776 | O140: 138.6559838 | P140: 18.22634641 | Q140: 186.1194919 | R140: 35.50493286 | S140: 218.7315857 | T140: 54.19675692 | U140: 189.6398601 | V140: 15.8748891 | W140: 16.97185688 | X140: 2.951518384 | Y140: 785.0970255 | Z140: 208.0126783 | AA140: 115.8241333 | AB140: 199.6241658 | AC140: 56.28897488 | AD140: 19.74571603 | AE140: 38.20694685 | AF140: 0.1030926921 | AG140: 294.0177645 | AH140: 92.47345155 | AI140: 78.0798048 | AJ140: 70.20745993 | AK140: 66.58525051 | AL140: 146.3796204 | AM140: 14.7414772 | AN140: 4.408819326 | AO140: 165
A141: D61A | B141: Dysequilibrium, Major Complexity | C141: 0.8677737744 | D141: 6955 | E141: 3.112437096 | F141: 5414.371035 | G141: 4036.765064 | H141: 1377.605971 | I141: 833.4263769 | J141: 38.88256732 | K141: 1359.115325 | L141: 105.5565299 | M141: 181.0405768 | N141: 351.6903621 | O141: 126.7034572 | P141: 14.8446357 | Q141: 244.4121993 | R141: 35.51972469 | S141: 311.2901451 | T141: 92.97310354 | U141: 145.1079257 | V141: 14.18895515 | W141: 60.80060388 | X141: 16.88928509 | Y141: 8.489862191 | Z141: 1.838586407 | AA141: 185.6975268 | AB141: 289.7062665 | AC141: 12.30995141 | AD141: 2.711438925 | AE141: 4.38126452 | AF141: 0.1346734101 | AG141: 377.3361394 | AH141: 134.7217342 | AI141: 137.9325402 | AJ141: 105.0031879 | AK141: 24.94714213 | AL141: 166.1431383 | AM141: 23.77402733 | AN141: 6.801781618 | AO141: 249
A142: D61B | B142: Dysequilibrium, Minor Complexity | C142: 0.2970349639 | D142: 22376 | E142: 1.338666428 | F142: 1853.314253 | G142: 1410.865415 | H142: 442.448838 | I142: 320.4769433 | J142: 12.77099211 | K142: 420.6177998 | L142: 33.03874175 | M142: 71.46367437 | N142: 111.3141327 | O142: 35.22554186 | P142: 5.776351483 | Q142: 131.1413817 | R142: 18.5708796 | S142: 100.1053763 | T142: 30.48578404 | U142: 37.64247958 | V142: 4.260177114 | W142: 11.34031103 | X142: 3.542289727 | Y142: 3.77611444 | Z142: 1.047276016 | AA142: 71.2193119 | AB142: 92.90020705 | AC142: 7.432231856 | AD142: 1.752101695 | AE142: 9.09463353 | AF142: 0.043473737 | AG142: 127.0248669 | AH142: 44.50242443 | AI142: 41.26009958 | AJ142: 28.05124602 | AK142: 14.74299964 | AL142: 52.06839166 | AM142: 8.301649688 | AN142: 2.324368929 | AO142: 309
A143: D62A | B143: Epistaxis, Major Complexity | C143: 1.382663259 | D143: 774 | E143: 4.143410853 | F143: 8626.962606 | G143: 6545.427892 | H143: 2081.534714 | I143: 1329.365742 | J143: 63.00145854 | K143: 1982.57822 | L143: 138.1486979 | M143: 253.0606338 | N143: 455.0230209 | O143: 562.1678687 | P143: 45.06176721 | Q143: 170.3101228 | R143: 28.98547161 | S143: 231.722732 | T143: 73.78453992 | U143: 298.1841061 | V143: 24.55077848 | W143: 395.2553397 | X143: 113.8926157 | Y143: 134.8362294 | Z143: 30.55855672 | AA143: 294.0122633 | AB143: 445.8918369 | AC143: 12.22527002 | AD143: 4.035809731 | AE143: 16.30044979 | AF143: 0.2508328488 | AG143: 581.8098524 | AH143: 199.6987963 | AI143: 190.2665216 | AJ143: 162.9039429 | AK143: 36.56480264 | AL143: 284.8421229 | AM143: 56.76773859 | AN143: 10.9044651 | AO143: 140
A144: D62B | B144: Epistaxis, Minor Complexity | C144: 0.3043881681 | D144: 5543 | E144: 1.294786217 | F144: 1899.193695 | G144: 1424.324797 | H144: 474.8688974 | I144: 396.1922504 | J144: 15.09158346 | K144: 437.9835535 | L144: 35.02267417 | M144: 73.06820464 | N144: 121.4740132 | O144: 68.67607735 | P144: 7.814920831 | Q144: 18.7215228 | R144: 3.203538669 | S144: 29.06175434 | T144: 13.45216218 | U144: 46.05342769 | V144: 5.123827907 | W144: 5.971565454 | X144: 1.717414721 | Y144: 65.19630499 | Z144: 15.74224406 | AA144: 77.35834153 | AB144: 110.3818478 | AC144: 4.600647396 | AD144: 1.130209559 | AE144: 3.019972296 | AF144: 0.0574507375 | AG144: 123.1427811 | AH144: 46.47208933 | AI144: 39.43763141 | AJ144: 32.57671493 | AK144: 10.49572172 | AL144: 63.21649224 | AM144: 25.34504081 | AN144: 2.391713534 | AO144: 227
A145: D63A | B145: Otitis Media and Upper Respiratory Infections, Major Complexity | C145: 1.009158437 | D145: 10159 | E145: 3.067920071 | F145: 6296.523785 | G145: 4707.733261 | H145: 1588.790524 | I145: 1039.778095 | J145: 49.88789464 | K145: 1697.731658 | L145: 121.8031991 | M145: 193.0013707 | N145: 391.1832761 | O145: 196.4307939 | P145: 32.85040634 | Q145: 101.3455027 | R145: 16.31780041 | S145: 178.6935579 | T145: 60.87420471 | U145: 212.7853168 | V145: 19.91015703 | W145: 223.4617617 | X145: 51.74585706 | Y145: 32.7132326 | Z145: 7.945541806 | AA145: 209.7364712 | AB145: 358.1775256 | AC145: 5.96988852 | AD145: 1.522645225 | AE145: 1.743225872 | AF145: 0.1623951042 | AG145: 408.3753949 | AH145: 138.5856903 | AI145: 138.0632997 | AJ145: 115.0457107 | AK145: 37.70550346 | AL145: 215.6660748 | AM145: 30.19818808 | AN145: 7.11214539 | AO145: 274
A146: D63B | B146: Otitis Media and Upper Respiratory Infections, Minor Complexity | C146: 0.3263582048 | D146: 41840 | E146: 1.361591778 | F146: 2036.27312 | G146: 1524.331354 | H146: 511.9417663 | I146: 444.1996901 | J146: 17.92716045 | K146: 533.8917564 | L146: 41.47334453 | M146: 71.9936921 | N146: 138.0153066 | O146: 56.13904337 | P146: 12.23685957 | Q146: 29.49983749 | R146: 4.63609419 | S146: 36.35456775 | T146: 14.49097468 | U146: 43.71277208 | V146: 4.729261488 | W146: 15.56872244 | X146: 3.64644767 | Y146: 18.88858694 | Z146: 5.356918764 | AA146: 73.56117188 | AB146: 123.4723451 | AC146: 2.999863206 | AD146: 0.7568116506 | AE146: 0.8250798455 | AF146: 0.0664287849 | AG146: 132.5157432 | AH146: 47.07213636 | AI146: 40.48301352 | AJ146: 31.38846755 | AK146: 15.59248069 | AL146: 64.04303 | AM146: 8.105332966 | AN146: 2.630178972 | AO146: 312
A147: D64A | B147: Laryngotracheitis and Epiglottitis, Major Complexity | C147: 0.7909905882 | D147: 1502 | E147: 1.786950732 | F147: 4935.291497 | G147: 3772.522384 | H147: 1162.769113 | I147: 778.1184149 | J147: 31.86078859 | K147: 887.6067973 | L147: 63.30916433 | M147: 121.5744483 | N147: 224.8289967 | O147: 89.03547142 | P147: 13.83237002 | Q147: 30.05658174 | R147: 5.534993591 | S147: 80.84026552 | T147: 26.8281993 | U147: 64.20870439 | V147: 8.239761964 | W147: 987.3673955 | X147: 206.7135262 | Y147: 70.24848407 | Z147: 18.23274648 | AA147: 116.0482171 | AB147: 211.2655453 | AC147: 0 | AD147: 0 | AE147: 0.7212315506 | AF147: 0.1984718003 | AG147: 397.3552091 | AH147: 106.7047458 | AI147: 90.21598191 | AJ147: 71.50178059 | AK147: 32.02936157 | AL147: 168.1417309 | AM147: 27.09581973 | AN147: 5.576291455 | AO147: 149
A148: D64B | B148: Laryngotracheitis and Epiglottitis, Minor Complexity | C148: 0.2797905874 | D148: 4563 | E148: 1.130177515 | F148: 1745.720022 | G148: 1311.810432 | H148: 433.9095904 | I148: 385.8482669 | J148: 14.69778166 | K148: 383.0757886 | L148: 28.8972295 | M148: 48.67860898 | N148: 106.1780517 | O148: 30.42218356 | P148: 6.411012875 | Q148: 6.670036459 | R148: 1.203533341 | S148: 20.39375409 | T148: 8.457484426 | U148: 26.91455507 | V148: 2.886744429 | W148: 152.9020202 | X148: 30.20227226 | Y148: 23.23328369 | Z148: 6.22024547 | AA148: 50.21911565 | AB148: 103.4260281 | AC148: 0.026720206 | AD148: 0.0069177953 | AE148: 0.1291722945 | AF148: 0.0818257811 | AG148: 130.0945278 | AH148: 41.29050985 | AI148: 31.90969768 | AJ148: 25.10864734 | AK148: 12.38776082 | AL148: 56.77549573 | AM148: 8.904939592 | AN148: 2.06581022 | AO148: 203
A149: D65A | B149: Nasal Trauma and Deformity, Major Complexity | C149: 1.209759846 | D149: 817 | E149: 4.268053856 | F149: 7548.152367 | G149: 5598.091617 | H149: 1950.06075 | I149: 1068.85165 | J149: 48.38268721 | K149: 1731.614992 | L149: 130.3537792 | M149: 224.8187393 | N149: 472.3471338 | O149: 226.1361905 | P149: 20.17909931 | Q149: 173.3047683 | R149: 27.65558747 | S149: 421.4576846 | T149: 124.5341391 | U149: 189.8293573 | V149: 16.14386739 | W149: 296.7867054 | X149: 68.29087546 | Y149: 138.2176128 | Z149: 31.44647454 | AA149: 240.5694456 | AB149: 395.6388627 | AC149: 6.108032709 | AD149: 1.748503947 | AE149: 1.572557865 | AF149: 0.2487543623 | AG149: 562.835837 | AH149: 203.4681829 | AI149: 203.2153111 | AJ149: 139.6566792 | AK149: 36.79688433 | AL149: 259.1444151 | AM149: 75.97584712 | AN149: 10.8217085 | AO149: 152
A150: D65B | B150: Nasal Trauma and Deformity, Minor Complexity | C150: 0.3122335564 | D150: 5648 | E150: 1.11065864 | F150: 1948.14406 | G150: 1469.540041 | H150: 478.6040193 | I150: 311.3998455 | J150: 11.5837604 | K150: 258.1654068 | L150: 26.61746592 | M150: 59.61368097 | N150: 91.66197877 | O150: 11.51904202 | P150: 2.108694795 | Q150: 50.4256865 | R150: 8.234299058 | S150: 48.44077009 | T150: 17.76224994 | U150: 23.65588364 | V150: 3.023053922 | W150: 9.540266768 | X150: 2.310278791 | Y150: 443.1090178 | Z150: 101.5152948 | AA150: 50.40202388 | AB150: 75.34589735 | AC150: 0.8900973603 | AD150: 0.2353615928 | AE150: 5.635968077 | AF150: 0.060235168 | AG150: 137.620398 | AH150: 47.85375127 | AI150: 33.91400879 | AJ150: 27.87671884 | AK150: 13.94085347 | AL150: 59.81429464 | AM150: 11.26709093 | AN150: 2.600684044 | AO150: 209
A151: D66A | B151: Other Ear, Nose, Mouth and Throat Disorders, Major Complexity | C151: 0.958573187 | D151: 6017 | E151: 2.972743892 | F151: 5980.903148 | G151: 4521.872312 | H151: 1459.030836 | I151: 917.6057404 | J151: 37.89798373 | K151: 1285.778919 | L151: 96.71023193 | M151: 162.0206575 | N151: 325.8853404 | O151: 143.9586994 | P151: 18.3911351 | Q151: 182.396397 | R151: 28.09231865 | S151: 145.8626227 | T151: 51.99061721 | U151: 209.3240638 | V151: 18.61235361 | W151: 199.0215491 | X151: 43.79407535 | Y151: 426.0927374 | Z151: 104.6448329 | AA151: 219.0190272 | AB151: 292.0147905 | AC151: 26.29386758 | AD151: 7.33006529 | AE151: 9.505278341 | AF151: 0.1605855772 | AG151: 387.0664527 | AH151: 129.6038236 | AI151: 126.58533 | AJ151: 94.14786506 | AK151: 42.81052159 | AL151: 203.4403338 | AM151: 38.53044745 | AN151: 6.314483591 | AO151: 248
A152: D66B | B152: Other Ear, Nose, Mouth and Throat Disorders, Minor Complexity | C152: 0.287813969 | D152: 19259 | E152: 1.123578587 | F152: 1795.780955 | G152: 1359.852686 | H152: 435.9282687 | I152: 275.5663119 | J152: 10.1862465 | K152: 242.573451 | L152: 23.45242868 | M152: 76.75667878 | N152: 91.70434833 | O152: 25.29015528 | P152: 4.455349953 | Q152: 48.39028875 | R152: 7.558052128 | S152: 52.7797473 | T152: 19.71180223 | U152: 31.08749314 | V152: 3.319675739 | W152: 8.224122117 | X152: 2.010693432 | Y152: 222.4604612 | Z152: 54.16795465 | AA152: 50.62023321 | AB152: 69.27803448 | AC152: 148.8785042 | AD152: 33.47651037 | AE152: 4.272450694 | AF152: 0.0401740309 | AG152: 122.3389958 | AH152: 37.76699798 | AI152: 28.50535989 | AJ152: 21.38327425 | AK152: 16.58609005 | AL152: 55.58144383 | AM152: 5.522343107 | AN152: 1.83528211 | AO152: 258
A153: D67A | B153: Oral and Dental Disorders, Major Complexity | C153: 1.207187745 | D153: 3201 | E153: 3.526085598 | F153: 7532.104053 | G153: 5601.121556 | H153: 1930.982497 | I153: 1087.991181 | J153: 54.9340492 | K153: 1782.246756 | L153: 129.8462278 | M153: 226.0906431 | N153: 436.7406302 | O153: 221.5447545 | P153: 33.0521384 | Q153: 130.8737352 | R153: 22.12526641 | S153: 303.4709173 | T153: 82.62877128 | U153: 329.1020412 | V153: 28.98659786 | W153: 195.0286738 | X153: 47.55107899 | Y153: 279.2643707 | Z153: 71.58807929 | AA153: 265.6590166 | AB153: 425.7940607 | AC153: 45.94684943 | AD153: 10.28351419 | AE153: 8.634818435 | AF153: 0.1757390937 | AG153: 482.8076816 | AH153: 172.3925636 | AI153: 168.0920337 | AJ153: 144.1786582 | AK153: 45.5942443 | AL153: 263.018988 | AM153: 28.77384003 | AN153: 7.686133422 | AO153: 235
A154: D67B | B154: Oral and Dental Disorders, Minor Complexity | C154: 0.3309107691 | D154: 12592 | E154: 1.214898348 | F154: 2064.678303 | G154: 1528.656371 | H154: 536.0219318 | I154: 338.0915094 | J154: 15.07158236 | K154: 333.7241998 | L154: 28.34569165 | M154: 75.24842765 | N154: 108.7948875 | O154: 35.15463537 | P154: 5.543955798 | Q154: 63.47210906 | R154: 9.577889358 | S154: 48.96741576 | T154: 15.33122854 | U154: 29.34986096 | V154: 3.658076829 | W154: 14.43639355 | X154: 3.283332802 | Y154: 255.2684833 | Z154: 65.70996388 | AA154: 66.32644088 | AB154: 96.48828243 | AC154: 40.85494754 | AD154: 16.34304613 | AE154: 5.870884438 | AF154: 0.0573379424 | AG154: 128.2649435 | AH154: 47.2258389 | AI154: 37.77229897 | AJ154: 33.94681182 | AK154: 18.60366146 | AL154: 83.94504849 | AM154: 37.2501592 | AN154: 2.69895738 | AO154: 292
A155: E01A | B155: Major Chest Interventions, Major Complexity | C155: 10.92982399 | D155: 640 | E155: 19.146875 | F155: 68195.33407 | G155: 52820.41144 | H155: 15374.92264 | I155: 6300.459951 | J155: 251.2574837 | K155: 9540.73945 | L155: 621.9104699 | M155: 1186.279467 | N155: 2100.579915 | O155: 2539.441786 | P155: 227.4376901 | Q155: 1922.278881 | R155: 331.3564283 | S155: 1637.119086 | T155: 440.5318282 | U155: 1807.309434 | V155: 130.4412968 | W155: 10021.68471 | X155: 2262.432877 | Y155: 7806.851001 | Z155: 1681.092208 | AA155: 1843.560233 | AB155: 2239.209796 | AC155: 113.8311895 | AD155: 24.52396668 | AE155: 1310.863967 | AF155: 1.595212603 | AG155: 4707.971157 | AH155: 1357.601547 | AI155: 1492.57293 | AJ155: 1074.177836 | AK155: 371.0450664 | AL155: 2573.410104 | AM155: 218.4031303 | AN155: 57.3639775 | AO155: 63
A156: E01B | B156: Major Chest Interventions, Intermediate Complexity | C156: 6.102729957 | D156: 1267 | E156: 10.63141279 | F156: 38077.25618 | G156: 29739.67199 | H156: 8337.584192 | I156: 3639.465747 | J156: 134.6877838 | K156: 5556.790044 | L156: 369.9319466 | M156: 617.424091 | N156: 1176.466351 | O156: 1292.611168 | P156: 117.6065839 | Q156: 964.4130232 | R156: 161.4061241 | S156: 797.9671906 | T156: 227.5669355 | U156: 734.1893267 | V156: 56.72516819 | W156: 3038.973632 | X156: 678.4251814 | Y156: 6645.292748 | Z156: 1339.494896 | AA156: 1412.641324 | AB156: 1215.143875 | AC156: 52.94997529 | AD156: 10.3795734 | AE156: 1410.624629 | AF156: 1.033130227 | AG156: 2512.745732 | AH156: 742.7560818 | AI156: 770.5315699 | AJ156: 581.8244494 | AK156: 209.7106632 | AL156: 1494.587125 | AM156: 83.34112504 | AN156: 29.54898754 | AO156: 66
A157: E01C | B157: Major Chest Interventions, Minor Complexity | C157: 3.963652907 | D157: 2851 | E157: 6.092599088 | F157: 24730.73988 | G157: 19641.20955 | H157: 5089.53033 | I157: 2352.003019 | J157: 80.68834749 | K157: 3275.267815 | L157: 235.8040839 | M157: 365.3853784 | N157: 724.0220194 | O157: 751.5011836 | P157: 95.0842704 | Q157: 539.4270497 | R157: 88.53868757 | S157: 409.7822561 | T157: 137.7259744 | U157: 338.1974107 | V157: 25.72422907 | W157: 989.2335677 | X157: 218.9645547 | Y157: 5811.498337 | Z157: 1133.101728 | AA157: 1224.854874 | AB157: 720.5538344 | AC157: 60.35830554 | AD157: 7.436874431 | AE157: 1334.808734 | AF157: 0.6260397057 | AG157: 1522.771494 | AH157: 457.3715739 | AI157: 481.0828786 | AJ157: 337.0917539 | AK157: 146.0941356 | AL157: 808.3693541 | AM157: 38.94311381 | AN157: 18.42700453 | AO157: 80
A158: E02A | B158: Other Respiratory System GIs, Major Complexity | C158: 6.245514928 | D158: 1615 | E158: 13.1752322 | F158: 38968.14599 | G158: 29978.01903 | H158: 8990.126954 | I158: 4051.485717 | J158: 192.6686731 | K158: 6896.131254 | L158: 484.1913557 | M158: 800.0590096 | N158: 1606.576027 | O158: 1359.080747 | P158: 166.6603759 | Q158: 1223.341866 | R158: 209.8000539 | S158: 1309.131482 | T158: 365.220573 | U158: 1519.18813 | V158: 107.6592454 | W158: 3460.855887 | X158: 795.0486473 | Y158: 2986.438242 | Z158: 649.8893884 | AA158: 1213.102273 | AB158: 1542.442971 | AC158: 183.4238912 | AD158: 35.03820829 | AE158: 902.3001206 | AF158: 0.9105626892 | AG158: 2665.517243 | AH158: 822.6282918 | AI158: 1022.18019 | AJ158: 689.2795649 | AK158: 238.0488097 | AL158: 1291.497288 | AM158: 147.7341713 | AN158: 30.61572853 | AO158: 123
A159: E02B | B159: Other Respiratory System GIs, Intermediate Complexity | C159: 1.727944554 | D159: 3173 | E159: 2.665931295 | F159: 10781.30409 | G159: 8412.750455 | H159: 2368.553636 | I159: 1047.355177 | J159: 42.66049933 | K159: 1308.023868 | L159: 105.0066694 | M159: 186.0302293 | N159: 323.4143294 | O159: 444.6464057 | P159: 74.90680401 | Q159: 247.7442825 | R159: 40.48938129 | S159: 175.2473991 | T159: 56.73978058 | U159: 202.0642789 | V159: 19.97520992 | W159: 460.7626777 | X159: 106.3926518 | Y159: 2462.422535 | Z159: 534.0587297 | AA159: 345.9911611 | AB159: 314.9100235 | AC159: 193.2763953 | AD159: 38.71429343 | AE159: 260.5127707 | AF159: 0.3119925767 | AG159: 728.607513 | AH159: 222.6853513 | AI159: 225.76536 | AJ159: 155.9124003 | AK159: 94.27243449 | AL159: 324.3481433 | AM159: 30.02796617 | AN159: 8.027376166 | AO159: 140
A160: E02C | B160: Other Respiratory System GIs, Minor Complexity | C160: 0.9681483449 | D160: 5779 | E160: 1.069043087 | F160: 6040.646204 | G160: 4642.049898 | H160: 1398.596306 | I160: 628.1722038 | J160: 30.8470396 | K160: 747.1842834 | L160: 73.65635415 | M160: 97.31294884 | N160: 202.7526126 | O160: 41.54127776 | P160: 7.640010056 | Q160: 7.359955815 | R160: 1.446433351 | S160: 26.14843338 | T160: 13.18882624 | U160: 72.59950671 | V160: 14.20310255 | W160: 122.0929698 | X160: 24.77810269 | Y160: 1989.964544 | Z160: 442.4906394 | AA160: 261.7873298 | AB160: 182.9349165 | AC160: 20.03442416 | AD160: 4.251569384 | AE160: 41.72605511 | AF160: 0.2578307785 | AG160: 424.8313043 | AH160: 145.1967206 | AI160: 111.7526065 | AJ160: 77.25552711 | AK160: 46.42601798 | AL160: 173.5418326 | AM160: 3.116037132 | AN160: 4.154788331 | AO160: 126
A161: E03Z | B161: Lung or Heart-Lung Transplantation | C161: 34.51933542 | D161: 150 | E161: 30.72666667 | F161: 215379.279 | G161: 177519.0705 | H161: 37860.20855 | I161: 10952.62091 | J161: 573.0359637 | K161: 16063.54937 | L161: 1185.749408 | M161: 2983.846554 | N161: 4033.34695 | O161: 9949.427262 | P161: 1227.964096 | Q161: 3237.113008 | R161: 432.7533318 | S161: 4788.617496 | T161: 1370.470007 | U161: 13656.19457 | V161: 673.6197158 | W161: 54879.91936 | X161: 13128.1541 | Y161: 23168.06066 | Z161: 4187.225118 | AA161: 11559.83502 | AB161: 3405.157915 | AC161: 457.2568438 | AD161: 52.14602602 | AE161: 2327.002252 | AF161: 0.4319053333 | AG161: 17819.22633 | AH161: 3401.53035 | AI161: 4263.616025 | AJ161: 1476.062953 | AK161: 1071.000624 | AL161: 2531.483651 | AM161: 341.7841776 | AN161: 181.0770672 | AO161: 4
A162: E40A | B162: Respiratory System Disorders with Ventilator Support, Major Complexity | C162: 11.44371261 | D162: 621 | E162: 15.73752013 | F162: 71401.68083 | G162: 55929.83036 | H162: 15471.85046 | I162: 4408.33679 | J162: 168.1016565 | K162: 5045.417863 | L162: 353.1687215 | M162: 735.0294023 | N162: 1284.733947 | O162: 2598.21703 | P162: 240.5896143 | Q162: 1317.293195 | R162: 195.7668989 | S162: 2070.791305 | T162: 524.2502946 | U162: 1696.710955 | V162: 120.7408097 | W162: 28544.1851 | X162: 6500.192707 | Y162: 874.5627269 | Z162: 178.8468907 | AA162: 846.6397019 | AB162: 1221.656894 | AC162: 141.1042152 | AD162: 30.35870704 | AE162: 124.3141705 | AF162: 1.929796668 | AG162: 5473.340358 | AH162: 1421.250742 | AI162: 1169.415419 | AJ162: 970.801996 | AK162: 549.0958492 | AL162: 2194.383412 | AM162: 335.3762798 | AN162: 65.07737379 | AO162: 95
A163: E40B | B163: Respiratory System Disorders with Ventilator Support, Minor Complexity | C163: 6.045286061 | D163: 785 | E163: 7.087898089 | F163: 37718.84184 | G163: 29314.48146 | H163: 8404.360384 | I163: 1958.696727 | J163: 69.63959174 | K163: 1761.782289 | L163: 129.697712 | M163: 279.4095981 | N163: 504.6320085 | O163: 1263.542499 | P163: 131.2475814 | Q163: 638.2614884 | R163: 97.11460457 | S163: 932.7391601 | T163: 237.9743197 | U163: 420.725774 | V163: 41.28623543 | W163: 17323.96422 | X163: 4034.864045 | Y163: 332.7267639 | Z163: 69.8178037 | AA163: 311.355855 | AB163: 492.6521414 | AC163: 75.19557665 | AD163: 14.99731227 | AE163: 34.51151398 | AF163: 1.334294713 | AG163: 2972.69269 | AH163: 841.0290336 | AI163: 559.1692496 | AJ163: 479.6779045 | AK163: 268.8620781 | AL163: 1215.525447 | AM163: 180.8459712 | AN163: 42.87034769 | AO163: 100
A164: E41A | B164: Respiratory System Disorders with Non-Invasive Ventilation, Major Complexity | C164: 6.03978123 | D164: 9222 | E164: 13.27466927 | F164: 37684.4951 | G164: 28951.92562 | H164: 8732.569483 | I164: 3695.449927 | J164: 178.2785698 | K164: 6879.969437 | L164: 466.5387357 | M164: 761.9026594 | N164: 1544.266258 | O164: 1178.257672 | P164: 116.3277792 | Q164: 650.2867717 | R164: 101.9706188 | S164: 1371.853547 | T164: 401.3095831 | U164: 1222.159072 | V164: 95.59476041 | W164: 8150.496233 | X164: 1886.269377 | Y164: 235.4806628 | Z164: 46.39587851 | AA164: 857.1945583 | AB164: 1309.118096 | AC164: 61.67954318 | AD164: 12.63364527 | AE164: 42.01208972 | AF164: 0.972274462 | AG164: 2643.365969 | AH164: 803.2231403 | AI164: 841.6062641 | AJ164: 596.8146689 | AK164: 207.8688959 | AL164: 1128.427618 | AM164: 152.3423149 | AN164: 44.42848043 | AO164: 176
A165: E41B | B165: Respiratory System Disorders with Non-Invasive Ventilation, Minor Complexity | C165: 2.761788948 | D165: 16389 | E165: 6.632192324 | F165: 17231.85296 | G165: 13136.3384 | H165: 4095.514562 | I165: 2053.925317 | J165: 90.95036849 | K165: 3581.888813 | L165: 254.060242 | M165: 371.991276 | N165: 798.5674766 | O165: 467.5878691 | P165: 55.3884891 | Q165: 195.42851 | R165: 28.51685647 | S165: 510.9358234 | T165: 163.3950796 | U165: 452.6618176 | V165: 40.82704131 | W165: 3116.417163 | X165: 735.594782 | Y165: 41.86027222 | Z165: 8.638369101 | AA165: 475.801463 | AB165: 691.1591319 | AC165: 15.9262667 | AD165: 3.598176511 | AE165: 5.579807205 | AF165: 0.5568383765 | AG165: 1224.962723 | AH165: 397.8266385 | AI165: 439.7630482 | AJ165: 299.0746934 | AK165: 98.0853038 | AL165: 505.2760429 | AM165: 83.52292574 | AN165: 22.08433568 | AO165: 198
A166: E42A | B166: Bronchoscopy, Major Complexity | C166: 4.730007866 | D166: 1678 | E166: 11.64898689 | F166: 29512.32031 | G166: 22516.37135 | H166: 6995.948961 | I166: 3597.920096 | J166: 165.7034539 | K166: 6236.121384 | L166: 399.3951234 | M166: 689.9526238 | N166: 1372.710729 | O166: 1478.475129 | P166: 174.7194032 | Q166: 801.8202874 | R166: 129.5997072 | S166: 1141.420075 | T166: 278.5388067 | U166: 1970.467533 | V166: 157.4356114 | W166: 799.4957003 | X166: 176.1651255 | Y166: 1324.121472 | Z166: 338.3856548 | AA166: 962.2988877 | AB166: 1419.579782 | AC166: 359.6988316 | AD166: 73.6457575 | AE166: 131.8967976 | AF166: 0.6385360697 | AG166: 1889.640338 | AH166: 606.8418719 | AI166: 856.7487021 | AJ166: 551.0180317 | AK166: 158.2556011 | AL166: 1128.012894 | AM166: 118.0378931 | AN166: 23.55847357 | AO166: 101
A167: E42B | B167: Bronchoscopy, Intermediate Complexity | C167: 1.398329847 | D167: 2474 | E167: 2.808407437 | F167: 8724.712411 | G167: 6762.219619 | H167: 1962.492791 | I167: 977.6340814 | J167: 39.05945537 | K167: 1249.60851 | L167: 90.1541123 | M167: 202.5584376 | N167: 320.2802979 | O167: 457.6357214 | P167: 64.71298747 | Q167: 245.6242583 | R167: 42.87683554 | S167: 201.0789898 | T167: 51.20921639 | U167: 468.4416846 | V167: 46.6586736 | W167: 173.1008139 | X167: 33.92482102 | Y167: 1224.554564 | Z167: 296.2433222 | AA167: 287.3893234 | AB167: 323.8419134 | AC167: 287.317421 | AD167: 62.42300619 | AE167: 71.80073595 | AF167: 0.2339009612 | AG167: 592.7860079 | AH167: 180.0363415 | AI167: 222.707406 | AJ167: 135.3821418 | AK167: 78.07333125 | AL167: 269.3081173 | AM167: 21.90833308 | AN167: 6.147648461 | AO167: 97
A168: E42C | B168: Bronchoscopy, Minor Complexity | C168: 0.7146291753 | D168: 6213 | E168: 1.24191212 | F168: 4458.843562 | G168: 3546.636498 | H168: 912.2070645 | I168: 469.641328 | J168: 15.12304332 | K168: 316.1909594 | L168: 29.32614387 | M168: 73.56072559 | N168: 101.718361 | O168: 329.6687619 | P168: 45.06233515 | Q168: 93.65045221 | R168: 16.53168529 | S168: 31.69753469 | T168: 10.93584387 | U168: 65.8738607 | V168: 7.399020101 | W168: 31.52913421 | X168: 5.354153996 | Y168: 1084.266251 | Z168: 241.0318785 | AA168: 122.6048864 | AB168: 101.0403495 | AC168: 407.0517465 | AD168: 85.82982161 | AE168: 43.04693276 | AF168: 0.119322381 | AG168: 325.1894043 | AH168: 92.97588903 | AI168: 85.07312644 | AJ168: 53.31608031 | AK168: 59.2913173 | AL168: 103.7279936 | AM168: 8.300076023 | AN168: 2.715142855 | AO168: 97
A169: E60A | B169: Cystic Fibrosis, Major Complexity | C169: 7.846783235 | D169: 493 | E169: 12.2494929 | F169: 48959.06874 | G169: 39495.02833 | H169: 9464.04041 | I169: 4633.152139 | J169: 253.9937698 | K169: 8510.523881 | L169: 524.2723127 | M169: 920.5713532 | N169: 1847.97564 | O169: 566.4472377 | P169: 106.973692 | Q169: 582.1186577 | R169: 102.6219964 | S169: 4060.28638 | T169: 731.1398374 | U169: 14153.10131 | V169: 809.0143517 | W169: 129.3879044 | X169: 28.91836941 | Y169: 781.5412364 | Z169: 178.1715289 | AA169: 1036.052157 | AB169: 1873.694924 | AC169: 15.08772932 | AD169: 5.989641227 | AE169: 78.53987445 | AF169: 2.990566101 | AG169: 2805.564755 | AH169: 683.1185945 | AI169: 999.4400383 | AJ169: 574.5642379 | AK169: 173.408888 | AL169: 1720.766947 | AM169: 49.80478357 | AN169: 19.83400052 | AO169: 43
A170: E60B | B170: Cystic Fibrosis, Minor Complexity | C170: 3.78311373 | D170: 928 | E170: 7.53125 | F170: 23604.28721 | G170: 19260.75305 | H170: 4343.534153 | I170: 2712.350085 | J170: 102.8149354 | K170: 3940.046031 | L170: 220.1918911 | M170: 468.2949939 | N170: 943.817332 | O170: 355.992226 | P170: 59.43962942 | Q170: 264.6857254 | R170: 52.65045279 | S170: 1878.70745 | T170: 427.7502234 | U170: 6616.732879 | V170: 269.3203511 | W170: 63.09240783 | X170: 13.15479058 | Y170: 259.1042964 | Z170: 50.99873977 | AA170: 545.3506474 | AB170: 895.8852271 | AC170: 18.73772603 | AD170: 8.315770416 | AE170: 26.46783587 | AF170: 0.1810071444 | AG170: 1539.632507 | AH170: 360.1149271 | AI170: 467.8714543 | AJ170: 252.0484801 | AK170: 79.85212226 | AL170: 675.1264195 | AM170: 23.83466667 | AN170: 11.72397571 | AO170: 71
A171: E61A | B171: Pulmonary Embolism, Major Complexity | C171: 2.090922343 | D171: 4742 | E171: 6.132644454 | F171: 13046.06074 | G171: 9909.307884 | H171: 3136.752858 | I171: 1692.94379 | J171: 80.81967841 | K171: 3001.254314 | L171: 219.9597483 | M171: 355.0583195 | N171: 671.1809174 | O171: 466.7037552 | P171: 50.39753796 | Q171: 562.6497779 | R171: 77.56269285 | S171: 413.6024249 | T171: 125.7162033 | U171: 480.3097851 | V171: 42.26736357 | W171: 1104.878124 | X171: 272.5661295 | Y171: 58.47398393 | Z171: 11.0886352 | AA171: 394.7956403 | AB171: 608.2600613 | AC171: 41.92782226 | AD171: 9.004300976 | AE171: 29.32476764 | AF171: 0.3392173216 | AG171: 857.2638398 | AH171: 292.6505717 | AI171: 314.999062 | AJ171: 268.5039347 | AK171: 69.56262667 | AL171: 391.3070915 | AM171: 65.55985028 | AN171: 15.12877415 | AO171: 216
A172: E61B | B172: Pulmonary Embolism, Minor Complexity | C172: 0.7514001683 | D172: 6342 | E172: 2.422106591 | F172: 4688.271791 | G172: 3570.426459 | H172: 1117.845332 | I172: 732.5797482 | J172: 32.09627967 | K172: 1027.553513 | L172: 78.21215287 | M172: 138.8484415 | N172: 259.444295 | O172: 152.3209411 | P172: 21.45850324 | Q172: 276.2989101 | R172: 39.83804237 | S172: 98.80017712 | T172: 33.29261704 | U172: 193.542016 | V172: 18.59599646 | W172: 249.3074274 | X172: 64.03921327 | Y172: 8.412302045 | Z172: 2.389000643 | AA172: 178.6465033 | AB172: 231.2342501 | AC172: 19.2594302 | AD172: 3.36936455 | AE172: 7.643719032 | AF172: 0.1352256831 | AG172: 312.0466982 | AH172: 111.2984164 | AI172: 109.8474167 | AJ172: 84.06215006 | AK172: 28.26269066 | AL172: 132.9588197 | AM172: 37.05652404 | AN172: 5.421004937 | AO172: 250
A173: E62A | B173: Respiratory Infections and Inflammations, Major Complexity | C173: 1.849802291 | D173: 49936 | E173: 5.969480936 | F173: 11541.62092 | G173: 8650.440809 | H173: 2891.180109 | I173: 1599.87318 | J173: 80.90218111 | K173: 3101.147533 | L173: 221.2847934 | M173: 333.7265715 | N173: 679.6208623 | O173: 392.7922292 | P173: 49.01976611 | Q173: 238.5733274 | R173: 35.8958563 | S173: 460.7482079 | T173: 144.5523219 | U173: 472.6914336 | V173: 40.22538543 | W173: 354.8928042 | X173: 86.37543806 | Y173: 36.53604706 | Z173: 7.072047954 | AA173: 449.7793926 | AB173: 622.7296922 | AC173: 16.58744108 | AD173: 3.671477572 | AE173: 4.536379631 | AF173: 0.3008130177 | AG173: 745.1646801 | AH173: 269.79856 | AI173: 327.379913 | AJ173: 260.032528 | AK173: 45.76197923 | AL173: 376.2299012 | AM173: 70.24968979 | AN173: 13.46848404 | AO173: 327
A174: E62B | B174: Respiratory Infections and Inflammations, Minor Complexity | C174: 0.7654973677 | D174: 38825 | E174: 2.681931745 | F174: 4776.229586 | G174: 3555.428265 | H174: 1220.801321 | I174: 765.6350127 | J174: 35.93534198 | K174: 1317.456948 | L174: 98.55664355 | M174: 147.7825941 | N174: 301.6879437 | O174: 144.9882994 | P174: 26.51918327 | Q174: 87.22354979 | R174: 12.74487853 | S174: 135.4319378 | T174: 46.92467194 | U174: 155.9132415 | V174: 16.95437099 | W174: 54.84695733 | X174: 13.93969117 | Y174: 8.888964078 | Z174: 1.542450199 | AA174: 240.530383 | AB174: 280.3963453 | AC174: 3.15409412 | AD174: 0.6728971732 | AE174: 0.7811970551 | AF174: 0.1552625364 | AG174: 300.7588412 | AH174: 114.8204405 | AI174: 128.5807309 | AJ174: 103.3663967 | AK174: 27.53273453 | AL174: 160.7747973 | AM174: 35.922779 | AN174: 5.810006414 | AO174: 334
A175: E63A | B175: Sleep Apnoea, Major Complexity | C175: 0.5324253545 | D175: 2984 | E175: 1.471179625 | F175: 3322.004539 | G175: 2478.111897 | H175: 843.8926424 | I175: 359.2085614 | J175: 14.74543292 | K175: 354.6715903 | L175: 29.05704173 | M175: 122.7926582 | N175: 121.5803276 | O175: 31.54513747 | P175: 5.198908146 | Q175: 35.10916542 | R175: 6.470566025 | S175: 93.70925613 | T175: 29.18721745 | U175: 53.49500545 | V175: 7.663334011 | W175: 127.0374554 | X175: 29.33291979 | Y175: 12.96916787 | Z175: 3.384460359 | AA175: 53.49242811 | AB175: 105.4064239 | AC175: 907.7712385 | AD175: 279.2468154 | AE175: 2.249605865 | AF175: 0.0547693221 | AG175: 250.1235454 | AH175: 56.44256029 | AI175: 42.59472476 | AJ175: 44.12973318 | AK175: 24.38392185 | AL175: 109.2169621 | AM175: 6.95843493 | AN175: 2.775170122 | AO175: 95
A176: E63B | B176: Sleep Apnoea, Minor Complexity | C176: 0.3535919921 | D176: 9584 | E176: 1.047370618 | F176: 2206.19509 | G176: 1744.06613 | H176: 462.1289601 | I176: 350.1004551 | J176: 17.56953103 | K176: 156.9175323 | L176: 19.53345252 | M176: 277.7568098 | N176: 94.96964309 | O176: 9.734281597 | P176: 1.864676468 | Q176: 9.551590919 | R176: 1.530236546 | S176: 70.58067351 | T176: 8.09073826 | U176: 19.2941899 | V176: 1.462559963 | W176: 1.887092407 | X176: 0.3593254037 | Y176: 3.057180547 | Z176: 0.5950517303 | AA176: 74.26228117 | AB176: 90.54593161 | AC176: 473.3870868 | AD176: 91.02234658 | AE176: 4.138607819 | AF176: 0.0346424735 | AG176: 250.7531268 | AH176: 55.47258667 | AI176: 31.31434635 | AJ176: 39.37558571 | AK176: 8.24713084 | AL176: 38.85422084 | AM176: 3.083744177 | AN176: 0.8484312307 | AO176: 118
A177: E64A | B177: Pulmonary Oedema and Respiratory Failure, Major Complexity | C177: 2.383277522 | D177: 1935 | E177: 6.381912145 | F177: 14870.17603 | G177: 11179.96343 | H177: 3690.212601 | I177: 1784.406843 | J177: 85.11344159 | K177: 3183.033782 | L177: 219.8293856 | M177: 352.0677901 | N177: 706.8564639 | O177: 511.2730893 | P177: 56.35955608 | Q177: 275.0701891 | R177: 39.75337154 | S177: 517.5991079 | T177: 156.6094856 | U177: 446.8360147 | V177: 40.19085308 | W177: 2033.437848 | X177: 462.6535956 | Y177: 70.87665373 | Z177: 14.67957318 | AA177: 393.9857348 | AB177: 698.6959329 | AC177: 55.61809329 | AD177: 12.02445079 | AE177: 5.73488503 | AF177: 0.3900579178 | AG177: 1013.030059 | AH177: 337.9697321 | AI177: 332.1298804 | AJ177: 305.5442524 | AK177: 72.58761511 | AL177: 538.1245879 | AM177: 132.2758477 | AN177: 15.41786027 | AO177: 172
A178: E64B | B178: Pulmonary Oedema and Respiratory Failure, Minor Complexity | C178: 0.9573119855 | D178: 1812 | E178: 2.884657837 | F178: 5973.034031 | G178: 4511.847942 | H178: 1461.18609 | I178: 833.990435 | J178: 37.57937345 | K178: 1298.209593 | L178: 96.53164962 | M178: 188.1166983 | N178: 299.9410769 | O178: 194.3328497 | P178: 31.84274677 | Q178: 107.0467083 | R178: 15.93218986 | S178: 170.4791466 | T178: 51.81268739 | U178: 170.7887461 | V178: 16.76624528 | W178: 571.5743285 | X178: 142.7592762 | Y178: 20.42114047 | Z178: 5.227057111 | AA178: 221.9280881 | AB178: 295.1100227 | AC178: 41.73188735 | AD178: 7.209285253 | AE178: 1.733519104 | AF178: 0.1804256534 | AG178: 416.4944372 | AH178: 142.9619425 | AI178: 139.7188772 | AJ178: 117.6952264 | AK178: 35.77734604 | AL178: 193.0865535 | AM178: 99.50414089 | AN178: 6.550331289 | AO178: 212
A179: E65A | B179: Chronic Obstructive Pulmonary Disease, Major Complexity | C179: 1.742681088 | D179: 16032 | E179: 5.870883233 | F179: 10873.25094 | G179: 8118.994993 | H179: 2754.255947 | I179: 1565.357101 | J179: 76.31583577 | K179: 2969.303782 | L179: 222.9535042 | M179: 346.8312737 | N179: 665.4279333 | O179: 328.9439597 | P179: 43.84219802 | Q179: 199.8271142 | R179: 28.1744992 | S179: 451.6946815 | T179: 140.6870424 | U179: 353.3043906 | V179: 37.27872641 | W179: 313.6609678 | X179: 81.42270976 | Y179: 28.02377112 | Z179: 3.496010888 | AA179: 451.2859113 | AB179: 606.3638638 | AC179: 15.71722615 | AD179: 3.212933528 | AE179: 2.321150624 | AF179: 0.261645805 | AG179: 698.7053401 | AH179: 258.2650562 | AI179: 299.3188631 | AJ179: 247.4859334 | AK179: 46.05206071 | AL179: 325.3503427 | AM179: 48.64739867 | AN179: 13.7177113 | AO179: 304
A180: E65B | B180: Chronic Obstructive Pulmonary Disease, Minor Complexity | C180: 0.7947592748 | D180: 27320 | E180: 2.807686676 | F180: 4958.805768 | G180: 3680.519026 | H180: 1278.286741 | I180: 786.5162948 | J180: 36.83732749 | K180: 1350.547703 | L180: 104.8340668 | M180: 184.3512728 | N180: 319.9345108 | O180: 134.8702607 | P180: 23.24629123 | Q180: 75.85642173 | R180: 11.0549343 | S180: 151.8754495 | T180: 50.99904576 | U180: 167.7940651 | V180: 19.81531788 | W180: 66.22572695 | X180: 18.54626332 | Y180: 13.05117409 | Z180: 2.202801435 | AA180: 240.4319574 | AB180: 297.4105667 | AC180: 5.717510148 | AD180: 1.056238959 | AE180: 1.819165347 | AF180: 0.1278033951 | AG180: 308.4695764 | AH180: 119.9284353 | AI180: 128.8732619 | AJ180: 107.9350175 | AK180: 36.87081779 | AL180: 158.356999 | AM180: 27.24836875 | AN180: 6.001121579 | AO180: 331
A181: E66A | B181: Major Chest Trauma, Major Complexity | C181: 2.323971072 | D181: 4105 | E181: 7.381973203 | F181: 14500.14051 | G181: 10854.38718 | H181: 3645.75333 | I181: 2010.212075 | J181: 83.32133816 | K181: 3558.339035 | L181: 256.6143581 | M181: 384.4788376 | N181: 814.0422583 | O181: 328.5033195 | P181: 33.7942261 | Q181: 352.203383 | R181: 50.71828046 | S181: 759.5243828 | T181: 228.3301223 | U181: 379.1903355 | V181: 36.42800141 | W181: 643.5508739 | X181: 164.5857786 | Y181: 248.5117023 | Z181: 52.41746944 | AA181: 518.2658285 | AB181: 745.4020001 | AC181: 18.95385378 | AD181: 4.04889486 | AE181: 8.12830135 | AF181: 0.4199818412 | AG181: 1064.512152 | AH181: 361.6614415 | AI181: 454.0897283 | AJ181: 321.1794721 | AK181: 49.9093975 | AL181: 475.7215384 | AM181: 76.01397483 | AN181: 17.06816851 | AO181: 207
A182: E66B | B182: Major Chest Trauma, Minor Complexity | C182: 0.7547683891 | D182: 7120 | E182: 2.510674157 | F182: 4709.287403 | G182: 3551.396107 | H182: 1157.891296 | I182: 775.6304368 | J182: 28.40857711 | K182: 1099.504147 | L182: 83.37380481 | M182: 150.4125959 | N182: 269.6246357 | O182: 72.5970138 | P182: 9.647039418 | Q182: 180.4496383 | R182: 26.80992649 | S182: 237.075429 | T182: 71.49415067 | U182: 111.7308565 | V182: 12.66088893 | W182: 138.7216111 | X182: 36.66947741 | Y182: 75.16322078 | Z182: 14.76771957 | AA182: 168.9876897 | AB182: 250.03937 | AC182: 3.901551609 | AD182: 0.9517125753 | AE182: 2.642494089 | AF182: 0.1366569476 | AG182: 351.0341672 | AH182: 120.0173043 | AI182: 124.0754109 | AJ182: 91.88995876 | AK182: 24.66612626 | AL182: 135.1667672 | AM182: 34.80371783 | AN182: 6.233306329 | AO182: 252
A183: E67A | B183: Respiratory Signs and Symptoms, Major Complexity | C183: 1.040113612 | D183: 8596 | E183: 3.329688227 | F183: 6489.66491 | G183: 4879.165563 | H183: 1610.499347 | I183: 975.8094622 | J183: 40.27810101 | K183: 1566.863051 | L183: 109.9898939 | M183: 200.586411 | N183: 386.1588196 | O183: 202.867775 | P183: 24.03693003 | Q183: 174.9882287 | R183: 27.60373605 | S183: 212.4762415 | T183: 65.61999848 | U183: 251.5778482 | V183: 19.63397311 | W183: 99.80504566 | X183: 28.54558959 | Y183: 62.70477839 | Z183: 14.00954734 | AA183: 223.7826395 | AB183: 357.2536807 | AC183: 164.0849926 | AD183: 31.77406135 | AE183: 11.53127377 | AF183: 0.2017253578 | AG183: 467.6736521 | AH183: 159.2266479 | AI183: 161.3177254 | AJ183: 138.8614009 | AK183: 51.61458878 | AL183: 199.5654344 | AM183: 51.4818493 | AN183: 7.73980705 | AO183: 272
A184: E67B | B184: Respiratory Signs and Symptoms, Minor Complexity | C184: 0.3004040318 | D184: 30439 | E184: 1.272216564 | F184: 1874.335151 | G184: 1389.486465 | H184: 484.8486863 | I184: 424.8004381 | J184: 15.04520764 | K184: 404.5496356 | L184: 30.91864296 | M184: 65.23290976 | N184: 127.2995289 | O184: 51.06892905 | P184: 12.72294878 | Q184: 55.09646018 | R184: 8.540128363 | S184: 38.45162433 | T184: 13.0463692 | U184: 37.41473044 | V184: 3.749541453 | W184: 12.6358144 | X184: 3.079666411 | Y184: 17.82984959 | Z184: 4.431106415 | AA184: 61.29594195 | AB184: 117.8369136 | AC184: 30.47084824 | AD184: 5.662003282 | AE184: 2.856768857 | AF184: 0.0724856444 | AG184: 129.5463896 | AH184: 44.59730281 | AI184: 36.39127204 | AJ184: 31.18280134 | AK184: 13.62251261 | AL184: 64.32120776 | AM184: 8.222340331 | AN184: 2.342831703 | AO184: 285
A185: E68A | B185: Pneumothorax, Major Complexity | C185: 1.903914644 | D185: 1782 | E185: 5.576318743 | F185: 11879.2485 | G185: 8886.265317 | H185: 2992.983179 | I185: 1643.807274 | J185: 78.1651456 | K185: 2994.149345 | L185: 216.0674803 | M185: 351.792244 | N185: 671.4185128 | O185: 278.8716648 | P185: 34.33402385 | Q185: 540.4220958 | R185: 86.79481424 | S185: 382.4706033 | T185: 118.4251717 | U185: 258.2967648 | V185: 25.43258053 | W185: 626.6613351 | X185: 160.6914141 | Y185: 135.1555179 | Z185: 33.03509845 | AA185: 381.444249 | AB185: 634.1129775 | AC185: 10.41506475 | AD185: 2.177636469 | AE185: 9.775264436 | AF185: 0.2840969804 | AG185: 762.5983167 | AH185: 267.9543691 | AI185: 291.4378529 | AJ185: 237.9784553 | AK185: 63.68610417 | AL185: 410.8367591 | AM185: 155.2816197 | AN185: 15.27464324 | AO185: 192
A186: E68B | B186: Pneumothorax, Minor Complexity | C186: 0.7548321788 | D186: 2375 | E186: 2.313263158 | F186: 4709.685411 | G186: 3528.535051 | H186: 1181.15036 | I186: 741.0758435 | J186: 35.86671393 | K186: 1130.264426 | L186: 87.0780381 | M186: 159.5658853 | N186: 277.6581624 | O186: 81.89848722 | P186: 13.31017096 | Q186: 275.0366727 | R186: 46.07323595 | S186: 104.3431754 | T186: 35.98142685 | U186: 84.15510712 | V186: 8.849580898 | W186: 161.7254491 | X186: 43.07490912 | Y186: 63.27506127 | Z186: 18.32948603 | AA186: 166.0737528 | AB186: 261.4422841 | AC186: 6.190023746 | AD186: 1.783352912 | AE186: 3.097346208 | AF186: 0.1376931958 | AG186: 301.144761 | AH186: 110.9763686 | AI186: 106.1793405 | AJ186: 92.48512726 | AK186: 35.68744576 | AL186: 141.6702515 | AM186: 108.8222739 | AN186: 6.433557989 | AO186: 203
A187: E69A | B187: Bronchitis and Asthma, Major Complexity | C187: 0.8983321618 | D187: 7305 | E187: 2.757015743 | F187: 5605.036451 | G187: 4187.037649 | H187: 1417.998802 | I187: 870.1865171 | J187: 41.44108336 | K187: 1327.001845 | L187: 99.69484832 | M187: 155.8008001 | N187: 329.5784146 | O187: 154.3495465 | P187: 24.63080011 | Q187: 84.14585432 | R187: 12.84376935 | S187: 162.6726718 | T187: 52.86598355 | U187: 177.2134587 | V187: 18.96496442 | W187: 448.4524312 | X187: 106.2769341 | Y187: 14.68749997 | Z187: 3.277294816 | AA187: 215.9737762 | AB187: 296.4427119 | AC187: 4.441597918 | AD187: 1.089833512 | AE187: 1.203814477 | AF187: 0.2255313788 | AG187: 392.7617258 | AH187: 131.9016417 | AI187: 126.1115233 | AJ187: 110.5367598 | AK187: 29.91267124 | AL187: 181.6104219 | AM187: 22.1219157 | AN187: 6.617809154 | AO187: 264
A188: E69B | B188: Bronchitis and Asthma, Minor Complexity | C188: 0.3372309936 | D188: 20638 | E188: 1.358707239 | F188: 2104.11259 | G188: 1566.401965 | H188: 537.7106242 | I188: 460.6605085 | J188: 17.20388203 | K188: 553.8832413 | L188: 41.58168076 | M188: 63.89311808 | N188: 142.8205671 | O188: 50.17658389 | P188: 9.634415384 | Q188: 21.68747981 | R188: 3.343791516 | S188: 26.94071572 | T188: 11.57536806 | U188: 60.29403547 | V188: 6.791483997 | W188: 40.71642031 | X188: 9.602870685 | Y188: 3.549038736 | Z188: 1.061548657 | AA188: 72.97593456 | AB188: 133.7857123 | AC188: 0.4642663036 | AD188: 0.1119944476 | AE188: 0.2987345037 | AF188: 0.0857928451 | AG188: 147.080591 | AH188: 53.27616869 | AI188: 43.90431 | AJ188: 36.40659261 | AK188: 14.29072931 | AL188: 67.58881723 | AM188: 5.586258079 | AN188: 2.839937812 | AO188: 287
A189: E70A | B189: Whooping Cough and Acute Bronchiolitis, Major Complexity | C189: 1.098222206 | D189: 3929 | E189: 2.616950878 | F189: 6852.226555 | G189: 5130.554472 | H189: 1721.672083 | I189: 1307.965807 | J189: 51.19309525 | K189: 2169.621885 | L189: 156.0018503 | M189: 163.0210798 | N189: 425.6512979 | O189: 102.3542803 | P189: 21.26950684 | Q189: 34.12663421 | R189: 6.398299004 | S189: 108.6062093 | T189: 47.49014975 | U189: 80.79692359 | V189: 9.200353679 | W189: 224.2160221 | X189: 42.25059688 | Y189: 16.26147041 | Z189: 4.479348911 | AA189: 200.074177 | AB189: 434.8126657 | AC189: 0.1908195645 | AD189: 0.0559914836 | AE189: 0.1801523428 | AF189: 0.2922279756 | AG189: 496.1450786 | AH189: 158.2026658 | AI189: 148.4938153 | AJ189: 152.1915447 | AK189: 34.70560917 | AL189: 205.7709596 | AM189: 43.79450795 | AN189: 6.411529302 | AO189: 161
A190: E70B | B190: Whooping Cough and Acute Bronchiolitis, Minor Complexity | C190: 0.5782438815 | D190: 15701 | E190: 1.637284249 | F190: 3607.883777 | G190: 2699.861786 | H190: 908.021991 | I190: 797.4055521 | J190: 29.69442392 | K190: 1139.62444 | L190: 85.22702487 | M190: 94.98080228 | N190: 242.2399015 | O190: 45.08874991 | P190: 12.30354403 | Q190: 8.823250669 | R190: 1.75753118 | S190: 36.07406703 | T190: 19.11815844 | U190: 32.30049751 | V190: 4.083161738 | W190: 59.72496027 | X190: 11.82262306 | Y190: 6.800283438 | Z190: 2.785742966 | AA190: 102.0735014 | AB190: 236.3615686 | AC190: 0.0398338825 | AD190: 0.0295193358 | AE190: 0.1006005637 | AF190: 0.1279504707 | AG190: 256.9740111 | AH190: 86.05802498 | AI190: 73.81411237 | AJ190: 62.25271364 | AK190: 19.48051331 | AL190: 110.1776247 | AM190: 26.55661013 | AN190: 3.982477498 | AO190: 213
A191: E71A | B191: Respiratory Neoplastic Disorders, Major Complexity | C191: 2.817517787 | D191: 3808 | E191: 8.834296219 | F191: 17579.56641 | G191: 13282.89553 | H191: 4296.670882 | I191: 2280.723546 | J191: 116.522179 | K191: 4547.268395 | L191: 320.3158408 | M191: 510.8132465 | N191: 1006.056165 | O191: 612.2223247 | P191: 71.13669313 | Q191: 701.1258542 | R191: 105.2555531 | S191: 759.4644648 | T191: 226.8010927 | U191: 824.9188938 | V191: 57.9605788 | W191: 278.3213252 | X191: 65.10450705 | Y191: 106.8590479 | Z191: 23.21878919 | AA191: 622.9512812 | AB191: 963.5177867 | AC191: 149.6130506 | AD191: 17.92547299 | AE191: 24.2910993 | AF191: 0.4419660457 | AG191: 1183.96133 | AH191: 408.8515455 | AI191: 491.9829112 | AJ191: 379.2965967 | AK191: 85.12877572 | AL191: 516.3664461 | AM191: 103.249985 | AN191: 17.89966831 | AO191: 220
A192: E71B | B192: Respiratory Neoplastic Disorders, Minor Complexity | C192: 1.018526256 | D192: 6527 | E192: 2.971656197 | F192: 6354.973179 | G192: 4832.444931 | H192: 1522.528248 | I192: 797.6739638 | J192: 37.90977442 | K192: 1419.719015 | L192: 111.7097186 | M192: 193.2660159 | N192: 334.0622517 | O192: 304.4628392 | P192: 67.60979351 | Q192: 479.9811667 | R192: 81.02463045 | S192: 166.0133894 | T192: 53.79845287 | U192: 386.8038755 | V192: 24.76119895 | W192: 26.71045159 | X192: 7.764608269 | Y192: 104.2253012 | Z192: 23.62694461 | AA192: 237.5176158 | AB192: 327.3518418 | AC192: 52.10941872 | AD192: 6.512636128 | AE192: 8.114386551 | AF192: 0.1446016236 | AG192: 405.7755574 | AH192: 143.4250152 | AI192: 139.5836244 | AJ192: 119.4972798 | AK192: 56.9811787 | AL192: 177.4767456 | AM192: 53.50713075 | AN192: 5.852754353 | AO192: 275
A193: E72Z | B193: Respiratory Problems Arising from Neonatal Period | C193: 0.9430261374 | D193: 304 | E193: 2.578947368 | F193: 5883.899185 | G193: 4537.848193 | H193: 1346.050992 | I193: 1114.923897 | J193: 30.88128145 | K193: 1268.513522 | L193: 101.9287713 | M193: 126.4473522 | N193: 316.0871633 | O193: 39.01498302 | P193: 4.262634187 | Q193: 49.19506496 | R193: 10.74664956 | S193: 202.8168465 | T193: 53.27287633 | U193: 250.0160988 | V193: 23.7058838 | W193: 604.394951 | X193: 125.6891653 | Y193: 1.834500987 | Z193: 0.6850167763 | AA193: 145.6364398 | AB193: 303.2854839 | AC193: 78.52864407 | AD193: 21.88461102 | AE193: 0.4754346184 | AF193: 0.158770625 | AG193: 461.3604393 | AH193: 122.919948 | AI193: 73.3640544 | AJ193: 56.29967604 | AK193: 29.64772821 | AL193: 166.7662183 | AM193: 91.67823639 | AN193: 7.476841602 | AO193: 74
A194: E73A | B194: Pleural Effusion, Major Complexity | C194: 2.817855022 | D194: 1718 | E194: 8.970314319 | F194: 17581.67055 | G194: 13294.68735 | H194: 4286.9832 | I194: 2349.431893 | J194: 111.5524289 | K194: 4540.793046 | L194: 307.8172785 | M194: 488.3728461 | N194: 1008.299328 | O194: 806.8628224 | P194: 75.68838384 | Q194: 737.5763331 | R194: 111.8405535 | S194: 545.0380975 | T194: 168.4672041 | U194: 676.0541296 | V194: 56.26344136 | W194: 457.8410099 | X194: 112.1985788 | Y194: 116.5602273 | Z194: 32.66616615 | AA194: 594.4875829 | AB194: 926.2328314 | AC194: 57.06775823 | AD194: 12.18297318 | AE194: 15.40192412 | AF194: 0.5066745442 | AG194: 1179.119502 | AH194: 415.276674 | AI194: 523.3088295 | AJ194: 368.6038724 | AK194: 76.13477234 | AL194: 559.7403805 | AM194: 130.6365773 | AN194: 19.64643057 | AO194: 172
A195: E73B | B195: Pleural Effusion, Intermediate Complexity | C195: 1.413161992 | D195: 1679 | E195: 4.729600953 | F195: 8817.255814 | G195: 6679.563617 | H195: 2137.692196 | I195: 1268.301354 | J195: 52.59990856 | K195: 2262.909447 | L195: 157.9067345 | M195: 276.1776953 | N195: 514.3095109 | O195: 382.499662 | P195: 50.35029101 | Q195: 407.9986771 | R195: 60.08973229 | S195: 240.0369982 | T195: 80.59589618 | U195: 333.0196367 | V195: 30.96957333 | W195: 132.7867202 | X195: 37.48625139 | Y195: 55.79604682 | Z195: 15.79575457 | AA195: 303.094716 | AB195: 474.04647 | AC195: 29.73278001 | AD195: 4.726457809 | AE195: 7.307273897 | AF195: 0.2499534407 | AG195: 591.6809308 | AH195: 209.3916588 | AI195: 239.3355243 | AJ195: 177.5282634 | AK195: 49.38458386 | AL195: 259.7866369 | AM195: 99.50157164 | AN195: 11.85910318 | AO195: 205
A196: E73C | B196: Pleural Effusion, Minor Complexity | C196: 0.6428917568 | D196: 1967 | E196: 2.206914082 | F196: 4011.24649 | G196: 3033.77756 | H196: 977.4689298 | I196: 629.3165436 | J196: 22.64714728 | K196: 896.4700748 | L196: 67.42492458 | M196: 126.0341631 | N196: 230.186185 | O196: 224.062236 | P196: 48.36764813 | Q196: 279.1097348 | R196: 43.91770964 | S196: 70.71464743 | T196: 24.63672405 | U196: 137.7058632 | V196: 11.02401408 | W196: 28.51588759 | X196: 8.38358069 | Y196: 66.53030554 | Z196: 19.15684088 | AA196: 127.1760165 | AB196: 213.0582829 | AC196: 15.51133659 | AD196: 2.746082697 | AE196: 4.690174382 | AF196: 0.1201223538 | AG196: 259.606005 | AH196: 94.68128971 | AI196: 92.08278946 | AJ196: 74.26903534 | AK196: 26.2690226 | AL196: 112.0457516 | AM196: 49.98275976 | AN196: 4.80359088 | AO196: 195
A197: E74A | B197: Interstitial Lung Disease, Major Complexity | C197: 2.229902662 | D197: 1278 | E197: 7.36541471 | F197: 13913.21188 | G197: 10339.26914 | H197: 3573.942731 | I197: 1994.779943 | J197: 86.07640363 | K197: 3577.943377 | L197: 280.1051487 | M197: 394.7292513 | N197: 837.0396766 | O197: 465.5771864 | P197: 54.1189577 | Q197: 309.1258784 | R197: 43.08812872 | S197: 582.01785 | T197: 178.8746872 | U197: 495.2931787 | V197: 46.36163892 | W197: 354.3951727 | X197: 107.8655372 | Y197: 29.09370302 | Z197: 7.680462449 | AA197: 535.6440126 | AB197: 764.8298624 | AC197: 70.00241111 | AD197: 12.50297113 | AE197: 7.865024999 | AF197: 0.4445702919 | AG197: 937.2528694 | AH197: 336.0868477 | AI197: 461.4905319 | AJ197: 316.2855869 | AK197: 55.55749266 | AL197: 486.3094095 | AM197: 68.50126092 | AN197: 16.27284214 | AO197: 172
A198: E74B | B198: Interstitial Lung Disease, Minor Complexity | C198: 0.7033559084 | D198: 2880 | E198: 2.449305556 | F198: 4388.505357 | G198: 3343.834969 | H198: 1044.670388 | I198: 670.1212438 | J198: 30.31326655 | K198: 1013.943206 | L198: 76.05132367 | M198: 141.5049412 | N198: 247.2857052 | O198: 174.5634587 | P198: 24.18722675 | Q198: 145.1041748 | R198: 22.2941195 | S198: 128.4283224 | T198: 41.44133106 | U198: 260.2151389 | V198: 21.16451628 | W198: 56.42551053 | X198: 13.68643008 | Y198: 50.56938745 | Z198: 13.89607617 | AA198: 195.8875622 | AB198: 225.3394399 | AC198: 33.23580483 | AD198: 5.462581927 | AE198: 3.085702977 | AF198: 0.1229260181 | AG198: 296.5801827 | AH198: 98.69573095 | AI198: 126.8742302 | AJ198: 85.36000079 | AK198: 23.73615275 | AL198: 134.9111689 | AM198: 23.55995034 | AN198: 4.458544218 | AO198: 210
A199: E75A | B199: Other Respiratory System Disorders, Major Complexity | C199: 1.253409589 | D199: 8705 | E199: 3.859620908 | F199: 7820.499737 | G199: 5849.261929 | H199: 1971.237809 | I199: 1116.543722 | J199: 57.5263649 | K199: 1973.736363 | L199: 146.0680322 | M199: 230.716195 | N199: 457.159282 | O199: 302.8558428 | P199: 43.76422668 | Q199: 169.6947034 | R199: 26.15421415 | S199: 303.3959259 | T199: 95.40996435 | U199: 338.8128554 | V199: 34.52532496 | W199: 218.5984733 | X199: 50.63303662 | Y199: 54.33968511 | Z199: 11.47000806 | AA199: 305.4346558 | AB199: 442.198737 | AC199: 16.94097537 | AD199: 3.795746738 | AE199: 8.228763602 | AF199: 0.1708172369 | AG199: 511.3967816 | AH199: 177.8655612 | AI199: 222.4225779 | AJ199: 161.8123591 | AK199: 36.30654916 | AL199: 254.8916485 | AM199: 39.8378587 | AN199: 7.792484955 | AO199: 284
A200: E75B | B200: Other Respiratory System Disorders, Minor Complexity | C200: 0.373755735 | D200: 15639 | E200: 1.479122706 | F200: 2332.004361 | G200: 1757.157334 | H200: 574.8470268 | I200: 401.6847032 | J200: 18.19281894 | K200: 591.7817183 | L200: 45.45009622 | M200: 83.59101178 | N200: 146.7107596 | O200: 63.19840963 | P200: 12.27109136 | Q200: 80.52895204 | R200: 12.94820556 | S200: 72.07426146 | T200: 23.76862361 | U200: 64.68865042 | V200: 6.901673737 | W200: 24.3193758 | X200: 6.361329493 | Y200: 19.98117621 | Z200: 4.952025443 | AA200: 98.10988368 | AB200: 129.4066877 | AC200: 7.283983601 | AD200: 1.813114455 | AE200: 1.685895582 | AF200: 0.0563614823 | AG200: 148.6014679 | AH200: 51.73593551 | AI200: 62.54895228 | AJ200: 39.977531 | AK200: 21.2439475 | AL200: 71.40508516 | AM200: 15.83494441 | AN200: 2.895687404 | AO200: 303
A201: E76A | B201: Respiratory Tuberculosis, Major Complexity | C201: 4.666687611 | D201: 198 | E201: 16.93434343 | F201: 29117.24113 | G201: 21478.67784 | H201: 7638.563286 | I201: 4286.294659 | J201: 199.7727531 | K201: 7530.006036 | L201: 485.6062782 | M201: 836.1058687 | N201: 1824.497575 | O201: 1212.177062 | P201: 82.31826536 | Q201: 528.1372176 | R201: 96.71320014 | S201: 782.5999218 | T201: 232.4381533 | U201: 1858.001902 | V201: 175.1438333 | W201: 484.2246741 | X201: 133.2622754 | Y201: 57.49558643 | Z201: 16.30270304 | AA201: 996.2989639 | AB201: 1736.960311 | AC201: 25.63026335 | AD201: 5.95510646 | AE201: 6.408518828 | AF201: 1.063502232 | AG201: 1846.484772 | AH201: 665.9714206 | AI201: 798.0370664 | AJ201: 722.0356527 | AK201: 100.3673484 | AL201: 1227.232375 | AM201: 130.4079793 | AN201: 33.28988024 | AO201: 64
... 608 more rows

Sheet 5 Acute Overview
B2: Appendix 5.1 NHCDC 2020-21 to 2022-23 Admitted Acute summary, by jurisdiction
N4: Jurisdiction | AD4: Change (%)
B5: NSW | E5: Vic | H5: QLD | K5: SA | N5: WA | Q5: Tas | T5: NT | W5: ACT | Z5: National | AD5: NSW | AE5: Vic | AF5: QLD | AG5: SA | AH5: WA | AI5: Tas | AJ5: NT | AK5: ACT | AL5: National
B6: 2020-21 | C6: 2021-22 | D6: 2022-23 | E6: 2020-21 | F6: 2021-22 | G6: 2022-23 | H6: 2020-21 | I6: 2021-22 | J6: 2022-23 | K6: 2020-21 | L6: 2021-22 | M6: 2022-23 | N6: 2020-21 | O6: 2021-22 | P6: 2022-23 | Q6: 2020-21 | R6: 2021-22 | S6: 2022-23 | T6: 2020-21 | U6: 2021-22 | V6: 2022-23 | W6: 2020-21 | X6: 2021-22 | Y6: 2022-23 | Z6: 2020-21 | AA6: 2021-22 | AB6: 2022-23 | AD6: 2021-22 and 2022-23
A7: Number of establishments | B7: 86 | C7: 82 | D7: 88 | E7: 69 | F7: 75 | G7: 79 | H7: 137 | I7: 138 | J7: 144 | K7: 18 | L7: 19 | M7: 21 | N7: 33 | O7: 33 | P7: 54 | Q7: 23 | R7: 23 | S7: 22 | T7: 6 | U7: 6 | V7: 6 | W7: 3 | X7: 3 | Y7: 0 | Z7: 375 | AA7: 379 | AB7: 414 | AD7: =IFERROR((D7/C7-1)*100,"") -> 7.317073171 | AE7: =IFERROR((G7/F7-1)*100,"") -> 5.333333333 | AF7: =IFERROR((J7/I7-1)*100,"") -> 4.347826087 | AG7: =IFERROR((M7/L7-1)*100,"") -> 10.52631579 | AH7: =IFERROR((P7/O7-1)*100,"") -> 63.63636364 | AI7: =IFERROR((S7/R7-1)*100,"") -> -4.347826087 | AJ7: =IFERROR((V7/U7-1)*100,"") -> 0 | AK7: =IFERROR((Y7/X7-1)*100,"") -> -100 | AL7: =IFERROR((AB7/AA7-1)*100,"") -> 9.234828496
A8: Separations | B8: 1627515 | C8: 1489598 | D8: 1665294 | E8: 1659307 | F8: 1682451 | G8: 1790031 | H8: 1626382 | I8: 1622556 | J8: 1672228 | K8: 404836 | L8: 409865 | M8: 421048 | N8: 609839 | O8: 588309 | P8: 619908 | Q8: 132792 | R8: 150054 | S8: 157799 | T8: 179773 | U8: 169314 | V8: 179925 | W8: 119815 | X8: 112495 | Y8: 0 | Z8: 6360259 | AA8: 6224642 | AB8: 6506233 | AD8: =IFERROR((D8/C8-1)*100,"") -> 11.79486009 | AE8: =IFERROR((G8/F8-1)*100,"") -> 6.394242685 | AF8: =IFERROR((J8/I8-1)*100,"") -> 3.061342721 | AG8: =IFERROR((M8/L8-1)*100,"") -> 2.728459371 | AH8: =IFERROR((P8/O8-1)*100,"") -> 5.371156994 | AI8: =IFERROR((S8/R8-1)*100,"") -> 5.161475202 | AJ8: =IFERROR((V8/U8-1)*100,"") -> 6.267054112 | AK8: =IFERROR((Y8/X8-1)*100,"") -> -100 | AL8: =IFERROR((AB8/AA8-1)*100,"") -> 4.523810365
A9: Total Expenditure ($) | B9: 9370588140 | C9: 9888104470 | D9: 11348611790 | E9: 8650831419 | F9: 9376141505 | G9: 10814472943 | H9: 7540225206 | I9: 7856246720 | J9: 8982624022 | K9: 2424589708 | L9: 2685792635 | M9: 3123286275 | N9: 3482194556 | O9: 3737797750 | P9: 4262967977 | Q9: 889717732.5 | R9: 1055657372 | S9: 1255333829 | T9: 739062016.2 | U9: 754287432.4 | V9: 807568489.2 | W9: 707190360.6 | X9: 801848018.1 | Y9: 0 | Z9: 33804399137 | AA9: 36155875903 | AB9: 40594865324 | AD9: 14.77034678 | AE9: 15.34033415 | AF9: 14.33734634 | AG9: 16.28918159 | AH9: 14.05025797 | AI9: 18.91489249 | AJ9: 7.063760379 | AK9: -100 | AL9: 12.27736657
A10: Average length of stay (days) | B10: 2.82624922 | C10: 3.125218348 | D10: 3.0679946 | E10: 2.253649867 | F10: 2.264492101 | G10: 2.315880563 | H10: 2.001658282 | I10: 2.114853971 | J10: 2.113303928 | K10: 2.518466737 | L10: 2.588510851 | M10: 2.741010526 | N10: 2.066388014 | O10: 2.144182734 | P10: 2.194848268 | Q10: 2.625256039 | R10: 2.479100857 | S10: 2.58641056 | T10: 1.839792405 | U10: 1.932120203 | V10: 1.942592747 | W10: 2.494178525 | X10: 2.613565047 | Y10: 0 | Z10: 2.335227072 | AA10: 2.443869704 | AB10: 2.468539322 | AD10: -1.831031971 | AE10: 2.269315131 | AF10: -0.07329317396 | AG10: 5.891405668 | AH10: 2.362929852 | AI10: 4.328573523 | AJ10: 0.5420234355 | AK10: -100 | AL10: 1.009449009
A11: Average cost per separation incl dep ($) | B11: 5757.604778 | C11: 6638.102676 | D11: 6814.779727 | E11: 5213.520716 | F11: 5572.906138 | G11: 6041.500367 | H11: 4636.195682 | I11: 4841.895577 | J11: 5371.65029 | K11: 5989.066456 | L11: 6552.871397 | M11: 7417.886499 | N11: 5710.022737 | O11: 6353.460087 | P11: 6876.775226 | Q11: 6700.08534 | R11: 7035.18315 | S11: 7955.271132 | T11: 4111.084625 | U11: 4454.961978 | V11: 4488.361757 | W11: 5902.352465 | X11: 7127.854732 | Y11: 0 | Z11: 5314.940655 | AA11: 5808.506883 | AB11: 6239.38081 | AD11: 2.661559476 | AE11: 8.408435681 | AF11: 10.94106027 | AG11: 13.20055055 | AH11: 8.236695146 | AI11: 13.07837994 | AJ11: 0.7497208542 | AK11: -100 | AL11: 7.417980819
A12: Average cost per separation excl dep ($) | B12: 5490.679019 | C12: 6320.483029 | D12: 6449.811873 | E12: 5162.106171 | F12: 5514.286637 | G12: 5978.717494 | H12: 4534.993879 | I12: 4726.060517 | J12: 5194.374437 | K12: 5671.441192 | L12: 6060.267006 | M12: 6844.593454 | N12: 5460.146626 | O12: 6058.471647 | P12: 6567.946061 | Q12: 6465.905836 | R12: 6768.402743 | S12: 7710.292005 | T12: 3942.848703 | U12: 4250.343212 | V12: 4308.608831 | W12: 5896.21366 | X12: 7105.097709 | Y12: 0 | Z12: 5153.409768 | AA12: 5613.735699 | AB12: 6005.69155 | AD12: 2.046186078 | AE12: 8.422319841 | AF12: 9.909181618 | AG12: 12.94211042 | AH12: 8.409289394 | AI12: 13.91597543 | AJ12: 1.370845026 | AK12: -100 | AL12: 6.982085934
A13: Average cost per weighted separation incl dep($) | B13: 5163.680625 | C13: 5811.642437 | D13: 6037.71306 | E13: 5388.749622 | F13: 5838.266398 | G13: 6299.265358 | H13: 4883.507463 | I13: 5134.460798 | J13: 5630.656956 | K13: 5551.344575 | L13: 6044.115269 | M13: 6744.800618 | N13: 5922.72014 | O13: 6562.70839 | P13: 7242.624317 | Q13: 6270.773982 | R13: 6888.480832 | S13: 7905.603315 | T13: 7052.27806 | U13: 7692.032572 | V13: 7759.726544 | W13: 5666.464845 | X13: 6577.745899 | Y13: 0 | Z13: 5314.940655 | AA13: 5808.506883 | AB13: 6239.38081 | AD13: 3.889960986 | AE13: 7.896161767 | AF13: 9.664036366 | AG13: 11.5928522 | AH13: 10.36029465 | AI13: 14.76555583 | AJ13: 0.8800531142 | AK13: -100 | AL13: 7.417980819
A14: Average cost per weighted separation excl dep($) | B14: 4926.979528 | C14: 5536.470706 | D14: 5717.945171 | E14: 5332.660705 | F14: 5773.526874 | G14: 6230.009089 | H14: 4775.526572 | I14: 5010.410004 | J14: 5443.331138 | K14: 5259.89225 | L14: 5594.022146 | M14: 6228.686454 | N14: 5664.26279 | O14: 6259.099809 | P14: 6917.80189 | Q14: 6052.644633 | R14: 6625.232145 | S14: 7657.04538 | T14: 6761.669765 | U14: 7337.03897 | V14: 7448.463574 | W14: 5661.847485 | X14: 6558.697117 | Y14: 0 | Z14: 5153.409768 | AA14: 5613.735699 | AB14: 6005.69155 | AD14: 3.277800511 | AE14: 7.906470766 | AF14: 8.640433281 | AG14: 11.34540213 | AH14: 10.52391081 | AI14: 15.57399368 | AJ14: 1.518659018 | AK14: -100 | AL14: 6.982085934
A16: NOTE: Average cost per weighted separation excluding depreciation is calculated by excluding the depreciation cost bucket from the Total Cost. The depreciation cost bucket includes depreciation of equipment, depreciation of building and leases.
B18: Appendix 5.2 NHCDC 2020-21 to 2022-23 Admitted Acute cost bucket and line item average cost per separation, by jurisdiction
B20: A: Cost bucket
A22: Cost Bucket | B22: Jurisdiction ($) | AD22: Change (%)
B23: NSW | E23: Vic | H23: QLD | K23: SA | N23: WA | Q23: Tas | T23: NT | W23: ACT | Z23: National | AD23: NSW | AE23: Vic | AF23: QLD | AG23: SA | AH23: WA | AI23: Tas | AJ23: NT | AK23: ACT | AL23: National
B24: 2020-21 | C24: 2021-22 | D24: 2022-23 | E24: 2020-21 | F24: 2021-22 | G24: 2022-23 | H24: 2020-21 | I24: 2021-22 | J24: 2022-23 | K24: 2020-21 | L24: 2021-22 | M24: 2022-23 | N24: 2020-21 | O24: 2021-22 | P24: 2022-23 | Q24: 2020-21 | R24: 2021-22 | S24: 2022-23 | T24: 2020-21 | U24: 2021-22 | V24: 2022-23 | W24: 2020-21 | X24: 2021-22 | Y24: 2022-23 | Z24: 2020-21 | AA24: 2021-22 | AB24: 2022-23 | AD24: 2021-22 and 2022-23
A25: Medical | B25: 737.9858013 | C25: 837.8670978 | D25: 850.2044983 | E25: 590.009062 | F25: 642.6716247 | G25: 682.9396701 | H25: 606.3843294 | I25: 613.2668273 | J25: 696.48333 | K25: 677.7522843 | L25: 765.8737095 | M25: 834.7591245 | N25: 745.7013665 | O25: 814.4606299 | P25: 869.4891668 | Q25: 574.8020974 | R25: 750.1836311 | S25: 838.5544799 | T25: 561.2405753 | U25: 577.5560321 | V25: 579.8867799 | W25: 605.2488994 | X25: 602.8969782 | Y25: 0 | Z25: 651.7314633 | AA25: 706.1686535 | AB25: 757.756246 | AD25: =IFERROR((D25/C25-1)*100,"") -> 1.472477026 | AE25: =IFERROR((G25/F25-1)*100,"") -> 6.265726367 | AF25: =IFERROR((J25/I25-1)*100,"") -> 13.56937942 | AG25: =IFERROR((M25/L25-1)*100,"") -> 8.994356919 | AH25: =IFERROR((P25/O25-1)*100,"") -> 6.756439157 | AI25: =IFERROR((S25/R25-1)*100,"") -> 11.77989564 | AJ25: =IFERROR((V25/U25-1)*100,"") -> 0.4035535291 | AK25: =IFERROR((Y25/X25-1)*100,"") -> -100 | AL25: =IFERROR((AB25/AA25-1)*100,"") -> 7.305279304
A26: Nursing | B26: 1047.042787 | C26: 1203.184205 | D26: 1236.341107 | E26: 883.0704942 | F26: 899.0340975 | G26: 978.4571264 | H26: 1000.646277 | I26: 1044.252178 | J26: 1190.871325 | K26: 1215.746392 | L26: 1283.403958 | M26: 1431.518451 | N26: 953.4456905 | O26: 1063.14182 | P26: 1201.669312 | Q26: 1342.701999 | R26: 1405.345144 | S26: 1477.502068 | T26: 896.0981362 | U26: 966.1689498 | V26: 971.3361961 | W26: 1028.93435 | X26: 1230.164509 | Y26: 0 | Z26: 995.7296335 | AA26: 1070.507902 | AB26: 1161.551823 | AD26: =IFERROR((D26/C26-1)*100,"") -> 2.755762713 | AE26: =IFERROR((G26/F26-1)*100,"") -> 8.834262147 | AF26: =IFERROR((J26/I26-1)*100,"") -> 14.04058808 | AG26: =IFERROR((M26/L26-1)*100,"") -> 11.54075391 | AH26: =IFERROR((P26/O26-1)*100,"") -> 13.03001056 | AI26: =IFERROR((S26/R26-1)*100,"") -> 5.134462849 | AJ26: =IFERROR((V26/U26-1)*100,"") -> 0.5348180855 | AK26: =IFERROR((Y26/X26-1)*100,"") -> -100 | AL26: =IFERROR((AB26/AA26-1)*100,"") -> 8.504740675
A27: Allied Health | B27: 197.5965081 | C27: 248.8982127 | D27: 237.8106543 | E27: 126.7853942 | F27: 137.8841895 | G27: 147.1641403 | H27: 176.7233284 | I27: 188.5633048 | J27: 210.3077511 | K27: 161.1681551 | L27: 167.9651671 | M27: 176.0619631 | N27: 202.4899072 | O27: 242.6966615 | P27: 256.7831201 | Q27: 158.1159728 | R27: 175.070067 | S27: 192.0461962 | T27: 80.33341093 | U27: 89.52598258 | V27: 81.34202688 | W27: 122.2466305 | X27: 184.0240369 | Y27: 0 | Z27: 166.3776619 | AA27: 189.9626705 | AB27: 198.1773706 | AD27: -4.454655705 | AE27: 6.730250127 | AF27: 11.53164256 | AG27: 4.820520891 | AH27: 5.804141909 | AI27: 9.696762847 | AJ27: -9.141430741 | AK27: -100 | AL27: 4.324375993
A28: Non Clinical | B28: 343.6557773 | C28: 403.3020589 | D28: 408.9356399 | E28: 291.1815251 | F28: 332.0495633 | G28: 344.6943753 | H28: 399.6568586 | I28: 401.2070063 | J28: 468.0228476 | K28: 215.6685965 | L28: 238.7935758 | M28: 267.3846116 | N28: 323.9193682 | O28: 317.1559377 | P28: 380.0346752 | Q28: 398.5673221 | R28: 415.8148838 | S28: 496.4896316 | T28: 550.4040412 | U28: 533.8329669 | V28: 358.9789353 | W28: 298.8078964 | X28: 425.3266839 | Y28: 0 | Z28: 340.392471 | AA28: 368.7733244 | AB28: 395.2756901 | AD28: 1.396863935 | AE28: 3.808109824 | AF28: 16.6537075 | AG28: 11.97311765 | AH28: 19.82581123 | AI28: 19.40160174 | AJ28: -32.75444613 | AK28: -100 | AL28: 7.186627637
A29: On-costs | B29: 319.8799408 | C29: 381.5965417 | D29: 458.2087272 | E29: 640.1919394 | F29: 731.4851998 | G29: 820.6334569 | H29: 206.588334 | I29: 262.9397333 | J29: 288.2565226 | K29: 441.1171491 | L29: 463.4878289 | M29: 585.2405756 | N29: 358.8220005 | O29: 422.3294038 | P29: 478.3086587 | Q29: 602.8373986 | R29: 555.1296778 | S29: 680.9217694 | T29: 212.2835675 | U29: 229.1170923 | V29: 254.7235456 | W29: 618.4356 | X29: 687.8218601 | Y29: 0 | Z29: 394.4167002 | AA29: 460.0496224 | AB29: 524.1502796 | AD29: 20.07675046 | AE29: 12.18729473 | AF29: 9.628361973 | AG29: 26.26881206 | AH29: 13.25487981 | AI29: 22.65994715 | AJ29: 11.17614272 | AK29: -100 | AL29: 13.93342242
A30: Pathology | B30: 222.5383962 | C30: 254.3476565 | D30: 255.4207898 | E30: 194.1426381 | F30: 215.4785412 | G30: 217.4464122 | H30: 143.23146 | I30: 149.7909474 | J30: 161.3560725 | K30: 139.0777446 | L30: 195.0327325 | M30: 234.5637005 | N30: 166.4996308 | O30: 203.1070266 | P30: 223.2636758 | Q30: 188.1782583 | R30: 146.4407714 | S30: 214.5436304 | T30: 124.3919607 | U30: 139.0978878 | V30: 173.7945142 | W30: 239.6587621 | X30: 335.1744647 | Y30: 0 | Z30: 180.9962658 | AA30: 203.5634379 | AB30: 213.1342259 | AD30: 0.4219159614 | AE30: 0.9132561222 | AF30: 7.720843802 | AG30: 20.26888898 | AH30: 9.924151543 | AI30: 46.50539491 | AJ30: 24.94403545 | AK30: -100 | AL30: 4.701624244
A31: Imaging | B31: 138.7767439 | C31: 167.5847623 | D31: 150.1137245 | E31: 134.7904646 | F31: 137.0429021 | G31: 151.2815631 | H31: 112.8467587 | I31: 119.7243903 | J31: 131.3882696 | K31: 133.4587958 | L31: 160.5797442 | M31: 199.6048994 | N31: 149.35249 | O31: 154.7056564 | P31: 164.6654959 | Q31: 145.6135772 | R31: 130.2789494 | S31: 143.1722111 | T31: 107.8961453 | U31: 135.1315491 | V31: 154.3407918 | W31: 245.0903889 | X31: 268.9418752 | Y31: 0 | Z31: 133.0544033 | AA31: 145.2252717 | AB31: 150.1600413 | AD31: -10.42519474 | AE31: 10.38992953 | AF31: 9.742274926 | AG31: 24.30266365 | AH31: 6.437928466 | AI31: 9.896657707 | AJ31: 14.21521684 | AK31: -100 | AL31: 3.398010216
A32: Prosthesis | B32: 185.3512052 | C32: 161.5910197 | D32: 185.2578982 | E32: 125.555408 | F32: 120.6417416 | G32: 139.4570453 | H32: 160.0029832 | I32: 139.7583553 | J32: 154.225468 | K32: 180.9718568 | L32: 163.9928808 | M32: 187.0674633 | N32: 164.0365844 | O32: 154.7170123 | P32: 170.3977141 | Q32: 162.5241362 | R32: 143.2327769 | S32: 139.6396748 | T32: 40.06153058 | U32: 37.67352724 | V32: 38.05814714 | W32: 118.1835391 | X32: 127.8612918 | Y32: 0 | Z32: 155.0985082 | AA32: 139.917549 | AB32: 158.2051161 | AD32: 14.64615952 | AE32: 15.59601462 | AF32: 10.35151898 | AG32: 14.07047812 | AH32: 10.13508569 | AI32: -2.508575319 | AJ32: 1.02092882 | AK32: -100 | AL32: 13.07024543
A33: Clinical Supplies | B33: 512.3466151 | C33: 622.1353606 | D33: 585.7512671 | E33: 323.9198929 | F33: 367.9913499 | G33: 398.2829887 | H33: 313.4603074 | I33: 335.1146515 | J33: 342.1404116 | K33: 469.0282414 | L33: 500.7528084 | M33: 640.2990993 | N33: 604.7990942 | O33: 702.1928877 | P33: 730.0796147 | Q33: 755.5628473 | R33: 902.8025429 | S33: 1164.807872 | T33: 529.1067674 | U33: 559.6677985 | V33: 566.7618541 | W33: 478.6744493 | X33: 681.7822343 | Y33: 0 | Z33: 423.3560822 | AA33: 484.3450525 | AB33: 502.3617716 | AD33: -5.848260016 | AE33: 8.23161706 | AF33: 2.096524297 | AG33: 27.86730071 | AH33: 3.971377021 | AI33: 29.02133266 | AJ33: 1.267547583 | AK33: -100 | AL33: 3.719810696
A34: Pharmacy | B34: 165.8075233 | C34: 216.9621619 | D34: 232.9108699 | E34: 347.7415035 | F34: 366.3746384 | G34: 405.2844819 | H34: 243.9765615 | I34: 227.652178 | J34: 238.8767633 | K34: 147.4133585 | L34: 170.2114791 | M34: 185.5955224 | N34: 269.9381728 | O34: 309.7813755 | P34: 345.9073361 | Q34: 230.8370429 | R34: 305.1768813 | S34: 340.6247695 | T34: 184.4824976 | U34: 188.545233 | V34: 180.7614829 | W34: 62.65549645 | X34: 53.64310343 | Y34: 0 | Z34: 242.0161888 | AA34: 264.2294972 | AB34: 290.7431042 | AD34: 7.350916795 | AE34: 10.62023388 | AF34: 4.930585527 | AG34: 9.038193777 | AH34: 11.66176 | AI34: 11.61552215 | AJ34: -4.12831977 | AK34: -100 | AL34: 10.03431005
A35: Critical Care | B35: 494.1388831 | C35: 612.0792 | D35: 581.5332351 | E35: 411.1038116 | F35: 443.0597851 | G35: 461.2227189 | H35: 371.2097439 | I35: 397.238803 | J35: 427.2318013 | K35: 473.6381785 | L35: 499.7579836 | M35: 548.3568326 | N35: 331.4913032 | O35: 343.832486 | P35: 355.3423861 | Q35: 520.0343158 | R35: 479.7558924 | S35: 528.889742 | T35: 228.165742 | U35: 302.5881806 | V35: 295.2986607 | W35: 701.589139 | X35: 864.5041406 | Y35: 0 | Z35: 421.0728167 | AA35: 470.5985798 | AB35: 475.8836291 | AD35: -4.99052489 | AE35: 4.099431812 | AF35: 7.550369726 | AG35: 9.724476761 | AH35: 3.347531297 | AI35: 10.24142701 | AJ35: -2.409056384 | AK35: -100 | AL35: 1.123048296
A36: Operating Room | B36: 783.7943196 | C36: 833.9189094 | D36: 852.0823321 | E36: 794.6903806 | F36: 809.2597655 | G36: 883.0330081 | H36: 679.6620475 | I36: 686.1795212 | J36: 727.9912317 | K36: 1040.015744 | L36: 1065.179389 | M36: 1134.141092 | N36: 779.2420462 | O36: 880.6494529 | P36: 896.2552149 | Q36: 1061.531974 | R36: 1071.40872 | S36: 1152.380969 | T36: 287.1529667 | U36: 311.3396165 | V36: 302.487354 | W36: 1109.913522 | X36: 1343.049829 | Y36: 0 | Z36: 773.7861053 | AA36: 809.0990615 | AB36: 843.2505557 | AD36: 2.178080198 | AE36: 9.116138701 | AF36: 6.093406934 | AG36: 6.474186772 | AH36: 1.772074223 | AI36: 7.557550001 | AJ36: -2.843281738 | AK36: -100 | AL36: 4.220928676
A37: Patient Transport | B37: 51.10027836 | C37: 60.08832054 | D37: 79.56461078 | E37: 15.56705387 | F37: 16.645745 | G37: 24.27490931 | H37: 11.27344227 | I37: 12.97695187 | J37: 13.99173519 | K37: 16.88009872 | L37: 29.04168148 | M37: 24.41385094 | N37: 1.516060274 | O37: 0.7136545106 | P37: 1.320003072 | Q37: 15.8314795 | R37: 17.83032595 | S37: 19.4862807 | T37: 113.7721452 | U37: 150.818466 | V37: 183.9968305 | W37: 0 | X37: 0 | Y37: 0 | Z37: 24.78603349 | AA37: 28.77324209 | AB37: 37.90625226 | AD37: 32.41277183 | AE37: 45.83251939 | AF37: 7.819889698 | AG37: -15.93513289 | AH37: 84.96387987 | AI37: 9.287293775 | AJ37: 21.99887416 | AL37: 31.74133158
A38: Special Procedure Suite | B38: 63.19679134 | C38: 68.43687101 | D38: 67.9672596 | E38: 70.6109143 | F38: 72.95921596 | G38: 78.4941478 | H38: 41.64108126 | I38: 60.43151229 | J38: 53.08281949 | K38: 125.2238656 | L38: 106.2422373 | M38: 117.6586112 | N38: 67.72972659 | O38: 67.80281799 | P38: 70.36821999 | Q38: 101.4180199 | R38: 123.1279734 | S38: 144.3362828 | T38: 1.753679739 | U38: 2.425350343 | V38: 1.791810307 | W38: 77.26353932 | X38: 93.52418198 | Y38: 0 | Z38: 63.32802953 | AA38: 69.97811619 | AB38: 70.50458576 | AD38: -0.6861964904 | AE38: 7.586336781 | AF38: -12.16036554 | AG38: 10.74560752 | AH38: 3.783621495 | AI38: 17.22460685 | AJ38: -26.12158849 | AK38: -100 | AL38: 0.7523345979
A39: Hotel | B39: 227.4674487 | C39: 248.4906508 | D39: 267.7092592 | E39: 212.7456883 | F39: 221.7082772 | G39: 246.0514499 | H39: 67.69036649 | I39: 86.96415678 | J39: 90.14808867 | K39: 234.2807308 | L39: 249.95183 | M39: 277.9276567 | N39: 341.1631845 | O39: 381.184824 | P39: 424.0614679 | Q39: 207.3493954 | R39: 146.8045058 | S39: 176.8964275 | T39: 25.7055369 | U39: 26.85457951 | V39: 165.0499013 | W39: 189.5114467 | X39: 206.3825201 | Y39: 0 | Z39: 187.2674043 | AA39: 202.543718 | AB39: 226.630858 | AD39: 7.734137412 | AE39: 10.97982133 | AF39: 3.661200212 | AG39: 11.19248727 | AH39: 11.24825573 | AI39: 20.49795512 | AJ39: 514.6061652 | AK39: -100 | AL39: 11.8923165
A40: Depreciation | B40: 266.9257583 | C40: 317.6196465 | D40: 364.9678535 | E40: 51.41454543 | F40: 58.61950154 | G40: 62.78287219 | H40: 101.2018024 | I40: 115.8350598 | J40: 177.2758531 | K40: 317.6252643 | L40: 492.6043912 | M40: 573.293045 | N40: 249.8761113 | O40: 294.98844 | P40: 308.8291648 | Q40: 234.179504 | R40: 266.7804072 | S40: 244.9791266 | T40: 168.2359217 | U40: 204.6187661 | V40: 179.7529266 | W40: 6.138805416 | X40: 22.75702329 | Y40: 0 | Z40: 161.5308876 | AA40: 194.7711842 | AB40: 233.6892601 | AD40: 14.90720349 | AE40: 7.102364462 | AF40: 53.04162087 | AG40: 16.38001106 | AH40: 4.691955004 | AI40: -8.171994652 | AJ40: -12.15227712 | AK40: -100 | AL40: 19.98143412
A41: Total Bucket | B41: 5757.604778 | C41: 6638.102676 | D41: 6814.779727 | E41: 5213.520716 | F41: 5572.906138 | G41: 6041.500367 | H41: 4636.195682 | I41: 4841.895577 | J41: 5371.65029 | K41: 5989.066456 | L41: 6552.871397 | M41: 7417.886499 | N41: 5710.022737 | O41: 6353.460087 | P41: 6876.775226 | Q41: 6700.08534 | R41: 7035.18315 | S41: 7955.271132 | T41: 4111.084625 | U41: 4454.961978 | V41: 4488.361757 | W41: 5902.352465 | X41: 7127.854732 | Y41: 0 | Z41: 5314.940655 | AA41: 5808.506883 | AB41: 6239.38081 | AD41: 2.661559476 | AE41: 8.408435681 | AF41: 10.94106027 | AG41: 13.20055055 | AH41: 8.236695146 | AI41: 13.07837994 | AJ41: 0.7497208542 | AK41: -100 | AL41: 7.417980819
B43: B: Line item
A45: Line Item | B45: Jurisdiction ($) | AD45: Change (%)
B46: NSW | E46: Vic | H46: QLD | K46: SA | N46: WA | Q46: Tas | T46: NT | W46: ACT | Z46: National | AD46: NSW | AE46: Vic | AF46: QLD | AG46: SA | AH46: WA | AI46: Tas | AJ46: NT | AK46: ACT | AL46: National
B47: 2020-21 | C47: 2021-22 | D47: 2022-23 | E47: 2020-21 | F47: 2021-22 | G47: 2022-23 | H47: 2020-21 | I47: 2021-22 | J47: 2022-23 | K47: 2020-21 | L47: 2021-22 | M47: 2022-23 | N47: 2020-21 | O47: 2021-22 | P47: 2022-23 | Q47: 2020-21 | R47: 2021-22 | S47: 2022-23 | T47: 2020-21 | U47: 2021-22 | V47: 2022-23 | W47: 2020-21 | X47: 2021-22 | Y47: 2022-23 | Z47: 2020-21 | AA47: 2021-22 | AB47: 2022-23 | AD47: 2021-22 and 2022-23
A48: Salary & Wages Nursing | B48: 1537.851717 | C48: 1789.169393 | D48: 1807.770322 | E48: 1324.851484 | F48: 1359.303416 | G48: 1470.596831 | H48: 1451.490762 | I48: 1506.49369 | J48: 1711.317226 | K48: 1759.160475 | L48: 1822.596627 | M48: 2025.719951 | N48: 1276.557994 | O48: 1428.687592 | P48: 1588.32862 | Q48: 1924.785569 | R48: 1967.09408 | S48: 2076.239376 | T48: 1029.855246 | U48: 1142.28712 | V48: 1156.667431 | W48: 1615.862445 | X48: 1921.188951 | Y48: 0 | Z48: 1444.420589 | AA48: 1556.504407 | AB48: 1671.916823 | AD48: =IFERROR((D48/C48-1)*100,"") -> 1.039640432 | AE48: =IFERROR((G48/F48-1)*100,"") -> 8.187532969 | AF48: =IFERROR((J48/I48-1)*100,"") -> 13.59604344 | AG48: =IFERROR((M48/L48-1)*100,"") -> 11.14472186 | AH48: =IFERROR((P48/O48-1)*100,"") -> 11.17396335 | AI48: =IFERROR((S48/R48-1)*100,"") -> 5.548554959 | AJ48: =IFERROR((V48/U48-1)*100,"") -> 1.258905161 | AK48: =IFERROR((Y48/X48-1)*100,"") -> -100 | AL48: =IFERROR((AB48/AA48-1)*100,"") -> 7.414846723
A49: Salary & Wages Medical (nonVMO) | B49: 707.3037175 | C49: 832.5602683 | D49: 839.6129326 | E49: 705.454302 | F49: 736.9505024 | G49: 776.5874699 | H49: 883.2781215 | I49: 917.2062585 | J49: 1007.659672 | K49: 1103.56166 | L49: 1113.497524 | M49: 1157.4177 | N49: 974.2141242 | O49: 1064.973043 | P49: 1121.91913 | Q49: 891.1414144 | R49: 1025.972317 | S49: 1199.531792 | T49: 667.846401 | U49: 715.3021788 | V49: 691.7388416 | W49: 1022.985223 | X49: 1118.965575 | Y49: 0 | Z49: 811.3029474 | AA49: 875.8940989 | AB49: 917.5687103 | AD49: 0.8471055681 | AE49: 5.378511501 | AF49: 9.861839991 | AG49: 3.944344309 | AH49: 5.347185757 | AI49: 16.91658464 | AJ49: -3.294179423 | AK49: -100 | AL49: 4.757950926
A50: Salary & Wages Medical (VMO) | B50: 355.0322986 | C50: 381.9729074 | D50: 377.7481629 | E50: 327.8995777 | F50: 364.9511265 | G50: 392.8915798 | H50: 34.9116002 | I50: 32.71925318 | J50: 26.68341366 | K50: 153.3442306 | L50: 214.8336113 | M50: 277.5929442 | N50: 142.8656823 | O50: 146.6087527 | P50: 148.4331997 | Q50: 71.77981961 | R50: 92.96725316 | S50: 91.21613221 | T50: 55.23727106 | U50: 46.88365757 | V50: 69.39942514 | W50: 344.1654187 | X50: 411.428881 | Y50: 0 | Z50: 218.3224314 | AA50: 237.533353 | AB50: 247.8770736 | AD50: -1.106032503 | AE50: 7.655943838 | AF50: -18.44736335 | AG50: 29.21299537 | AH50: 1.244432537 | AI50: -1.883588999 | AJ50: 48.02476757 | AK50: -100 | AL50: 4.354639206
A51: Salary & Wages Allied Health | B51: 263.9657662 | C51: 325.3578056 | D51: 315.6651765 | E51: 105.0373653 | F51: 112.2193648 | G51: 117.6815933 | H51: 232.5514565 | I51: 237.6782206 | J51: 261.7783575 | K51: 196.5248375 | L51: 144.1777742 | M51: 153.5756212 | N51: 264.7802132 | O51: 309.2618369 | P51: 344.7527785 | Q51: 218.6033813 | R51: 218.5841946 | S51: 250.9735343 | T51: 83.35846534 | U51: 127.5247063 | V51: 118.9718268 | W51: 281.3716422 | X51: 326.6638595 | Y51: 0 | Z51: 204.5316566 | AA51: 223.5105864 | AB51: 232.6183547 | AD51: -2.979067637 | AE51: 4.867456255 | AF51: 10.13981712 | AG51: 6.51823556 | AH51: 11.47601718 | AI51: 14.8177867 | AJ51: -6.706841175 | AK51: -100 | AL51: 4.074871122
A52: Salary & Wages Other | B52: 516.2253207 | C52: 612.9462992 | D52: 622.2128401 | E52: 593.053033 | F52: 644.4116093 | G52: 673.3675018 | H52: 579.3892229 | I52: 574.245205 | J52: 660.0501253 | K52: 342.1254018 | L52: 363.940169 | M52: 403.5642974 | N52: 483.6464625 | O52: 464.5364222 | P52: 547.4666006 | Q52: 616.7059258 | R52: 654.7087376 | S52: 751.417074 | T52: 674.8504136 | U52: 677.8628369 | V52: 472.9648661 | W52: 464.350378 | X52: 681.4612423 | Y52: 0 | Z52: 543.8186139 | AA52: 584.949873 | AB52: 623.7465281 | AD52: 1.511803056 | AE52: 4.493384664 | AF52: 14.94220927 | AG52: 10.88753914 | AH52: 17.8522446 | AI52: 14.7711999 | AJ52: -30.22705474 | AK52: -100 | AL52: 6.632475165
A53: Oncosts | B53: 319.8799408 | C53: 381.5965417 | D53: 458.2087272 | E53: 640.200411 | F53: 731.4891238 | G53: 820.6334569 | H53: 206.5906032 | I53: 262.9410036 | J53: 288.2581072 | K53: 441.1171491 | L53: 463.4878289 | M53: 585.2405756 | N53: 358.8379855 | O53: 422.3331413 | P53: 478.3144691 | Q53: 602.8388372 | R53: 555.1394135 | S53: 680.9226585 | T53: 212.2835675 | U53: 229.1170923 | V53: 254.7235456 | W53: 618.4356 | X53: 687.8218601 | Y53: 0 | Z53: 394.4206812 | AA53: 460.0506413 | AB53: 524.1512621 | AD53: 20.07675046 | AE53: 12.1866929 | AF53: 9.628435008 | AG53: 26.26881206 | AH53: 13.25525334 | AI53: 22.65795616 | AJ53: 11.17614272 | AK53: -100 | AL53: 13.93338364
A54: Pathology | B54: 158.6578148 | C54: 178.6714543 | D54: 184.6488624 | E54: 60.39512231 | F54: 72.23437478 | G54: 67.90883904 | H54: 113.0504435 | I54: 115.3814165 | J54: 121.8669359 | K54: 131.5372344 | L54: 140.5279516 | M54: 172.7424908 | N54: 100.6134366 | O54: 148.8419421 | P54: 151.7504055 | Q54: 53.80823109 | R54: 39.32398366 | S54: 57.25485102 | T54: 53.05822366 | U54: 54.47679631 | V54: 65.34262119 | W54: 58.58896113 | X54: 67.94728855 | Y54: 0 | Z54: 107.0093478 | AA54: 119.3355978 | AB54: 126.1003982 | AD54: 3.345474593 | AE54: -5.988195709 | AF54: 5.620939295 | AG54: 22.92393704 | AH54: 1.954061758 | AI54: 45.59778966 | AJ54: 19.9457854 | AK54: -100 | AL54: 5.668719633
A55: Imaging | B55: 39.67708938 | C55: 37.87214042 | D55: 38.34473145 | E55: 35.16858754 | F55: 33.76992217 | G55: 43.51472311 | H55: 6.124868718 | I55: 5.416269003 | J55: 1.450731232 | K55: 21.4172459 | L55: 161.2470849 | M55: 191.3331524 | N55: 14.2741866 | O55: 15.3512147 | P55: 15.81416732 | Q55: 28.89540009 | R55: 24.07895115 | S55: 28.19321727 | T55: 57.7734044 | U55: 65.89388622 | V55: 80.12307151 | W55: 11.24393324 | X55: 2.941681016 | Y55: 0 | Z55: 26.07402581 | AA55: 34.09672066 | AB55: 38.94768033 | AD55: 1.247859294 | AE55: 28.8564507 | AF55: -73.21530318 | AG55: 18.65836371 | AH55: 3.015739374 | AI55: 17.08656699 | AJ55: 21.5940903 | AK55: -100 | AL55: 14.22705639
A56: Prostheses | B56: 185.3512052 | C56: 161.5910197 | D56: 185.2578982 | E56: 125.555408 | F56: 120.6417416 | G56: 139.4570453 | H56: 160.0029859 | I56: 139.7583555 | J56: 154.2254706 | K56: 180.9718568 | L56: 163.9928808 | M56: 187.0674633 | N56: 164.0365844 | O56: 154.7170123 | P56: 170.3977141 | Q56: 162.5241362 | R56: 143.2327769 | S56: 139.6396748 | T56: 40.06153058 | U56: 37.67352724 | V56: 38.05814714 | W56: 118.1835391 | X56: 127.8612918 | Y56: 0 | Z56: 155.0983626 | AA56: 139.9172569 | AB56: 158.2051168 | AD56: 14.64615951 | AE56: 15.59601462 | AF56: 10.35152065 | AG56: 14.07047812 | AH56: 10.13508569 | AI56: -2.508575319 | AJ56: 1.02092882 | AK56: -100 | AL56: 13.070482
A57: Medical supplies | B57: 320.0346394 | C57: 328.4399689 | D57: 324.7016178 | E57: 256.6938526 | F57: 264.2941175 | G57: 293.3461076 | H57: 196.0328118 | I57: 202.8382947 | J57: 226.687697 | K57: 319.74827 | L57: 293.5202898 | M57: 310.2995386 | N57: 260.2472362 | O57: 274.682683 | P57: 277.2666785 | Q57: 409.5439195 | R57: 375.3574666 | S57: 398.8538215 | T57: 224.5830987 | U57: 298.8627404 | V57: 284.3080689 | W57: 358.1730944 | X57: 407.1473886 | Y57: 0 | Z57: 265.9396246 | AA57: 272.730213 | AB57: 286.1132536 | AD57: -1.138214406 | AE57: 10.99229537 | AF57: 11.75784007 | AG57: 5.716555013 | AH57: 0.9407202019 | AI57: 6.259727598 | AJ57: -4.870018768 | AK57: -100 | AL57: 4.907061972
A58: Goods and services | B58: 614.2512074 | C58: 730.345766 | D58: 686.1846268 | E58: 396.269669 | F58: 451.2371597 | G58: 495.7538053 | H58: 361.5569597 | I58: 403.9014261 | J58: 394.8579896 | K58: 544.0377317 | L58: 569.5252549 | M58: 758.4235046 | N58: 523.212806 | O58: 653.6309878 | P58: 601.87689 | Q58: 964.8813006 | R58: 1134.769897 | S58: 1441.278293 | T58: 523.0696829 | U58: 499.6201901 | V58: 538.8792647 | W58: 659.3572248 | X58: 972.9191738 | Y58: 0 | Z58: 485.160707 | AA58: 559.8289615 | AB58: 569.7978434 | AD58: -6.046607129 | AE58: 9.865465348 | AF58: -2.239020708 | AG58: 33.1676687 | AH58: -7.917938232 | AI58: 27.01062098 | AJ58: 7.857783861 | AK58: -100 | AL58: 1.780701358
A59: Pharmaceuticals PBS | B59: 13.50799379 | C59: 22.53712858 | D59: 28.39845795 | E59: 188.6454723 | F59: 204.47371 | G59: 223.3084649 | H59: 62.60266783 | I59: 51.95855668 | J59: 69.32764706 | K59: 43.80577836 | L59: 49.74775768 | M59: 57.43096928 | N59: 194.3003417 | O59: 211.1961913 | P59: 233.8471995 | Q59: 17.74896636 | R59: 33.64714879 | S59: 180.4932783 | T59: 101.6123789 | U59: 95.61175776 | V59: 94.147436 | W59: 19.48815 | X59: 19.24626301 | Y59: 0 | Z59: 93.70776297 | AA59: 101.1999571 | AB59: 119.5036467 | AD59: 26.00743634 | AE59: 9.211333274 | AF59: 33.42873915 | AG59: 15.4443375 | AH59: 10.7251026 | AI59: 436.4296375 | AJ59: -1.531528961 | AK59: -100 | AL59: 18.08665745
A60: Pharmaceuticals nonPBS | B60: 138.6714124 | C60: 176.9580208 | D60: 187.7549425 | E60: 107.5188441 | F60: 103.4141057 | G60: 119.8932998 | H60: 143.777902 | I60: 143.5028909 | J60: 133.9105369 | K60: 114.5460958 | L60: 153.5414976 | M60: 149.4065965 | N60: 91.02138322 | O60: 104.3667595 | P60: 114.7783981 | Q60: 242.3242832 | R60: 287.7278161 | S60: 178.768254 | T60: 69.39135702 | U60: 68.39234017 | V60: 79.32947801 | W60: 77.82068327 | X60: 73.64748117 | Y60: 0 | Z60: 124.8049637 | AA60: 137.8064503 | AB60: 142.5941948 | AD60: 6.101402807 | AE60: 15.93515118 | AF60: -6.68443258 | AG60: -2.693018581 | AH60: 9.976010197 | AI60: -37.86897062 | AJ60: 15.99175845 | AK60: -100 | AL60: 3.474252838
A61: Blood | B61: 41.70116903 | C61: 51.88534386 | D61: 46.02870503 | E61: 67.11372004 | F61: 76.57314907 | G61: 73.45041745 | H61: 24.70147674 | I61: 32.13107821 | J61: 31.92380853 | K61: 0 | L61: 52.31364186 | M61: 46.40502577 | N61: 0 | O61: 0 | P61: 0 | Q61: 33.17464687 | R61: 44.1160457 | S61: 39.0188536 | T61: 10.38998014 | U61: 13.16133678 | V61: 14.90807499 | W61: 56.67591933 | X61: 79.47425151 | Y61: 0 | Z61: 36.55026506 | AA61: 47.79116655 | AB61: 44.556036 | AD61: -11.28765543 | AE61: -4.078102648 | AF61: -0.6450753773 | AG61: -11.29459902 | AI61: -11.55405482 | AJ61: 13.27173853 | AK61: -100 | AL61: -6.769306517
A62: Depreciation building | B62: 203.5560746 | C62: 234.7369683 | D62: 274.3898818 | E62: 0.0169867974 | F62: 0.1390016784 | G62: 0.0487564008 | H62: 70.98227567 | I62: 71.09570153 | J62: 109.3852214 | K62: 198.0170304 | L62: 396.8274981 | M62: 493.6727422 | N62: 136.0394495 | O62: 157.9981746 | P62: 171.6171444 | Q62: 164.6022017 | R62: 160.3201443 | S62: 164.5042904 | T62: 127.3560461 | U62: 161.6732626 | V62: 132.4659349 | W62: 0 | X62: 0 | Y62: 0 | Z62: 102.926948 | AA62: 124.068244 | AB62: 154.3110179 | AD62: 16.8924877 | AE62: -64.9238762 | AF62: 53.85630788 | AG62: 24.40487228 | AH62: 8.619700719 | AI62: 2.609869215 | AJ62: -18.06565119 | AL62: 24.37591834
A63: Depreciation equipment | B63: 55.44198539 | C63: 67.65004373 | D63: 75.94408218 | E63: 0.0039116363 | F63: 0.0359565334 | G63: 0.0148768425 | H63: 18.70497594 | I63: 28.23876133 | J63: 45.95370922 | K63: 104.0943677 | L63: 89.92022494 | M63: 66.47833061 | N63: 67.44189754 | O63: 97.99095383 | P63: 99.48153591 | Q63: 60.28657318 | R63: 62.44388348 | S63: 62.98399073 | T63: 22.36586357 | U63: 26.90513726 | V63: 28.54059962 | W63: 0 | X63: 0 | Y63: 0 | Z63: 33.95405529 | AA63: 40.97902945 | AB63: 47.35072966 | AD63: 12.26021151 | AE63: -58.62548168 | AF63: 62.73273704 | AG63: -26.06965712 | AH63: 1.521142539 | AI63: 0.8649482078 | AJ63: 6.078624844 | AL63: 15.54868503
A64: Hotel | B64: 227.4674487 | C64: 248.4906508 | D64: 267.7092592 | E64: 212.7459185 | F64: 221.7099424 | G64: 246.0514499 | H64: 67.69102159 | I64: 86.96463125 | J64: 90.14855247 | K64: 234.2807308 | L64: 249.95183 | M64: 277.9276567 | N64: 341.1721228 | O64: 381.1887934 | P64: 424.0675719 | Q64: 207.3501288 | R64: 146.8068958 | S64: 176.8965219 | T64: 25.7055369 | U64: 26.85457951 | V64: 165.0499013 | W64: 189.5114467 | X64: 206.3825201 | Y64: 0 | Z64: 187.2683276 | AA64: 202.5443016 | AB64: 226.6315611 | AD64: 7.734137408 | AE64: 10.97898778 | AF64: 3.661167964 | AG64: 11.19248727 | AH64: 11.24869861 | AI64: 20.49605768 | AJ64: 514.6061652 | AK64: -100 | AL64: 11.89234125
A65: Corporate | B65: 0 | C65: 0 | D65: 0 | E65: 0 | F65: 0 | G65: 0 | H65: 0 | I65: 0 | J65: 0.2591050017 | K65: 68.38239531 | L65: 74.3236018 | M65: 66.03211548 | N65: 269.0977062 | O65: 277.4334915 | P65: 347.6891017 | Q65: 3.982763064 | R65: 7.201489859 | S65: 0.1210189454 | T65: 0 | U65: 0 | V65: 0 | W65: 0 | X65: 0 | Y65: 0 | Z65: 30.23754678 | AA65: 31.28846102 | AB65: 37.47027276 | AG65: -11.1559264 | AH65: 25.32340628 | AI65: -98.31952905 | AL65: 19.75748096
A66: Lease | B66: 0 | C66: 0 | D66: 0 | E66: 51.39373131 | F66: 58.44066504 | G66: 62.71652466 | H66: 6.622314827 | I66: 7.384456146 | J66: 6.068548575 | K66: 15.51386621 | L66: 5.856668162 | M66: 13.14197219 | N66: 10.74813411 | O66: 13.63292755 | P66: 16.47123665 | Q66: 9.291437763 | R66: 27.02010053 | S66: 1.329945686 | T66: 18.51401195 | U66: 16.04036618 | V66: 18.74639203 | W66: 6.138805416 | X66: 22.75702329 | Y66: 0 | Z66: 17.95228087 | AA66: 20.89376042 | AB66: 21.78516837 | AE66: 7.316582771 | AF66: -17.81996596 | AG66: 124.3933211 | AH66: 20.81951287 | AI66: -95.07793953 | AJ66: 16.87010019 | AK66: -100 | AL66: 4.266383509
A67: Patient Transport | B67: 51.10027836 | C67: 60.08832054 | D67: 79.56461078 | E67: 15.56705387 | F67: 16.64592419 | G67: 24.27490931 | H67: 11.2735129 | I67: 12.98036117 | J67: 3.790361652 | K67: 16.88009872 | L67: 29.04168148 | M67: 24.41385094 | N67: 1.517268736 | O67: 0.7136557447 | P67: 1.320003414 | Q67: 15.83148838 | R67: 17.83032595 | S67: 19.48628851 | T67: 113.7721452 | U67: 150.818466 | V67: 183.8550898 | W67: 0 | X67: 0 | Y67: 0 | Z67: 24.78614423 | AA67: 28.77411923 | AB67: 35.280382 | AD67: 32.41277183 | AE67: 45.83094954 | AF67: -70.79925897 | AG67: -15.93513289 | AH67: 84.96360797 | AI67: 9.287337525 | AJ67: 21.90489317 | AL67: 22.61150973
A68: Patient Transport - Other | B68: 0 | C68: 0 | D68: 0 | E68: 0 | F68: 0 | G68: 0 | H68: 0 | I68: 0 | J68: 10.20139094 | K68: 0 | L68: 0 | M68: 0 | N68: 0 | O68: 0 | P68: 0 | Q68: 0 | R68: 0 | S68: 0 | T68: 0 | U68: 0 | V68: 0.1417406921 | W68: 0 | X68: 0 | Y68: 0 | Z68: 0 | AA68: 0 | AB68: 2.625874952 | AD68: =IFERROR((D68/C68-1)*100,"") ->  | AE68: =IFERROR((G68/F68-1)*100,"") ->  | AF68: =IFERROR((J68/I68-1)*100,"") ->  | AG68: =IFERROR((M68/L68-1)*100,"") ->  | AH68: =IFERROR((P68/O68-1)*100,"") ->  | AI68: =IFERROR((S68/R68-1)*100,"") ->  | AJ68: =IFERROR((V68/U68-1)*100,"") ->  | AK68: =IFERROR((Y68/X68-1)*100,"") ->  | AL68: =IFERROR((AB68/AA68-1)*100,"") -> 
A69: Depreciation right-of-use | B69: 7.927698343 | C69: 15.23263446 | D69: 14.63388954 | E69: 0 | F69: 0.0039273479 | G69: 0.002714278 | H69: 4.893880686 | I69: 9.116912464 | J69: 15.86959012 | K69: 0 | L69: 0 | M69: 0 | N69: 35.65484543 | O69: 25.37079266 | P69: 21.26732294 | Q69: 0 | R69: 17.00528413 | S69: 16.16153463 | T69: 0 | U69: 0 | V69: 0 | W69: 0 | X69: 0 | Y69: 0 | Z69: 6.698696157 | AA69: 8.830591733 | AB69: 10.24344158 | AD69: -3.930672173 | AE69: -30.88776271 | AF69: 74.06759338 | AH69: -16.173991 | AI69: -4.961690151 | AL69: 15.99949236
A70: Total | B70: 5757.604777 | C70: 6638.102675 | D70: 6814.779727 | E70: 5213.584451 | F70: 5572.93884 | G70: 6041.500367 | H70: 4636.229864 | I70: 4841.952742 | J70: 5371.674198 | K70: 5989.066456 | L70: 6552.871397 | M70: 7417.886499 | N70: 5710.279861 | O70: 6353.516369 | P70: 6876.860168 | Q70: 6700.100424 | R70: 7035.348205 | S70: 7955.2844 | T70: 4111.084625 | U70: 4454.961978 | V70: 4488.361757 | W70: 5902.352465 | X70: 7127.854732 | Y70: 0 | Z70: 5314.985978 | AA70: 5808.527791 | AB70: 6239.39537 | AD70: 2.661559487 | AE70: 8.407799548 | AF70: 10.94024425 | AG70: 13.20055056 | AH70: 8.23707328 | AI70: 13.07591563 | AJ70: 0.7497208565 | AK70: -100 | AL70: 7.417844838

Sheet 6 Acute Product
A1: Appendix 6. NHCDC 2020-21 to 2022-23 Admitted Acute summaries, by jurisdiction
A6: A: Same day and overnight, Indigenous and non-Indigenous, by jurisdiction | D6: Jurisdiction
D7: NSW | G7: Vic | J7: QLD | M7: SA | P7: WA | S7: Tas | V7: NT | Y7: ACT | AB7: National
D8: 2020-21 | E8: 2021-22 | F8: 2022-23 | G8: 2020-21 | H8: 2021-22 | I8: 2022-23 | J8: 2020-21 | K8: 2021-22 | L8: 2022-23 | M8: 2020-21 | N8: 2021-22 | O8: 2022-23 | P8: 2020-21 | Q8: 2021-22 | R8: 2022-23 | S8: 2020-21 | T8: 2021-22 | U8: 2022-23 | V8: 2020-21 | W8: 2021-22 | X8: 2022-23 | Y8: 2020-21 | Z8: 2021-22 | AA8: 2022-23 | AB8: 2020-21 | AC8: 2021-22 | AD8: 2022-23
A9: Indigenous | B9: Overnight | C9: Separations | D9: 42397 | E9: 43635 | F9: 47495 | G9: 10951 | H9: 11557 | I9: 13395 | J9: 50429 | K9: 54907 | L9: 55253 | M9: 9119 | N9: 8727 | O9: 9608 | P9: 22682 | Q9: 22101 | R9: 24213 | S9: 3009 | T9: 3203 | U9: 3945 | V9: 26747 | W9: 24882 | X9: 27455 | Y9: 1840 | Z9: 1798 | AA9: 0 | AB9: 167174 | AC9: 170810 | AD9: 181364
C10: ALOS | D10: 4.206854259 | E10: 4.872006417 | F10: 4.594125697 | G10: 4.267372843 | H10: 4.304750368 | I10: 4.347144457 | J10: 3.634218406 | K10: 3.992842443 | L10: 3.720630554 | M10: 4.469788354 | N10: 4.588976739 | O10: 4.958888426 | P10: 3.893704259 | Q10: 4.020451563 | R10: 4.172675835 | S10: 4.314390163 | T10: 4.217608492 | U10: 4.29531052 | V10: 4.251018806 | W10: 4.724941725 | X10: 4.616390457 | Y10: 4.470652174 | Z10: 4.942157953 | AA10: 0 | AB10: 4.021839521 | AC10: 4.393419589 | AD10: 4.269700712
C11: Average cost | D11: 10012.87012 | E11: 10774.46616 | F11: 11761.00817 | G11: 12060.51882 | H11: 12531.30687 | I11: 14041.78123 | J11: 10324.64098 | K11: 10169.38689 | L11: 11594.25339 | M11: 12860.32498 | N11: 14191.64097 | O11: 16939.80308 | P11: 12639.81756 | Q11: 14183.89288 | R11: 16083.85331 | S11: 12492.67213 | T11: 13676.63239 | U11: 15281.63945 | V11: 12206.48126 | W11: 13939.34618 | X11: 13462.43517 | Y11: 13238.22114 | Z11: 15988.13142 | AA11: 0 | AB11: 11183.89758 | AC11: 11884.89587 | AD11: 13064.27526
B12: Same Day | C12: Separations | D12: 49476 | E12: 44455 | F12: 51436 | G12: 14751 | H12: 16502 | I12: 18899 | J12: 107454 | K12: 106691 | L12: 113648 | M12: 20070 | N12: 20708 | O12: 21946 | P12: 69768 | Q12: 72481 | R12: 74208 | S12: 3634 | T12: 4746 | U12: 5526 | V12: 97585 | W12: 93941 | X12: 98912 | Y12: 2007 | Z12: 1957 | AA12: 0 | AB12: 364745 | AC12: 361481 | AD12: 384575
C13: Average cost | D13: 1278.289253 | E13: 1407.42291 | F13: 1489.796934 | G13: 1536.003404 | H13: 1614.00741 | I13: 1817.571036 | J13: 1116.648077 | K13: 1136.995053 | L13: 1293.661916 | M13: 945.345015 | N13: 1036.657874 | O13: 1160.793969 | P13: 1046.145111 | Q13: 1095.099668 | R13: 1224.127322 | S13: 2409.388177 | T13: 2257.96274 | U13: 2688.021361 | V13: 899.2346432 | W13: 844.9011203 | X13: 868.1694174 | Y13: 1581.712512 | Z13: 1514.297491 | AA13: 0 | AB13: 1089.89316 | AC13: 1118.731366 | AD13: 1235.240886
A14: Non-Indigenous | B14: Overnight | C14: Separations | D14: 755679 | E14: 699395 | F14: 767037 | G14: 607340 | H14: 594901 | I14: 636162 | J14: 559764 | K14: 567204 | L14: 582404 | M14: 169123 | N14: 166866 | O14: 174921 | P14: 200275 | Q14: 190528 | R14: 198791 | S14: 52413 | T14: 53402 | U14: 56006 | V14: 22692 | W14: 20561 | X14: 22067 | Y14: 50331 | Z14: 46197 | AA14: 0 | AB14: 2417617 | AC14: 2339054 | AD14: 2437388
C15: ALOS | D15: 4.74489565 | E15: 5.27037654 | F15: 5.258112712 | G15: 4.31995752 | H15: 4.459076384 | I15: 4.584862032 | J15: 3.655204693 | K15: 3.868123285 | L15: 3.915932926 | M15: 4.322096935 | N15: 4.577757003 | O15: 4.856603838 | P15: 3.919435776 | Q15: 4.182618828 | R15: 4.339567687 | S15: 4.874305993 | T15: 4.901670349 | U15: 5.183230368 | V15: 3.820597567 | W15: 4.167501581 | X15: 4.176825123 | Y15: 4.359500109 | Z15: 4.716128753 | AA15: 0 | AB15: 4.273992117 | AC15: 4.556925578 | AD15: 4.646444472
C16: Average cost | D16: 10306.4274 | E16: 11798.60459 | F16: 12266.90744 | G16: 11064.74738 | H16: 12173.1427 | I16: 13090.14492 | J16: 9908.042504 | K16: 10205.84173 | L16: 11440.68155 | M16: 11353.1702 | N16: 12622.02052 | O16: 14173.43382 | P16: 12764.82615 | Q16: 14414.0147 | R16: 15537.72046 | S16: 13165.73601 | T16: 14870.81098 | U16: 16877.89639 | V16: 11166.62015 | W16: 12987.0243 | X16: 13057.9915 | Y16: 11404.64308 | Z16: 14568.19824 | AA16: 0 | AB16: 10774.49135 | AC16: 11914.69622 | AD16: 12801.05085
B17: Same Day | C17: Separations | D17: 776623 | E17: 698138 | F17: 795151 | G17: 1009072 | H17: 1038107 | I17: 1098281 | J17: 900245 | K17: 883521 | L17: 911015 | M17: 195401 | N17: 200577 | O17: 203222 | P17: 317114 | Q17: 303199 | R17: 322696 | S17: 72339 | T17: 87144 | U17: 90701 | V17: 32709 | W17: 29888 | X17: 31417 | Y17: 64473 | Z17: 61689 | AA17: 0 | AB17: 3367976 | AC17: 3302263 | AD17: 3452483
C18: Average cost | D18: 1376.625143 | E18: 1530.104556 | F18: 1597.495353 | G18: 1635.551952 | H18: 1744.069414 | I18: 1919.399881 | J18: 1464.059958 | K18: 1524.36079 | L18: 1641.956175 | M18: 1460.189836 | N18: 1666.636478 | O18: 1803.126711 | P18: 1784.958104 | Q18: 1974.519118 | R18: 2150.415896 | S18: 1972.951338 | T18: 2210.726671 | U18: 2429.747081 | V18: 2177.721643 | W18: 2036.30375 | X18: 2002.347324 | Y18: 1378.941324 | Z18: 1348.325549 | AA18: 0 | AB18: 1541.500222 | AC18: 1664.074062 | AD18: 1800.962094
A19: Not Assigned | B19: Overnight | C19: Separations | D19: 1658 | E19: 2073 | F19: 1888 | G19: 7575 | H19: 8630 | I19: 8170 | J19: 2079 | K19: 3935 | L19: 3607 | M19: 5549 | N19: 6204 | O19: 5357 | P19: 0 | Q19: 0 | R19: 0 | S19: 762 | T19: 856 | U19: 852 | V19: 22 | W19: 17 | X19: 49 | Y19: 589 | Z19: 555 | AA19: 0 | AB19: 18234 | AC19: 22270 | AD19: 19923
C20: ALOS | D20: 4.828709288 | E20: 5.865412446 | F20: 4.700211864 | G20: 4.705082508 | H20: 4.64368482 | I20: 4.681640147 | J20: 5.785954786 | K20: 5.516899619 | L20: 4.638480732 | M20: 4.828797982 | N20: 4.666666667 | O20: 4.810154938 | P20: 0 | Q20: 0 | R20: 0 | S20: 4.653543307 | T20: 4.83411215 | U20: 4.577464789 | V20: 1.545454545 | W20: 1.588235294 | X20: 5.183673469 | Y20: 7.030560272 | Z20: 5.965765766 | AA20: 0 | AB20: 4.946363935 | AC20: 4.956039515 | AD20: 4.706921648
C21: Average cost | D21: 13285.92512 | E21: 14734.87804 | F21: 14495.2253 | G21: 14184.5169 | H21: 14823.82088 | I21: 15553.37467 | J21: 13844.94146 | K21: 8893.449756 | L21: 7982.381543 | M21: 13369.95873 | N21: 14034.00671 | O21: 14476.91379 | P21: 0 | Q21: 0 | R21: 0 | S21: 12138.79925 | T21: 14756.39562 | U21: 14879.6402 | V21: 6758.045098 | W21: 7707.494601 | X21: 17718.41708 | Y21: 24233.06202 | Z21: 24156.39088 | AA21: 0 | AB21: 14046.3436 | AC21: 13772.20376 | AD21: 13769.46191
B22: Same Day | C22: Separations | D22: 1682 | E22: 1902 | F22: 2287 | G22: 9618 | H22: 12754 | I22: 15124 | J22: 6411 | K22: 6298 | L22: 6301 | M22: 5574 | N22: 6783 | O22: 5994 | P22: 0 | Q22: 0 | R22: 0 | S22: 635 | T22: 703 | U22: 769 | V22: 18 | W22: 25 | X22: 25 | Y22: 575 | Z22: 299 | AA22: 0 | AB22: 24513 | AC22: 28764 | AD22: 30500
C23: Average cost | D23: 1979.95375 | E23: 2491.618657 | F23: 2887.896968 | G23: 1892.079784 | H23: 1913.739583 | I23: 1948.475335 | J23: 1031.631268 | K23: 948.6041518 | L23: 1150.102359 | M23: 1569.549815 | N23: 1906.689509 | O23: 1974.441386 | P23: 0 | Q23: 0 | R23: 0 | S23: 2117.719498 | T23: 2447.709773 | U23: 2434.781523 | V23: 2818.367788 | W23: 2379.369573 | X23: 6332.464039 | Y23: 4300.327408 | Z23: 1830.005272 | AA23: 0 | AB23: 1662.747728 | AC23: 1751.553087 | AD23: 1874.938248
A24: Total Indigenous | C24: Separations | D24: 91873 | E24: 88090 | F24: 98931 | G24: 25702 | H24: 28059 | I24: 32294 | J24: 157883 | K24: 161598 | L24: 168901 | M24: 29189 | N24: 29435 | O24: 31554 | P24: 92450 | Q24: 94582 | R24: 98421 | S24: 6643 | T24: 7949 | U24: 9471 | V24: 124332 | W24: 118823 | X24: 126367 | Y24: 3847 | Z24: 3755 | AA24: 0 | AB24: 531919 | AC24: 532291 | AD24: 565939
C25: ALOS | D25: 2.479879834 | E25: 2.91798161 | F25: 2.725475331 | G25: 2.392148471 | H25: 2.36116754 | I25: 2.388338391 | J25: 1.841388877 | K25: 2.016893773 | L25: 1.890006572 | M25: 2.084004248 | N25: 2.064073382 | O25: 2.205457311 | P25: 1.709951325 | Q25: 1.705789685 | R25: 1.780524482 | S25: 2.501279542 | T25: 2.296515285 | U25: 2.372611129 | V25: 1.699377473 | W25: 1.780017337 | X25: 1.78571146 | Y25: 2.659994801 | Z25: 2.887616511 | AA25: 0 | AB25: 1.949717908 | AC25: 2.088934436 | AD25: 2.047826709
C26: Average cost | D26: 5309.07115 | E26: 6047.347215 | F26: 6420.82136 | G26: 6020.244645 | H26: 6110.647698 | I26: 6887.964779 | J26: 4057.749235 | K26: 4205.978199 | L26: 4663.319766 | M26: 4667.730239 | N26: 4936.896958 | O26: 5965.40573 | P26: 3890.576463 | Q26: 4153.561307 | R26: 4879.836424 | S26: 6976.69232 | T26: 6859.044495 | U26: 7933.700101 | V26: 3331.713211 | W26: 3586.929027 | X26: 3604.449982 | Y26: 7156.959685 | Z26: 8444.777761 | AA26: 0 | AB26: 4262.284246 | AC26: 4573.549422 | AD26: 5026.039877
A27: Total Non Indigenous | C27: Separations | D27: 1532302 | E27: 1397533 | F27: 1562188 | G27: 1616412 | H27: 1633008 | I27: 1734443 | J27: 1460009 | K27: 1450725 | L27: 1493419 | M27: 364524 | N27: 367443 | O27: 378143 | P27: 517389 | Q27: 493727 | R27: 521487 | S27: 124752 | T27: 140546 | U27: 146707 | V27: 55401 | W27: 50449 | X27: 53484 | Y27: 114804 | Z27: 107886 | AA27: 0 | AB27: 5785593 | AC27: 5641317 | AD27: 5889871
C28: ALOS | D28: 2.846854602 | E28: 3.137108748 | F28: 3.090740679 | G28: 2.247418975 | H28: 2.260133447 | I28: 2.314861889 | J28: 2.017999204 | K28: 2.121377932 | L28: 2.137156418 | M28: 2.541305922 | N28: 2.624758126 | O28: 2.783983837 | P28: 2.130078142 | Q28: 2.228164553 | R28: 2.273044199 | S28: 2.627741439 | T28: 2.482482604 | U28: 2.59696538 | V28: 2.155304056 | W28: 2.290947293 | X28: 2.310728442 | Y28: 2.472831957 | Z28: 2.591253731 | AA28: 0 | AB28: 2.368098136 | AC28: 2.474804731 | AD28: 2.508997396
C29: Average cost | D29: 5780.498557 | E29: 6668.972534 | F29: 6836.195072 | G29: 5178.415746 | H29: 5543.356452 | I29: 6016.625047 | J29: 4701.46291 | K29: 4918.643451 | L29: 5463.266106 | M29: 6050.094804 | N29: 6641.778509 | O29: 7525.370649 | P29: 6035.131713 | Q29: 6774.888987 | R29: 7253.660391 | S29: 6675.460501 | T29: 7021.065082 | U29: 7945.38744 | V29: 5859.533974 | W29: 6499.380622 | X29: 6563.803086 | Y29: 5774.289876 | Z29: 7009.101358 | AA29: 0 | AB29: 5399.676265 | AC29: 5914.279956 | AD29: 6353.096483
A30: Total Not Assigned | C30: Separations | D30: 3340 | E30: 3975 | F30: 4175 | G30: 17193 | H30: 21384 | I30: 23294 | J30: 8490 | K30: 10233 | L30: 9908 | M30: 11123 | N30: 12987 | O30: 11351 | P30: 0 | Q30: 0 | R30: 0 | S30: 1397 | T30: 1559 | U30: 1621 | V30: 40 | W30: 42 | X30: 74 | Y30: 1164 | Z30: 854 | AA30: 0 | AB30: 42747 | AC30: 51034 | AD30: 50423
C31: ALOS | D31: 2.900598802 | E31: 3.537358491 | F31: 2.673293413 | G31: 2.632408538 | H31: 2.470491957 | I31: 2.291276724 | J31: 2.17196702 | K31: 2.736929542 | L31: 2.324586193 | M31: 2.910096197 | N31: 2.751597752 | O31: 2.798167562 | P31: 0 | Q31: 0 | R31: 0 | S31: 2.992841804 | T31: 3.105195638 | U31: 2.88032079 | V31: 1.3 | W31: 1.238095238 | X31: 3.77027027 | Y31: 4.051546392 | Z31: 4.227166276 | AA31: 0 | AB31: 2.6833462 | AC31: 2.726319708 | AD31: 2.464668901
C32: Average cost | D32: 7592.319181 | E32: 8876.593927 | F32: 8136.911554 | G32: 7307.958987 | H32: 7123.896785 | I32: 6720.177385 | J32: 4169.30758 | K32: 4003.716773 | L32: 3637.388493 | M32: 7456.493 | N32: 7700.011747 | O32: 7874.868192 | P32: 0 | Q32: 0 | R32: 0 | S32: 7583.763001 | T32: 9206.038886 | U32: 8975.81767 | V32: 4985.190309 | W32: 4535.991608 | X32: 13871.81132 | Y32: 14386.56511 | Z32: 16339.54159 | AA32: 0 | AB32: 6945.047939 | AC32: 6997.073535 | AD32: 6574.670413
A33: Total Overnight | C33: Separations | D33: 799734 | E33: 745103 | F33: 816420 | G33: 625866 | H33: 615088 | I33: 657727 | J33: 612272 | K33: 626046 | L33: 641264 | M33: 183791 | N33: 181797 | O33: 189886 | P33: 222957 | Q33: 212629 | R33: 223004 | S33: 56184 | T33: 57461 | U33: 60803 | V33: 49461 | W33: 45460 | X33: 49571 | Y33: 52760 | Z33: 48550 | AA33: 0 | AB33: 2603025 | AC33: 2532134 | AD33: 2638675
C34: ALOS | D34: 4.716545751 | E34: 5.248702528 | F34: 5.218195292 | G34: 4.323698683 | H34: 4.458766876 | I34: 4.581222909 | J34: 3.660711253 | K34: 3.889425058 | L34: 3.903169366 | M34: 4.344723082 | N34: 4.581329725 | O34: 4.860468913 | P34: 3.916818041 | Q34: 4.165762902 | R34: 4.321447149 | S34: 4.841324932 | T34: 4.862532848 | U34: 5.117132378 | V34: 4.052344271 | W34: 4.471645403 | X34: 4.421274536 | Y34: 4.393195603 | Z34: 4.738784758 | AA34: 0 | AB34: 4.262508043 | AC34: 4.549406153 | AD34: 4.621006376
C35: Average cost | D35: 10297.04185 | E35: 11746.79781 | F35: 12242.62996 | G35: 11119.93003 | H35: 12217.06269 | I35: 13140.12273 | J35: 9955.723041 | K35: 10194.39546 | L35: 11434.46136 | M35: 11488.84009 | N35: 12745.55413 | O35: 14321.9704 | P35: 12752.1087 | Q35: 14390.09547 | R35: 15597.01767 | S35: 13115.76138 | T35: 14802.54044 | U35: 16746.32808 | V35: 11726.98441 | W35: 13506.29225 | X35: 13286.6002 | Y35: 11611.80234 | Z35: 14730.39159 | AA35: 0 | AB35: 10823.70372 | AC35: 11929.02267 | AD35: 12826.45492
A36: Total Sameday | C36: Separations | D36: 827781 | E36: 744495 | F36: 848874 | G36: 1033441 | H36: 1067363 | I36: 1132304 | J36: 1014110 | K36: 996510 | L36: 1030964 | M36: 221045 | N36: 228068 | O36: 231162 | P36: 386882 | Q36: 375680 | R36: 396904 | S36: 76608 | T36: 92593 | U36: 96996 | V36: 130312 | W36: 123854 | X36: 130354 | Y36: 67055 | Z36: 63945 | AA36: 0 | AB36: 3757234 | AC36: 3692508 | AD36: 3867558
C37: Average cost | D37: 1371.97359 | E37: 1525.235466 | F37: 1594.446104 | G37: 1636.518474 | H37: 1744.085988 | I37: 1918.088638 | J37: 1424.514844 | K37: 1479.248797 | L37: 1600.555974 | M37: 1416.201675 | N37: 1616.575456 | O37: 1746.587253 | P37: 1651.72496 | Q37: 1804.850248 | R37: 1977.230384 | S37: 1994.854263 | T37: 2214.947093 | U37: 2444.501247 | V37: 1220.40672 | W37: 1132.715834 | X37: 1142.568935 | Y37: 1410.061431 | Z37: 1355.657308 | AA37: 0 | AB37: 1498.450128 | AC37: 1611.368753 | AD37: 1745.292351
A38: Total | C38: Separations | D38: ='5 Acute Overview'!B$8 -> 1627515 | E38: ='5 Acute Overview'!C$8 -> 1489598 | F38: ='5 Acute Overview'!D$8 -> 1665294 | G38: ='5 Acute Overview'!E$8 -> 1659307 | H38: ='5 Acute Overview'!F$8 -> 1682451 | I38: ='5 Acute Overview'!G$8 -> 1790031 | J38: ='5 Acute Overview'!H$8 -> 1626382 | K38: ='5 Acute Overview'!I$8 -> 1622556 | L38: ='5 Acute Overview'!J$8 -> 1672228 | M38: ='5 Acute Overview'!K$8 -> 404836 | N38: ='5 Acute Overview'!L$8 -> 409865 | O38: ='5 Acute Overview'!M$8 -> 421048 | P38: ='5 Acute Overview'!N$8 -> 609839 | Q38: ='5 Acute Overview'!O$8 -> 588309 | R38: ='5 Acute Overview'!P$8 -> 619908 | S38: ='5 Acute Overview'!Q$8 -> 132792 | T38: ='5 Acute Overview'!R$8 -> 150054 | U38: ='5 Acute Overview'!S$8 -> 157799 | V38: ='5 Acute Overview'!T$8 -> 179773 | W38: ='5 Acute Overview'!U$8 -> 169314 | X38: ='5 Acute Overview'!V$8 -> 179925 | Y38: ='5 Acute Overview'!W$8 -> 119815 | Z38: ='5 Acute Overview'!X$8 -> 112495 | AA38: ='5 Acute Overview'!Y$8 -> 0 | AB38: ='5 Acute Overview'!Z$8 -> 6360259 | AC38: ='5 Acute Overview'!AA$8 -> 6224642 | AD38: ='5 Acute Overview'!AB$8 -> 6506233
C39: ALOS | D39: ='5 Acute Overview'!B$10 -> 2.82624922 | E39: ='5 Acute Overview'!C$10 -> 3.125218348 | F39: ='5 Acute Overview'!D$10 -> 3.0679946 | G39: ='5 Acute Overview'!E$10 -> 2.253649867 | H39: ='5 Acute Overview'!F$10 -> 2.264492101 | I39: ='5 Acute Overview'!G$10 -> 2.315880563 | J39: ='5 Acute Overview'!H$10 -> 2.001658282 | K39: ='5 Acute Overview'!I$10 -> 2.114853971 | L39: ='5 Acute Overview'!J$10 -> 2.113303928 | M39: ='5 Acute Overview'!K$10 -> 2.518466737 | N39: ='5 Acute Overview'!L$10 -> 2.588510851 | O39: ='5 Acute Overview'!M$10 -> 2.741010526 | P39: ='5 Acute Overview'!N$10 -> 2.066388014 | Q39: ='5 Acute Overview'!O$10 -> 2.144182734 | R39: ='5 Acute Overview'!P$10 -> 2.194848268 | S39: ='5 Acute Overview'!Q$10 -> 2.625256039 | T39: ='5 Acute Overview'!R$10 -> 2.479100857 | U39: ='5 Acute Overview'!S$10 -> 2.58641056 | V39: ='5 Acute Overview'!T$10 -> 1.839792405 | W39: ='5 Acute Overview'!U$10 -> 1.932120203 | X39: ='5 Acute Overview'!V$10 -> 1.942592747 | Y39: ='5 Acute Overview'!W$10 -> 2.494178525 | Z39: ='5 Acute Overview'!X$10 -> 2.613565047 | AA39: ='5 Acute Overview'!Y$10 -> 0 | AB39: ='5 Acute Overview'!Z$10 -> 2.335227072 | AC39: ='5 Acute Overview'!AA$10 -> 2.443869704 | AD39: ='5 Acute Overview'!AB$10 -> 2.468539322
